Workbook

Sheet Sample Report (hidden)
A2: Date
A3: Hen
A4: Program
A5: Start at 999999
A6: Sequence component 1 | B6: Time 1 | C6: Seqeunce Component 2 | D6: Time 2 | E6: Seqeunce Component 3 | F6: Time 3 | G6: Correct 0 = No 1=Yes | J6: Seqeunce | K6: Time
A7: 12 | B7: 7 | C7: 12 | D7: 42 | E7: 13 | F7: 18 | G7: if 77 new line, if 31 or 41 = yes new line on 77, | J7: =string of Seqeunce compponent 1, 2 & 3 | K7: =time 3
A8: This continues until ther is a 1 on its own to indicate start of summary data
J9: 10-19 =1
A10: Summary Data | J10: 20-29 =2
A11: Correct | B11: Incorrect | C11: Rft | D11: total | E11: Av Correct | F11: Av Incorrect | G11: Percent correct | H11: Time | J11: in this example the seqeunce would be 111
A12: 40 | B12: 33 | C12: 40 | D12: 73 | E12: 23.95 | F12: 15 | G12: 54 | H12: 806

Sheet Summary
A2: Day | B2: Date | C2: Average Response Rate | D2: Target % | E2: RF for non correct sequence | F2: U Value | K2: Block 1 | L2: Block 2 | M2: Block 3 | N2: Block 4 | O2: Block 5 | P2: Block 6
A3: 1 | B3: ='!M816C40.000'!B2:C2 -> <date> | C3: =('!M816C40.000'!H183/60)/'!M816C40.000'!Q3 -> 2.237853107 | D3: ='!M816C40.000'!N28/'!M816C40.000'!Q3 -> 0.0395480226 | E3: =SUM('!M816C40.000'!L28:Q28)/'!M816C40.000'!Q3 -> 7.276836158 | F3: ='!M816C40.000'!Q24 -> 0.3171687429 | J3: Average Response Rate | K3: =AVERAGE(C3:C7) -> 2.229610426 | L3: =AVERAGE(C8:C12) -> 2.230649006 | M3: =AVERAGE(C13:C17) -> 2.067550743 | N3: =AVERAGE(C18:C22) -> 2.029715698 | O3: =AVERAGE(C23:C27) -> 1.936060574 | P3: =AVERAGE(C28:C32) -> 1.926209199
A4: 2 | B4: ='!M817B00.000'!B2:C2 -> <date> | C4: =('!M817B00.000'!H177/60)/'!M817B00.000'!Q3 -> 2.334795322 | D4: ='!M817B00.000'!N28/'!M817B00.000'!Q3 -> 0.04678362573 | E4: =SUM('!M817B00.000'!L28:Q28)/'!M817B00.000'!Q3 -> 13.36842105 | F4: ='!M817B00.000'!Q24 -> 0.4182952118 | J4: Target % | K4: =AVERAGE(D3:D7) -> 0.01947100625 | L4: =AVERAGE(D8:D12) -> 0.001086956522 | M4: =AVERAGE(D13:D17) -> 0 | N4: =AVERAGE(D18:D22) -> 0 | O4: =AVERAGE(D23:D27) -> 0 | P4: =AVERAGE(D28:D32) -> 0
A5: 3 | B5: ='!M818B10.000'!B2:C2 -> <date> | C5: =('!M818B10.000'!H190/60)/'!M818B10.000'!Q3 -> 2.151351351 | D5: ='!M818B10.000'!N28/'!M818B10.000'!Q3 -> 0.005405405405 | E5: =SUM('!M818B10.000'!L28:Q28)/'!M818B10.000'!Q3 -> 6.351351351 | F5: ='!M818B10.000'!Q24 -> 0.2985399785 | J5: CCRF | K5: =AVERAGE(E3:E7) -> 8.002964137 | L5: =AVERAGE(E8:E12) -> 6.68488213 | M5: =AVERAGE(E13:E17) -> 6.10740296 | N5: =AVERAGE(E18:E22) -> 7.106687335 | O5: =AVERAGE(E23:E27) -> 5.719184825 | P5: =AVERAGE(E28:E32) -> 5.685476798
A6: 4 | B6: ='!M819940.000'!B2:C2 -> <date> | C6: =('!M819940.000'!H187/60)/'!M819940.000'!Q3 -> 2.188003663 | D6: ='!M819940.000'!N28/'!M819940.000'!Q3 -> 0 | E6: =SUM('!M819940.000'!L28:Q28)/'!M819940.000'!Q3 -> 6.43956044 | F6: ='!M819940.000'!Q24 -> 0.3000333963 | J6: U Value | K6: =AVERAGE(F3:F7) -> 0.3351264616 | L6: =AVERAGE(F8:F12) -> 0.2459757737 | M6: =AVERAGE(F13:F17) -> 0.201136762 | N6: =AVERAGE(F18:F22) -> 0.05924219347 | O6: =AVERAGE(F23:F27) -> 0.01843407794 | P6: =AVERAGE(F28:F32) -> 0.01104896072
A7: 5 | B7: ='!M820930.000'!B2:C2 -> <date> | C7: =('!M820930.000'!H183/60)/'!M820930.000'!Q3 -> 2.236048689 | D7: ='!M820930.000'!N28/'!M820930.000'!Q3 -> 0.005617977528 | E7: =SUM('!M820930.000'!L28:Q28)/'!M820930.000'!Q3 -> 6.578651685 | F7: ='!M820930.000'!Q24 -> 0.3415949784
A8: 6 | B8: ='!M821B20.000'!B2:C2 -> <date> | C8: =('!M821B20.000'!H178/60)/'!M821B20.000'!Q3 -> 2.314437984 | D8: ='!M821B20.000'!N28/'!M821B20.000'!Q3 -> 0 | E8: =SUM('!M821B20.000'!L28:Q28)/'!M821B20.000'!Q3 -> 6.854651163 | F8: ='!M821B20.000'!Q24 -> 0.3563615356
A9: 7 | B9: ='!M823B10.000'!B2:C2 -> <date> | C9: =('!M823B10.000'!H177/60)/'!M823B10.000'!Q3 -> 2.338109162 | D9: ='!M823B10.000'!N28/'!M823B10.000'!Q3 -> 0 | E9: =SUM('!M823B10.000'!L28:Q28)/'!M823B10.000'!Q3 -> 6.888888889 | F9: ='!M823B10.000'!Q24 -> 0.3272296554 | G9: =K3 -> 2.229610426 | H9: 2.230649006 | I9: 2.067550743 | J9: 2.029715698 | K9: 1.936060574 | L9: 1.926209199 | M9: =K4 -> 0.01947100625 | N9: 0.001086956522 | O9: 0 | P9: 0 | Q9: 0 | R9: 0 | S9: =K6 -> 0.3351264616 | T9: 0.2459757737 | U9: 0.201136762 | V9: 0.05924219347 | W9: 0.01843407794 | X9: 0.01104896072
A10: 8 | B10: ='!M824B10.104'!B2:C2 -> <date> | C10: =('!M824B10.104'!H188/60)/'!M824B10.104'!Q3 -> 2.192948718 | D10: ='!M824B10.104'!N28/'!M824B10.104'!Q3 -> 0 | E10: =SUM('!M824B10.104'!L28:Q28)/'!M824B10.104'!Q3 -> 6.43956044 | F10: ='!M824B10.104'!Q24 -> 0.2012479043
A11: 9 | B11: ='!M825B00.104'!B2:C2 -> <date> | C11: =('!M825B00.104'!H193/60)/'!M825B00.104'!Q3 -> 2.135828877 | D11: ='!M825B00.104'!N28/'!M825B00.104'!Q3 -> 0 | E11: =SUM('!M825B00.104'!L28:Q28)/'!M825B00.104'!Q3 -> 6.86631016 | F11: ='!M825B00.104'!Q24 -> 0.1210895807
A12: 10 | B12: ='!M826A20.104'!B2:C2 -> <date> | C12: =('!M826A20.104'!H190/60)/'!M826A20.104'!Q3 -> 2.17192029 | D12: ='!M826A20.104'!N28/'!M826A20.104'!Q3 -> 0.005434782609 | E12: =SUM('!M826A20.104'!L28:Q28)/'!M826A20.104'!Q3 -> 6.375 | F12: ='!M826A20.104'!Q24 -> 0.2239501926
A13: 11 | B13: ='!M827A50.104'!B2:C2 -> <date> | C13: =('!M827A50.104'!H194/60)/'!M827A50.104'!Q3 -> 2.106349206 | D13: ='!M827A50.104'!N28/'!M827A50.104'!Q3 -> 0 | E13: =SUM('!M827A50.104'!L28:Q28)/'!M827A50.104'!Q3 -> 6.211640212 | F13: ='!M827A50.104'!Q24 -> 0.2511732512
A14: 12 | B14: ='!M828A10.104'!B2:C2 -> <date> | C14: =('!M828A10.104'!H196/60)/'!M828A10.104'!Q3 -> 2.085514834 | D14: ='!M828A10.104'!N28/'!M828A10.104'!Q3 -> 0 | E14: =SUM('!M828A10.104'!L28:Q28)/'!M828A10.104'!Q3 -> 6.151832461 | F14: ='!M828A10.104'!Q24 -> 0.2362776688
A15: 13 | B15: ='!M829920.104'!B2:C2 -> <date> | C15: =('!M829920.104'!H191/60)/'!M829920.104'!Q3 -> 2.139964158 | D15: ='!M829920.104'!N28/'!M829920.104'!Q3 -> 0 | E15: =SUM('!M829920.104'!L28:Q28)/'!M829920.104'!Q3 -> 6.306451613 | F15: ='!M829920.104'!Q24 -> 0.2648135338
A16: 14 | B16: ='!M830B10.104'!B2:C2 -> <date> | C16: =('!M830B10.104'!H203/60)/'!M830B10.104'!Q3 -> 2.02605753 | D16: ='!M830B10.104'!N28/'!M830B10.104'!Q3 -> 0 | E16: =SUM('!M830B10.104'!L28:Q28)/'!M830B10.104'!Q3 -> 6.030456853 | F16: ='!M830B10.104'!Q24 -> 0.1326957669
A17: 15 | B17: ='!M831A40.104'!B2:C2 -> <date> | C17: =('!M831A40.104'!H208/60)/'!M831A40.104'!Q3 -> 1.979867987 | D17: ='!M831A40.104'!N28/'!M831A40.104'!Q3 -> 0 | E17: =SUM('!M831A40.104'!L28:Q28)/'!M831A40.104'!Q3 -> 5.836633663 | F17: ='!M831A40.104'!Q24 -> 0.120723589
A18: 16 | B18: ='!M901920.104'!B2:C2 -> <date> | C18: =('!M901920.104'!H196/60)/'!M901920.104'!Q3 -> 2.100964912 | D18: ='!M901920.104'!N28/'!M901920.104'!Q3 -> 0 | E18: =SUM('!M901920.104'!L28:Q28)/'!M901920.104'!Q3 -> 6.178947368 | F18: ='!M901920.104'!Q24 -> 0.09789646749
A19: 17 | B19: ='!M902A40.104'!B2:C2 -> <date> | C19: =('!M902A40.104'!H195/60)/'!M902A40.104'!Q3 -> 2.109435626 | D19: ='!M902A40.104'!N28/'!M902A40.104'!Q3 -> 0 | E19: =SUM('!M902A40.104'!L28:Q28)/'!M902A40.104'!Q3 -> 6.211640212 | F19: ='!M902A40.104'!Q24 -> 0.09833589976
A20: 18 | B20: ='!M903950.104'!B2:C2 -> <date> | C20: =('!M903950.104'!H209/60)/'!M903950.104'!Q3 -> 1.966584565 | D20: ='!M903950.104'!N28/'!M903950.104'!Q3 -> 0 | E20: =SUM('!M903950.104'!L28:Q28)/'!M903950.104'!Q3 -> 5.807881773 | F20: ='!M903950.104'!Q24 -> 0.02892505138
A21: 19 | B21: ='!M904B00.104'!B2:C2 -> <date> | C21: =('!M904B00.104'!H210/60)/'!M904B00.104'!Q3 -> 1.954084967 | D21: ='!M904B00.104'!N28/'!M904B00.104'!Q3 -> 0 | E21: =SUM('!M904B00.104'!L28:Q28)/'!M904B00.104'!Q3 -> 5.779411765 | F21: ='!M904B00.104'!Q24 -> 0.04839418578
A22: 20 | B22: ='!M905A10.104'!B2:C2 -> <date> | C22: =('!M905A10.104'!H204/60)/'!M905A10.104'!Q3 -> 2.017508418 | D22: ='!M905A10.104'!N28/'!M905A10.104'!Q3 -> 0 | E22: =SUM('!M905A10.104'!L28:Q28)/'!M905A10.104'!Q3 -> 11.55555556 | F22: ='!M905A10.104'!Q24 -> 0.02265936293
A23: 21 | B23: ='!M906A00.104'!B2:C2 -> <date> | C23: =('!M906A00.104'!H217/60)/'!M906A00.104'!Q3 -> 1.893917852 | D23: ='!M906A00.104'!N28/'!M906A00.104'!Q3 -> 0 | E23: =SUM('!M906A00.104'!L28:Q28)/'!M906A00.104'!Q3 -> 5.597156398 | F23: ='!M906A00.104'!Q24 -> 0.03244541377
A24: 22 | B24: ='!M907A50.104'!B2:C2 -> <date> | C24: =('!M907A50.104'!H219/60)/'!M907A50.104'!Q3 -> 1.87629108 | D24: ='!M907A50.104'!N28/'!M907A50.104'!Q3 -> 0 | E24: =SUM('!M907A50.104'!L28:Q28)/'!M907A50.104'!Q3 -> 5.549295775 | F24: ='!M907A50.104'!Q24 -> 0.02103504377
A25: 23 | B25: ='!M908A00.104'!B2:C2 -> <date> | C25: =('!M908A00.104'!H197/60)/'!M908A00.104'!Q3 -> 2.090488656 | D25: ='!M908A00.104'!N28/'!M908A00.104'!Q3 -> 0 | E25: =SUM('!M908A00.104'!L28:Q28)/'!M908A00.104'!Q3 -> 6.151832461 | F25: ='!M908A00.104'!Q24 -> 0.02160228999
A26: 24 | B26: ='!M909A40.104'!B2:C2 -> <date> | C26: =('!M909A40.104'!H217/60)/'!M909A40.104'!Q3 -> 1.893759874 | D26: ='!M909A40.104'!N28/'!M909A40.104'!Q3 -> 0 | E26: =SUM('!M909A40.104'!L28:Q28)/'!M909A40.104'!Q3 -> 5.597156398 | F26: ='!M909A40.104'!Q24 -> 0.005622784435
A27: 25 | B27: ='!M910A00.104'!B2:C2 -> <date> | C27: =('!M910A00.104'!H213/60)/'!M910A00.104'!Q3 -> 1.925845411 | D27: ='!M910A00.104'!N28/'!M910A00.104'!Q3 -> 0 | E27: =SUM('!M910A00.104'!L28:Q28)/'!M910A00.104'!Q3 -> 5.700483092 | F27: ='!M910A00.104'!Q24 -> 0.01146485772
A28: 26 | B28: ='!M911A00.104'!B2:C2 -> <date> | C28: =('!M911A00.104'!H209/60)/'!M911A00.104'!Q3 -> 1.970279146 | D28: ='!M911A00.104'!N28/'!M911A00.104'!Q3 -> 0 | E28: =SUM('!M911A00.104'!L28:Q28)/'!M911A00.104'!Q3 -> 5.807881773 | F28: ='!M911A00.104'!Q24 -> 0.01625380857
A29: 27 | B29: ='!M912B30.104'!B2:C2 -> <date> | C29: =('!M912B30.104'!H218/60)/'!M912B30.104'!Q3 -> 1.886713836 | D29: ='!M912B30.104'!N28/'!M912B30.104'!Q3 -> 0 | E29: =SUM('!M912B30.104'!L28:Q28)/'!M912B30.104'!Q3 -> 5.575471698 | F29: ='!M912B30.104'!Q24 -> 0.01118681779
A30: 28 | B30: ='!M913930.104'!B2:C2 -> <date> | C30: =('!M913930.104'!H214/60)/'!M913930.104'!Q3 -> 1.921634615 | D30: ='!M913930.104'!N28/'!M913930.104'!Q3 -> 0 | E30: =SUM('!M913930.104'!L28:Q28)/'!M913930.104'!Q3 -> 5.673076923 | F30: ='!M913930.104'!Q24 -> 0.005706255787
A31: 29
A32: 30

Sheet Start
F1: Use Folder 51 | H1: Auto Clean Up | J1: Correct sequence
F2: FALSE | H2: TRUE | J2: 2212
A4: Working with Folder | G4: Process All/Or Pick A number: ALL or an integer
A5: E:\Hen Data\Raw Data\104_184\phase 3 Any\ | G5: ALL
A6: Filenames:
A7: !M816C40.000 | G7: Paint Cells
A8: !M817B00.000 | G8: FALSE
A9: !M818B10.000
A10: !M819940.000
A11: !M820930.000
A12: !M821B20.000
A13: !M828A10.104
A14: !M829920.104
A15: !M824B10.104
A16: !M825B00.104
A17: !M826A20.104
A18: !M827A50.104
A19: !M909A40.104
A20: !M910A00.104
A21: !M911A00.104
A22: !M912B30.104
A23: !M913930.104
A24: !M830B10.104
A25: !M831A40.104
A26: !M901920.104
A27: !M902A40.104
A28: !M903950.104
A29: !M904B00.104
A30: !M905A10.104
A31: !M906A00.104
A32: !M907A50.104
A33: !M908A00.104
A34: !M823B10.000

Sheet !M816C40.000
A1: Report for:!M816C40.000
A2: Date: | B2: <date>
A3: Hen: | B3: <hen> | F3: Correct Sequence | G3: =Start!J2 -> 2212 | P3: Total Sequences in Data | Q3: =4994-COUNTBLANK(L7:L5000) -> 177 | V3: Total Sequences in Block Data | W3: =COUNTA(L7:L36) -> 30 | AA3: Total Sequences in Block Data | AB3: =COUNTA(L37:L65) -> 29 | AF3: Total Sequences in Block Data | AG3: =COUNTA(L66:L95) -> 30 | AK3: Total Sequences in Block Data | AL3: =COUNTA(L96:L124) -> 29 | AP3: Total Sequences in Block Data | AQ3: =COUNTA(L125:L154) -> 30 | AU3: Total Sequences in Block Data | AV3: =COUNTA(L155:L183) -> 29
P4: Total Sequences in Summary | Q4: =SUM(O7:O22) -> 177 | V4: Total Sequences in Block Summary | W4: =SUM(U7:U22) -> 30 | AA4: Total Sequences in Block Summary | AB4: =SUM(Z7:Z22) -> 29 | AF4: Total Sequences in Block Summary | AG4: =SUM(AE7:AE22) -> 30 | AK4: Total Sequences in Block Summary | AL4: =SUM(AJ7:AJ22) -> 29 | AP4: Total Sequences in Block Summary | AQ4: =SUM(AO7:AO22) -> 30 | AU4: Total Sequences in Block Summary | AV4: =SUM(AT7:AT22) -> 29
T5: Block 1 | Y5: Block 2 | AD5: Block 3 | AI5: Block 4 | AN5: Block 5 | AS5: Block 6
A6: Sequence Component 1 | B6: Time 1 | C6: Sequence Component 2 | D6: Time 2 | E6: Sequence Component 3 | F6: Time 3 | G6: Sequence Component 4 | H6: Time 4 | I6: Sequence Component 5 | J6: Time 5 | K6: Correct? 0=No 1=Yes | L6: Sequence | N6: Frequency | P6: Relative Frequency | Q6: Variability | T6: Frequency | V6: Relative Frequency | W6: Variability | Y6: Frequency | AA6: Relative Frequency | AB6: Variability | AD6: Frequency | AF6: Relative Frequency | AG6: Variability | AI6: Frequency | AK6: Relative Frequency | AL6: Variability | AN6: Frequency | AP6: Relative Frequency | AQ6: Variability | AS6: Frequency | AU6: Relative Frequency | AV6: Variability
A7: 12 | B7: 48 | C7: 14 | D7: 65 | E7: 24 | F7: 87 | G7: 14 | H7: 100 | K7: 0 | L7: 1121 | N7: 1111 | O7: =COUNTIF($L$7:$L$500,N7) -> 1 | P7: =O7/$Q$4 -> 0.005649717514 | Q7: =IF(P7=0,0,(P7*((LOG(P7))/LOG(2)))) -> -0.04218986186 | T7: =N7 -> 1111 | U7: =COUNTIF(L7:L36,T7) -> 0 | V7: =U7/(W4-U20) -> 0 | W7: =IF(V7=0,0,(V7*((LOG(V7))/LOG(2)))) -> 0 | Y7: =N7 -> 1111 | Z7: =COUNTIF(L37:L65,Y7) -> 0 | AA7: =Z7/(AB4-Z20) -> 0 | AB7: =IF(AA7=0,0,(AA7*((LOG(AA7))/LOG(2)))) -> 0 | AD7: =N7 -> 1111 | AE7: =COUNTIF(L66:L95,AD7) -> 0 | AF7: =AE7/(AG4-AE20) -> 0 | AG7: =IF(AF7=0,0,(AF7*((LOG(AF7))/LOG(2)))) -> 0 | AI7: =N7 -> 1111 | AJ7: =COUNTIF(L96:L124,AI7) -> 0 | AK7: =AJ7/(AL4-AJ20) -> 0 | AL7: =IF(AK7=0,0,(AK7*((LOG(AK7))/LOG(2)))) -> 0 | AN7: =N7 -> 1111 | AO7: =COUNTIF(L125:L154,AN7) -> 0 | AP7: =AO7/(AQ4-AO20) -> 0 | AQ7: =IF(AP7=0,0,(AP7*((LOG(AP7))/LOG(2)))) -> 0 | AS7: =N7 -> 1111 | AT7: =COUNTIF(L155:L183,AS7) -> 1 | AU7: =AT7/(AV4-AT20) -> 0.03571428571 | AV7: =IF(AU7=0,0,(AU7*((LOG(AU7))/LOG(2)))) -> -0.1716912472
A8: 12 | B8: 196 | C8: 23 | D8: 215 | E8: 13 | F8: 231 | G8: 14 | H8: 262 | K8: 0 | L8: 1211 | N8: 1112 | O8: =COUNTIF($L$7:$L$500,N8) -> 2 | P8: =O8/$Q$4 -> 0.01129943503 | Q8: =IF(P8=0,0,(P8*((LOG(P8))/LOG(2)))) -> -0.0730802887 | T8: =N8 -> 1112 | U8: =COUNTIF(L7:L36,T8) -> 2 | V8: =U8/(W4-U20) -> 0.06666666667 | W8: =IF(V8=0,0,(V8*((LOG(V8))/LOG(2)))) -> -0.260459373 | Y8: =N8 -> 1112 | Z8: =COUNTIF(L37:L65,Y8) -> 0 | AA8: =Z8/(AB4-Z20) -> 0 | AB8: =IF(AA8=0,0,(AA8*((LOG(AA8))/LOG(2)))) -> 0 | AD8: =N8 -> 1112 | AE8: =COUNTIF(L66:L95,AD8) -> 0 | AF8: =AE8/(AG4-AE20) -> 0 | AG8: =IF(AF8=0,0,(AF8*((LOG(AF8))/LOG(2)))) -> 0 | AI8: =N8 -> 1112 | AJ8: =COUNTIF(L96:L124,AI8) -> 0 | AK8: =AJ8/(AL4-AJ20) -> 0 | AL8: =IF(AK8=0,0,(AK8*((LOG(AK8))/LOG(2)))) -> 0 | AN8: =N8 -> 1112 | AO8: =COUNTIF(L125:L154,AN8) -> 0 | AP8: =AO8/(AQ4-AO20) -> 0 | AQ8: =IF(AP8=0,0,(AP8*((LOG(AP8))/LOG(2)))) -> 0 | AS8: =N8 -> 1112 | AT8: =COUNTIF(L155:L183,AS8) -> 0 | AU8: =AT8/(AV4-AT20) -> 0 | AV8: =IF(AU8=0,0,(AU8*((LOG(AU8))/LOG(2)))) -> 0
A9: 12 | B9: 362 | C9: 23 | D9: 372 | E9: 24 | F9: 380 | G9: 23 | H9: 391 | K9: 0 | L9: 1222 | N9: 1121 | O9: =COUNTIF($L$7:$L$500,N9) -> 3 | P9: =O9/$Q$4 -> 0.01694915254 | Q9: =IF(P9=0,0,(P9*((LOG(P9))/LOG(2)))) -> -0.0997058144 | T9: =N9 -> 1121 | U9: =COUNTIF(L7:L36,T9) -> 1 | V9: =U9/(W4-U20) -> 0.03333333333 | W9: =IF(V9=0,0,(V9*((LOG(V9))/LOG(2)))) -> -0.1635630199 | Y9: =N9 -> 1121 | Z9: =COUNTIF(L37:L65,Y9) -> 0 | AA9: =Z9/(AB4-Z20) -> 0 | AB9: =IF(AA9=0,0,(AA9*((LOG(AA9))/LOG(2)))) -> 0 | AD9: =N9 -> 1121 | AE9: =COUNTIF(L66:L95,AD9) -> 0 | AF9: =AE9/(AG4-AE20) -> 0 | AG9: =IF(AF9=0,0,(AF9*((LOG(AF9))/LOG(2)))) -> 0 | AI9: =N9 -> 1121 | AJ9: =COUNTIF(L96:L124,AI9) -> 0 | AK9: =AJ9/(AL4-AJ20) -> 0 | AL9: =IF(AK9=0,0,(AK9*((LOG(AK9))/LOG(2)))) -> 0 | AN9: =N9 -> 1121 | AO9: =COUNTIF(L125:L154,AN9) -> 0 | AP9: =AO9/(AQ4-AO20) -> 0 | AQ9: =IF(AP9=0,0,(AP9*((LOG(AP9))/LOG(2)))) -> 0 | AS9: =N9 -> 1121 | AT9: =COUNTIF(L155:L183,AS9) -> 2 | AU9: =AT9/(AV4-AT20) -> 0.07142857143 | AV9: =IF(AU9=0,0,(AU9*((LOG(AU9))/LOG(2)))) -> -0.271953923
A10: 12 | B10: 491 | C10: 23 | D10: 503 | E10: 24 | F10: 510 | G10: 14 | H10: 528 | K10: 0 | L10: 1221 | N10: 1122 | O10: =COUNTIF($L$7:$L$500,N10) -> 25 | P10: =O10/$Q$4 -> 0.1412429379 | Q10: =IF(P10=0,0,(P10*((LOG(P10))/LOG(2)))) -> -0.3988346554 | T10: =N10 -> 1122 | U10: =COUNTIF(L7:L36,T10) -> 4 | V10: =U10/(W4-U20) -> 0.1333333333 | W10: =IF(V10=0,0,(V10*((LOG(V10))/LOG(2)))) -> -0.3875854127 | Y10: =N10 -> 1122 | Z10: =COUNTIF(L37:L65,Y10) -> 5 | AA10: =Z10/(AB4-Z20) -> 0.1785714286 | AB10: =IF(AA10=0,0,(AA10*((LOG(AA10))/LOG(2)))) -> -0.4438262191 | AD10: =N10 -> 1122 | AE10: =COUNTIF(L66:L95,AD10) -> 2 | AF10: =AE10/(AG4-AE20) -> 0.06896551724 | AG10: =IF(AF10=0,0,(AF10*((LOG(AF10))/LOG(2)))) -> -0.2660676548 | AI10: =N10 -> 1122 | AJ10: =COUNTIF(L96:L124,AI10) -> 3 | AK10: =AJ10/(AL4-AJ20) -> 0.1111111111 | AL10: =IF(AK10=0,0,(AK10*((LOG(AK10))/LOG(2)))) -> -0.352213889 | AN10: =N10 -> 1122 | AO10: =COUNTIF(L125:L154,AN10) -> 5 | AP10: =AO10/(AQ4-AO20) -> 0.1785714286 | AQ10: =IF(AP10=0,0,(AP10*((LOG(AP10))/LOG(2)))) -> -0.4438262191 | AS10: =N10 -> 1122 | AT10: =COUNTIF(L155:L183,AS10) -> 6 | AU10: =AT10/(AV4-AT20) -> 0.2142857143 | AV10: =IF(AU10=0,0,(AU10*((LOG(AU10))/LOG(2)))) -> -0.4762269474
A11: 12 | B11: 637 | C11: 23 | D11: 650 | E11: 24 | F11: 657 | G11: 23 | H11: 681 | K11: 0 | L11: 1222 | N11: 1211 | O11: =COUNTIF($L$7:$L$500,N11) -> 1 | P11: =O11/$Q$4 -> 0.005649717514 | Q11: =IF(P11=0,0,(P11*((LOG(P11))/LOG(2)))) -> -0.04218986186 | T11: =N11 -> 1211 | U11: =COUNTIF(L7:L36,T11) -> 1 | V11: =U11/(W4-U20) -> 0.03333333333 | W11: =IF(V11=0,0,(V11*((LOG(V11))/LOG(2)))) -> -0.1635630199 | Y11: =N11 -> 1211 | Z11: =COUNTIF(L37:L65,Y11) -> 0 | AA11: =Z11/(AB4-Z20) -> 0 | AB11: =IF(AA11=0,0,(AA11*((LOG(AA11))/LOG(2)))) -> 0 | AD11: =N11 -> 1211 | AE11: =COUNTIF(L66:L95,AD11) -> 0 | AF11: =AE11/(AG4-AE20) -> 0 | AG11: =IF(AF11=0,0,(AF11*((LOG(AF11))/LOG(2)))) -> 0 | AI11: =N11 -> 1211 | AJ11: =COUNTIF(L96:L124,AI11) -> 0 | AK11: =AJ11/(AL4-AJ20) -> 0 | AL11: =IF(AK11=0,0,(AK11*((LOG(AK11))/LOG(2)))) -> 0 | AN11: =N11 -> 1211 | AO11: =COUNTIF(L125:L154,AN11) -> 0 | AP11: =AO11/(AQ4-AO20) -> 0 | AQ11: =IF(AP11=0,0,(AP11*((LOG(AP11))/LOG(2)))) -> 0 | AS11: =N11 -> 1211 | AT11: =COUNTIF(L155:L183,AS11) -> 0 | AU11: =AT11/(AV4-AT20) -> 0 | AV11: =IF(AU11=0,0,(AU11*((LOG(AU11))/LOG(2)))) -> 0
A12: 12 | B12: 784 | C12: 23 | D12: 795 | E12: 24 | F12: 804 | G12: 23 | H12: 814 | K12: 0 | L12: 1222 | N12: 1212 | O12: =COUNTIF($L$7:$L$500,N12) -> 4 | P12: =O12/$Q$4 -> 0.02259887006 | Q12: =IF(P12=0,0,(P12*((LOG(P12))/LOG(2)))) -> -0.1235617073 | T12: =N12 -> 1212 | U12: =COUNTIF(L7:L36,T12) -> 0 | V12: =U12/(W4-U20) -> 0 | W12: =IF(V12=0,0,(V12*((LOG(V12))/LOG(2)))) -> 0 | Y12: =N12 -> 1212 | Z12: =COUNTIF(L37:L65,Y12) -> 0 | AA12: =Z12/(AB4-Z20) -> 0 | AB12: =IF(AA12=0,0,(AA12*((LOG(AA12))/LOG(2)))) -> 0 | AD12: =N12 -> 1212 | AE12: =COUNTIF(L66:L95,AD12) -> 0 | AF12: =AE12/(AG4-AE20) -> 0 | AG12: =IF(AF12=0,0,(AF12*((LOG(AF12))/LOG(2)))) -> 0 | AI12: =N12 -> 1212 | AJ12: =COUNTIF(L96:L124,AI12) -> 0 | AK12: =AJ12/(AL4-AJ20) -> 0 | AL12: =IF(AK12=0,0,(AK12*((LOG(AK12))/LOG(2)))) -> 0 | AN12: =N12 -> 1212 | AO12: =COUNTIF(L125:L154,AN12) -> 0 | AP12: =AO12/(AQ4-AO20) -> 0 | AQ12: =IF(AP12=0,0,(AP12*((LOG(AP12))/LOG(2)))) -> 0 | AS12: =N12 -> 1212 | AT12: =COUNTIF(L155:L183,AS12) -> 4 | AU12: =AT12/(AV4-AT20) -> 0.1428571429 | AV12: =IF(AU12=0,0,(AU12*((LOG(AU12))/LOG(2)))) -> -0.4010507032
A13: 21 | B13: 925 | C13: 21 | D13: 933 | E13: 22 | F13: 945 | G13: 14 | H13: 962 | K13: 0 | L13: 2221 | N13: 1221 | O13: =COUNTIF($L$7:$L$500,N13) -> 29 | P13: =O13/$Q$4 -> 0.1638418079 | Q13: =IF(P13=0,0,(P13*((LOG(P13))/LOG(2)))) -> -0.427565605 | T13: =N13 -> 1221 | U13: =COUNTIF(L7:L36,T13) -> 8 | V13: =U13/(W4-U20) -> 0.2666666667 | W13: =IF(V13=0,0,(V13*((LOG(V13))/LOG(2)))) -> -0.5085041588 | Y13: =N13 -> 1221 | Z13: =COUNTIF(L37:L65,Y13) -> 4 | AA13: =Z13/(AB4-Z20) -> 0.1428571429 | AB13: =IF(AA13=0,0,(AA13*((LOG(AA13))/LOG(2)))) -> -0.4010507032 | AD13: =N13 -> 1221 | AE13: =COUNTIF(L66:L95,AD13) -> 0 | AF13: =AE13/(AG4-AE20) -> 0 | AG13: =IF(AF13=0,0,(AF13*((LOG(AF13))/LOG(2)))) -> 0 | AI13: =N13 -> 1221 | AJ13: =COUNTIF(L96:L124,AI13) -> 5 | AK13: =AJ13/(AL4-AJ20) -> 0.1851851852 | AL13: =IF(AK13=0,0,(AK13*((LOG(AK13))/LOG(2)))) -> -0.4505480384 | AN13: =N13 -> 1221 | AO13: =COUNTIF(L125:L154,AN13) -> 7 | AP13: =AO13/(AQ4-AO20) -> 0.25 | AQ13: =IF(AP13=0,0,(AP13*((LOG(AP13))/LOG(2)))) -> -0.5 | AS13: =N13 -> 1221 | AT13: =COUNTIF(L155:L183,AS13) -> 5 | AU13: =AT13/(AV4-AT20) -> 0.1785714286 | AV13: =IF(AU13=0,0,(AU13*((LOG(AU13))/LOG(2)))) -> -0.4438262191
A14: 12 | B14: 1054 | C14: 23 | D14: 1070 | E14: 24 | F14: 1080 | G14: 14 | H14: 1097 | K14: 0 | L14: 1221 | N14: 1222 | O14: =COUNTIF($L$7:$L$500,N14) -> 88 | P14: =O14/$Q$4 -> 0.4971751412 | Q14: =IF(P14=0,0,(P14*((LOG(P14))/LOG(2)))) -> -0.5012390168 | T14: =N14 -> 1222 | U14: =COUNTIF(L7:L36,T14) -> 12 | V14: =U14/(W4-U20) -> 0.4 | W14: =IF(V14=0,0,(V14*((LOG(V14))/LOG(2)))) -> -0.528771238 | Y14: =N14 -> 1222 | Z14: =COUNTIF(L37:L65,Y14) -> 16 | AA14: =Z14/(AB4-Z20) -> 0.5714285714 | AB14: =IF(AA14=0,0,(AA14*((LOG(AA14))/LOG(2)))) -> -0.4613456697 | AD14: =N14 -> 1222 | AE14: =COUNTIF(L66:L95,AD14) -> 22 | AF14: =AE14/(AG4-AE20) -> 0.7586206897 | AG14: =IF(AF14=0,0,(AF14*((LOG(AF14))/LOG(2)))) -> -0.3023478029 | AI14: =N14 -> 1222 | AJ14: =COUNTIF(L96:L124,AI14) -> 18 | AK14: =AJ14/(AL4-AJ20) -> 0.6666666667 | AL14: =IF(AK14=0,0,(AK14*((LOG(AK14))/LOG(2)))) -> -0.3899750005 | AN14: =N14 -> 1222 | AO14: =COUNTIF(L125:L154,AN14) -> 13 | AP14: =AO14/(AQ4-AO20) -> 0.4642857143 | AQ14: =IF(AP14=0,0,(AP14*((LOG(AP14))/LOG(2)))) -> -0.5139249161 | AS14: =N14 -> 1222 | AT14: =COUNTIF(L155:L183,AS14) -> 7 | AU14: =AT14/(AV4-AT20) -> 0.25 | AV14: =IF(AU14=0,0,(AU14*((LOG(AU14))/LOG(2)))) -> -0.5
A15: 12 | B15: 1195 | C15: 23 | D15: 1209 | E15: 24 | F15: 1217 | G15: 14 | H15: 1237 | K15: 0 | L15: 1221 | N15: 2111 | O15: =COUNTIF($L$7:$L$500,N15) -> 0 | P15: =O15/$Q$4 -> 0 | Q15: =IF(P15=0,0,(P15*((LOG(P15))/LOG(2)))) -> 0 | T15: =N15 -> 2111 | U15: =COUNTIF(L7:L36,T15) -> 0 | V15: =U15/(W4-U20) -> 0 | W15: =IF(V15=0,0,(V15*((LOG(V15))/LOG(2)))) -> 0 | Y15: =N15 -> 2111 | Z15: =COUNTIF(L37:L65,Y15) -> 0 | AA15: =Z15/(AB4-Z20) -> 0 | AB15: =IF(AA15=0,0,(AA15*((LOG(AA15))/LOG(2)))) -> 0 | AD15: =N15 -> 2111 | AE15: =COUNTIF(L66:L95,AD15) -> 0 | AF15: =AE15/(AG4-AE20) -> 0 | AG15: =IF(AF15=0,0,(AF15*((LOG(AF15))/LOG(2)))) -> 0 | AI15: =N15 -> 2111 | AJ15: =COUNTIF(L96:L124,AI15) -> 0 | AK15: =AJ15/(AL4-AJ20) -> 0 | AL15: =IF(AK15=0,0,(AK15*((LOG(AK15))/LOG(2)))) -> 0 | AN15: =N15 -> 2111 | AO15: =COUNTIF(L125:L154,AN15) -> 0 | AP15: =AO15/(AQ4-AO20) -> 0 | AQ15: =IF(AP15=0,0,(AP15*((LOG(AP15))/LOG(2)))) -> 0 | AS15: =N15 -> 2111 | AT15: =COUNTIF(L155:L183,AS15) -> 0 | AU15: =AT15/(AV4-AT20) -> 0 | AV15: =IF(AU15=0,0,(AU15*((LOG(AU15))/LOG(2)))) -> 0
A16: 12 | B16: 1331 | C16: 23 | D16: 1343 | E16: 24 | F16: 1348 | G16: 14 | H16: 1365 | K16: 0 | L16: 1221 | N16: 2112 | O16: =COUNTIF($L$7:$L$500,N16) -> 0 | P16: =O16/$Q$4 -> 0 | Q16: =IF(P16=0,0,(P16*((LOG(P16))/LOG(2)))) -> 0 | T16: =N16 -> 2112 | U16: =COUNTIF(L7:L36,T16) -> 0 | V16: =U16/(W4-U20) -> 0 | W16: =IF(V16=0,0,(V16*((LOG(V16))/LOG(2)))) -> 0 | Y16: =N16 -> 2112 | Z16: =COUNTIF(L37:L65,Y16) -> 0 | AA16: =Z16/(AB4-Z20) -> 0 | AB16: =IF(AA16=0,0,(AA16*((LOG(AA16))/LOG(2)))) -> 0 | AD16: =N16 -> 2112 | AE16: =COUNTIF(L66:L95,AD16) -> 0 | AF16: =AE16/(AG4-AE20) -> 0 | AG16: =IF(AF16=0,0,(AF16*((LOG(AF16))/LOG(2)))) -> 0 | AI16: =N16 -> 2112 | AJ16: =COUNTIF(L96:L124,AI16) -> 0 | AK16: =AJ16/(AL4-AJ20) -> 0 | AL16: =IF(AK16=0,0,(AK16*((LOG(AK16))/LOG(2)))) -> 0 | AN16: =N16 -> 2112 | AO16: =COUNTIF(L125:L154,AN16) -> 0 | AP16: =AO16/(AQ4-AO20) -> 0 | AQ16: =IF(AP16=0,0,(AP16*((LOG(AP16))/LOG(2)))) -> 0 | AS16: =N16 -> 2112 | AT16: =COUNTIF(L155:L183,AS16) -> 0 | AU16: =AT16/(AV4-AT20) -> 0 | AV16: =IF(AU16=0,0,(AU16*((LOG(AU16))/LOG(2)))) -> 0
A17: 12 | B17: 1462 | C17: 23 | D17: 1476 | E17: 24 | F17: 1482 | G17: 23 | H17: 1506 | K17: 0 | L17: 1222 | N17: 2121 | O17: =COUNTIF($L$7:$L$500,N17) -> 0 | P17: =O17/$Q$4 -> 0 | Q17: =IF(P17=0,0,(P17*((LOG(P17))/LOG(2)))) -> 0 | T17: =N17 -> 2121 | U17: =COUNTIF(L7:L36,T17) -> 0 | V17: =U17/(W4-U20) -> 0 | W17: =IF(V17=0,0,(V17*((LOG(V17))/LOG(2)))) -> 0 | Y17: =N17 -> 2121 | Z17: =COUNTIF(L37:L65,Y17) -> 0 | AA17: =Z17/(AB4-Z20) -> 0 | AB17: =IF(AA17=0,0,(AA17*((LOG(AA17))/LOG(2)))) -> 0 | AD17: =N17 -> 2121 | AE17: =COUNTIF(L66:L95,AD17) -> 0 | AF17: =AE17/(AG4-AE20) -> 0 | AG17: =IF(AF17=0,0,(AF17*((LOG(AF17))/LOG(2)))) -> 0 | AI17: =N17 -> 2121 | AJ17: =COUNTIF(L96:L124,AI17) -> 0 | AK17: =AJ17/(AL4-AJ20) -> 0 | AL17: =IF(AK17=0,0,(AK17*((LOG(AK17))/LOG(2)))) -> 0 | AN17: =N17 -> 2121 | AO17: =COUNTIF(L125:L154,AN17) -> 0 | AP17: =AO17/(AQ4-AO20) -> 0 | AQ17: =IF(AP17=0,0,(AP17*((LOG(AP17))/LOG(2)))) -> 0 | AS17: =N17 -> 2121 | AT17: =COUNTIF(L155:L183,AS17) -> 0 | AU17: =AT17/(AV4-AT20) -> 0 | AV17: =IF(AU17=0,0,(AU17*((LOG(AU17))/LOG(2)))) -> 0
A18: 12 | B18: 1602 | C18: 23 | D18: 1615 | E18: 24 | F18: 1623 | G18: 23 | H18: 1632 | K18: 0 | L18: 1222 | N18: 2122 | O18: =COUNTIF($L$7:$L$500,N18) -> 1 | P18: =O18/$Q$4 -> 0.005649717514 | Q18: =IF(P18=0,0,(P18*((LOG(P18))/LOG(2)))) -> -0.04218986186 | T18: =N18 -> 2122 | U18: =COUNTIF(L7:L36,T18) -> 1 | V18: =U18/(W4-U20) -> 0.03333333333 | W18: =IF(V18=0,0,(V18*((LOG(V18))/LOG(2)))) -> -0.1635630199 | Y18: =N18 -> 2122 | Z18: =COUNTIF(L37:L65,Y18) -> 0 | AA18: =Z18/(AB4-Z20) -> 0 | AB18: =IF(AA18=0,0,(AA18*((LOG(AA18))/LOG(2)))) -> 0 | AD18: =N18 -> 2122 | AE18: =COUNTIF(L66:L95,AD18) -> 0 | AF18: =AE18/(AG4-AE20) -> 0 | AG18: =IF(AF18=0,0,(AF18*((LOG(AF18))/LOG(2)))) -> 0 | AI18: =N18 -> 2122 | AJ18: =COUNTIF(L96:L124,AI18) -> 0 | AK18: =AJ18/(AL4-AJ20) -> 0 | AL18: =IF(AK18=0,0,(AK18*((LOG(AK18))/LOG(2)))) -> 0 | AN18: =N18 -> 2122 | AO18: =COUNTIF(L125:L154,AN18) -> 0 | AP18: =AO18/(AQ4-AO20) -> 0 | AQ18: =IF(AP18=0,0,(AP18*((LOG(AP18))/LOG(2)))) -> 0 | AS18: =N18 -> 2122 | AT18: =COUNTIF(L155:L183,AS18) -> 0 | AU18: =AT18/(AV4-AT20) -> 0 | AV18: =IF(AU18=0,0,(AU18*((LOG(AU18))/LOG(2)))) -> 0
A19: 12 | B19: 1727 | C19: 14 | D19: 1735 | E19: 13 | F19: 1759 | G19: 23 | H19: 1793 | K19: 0 | L19: 1112 | N19: 2211 | O19: =COUNTIF($L$7:$L$500,N19) -> 3 | P19: =O19/$Q$4 -> 0.01694915254 | Q19: =IF(P19=0,0,(P19*((LOG(P19))/LOG(2)))) -> -0.0997058144 | T19: =N19 -> 2211 | U19: =COUNTIF(L7:L36,T19) -> 0 | V19: =U19/(W4-U20) -> 0 | W19: =IF(V19=0,0,(V19*((LOG(V19))/LOG(2)))) -> 0 | Y19: =N19 -> 2211 | Z19: =COUNTIF(L37:L65,Y19) -> 0 | AA19: =Z19/(AB4-Z20) -> 0 | AB19: =IF(AA19=0,0,(AA19*((LOG(AA19))/LOG(2)))) -> 0 | AD19: =N19 -> 2211 | AE19: =COUNTIF(L66:L95,AD19) -> 1 | AF19: =AE19/(AG4-AE20) -> 0.03448275862 | AG19: =IF(AF19=0,0,(AF19*((LOG(AF19))/LOG(2)))) -> -0.167516586 | AI19: =N19 -> 2211 | AJ19: =COUNTIF(L96:L124,AI19) -> 0 | AK19: =AJ19/(AL4-AJ20) -> 0 | AL19: =IF(AK19=0,0,(AK19*((LOG(AK19))/LOG(2)))) -> 0 | AN19: =N19 -> 2211 | AO19: =COUNTIF(L125:L154,AN19) -> 0 | AP19: =AO19/(AQ4-AO20) -> 0 | AQ19: =IF(AP19=0,0,(AP19*((LOG(AP19))/LOG(2)))) -> 0 | AS19: =N19 -> 2211 | AT19: =COUNTIF(L155:L183,AS19) -> 2 | AU19: =AT19/(AV4-AT20) -> 0.07142857143 | AV19: =IF(AU19=0,0,(AU19*((LOG(AU19))/LOG(2)))) -> -0.271953923
A20: 12 | B20: 1887 | C20: 14 | D20: 1894 | E20: 13 | F20: 1955 | G20: 23 | H20: 1967 | K20: 0 | L20: 1112 | N20: 2212 | O20: =COUNTIF($L$7:$L$500,N20) -> 7 | P20: =O20/$Q$4 -> 0.0395480226 | Q20: =IF(P20=0,0,(P20*((LOG(P20))/LOG(2)))) -> -0.1843036972 | T20: =N20 -> 2212 | U20: =COUNTIF(L7:L36,T20) -> 0 | Y20: =N20 -> 2212 | Z20: =COUNTIF(L37:L65,Y20) -> 1 | AD20: =N20 -> 2212 | AE20: =COUNTIF(L66:L95,AD20) -> 1 | AI20: =N20 -> 2212 | AJ20: =COUNTIF(L96:L124,AI20) -> 2 | AN20: =N20 -> 2212 | AO20: =COUNTIF(L125:L154,AN20) -> 2 | AS20: =N20 -> 2212 | AT20: =COUNTIF(L155:L183,AS20) -> 1
A21: 12 | B21: 2062 | C21: 23 | D21: 2072 | E21: 24 | F21: 2077 | G21: 23 | H21: 2085 | K21: 0 | L21: 1222 | N21: 2221 | O21: =COUNTIF($L$7:$L$500,N21) -> 3 | P21: =O21/$Q$4 -> 0.01694915254 | Q21: =IF(P21=0,0,(P21*((LOG(P21))/LOG(2)))) -> -0.0997058144 | T21: =N21 -> 2221 | U21: =COUNTIF(L7:L36,T21) -> 1 | V21: =U21/(W4-U20) -> 0.03333333333 | W21: =IF(V21=0,0,(V21*((LOG(V21))/LOG(2)))) -> -0.1635630199 | Y21: =N21 -> 2221 | Z21: =COUNTIF(L37:L65,Y21) -> 1 | AA21: =Z21/(AB4-Z20) -> 0.03571428571 | AB21: =IF(AA21=0,0,(AA21*((LOG(AA21))/LOG(2)))) -> -0.1716912472 | AD21: =N21 -> 2221 | AE21: =COUNTIF(L66:L95,AD21) -> 1 | AF21: =AE21/(AG4-AE20) -> 0.03448275862 | AG21: =IF(AF21=0,0,(AF21*((LOG(AF21))/LOG(2)))) -> -0.167516586 | AI21: =N21 -> 2221 | AJ21: =COUNTIF(L96:L124,AI21) -> 0 | AK21: =AJ21/(AL4-AJ20) -> 0 | AL21: =IF(AK21=0,0,(AK21*((LOG(AK21))/LOG(2)))) -> 0 | AN21: =N21 -> 2221 | AO21: =COUNTIF(L125:L154,AN21) -> 0 | AP21: =AO21/(AQ4-AO20) -> 0 | AQ21: =IF(AP21=0,0,(AP21*((LOG(AP21))/LOG(2)))) -> 0 | AS21: =N21 -> 2221 | AT21: =COUNTIF(L155:L183,AS21) -> 0 | AU21: =AT21/(AV4-AT20) -> 0 | AV21: =IF(AU21=0,0,(AU21*((LOG(AU21))/LOG(2)))) -> 0
A22: 12 | B22: 2177 | C22: 23 | D22: 2194 | E22: 24 | F22: 2198 | G22: 23 | H22: 2211 | K22: 0 | L22: 1222 | N22: 2222 | O22: =COUNTIF($L$7:$L$500,N22) -> 10 | P22: =O22/$Q$4 -> 0.05649717514 | Q22: =IF(P22=0,0,(P22*((LOG(P22))/LOG(2)))) -> -0.2342190653 | T22: =N22 -> 2222 | U22: =COUNTIF(L7:L36,T22) -> 0 | V22: =U22/(W4-U20) -> 0 | W22: =IF(V22=0,0,(V22*((LOG(V22))/LOG(2)))) -> 0 | Y22: =N22 -> 2222 | Z22: =COUNTIF(L37:L65,Y22) -> 2 | AA22: =Z22/(AB4-Z20) -> 0.07142857143 | AB22: =IF(AA22=0,0,(AA22*((LOG(AA22))/LOG(2)))) -> -0.271953923 | AD22: =N22 -> 2222 | AE22: =COUNTIF(L66:L95,AD22) -> 3 | AF22: =AE22/(AG4-AE20) -> 0.1034482759 | AG22: =IF(AF22=0,0,(AF22*((LOG(AF22))/LOG(2)))) -> -0.3385881201 | AI22: =N22 -> 2222 | AJ22: =COUNTIF(L96:L124,AI22) -> 1 | AK22: =AJ22/(AL4-AJ20) -> 0.03703703704 | AL22: =IF(AK22=0,0,(AK22*((LOG(AK22))/LOG(2)))) -> -0.1761069445 | AN22: =N22 -> 2222 | AO22: =COUNTIF(L125:L154,AN22) -> 3 | AP22: =AO22/(AQ4-AO20) -> 0.1071428571 | AQ22: =IF(AP22=0,0,(AP22*((LOG(AP22))/LOG(2)))) -> -0.3452563309 | AS22: =N22 -> 2222 | AT22: =COUNTIF(L155:L183,AS22) -> 1 | AU22: =AT22/(AV4-AT20) -> 0.03571428571 | AV22: =IF(AU22=0,0,(AU22*((LOG(AU22))/LOG(2)))) -> -0.1716912472
A23: 12 | B23: 2306 | C23: 23 | D23: 2316 | E23: 24 | F23: 2321 | G23: 14 | H23: 2344 | K23: 0 | L23: 1221 | P23: =SUM(P7:P22) -> 1 | Q23: =-SUM(Q7:Q22) -> 2.368491064 | V23: =SUM(V7:V22) -> 1 | W23: =-SUM(W7:W22) -> 2.339572262 | AA23: =SUM(AA7:AA22) -> 1 | AB23: =-SUM(AB7:AB22) -> 1.749867762 | AF23: =SUM(AF7:AF22) -> 1 | AG23: =-SUM(AG7:AG22) -> 1.24203675 | AK23: =SUM(AK7:AK22) -> 1 | AL23: =-SUM(AL7:AL22) -> 1.368843872 | AP23: =SUM(AP7:AP22) -> 1 | AQ23: =-SUM(AQ7:AQ22) -> 1.803007466 | AU23: =SUM(AU7:AU22) -> 1 | AV23: =-SUM(AV7:AV22) -> 2.70839421
A24: 12 | B24: 2439 | C24: 23 | D24: 2450 | E24: 24 | F24: 2455 | G24: 23 | H24: 2463 | K24: 0 | L24: 1222 | P24: U= | Q24: =Q23/(LOG(Q4)/LOG(2)) -> 0.3171687429 | V24: U1= | W24: =W23/(LOG(W4)/LOG(2)) -> 0.4767932393 | AA24: U2= | AB24: =AB23/(LOG(AB4)/LOG(2)) -> 0.3602047361 | AF24: U3= | AG24: =AG23/(LOG(AG4)/LOG(2)) -> 0.2531209379 | AK24: U4= | AL24: =AL23/(LOG(AL4)/LOG(2)) -> 0.2817721753 | AP24: U5= | AQ24: =AQ23/(LOG(AQ4)/LOG(2)) -> 0.3674439915 | AU24: U6= | AV24: =AV23/(LOG(AV4)/LOG(2)) -> 0.5575143692
A25: 12 | B25: 2558 | C25: 14 | D25: 2587 | E25: 24 | F25: 2599 | G25: 23 | H25: 2604 | K25: 0 | L25: 1122
A26: 12 | B26: 2701 | C26: 23 | D26: 2712 | E26: 24 | F26: 2718 | G26: 14 | H26: 2737 | K26: 0 | L26: 1221
A27: 12 | B27: 2832 | C27: 23 | D27: 2843 | E27: 24 | F27: 2848 | G27: 23 | H27: 2856 | K27: 0 | L27: 1222 | N27: Total Target Seq
A28: 12 | B28: 2952 | C28: 23 | D28: 2961 | E28: 24 | F28: 2966 | G28: 23 | H28: 2978 | K28: 0 | L28: 1222 | N28: =COUNTIF(L7:L183,G3) -> 7 | P28: 30 | Q28: 29 | R28: 30 | S28: 29 | T28: 30 | U28: 29
A29: 12 | B29: 3091 | C29: 23 | D29: 3103 | E29: 24 | F29: 3108 | G29: 23 | H29: 3116 | K29: 0 | L29: 1222 | P29: % of reinforcement given in 6 equal intervals based on number of trials
A30: 12 | B30: 3211 | C30: 23 | D30: 3221 | E30: 24 | F30: 3226 | G30: 23 | H30: 3235 | K30: 0 | L30: 1222 | P30: %_1 | Q30: %_2 | R30: %_3 | S30: %_4 | T30: %_5 | U30: %_6
A31: 12 | B31: 3331 | C31: 14 | D31: 3364 | E31: 24 | F31: 3377 | G31: 23 | H31: 3382 | K31: 0 | L31: 1122 | O31: target sequence | P31: =$G$3 -> 2212 | Q31: =$G$3 -> 2212 | R31: =$G$3 -> 2212 | S31: =$G$3 -> 2212 | T31: =$G$3 -> 2212 | U31: =$G$3 -> 2212
A32: 12 | B32: 3479 | C32: 23 | D32: 3491 | E32: 24 | F32: 3495 | G32: 14 | H32: 3510 | K32: 0 | L32: 1221 | O32: total reinforcement | P32: =U20 -> 0 | Q32: =Z20 -> 1 | R32: =AE20 -> 1 | S32: =AJ20 -> 2 | T32: =AO20 -> 2 | U32: =AT20 -> 1
A33: 12 | B33: 3604 | C33: 14 | D33: 3621 | E33: 24 | F33: 3632 | G33: 23 | H33: 3640 | K33: 0 | L33: 1122 | O33: % target
A34: 21 | B34: 3752 | C34: 12 | D34: 3770 | E34: 24 | F34: 3782 | G34: 23 | H34: 3789 | K34: 0 | L34: 2122 | O34: CCRF
A35: 12 | B35: 3887 | C35: 14 | D35: 3895 | E35: 24 | F35: 3907 | G35: 23 | H35: 3913 | K35: 0 | L35: 1122 | O35: % CCRf
A36: 12 | B36: 4003 | C36: 23 | D36: 4015 | E36: 24 | F36: 4019 | G36: 14 | H36: 4035 | K36: 0 | L36: 1221 | O36: average response rate | P36: =H36/P28 -> 134.5 | Q36: =(H65-H36)/Q28 -> 134.7241379 | R36: =(H95-H65)/R28 -> 135.7 | S36: =(H124-H95)/S28 -> 129.0344828 | T36: =(H154-H124)/T28 -> 131.9666667 | U36: =(H183-H154)/U28 -> 139.7241379
A37: 21 | B37: 4149 | C37: 21 | D37: 4154 | E37: 22 | F37: 4166 | G37: 23 | H37: 4174 | K37: 0 | L37: 2222
A38: 12 | B38: 4269 | C38: 14 | D38: 4297 | E38: 24 | F38: 4308 | G38: 23 | H38: 4317 | K38: 0 | L38: 1122
A39: 12 | B39: 4412 | C39: 23 | D39: 4424 | E39: 24 | F39: 4429 | G39: 23 | H39: 4443 | K39: 0 | L39: 1222
A40: 21 | B40: 4545 | C40: 21 | D40: 4553 | E40: 11 | F40: 4568 | G40: 21 | H40: 4578 | K40: 0 | L40: 2212
A41: 12 | B41: 4670 | C41: 23 | D41: 4682 | E41: 24 | F41: 4703 | G41: 23 | H41: 4716 | K41: 0 | L41: 1222
A42: 21 | B42: 4821 | C42: 21 | D42: 4827 | E42: 22 | F42: 4838 | G42: 14 | H42: 4853 | K42: 0 | L42: 2221
A43: 12 | B43: 4949 | C43: 23 | D43: 4961 | E43: 24 | F43: 4966 | G43: 23 | H43: 4990 | K43: 0 | L43: 1222
A44: 12 | B44: 5103 | C44: 23 | D44: 5116 | E44: 24 | F44: 5121 | G44: 14 | H44: 5150 | K44: 0 | L44: 1221
A45: 12 | B45: 5245 | C45: 23 | D45: 5261 | E45: 24 | F45: 5268 | G45: 23 | H45: 5281 | K45: 0 | L45: 1222
A46: 12 | B46: 5377 | C46: 23 | D46: 5391 | E46: 24 | F46: 5396 | G46: 23 | H46: 5416 | K46: 0 | L46: 1222
A47: 12 | B47: 5512 | C47: 14 | D47: 5516 | E47: 24 | F47: 5528 | G47: 23 | H47: 5537 | K47: 0 | L47: 1122
A48: 12 | B48: 5635 | C48: 23 | D48: 5648 | E48: 24 | F48: 5653 | G48: 23 | H48: 5665 | K48: 0 | L48: 1222
A49: 12 | B49: 5759 | C49: 23 | D49: 5771 | E49: 24 | F49: 5776 | G49: 23 | H49: 5787 | K49: 0 | L49: 1222
A50: 12 | B50: 5883 | C50: 23 | D50: 5894 | E50: 24 | F50: 5902 | G50: 23 | H50: 5919 | K50: 0 | L50: 1222
A51: 12 | B51: 6058 | C51: 23 | D51: 6093 | E51: 24 | F51: 6101 | G51: 23 | H51: 6119 | K51: 0 | L51: 1222
A52: 12 | B52: 6210 | C52: 23 | D52: 6222 | E52: 24 | F52: 6227 | G52: 23 | H52: 6240 | K52: 0 | L52: 1222
A53: 12 | B53: 6335 | C53: 14 | D53: 6360 | E53: 24 | F53: 6372 | G53: 23 | H53: 6377 | K53: 0 | L53: 1122
A54: 12 | B54: 6467 | C54: 23 | D54: 6479 | E54: 24 | F54: 6485 | G54: 23 | H54: 6499 | K54: 0 | L54: 1222
A55: 12 | B55: 6594 | C55: 23 | D55: 6606 | E55: 24 | F55: 6612 | G55: 23 | H55: 6626 | K55: 0 | L55: 1222
A56: 12 | B56: 6722 | C56: 23 | D56: 6733 | E56: 24 | F56: 6738 | G56: 23 | H56: 6748 | K56: 0 | L56: 1222
A57: 12 | B57: 6843 | C57: 23 | D57: 6855 | E57: 24 | F57: 6859 | G57: 14 | H57: 6874 | K57: 0 | L57: 1221
A58: 12 | B58: 6969 | C58: 23 | D58: 6980 | E58: 24 | F58: 6987 | G58: 14 | H58: 7002 | K58: 0 | L58: 1221
A59: 12 | B59: 7098 | C59: 23 | D59: 7109 | E59: 24 | F59: 7116 | G59: 23 | H59: 7126 | K59: 0 | L59: 1222
A60: 12 | B60: 7233 | C60: 14 | D60: 7246 | E60: 24 | F60: 7258 | G60: 23 | H60: 7266 | K60: 0 | L60: 1122
A61: 12 | B61: 7363 | C61: 23 | D61: 7374 | E61: 24 | F61: 7388 | G61: 23 | H61: 7399 | K61: 0 | L61: 1222
A62: 12 | B62: 7502 | C62: 14 | D62: 7510 | E62: 24 | F62: 7524 | G62: 23 | H62: 7532 | K62: 0 | L62: 1122
A63: 21 | B63: 7654 | C63: 21 | D63: 7662 | E63: 22 | F63: 7684 | G63: 23 | H63: 7692 | K63: 0 | L63: 2222
A64: 12 | B64: 7782 | C64: 23 | D64: 7793 | E64: 24 | F64: 7798 | G64: 23 | H64: 7809 | K64: 0 | L64: 1222
A65: 12 | B65: 7905 | C65: 23 | D65: 7917 | E65: 24 | F65: 7923 | G65: 14 | H65: 7942 | K65: 0 | L65: 1221
A66: 12 | B66: 8055 | C66: 23 | D66: 8067 | E66: 24 | F66: 8084 | G66: 23 | H66: 8099 | K66: 0 | L66: 1222
A67: 12 | B67: 8195 | C67: 23 | D67: 8205 | E67: 24 | F67: 8210 | G67: 23 | H67: 8218 | K67: 0 | L67: 1222
A68: 12 | B68: 8308 | C68: 23 | D68: 8321 | E68: 24 | F68: 8326 | G68: 23 | H68: 8335 | K68: 0 | L68: 1222
A69: 12 | B69: 8431 | C69: 23 | D69: 8461 | E69: 24 | F69: 8469 | G69: 23 | H69: 8483 | K69: 0 | L69: 1222
A70: 12 | B70: 8578 | C70: 14 | D70: 8582 | E70: 24 | F70: 8593 | G70: 23 | H70: 8598 | K70: 0 | L70: 1122
A71: 12 | B71: 8695 | C71: 23 | D71: 8707 | E71: 24 | F71: 8712 | G71: 23 | H71: 8720 | K71: 0 | L71: 1222
A72: 12 | B72: 8814 | C72: 23 | D72: 8826 | E72: 24 | F72: 8833 | G72: 23 | H72: 8841 | K72: 0 | L72: 1222
A73: 12 | B73: 8938 | C73: 23 | D73: 8951 | E73: 24 | F73: 8959 | G73: 23 | H73: 8967 | K73: 0 | L73: 1222
A74: 12 | B74: 9057 | C74: 23 | D74: 9073 | E74: 24 | F74: 9079 | G74: 23 | H74: 9098 | K74: 0 | L74: 1222
A75: 12 | B75: 9194 | C75: 14 | D75: 9197 | E75: 24 | F75: 9209 | G75: 23 | H75: 9217 | K75: 0 | L75: 1122
A76: 21 | B76: 9331 | C76: 21 | D76: 9338 | E76: 22 | F76: 9359 | G76: 23 | H76: 9366 | K76: 0 | L76: 2222
A77: 12 | B77: 9467 | C77: 23 | D77: 9481 | E77: 24 | F77: 9489 | G77: 23 | H77: 9507 | K77: 0 | L77: 1222
A78: 12 | B78: 9601 | C78: 23 | D78: 9612 | E78: 24 | F78: 9619 | G78: 23 | H78: 9631 | K78: 0 | L78: 1222
A79: 12 | B79: 9728 | C79: 23 | D79: 9739 | E79: 24 | F79: 9747 | G79: 23 | H79: 9757 | K79: 0 | L79: 1222
A80: 12 | B80: 9854 | C80: 23 | D80: 9866 | E80: 24 | F80: 9874 | G80: 23 | H80: 9882 | K80: 0 | L80: 1222
A81: 12 | B81: 9976 | C81: 23 | D81: 9987 | E81: 24 | F81: 9996 | G81: 23 | H81: 10021 | K81: 0 | L81: 1222
A82: 21 | B82: 10131 | C82: 21 | D82: 10136 | E82: 22 | F82: 10154 | G82: 14 | H82: 10171 | K82: 0 | L82: 2221
A83: 12 | B83: 10270 | C83: 23 | D83: 10282 | E83: 24 | F83: 10290 | G83: 23 | H83: 10299 | K83: 0 | L83: 1222
A84: 12 | B84: 10394 | C84: 23 | D84: 10404 | E84: 24 | F84: 10409 | G84: 23 | H84: 10436 | K84: 0 | L84: 1222
A85: 21 | B85: 10599 | C85: 21 | D85: 10610 | E85: 22 | F85: 10620 | G85: 23 | H85: 10629 | K85: 0 | L85: 2222
A86: 21 | B86: 10733 | C86: 21 | D86: 10738 | E86: 22 | F86: 10751 | G86: 23 | H86: 10760 | K86: 0 | L86: 2222
A87: 12 | B87: 10978 | C87: 23 | D87: 10990 | E87: 24 | F87: 10997 | G87: 23 | H87: 11005 | K87: 0 | L87: 1222
A88: 21 | B88: 11117 | C88: 21 | D88: 11123 | E88: 11 | F88: 11140 | G88: 21 | H88: 11153 | K88: 0 | L88: 2212
A89: 21 | B89: 11250 | C89: 21 | D89: 11256 | E89: 11 | F89: 11269 | G89: 12 | H89: 11277 | K89: 0 | L89: 2211
A90: 12 | B90: 11368 | C90: 23 | D90: 11377 | E90: 24 | F90: 11382 | G90: 23 | H90: 11390 | K90: 0 | L90: 1222
A91: 12 | B91: 11485 | C91: 23 | D91: 11495 | E91: 24 | F91: 11499 | G91: 23 | H91: 11510 | K91: 0 | L91: 1222
A92: 12 | B92: 11609 | C92: 23 | D92: 11623 | E92: 24 | F92: 11631 | G92: 23 | H92: 11644 | K92: 0 | L92: 1222
A93: 12 | B93: 11743 | C93: 23 | D93: 11755 | E93: 24 | F93: 11760 | G93: 23 | H93: 11768 | K93: 0 | L93: 1222
A94: 12 | B94: 11864 | C94: 23 | D94: 11875 | E94: 24 | F94: 11880 | G94: 23 | H94: 11890 | K94: 0 | L94: 1222
A95: 12 | B95: 11982 | C95: 23 | D95: 11994 | E95: 24 | F95: 12001 | G95: 23 | H95: 12013 | K95: 0 | L95: 1222
A96: 21 | B96: 12118 | C96: 21 | D96: 12123 | E96: 11 | F96: 12135 | G96: 21 | H96: 12147 | K96: 0 | L96: 2212
A97: 12 | B97: 12239 | C97: 23 | D97: 12250 | E97: 24 | F97: 12277 | G97: 23 | H97: 12297 | K97: 0 | L97: 1222
A98: 12 | B98: 12392 | C98: 23 | D98: 12403 | E98: 24 | F98: 12408 | G98: 14 | H98: 12427 | K98: 0 | L98: 1221
A99: 12 | B99: 12522 | C99: 23 | D99: 12533 | E99: 24 | F99: 12552 | G99: 23 | H99: 12560 | K99: 0 | L99: 1222
A100: 12 | B100: 12651 | C100: 23 | D100: 12663 | E100: 24 | F100: 12668 | G100: 23 | H100: 12682 | K100: 0 | L100: 1222
A101: 12 | B101: 12778 | C101: 23 | D101: 12790 | E101: 24 | F101: 12796 | G101: 23 | H101: 12804 | K101: 0 | L101: 1222
A102: 12 | B102: 12898 | C102: 23 | D102: 12913 | E102: 24 | F102: 12922 | G102: 14 | H102: 12937 | K102: 0 | L102: 1221
A103: 12 | B103: 13034 | C103: 23 | D103: 13046 | E103: 24 | F103: 13051 | G103: 23 | H103: 13068 | K103: 0 | L103: 1222
A104: 12 | B104: 13165 | C104: 23 | D104: 13176 | E104: 24 | F104: 13183 | G104: 23 | H104: 13194 | K104: 0 | L104: 1222
A105: 12 | B105: 13294 | C105: 23 | D105: 13311 | E105: 24 | F105: 13319 | G105: 23 | H105: 13328 | K105: 0 | L105: 1222
A106: 12 | B106: 13419 | C106: 23 | D106: 13431 | E106: 24 | F106: 13436 | G106: 23 | H106: 13449 | K106: 0 | L106: 1222
A107: 12 | B107: 13544 | C107: 23 | D107: 13554 | E107: 24 | F107: 13559 | G107: 14 | H107: 13572 | K107: 0 | L107: 1221
A108: 12 | B108: 13666 | C108: 14 | D108: 13681 | E108: 24 | F108: 13692 | G108: 23 | H108: 13700 | K108: 0 | L108: 1122
A109: 12 | B109: 13796 | C109: 23 | D109: 13808 | E109: 24 | F109: 13815 | G109: 23 | H109: 13823 | K109: 0 | L109: 1222
A110: 12 | B110: 13913 | C110: 23 | D110: 13922 | E110: 24 | F110: 13930 | G110: 23 | H110: 13938 | K110: 0 | L110: 1222
A111: 12 | B111: 14034 | C111: 23 | D111: 14045 | E111: 24 | F111: 14051 | G111: 23 | H111: 14059 | K111: 0 | L111: 1222
A112: 21 | B112: 14168 | C112: 21 | D112: 14172 | E112: 11 | F112: 14189 | G112: 21 | H112: 14201 | K112: 0 | L112: 2212
A113: 12 | B113: 14292 | C113: 23 | D113: 14303 | E113: 24 | F113: 14308 | G113: 23 | H113: 14317 | K113: 0 | L113: 1222
A114: 12 | B114: 14432 | C114: 23 | D114: 14443 | E114: 24 | F114: 14451 | G114: 14 | H114: 14467 | K114: 0 | L114: 1221
A115: 12 | B115: 14562 | C115: 23 | D115: 14572 | E115: 24 | F115: 14579 | G115: 14 | H115: 14591 | K115: 0 | L115: 1221
A116: 12 | B116: 14686 | C116: 23 | D116: 14696 | E116: 24 | F116: 14701 | G116: 23 | H116: 14709 | K116: 0 | L116: 1222
A117: 21 | B117: 14833 | C117: 21 | D117: 14840 | E117: 22 | F117: 14849 | G117: 23 | H117: 14875 | K117: 0 | L117: 2222
A118: 12 | B118: 14971 | C118: 23 | D118: 14981 | E118: 24 | F118: 15002 | G118: 23 | H118: 15007 | K118: 0 | L118: 1222
A119: 12 | B119: 15103 | C119: 14 | D119: 15118 | E119: 24 | F119: 15129 | G119: 23 | H119: 15137 | K119: 0 | L119: 1122
A120: 12 | B120: 15236 | C120: 23 | D120: 15247 | E120: 24 | F120: 15255 | G120: 23 | H120: 15263 | K120: 0 | L120: 1222
A121: 12 | B121: 15353 | C121: 23 | D121: 15364 | E121: 24 | F121: 15371 | G121: 23 | H121: 15378 | K121: 0 | L121: 1222
A122: 12 | B122: 15468 | C122: 23 | D122: 15489 | E122: 24 | F122: 15493 | G122: 23 | H122: 15505 | K122: 0 | L122: 1222
A123: 12 | B123: 15599 | C123: 14 | D123: 15618 | E123: 24 | F123: 15630 | G123: 23 | H123: 15637 | K123: 0 | L123: 1122
A124: 12 | B124: 15732 | C124: 23 | D124: 15743 | E124: 24 | F124: 15747 | G124: 23 | H124: 15755 | K124: 0 | L124: 1222
A125: 12 | B125: 15851 | C125: 23 | D125: 15861 | E125: 24 | F125: 15865 | G125: 14 | H125: 15890 | K125: 0 | L125: 1221
A126: 12 | B126: 15985 | C126: 23 | D126: 16008 | E126: 24 | F126: 16015 | G126: 14 | H126: 16033 | K126: 0 | L126: 1221
A127: 12 | B127: 16130 | C127: 23 | D127: 16141 | E127: 24 | F127: 16146 | G127: 23 | H127: 16155 | K127: 0 | L127: 1222
A128: 12 | B128: 16251 | C128: 23 | D128: 16262 | E128: 24 | F128: 16270 | G128: 23 | H128: 16281 | K128: 0 | L128: 1222
A129: 12 | B129: 16377 | C129: 23 | D129: 16388 | E129: 24 | F129: 16396 | G129: 23 | H129: 16409 | K129: 0 | L129: 1222
A130: 12 | B130: 16509 | C130: 23 | D130: 16517 | E130: 24 | F130: 16525 | G130: 23 | H130: 16533 | K130: 0 | L130: 1222
A131: 12 | B131: 16628 | C131: 23 | D131: 16640 | E131: 24 | F131: 16644 | G131: 14 | H131: 16656 | K131: 0 | L131: 1221
A132: 12 | B132: 16751 | C132: 23 | D132: 16762 | E132: 24 | F132: 16769 | G132: 23 | H132: 16778 | K132: 0 | L132: 1222
A133: 12 | B133: 16873 | C133: 14 | D133: 16893 | E133: 24 | F133: 16904 | G133: 23 | H133: 16913 | K133: 0 | L133: 1122
A134: 12 | B134: 17002 | C134: 23 | D134: 17013 | E134: 24 | F134: 17017 | G134: 23 | H134: 17040 | K134: 0 | L134: 1222
A135: 12 | B135: 17136 | C135: 23 | D135: 17148 | E135: 24 | F135: 17152 | G135: 23 | H135: 17171 | K135: 0 | L135: 1222
A136: 12 | B136: 17266 | C136: 14 | D136: 17285 | E136: 24 | F136: 17296 | G136: 23 | H136: 17304 | K136: 0 | L136: 1122
A137: 21 | B137: 17424 | C137: 21 | D137: 17433 | E137: 11 | F137: 17457 | G137: 21 | H137: 17469 | K137: 0 | L137: 2212
A138: 21 | B138: 17570 | C138: 21 | D138: 17577 | E138: 22 | F138: 17585 | G138: 23 | H138: 17603 | K138: 0 | L138: 2222
A139: 21 | B139: 17707 | C139: 21 | D139: 17724 | E139: 11 | F139: 17741 | G139: 21 | H139: 17753 | K139: 0 | L139: 2212
A140: 12 | B140: 17844 | C140: 23 | D140: 17855 | E140: 24 | F140: 17863 | G140: 23 | H140: 17871 | K140: 0 | L140: 1222
A141: 12 | B141: 17966 | C141: 14 | D141: 17984 | E141: 24 | F141: 17993 | G141: 23 | H141: 18010 | K141: 0 | L141: 1122
A142: 12 | B142: 18106 | C142: 23 | D142: 18117 | E142: 24 | F142: 18122 | G142: 23 | H142: 18130 | K142: 0 | L142: 1222
A143: 12 | B143: 18224 | C143: 23 | D143: 18236 | E143: 24 | F143: 18244 | G143: 23 | H143: 18260 | K143: 0 | L143: 1222
A144: 12 | B144: 18354 | C144: 23 | D144: 18384 | E144: 24 | F144: 18392 | G144: 14 | H144: 18408 | K144: 0 | L144: 1221
A145: 12 | B145: 18498 | C145: 23 | D145: 18509 | E145: 24 | F145: 18516 | G145: 14 | H145: 18529 | K145: 0 | L145: 1221
A146: 12 | B146: 18624 | C146: 14 | D146: 18635 | E146: 24 | F146: 18647 | G146: 23 | H146: 18655 | K146: 0 | L146: 1122
A147: 21 | B147: 18761 | C147: 21 | D147: 18768 | E147: 22 | F147: 18789 | G147: 23 | H147: 18806 | K147: 0 | L147: 2222
A148: 12 | B148: 18902 | C148: 23 | D148: 18914 | E148: 24 | F148: 18921 | G148: 14 | H148: 18933 | K148: 0 | L148: 1221
A149: 12 | B149: 19031 | C149: 23 | D149: 19041 | E149: 24 | F149: 19048 | G149: 23 | H149: 19056 | K149: 0 | L149: 1222
A150: 12 | B150: 19151 | C150: 14 | D150: 19159 | E150: 24 | F150: 19170 | G150: 23 | H150: 19180 | K150: 0 | L150: 1122
A151: 12 | B151: 19271 | C151: 23 | D151: 19291 | E151: 24 | F151: 19299 | G151: 23 | H151: 19317 | K151: 0 | L151: 1222
A152: 12 | B152: 19411 | C152: 23 | D152: 19422 | E152: 24 | F152: 19427 | G152: 14 | H152: 19441 | K152: 0 | L152: 1221
A153: 21 | B153: 19550 | C153: 21 | D153: 19558 | E153: 22 | F153: 19570 | G153: 23 | H153: 19588 | K153: 0 | L153: 2222
A154: 12 | B154: 19685 | C154: 23 | D154: 19697 | E154: 24 | F154: 19705 | G154: 23 | H154: 19714 | K154: 0 | L154: 1222
A155: 21 | B155: 19834 | C155: 21 | D155: 19842 | E155: 22 | F155: 19862 | G155: 23 | H155: 19871 | K155: 0 | L155: 2222
A156: 12 | B156: 19962 | C156: 23 | D156: 19973 | E156: 24 | F156: 19980 | G156: 23 | H156: 19987 | K156: 0 | L156: 1222
A157: 21 | B157: 20098 | C157: 21 | D157: 20106 | E157: 11 | F157: 20118 | G157: 21 | H157: 20130 | K157: 0 | L157: 2212
A158: 12 | B158: 20219 | C158: 23 | D158: 20232 | E158: 13 | F158: 20248 | G158: 23 | H158: 20260 | K158: 0 | L158: 1212
A159: 12 | B159: 20355 | C159: 14 | D159: 20376 | E159: 24 | F159: 20387 | G159: 23 | H159: 20395 | K159: 0 | L159: 1122
A160: 12 | B160: 20491 | C160: 23 | D160: 20502 | E160: 24 | F160: 20511 | G160: 23 | H160: 20519 | K160: 0 | L160: 1222
A161: 12 | B161: 20629 | C161: 23 | D161: 20645 | E161: 13 | F161: 20662 | G161: 23 | H161: 20674 | K161: 0 | L161: 1212
A162: 12 | B162: 20769 | C162: 23 | D162: 20782 | E162: 24 | F162: 20791 | G162: 14 | H162: 20807 | K162: 0 | L162: 1221
A163: 12 | B163: 20901 | C163: 23 | D163: 20919 | E163: 13 | F163: 20934 | G163: 23 | H163: 20945 | K163: 0 | L163: 1212
A164: 21 | B164: 21066 | C164: 21 | D164: 21071 | E164: 11 | F164: 21089 | G164: 12 | H164: 21095 | K164: 0 | L164: 2211
A165: 12 | B165: 21186 | C165: 14 | D165: 21208 | E165: 24 | F165: 21219 | G165: 23 | H165: 21227 | K165: 0 | L165: 1122
A166: 12 | B166: 21323 | C166: 23 | D166: 21337 | E166: 24 | F166: 21345 | G166: 14 | H166: 21357 | K166: 0 | L166: 1221
A167: 12 | B167: 21456 | C167: 23 | D167: 21466 | E167: 24 | F167: 21474 | G167: 23 | H167: 21484 | K167: 0 | L167: 1222
A168: 12 | B168: 21579 | C168: 14 | D168: 21598 | E168: 24 | F168: 21620 | G168: 14 | H168: 21636 | K168: 0 | L168: 1121
A169: 21 | B169: 21759 | C169: 21 | D169: 21766 | E169: 11 | F169: 21778 | G169: 12 | H169: 21786 | K169: 0 | L169: 2211
A170: 12 | B170: 21884 | C170: 23 | D170: 21899 | E170: 24 | F170: 21906 | G170: 14 | H170: 21919 | K170: 0 | L170: 1221
A171: 12 | B171: 22014 | C171: 14 | D171: 22041 | E171: 24 | F171: 22054 | G171: 23 | H171: 22062 | K171: 0 | L171: 1122
A172: 12 | B172: 22157 | C172: 14 | D172: 22182 | E172: 24 | F172: 22194 | G172: 14 | H172: 22220 | K172: 0 | L172: 1121
A173: 12 | B173: 22320 | C173: 23 | D173: 22337 | E173: 13 | F173: 22352 | G173: 23 | H173: 22368 | K173: 0 | L173: 1212
A174: 12 | B174: 22465 | C174: 23 | D174: 22476 | E174: 24 | F174: 22482 | G174: 23 | H174: 22508 | K174: 0 | L174: 1222
A175: 12 | B175: 22604 | C175: 14 | D175: 22647 | E175: 24 | F175: 22660 | G175: 23 | H175: 22669 | K175: 0 | L175: 1122
A176: 12 | B176: 22759 | C176: 23 | D176: 22770 | E176: 24 | F176: 22776 | G176: 14 | H176: 22788 | K176: 0 | L176: 1221
A177: 12 | B177: 22908 | C177: 23 | D177: 22930 | E177: 24 | F177: 22938 | G177: 23 | H177: 22962 | K177: 0 | L177: 1222
A178: 12 | B178: 23058 | C178: 23 | D178: 23069 | E178: 24 | F178: 23082 | G178: 23 | H178: 23101 | K178: 0 | L178: 1222
A179: 12 | B179: 23197 | C179: 14 | D179: 23223 | E179: 13 | F179: 23231 | G179: 14 | H179: 23239 | K179: 0 | L179: 1111
A180: 12 | B180: 23334 | C180: 23 | D180: 23356 | E180: 24 | F180: 23364 | G180: 23 | H180: 23375 | K180: 0 | L180: 1222
A181: 12 | B181: 23470 | C181: 14 | D181: 23477 | E181: 24 | F181: 23487 | G181: 23 | H181: 23495 | K181: 0 | L181: 1122
A182: 12 | B182: 23592 | C182: 14 | D182: 23612 | E182: 24 | F182: 23624 | G182: 23 | H182: 23632 | K182: 0 | L182: 1122
A183: 12 | B183: 23728 | C183: 23 | D183: 23745 | E183: 24 | F183: 23753 | G183: 14 | H183: 23766 | K183: 1 | L183: 1221

Sheet !M817B00.000
A1: Report for:!M817B00.000
A2: Date: | B2: <date>
A3: Hen: | B3: <hen> | F3: Correct Sequence | G3: =Start!J2 -> 2212 | P3: Total Sequences in Data | Q3: =4994-COUNTBLANK(L7:L5000) -> 171 | V3: Total Sequences in Block Data | W3: =COUNTA(L7:L35) -> 29 | AA3: Total Sequences in Block Data | AB3: =COUNTA(L36:L63) -> 28 | AF3: Total Sequences in Block Data | AG3: =COUNTA(L64:L92) -> 29 | AK3: Total Sequences in Block Data | AL3: =COUNTA(L93:L120) -> 28 | AP3: Total Sequences in Block Data | AQ3: =COUNTA(L121:L149) -> 29 | AU3: Total Sequences in Block Data | AV3: =COUNTA(L150:L177) -> 28
P4: Total Sequences in Summary | Q4: =SUM(O7:O22) -> 171 | V4: Total Sequences in Block Summary | W4: =SUM(U7:U22) -> 29 | AA4: Total Sequences in Block Summary | AB4: =SUM(Z7:Z22) -> 28 | AF4: Total Sequences in Block Summary | AG4: =SUM(AE7:AE22) -> 29 | AK4: Total Sequences in Block Summary | AL4: =SUM(AJ7:AJ22) -> 28 | AP4: Total Sequences in Block Summary | AQ4: =SUM(AO7:AO22) -> 29 | AU4: Total Sequences in Block Summary | AV4: =SUM(AT7:AT22) -> 28
T5: Block 1 | Y5: Block 2 | AD5: Block 3 | AI5: Block 4 | AN5: Block 5 | AS5: Block 6
A6: Sequence Component 1 | B6: Time 1 | C6: Sequence Component 2 | D6: Time 2 | E6: Sequence Component 3 | F6: Time 3 | G6: Sequence Component 4 | H6: Time 4 | I6: Sequence Component 5 | J6: Time 5 | K6: Correct? 0=No 1=Yes | L6: Sequence | N6: Frequency | P6: Relative Frequency | Q6: Variability | T6: Frequency | V6: Relative Frequency | W6: Variability | Y6: Frequency | AA6: Relative Frequency | AB6: Variability | AD6: Frequency | AF6: Relative Frequency | AG6: Variability | AI6: Frequency | AK6: Relative Frequency | AL6: Variability | AN6: Frequency | AP6: Relative Frequency | AQ6: Variability | AS6: Frequency | AU6: Relative Frequency | AV6: Variability
A7: 12 | B7: 8 | C7: 23 | D7: 16 | E7: 24 | F7: 24 | G7: 14 | H7: 37 | K7: 0 | L7: 1221 | N7: 1111 | O7: =COUNTIF($L$7:$L$500,N7) -> 4 | P7: =O7/$Q$4 -> 0.02339181287 | Q7: =IF(P7=0,0,(P7*((LOG(P7))/LOG(2)))) -> -0.1267333922 | T7: =N7 -> 1111 | U7: =COUNTIF(L7:L35,T7) -> 0 | V7: =U7/(W4-U20) -> 0 | W7: =IF(V7=0,0,(V7*((LOG(V7))/LOG(2)))) -> 0 | Y7: =N7 -> 1111 | Z7: =COUNTIF(L36:L63,Y7) -> 1 | AA7: =Z7/(AB4-Z20) -> 0.03703703704 | AB7: =IF(AA7=0,0,(AA7*((LOG(AA7))/LOG(2)))) -> -0.1761069445 | AD7: =N7 -> 1111 | AE7: =COUNTIF(L64:L92,AD7) -> 0 | AF7: =AE7/(AG4-AE20) -> 0 | AG7: =IF(AF7=0,0,(AF7*((LOG(AF7))/LOG(2)))) -> 0 | AI7: =N7 -> 1111 | AJ7: =COUNTIF(L93:L120,AI7) -> 1 | AK7: =AJ7/(AL4-AJ20) -> 0.03703703704 | AL7: =IF(AK7=0,0,(AK7*((LOG(AK7))/LOG(2)))) -> -0.1761069445 | AN7: =N7 -> 1111 | AO7: =COUNTIF(L121:L149,AN7) -> 1 | AP7: =AO7/(AQ4-AO20) -> 0.03703703704 | AQ7: =IF(AP7=0,0,(AP7*((LOG(AP7))/LOG(2)))) -> -0.1761069445 | AS7: =N7 -> 1111 | AT7: =COUNTIF(L150:L177,AS7) -> 1 | AU7: =AT7/(AV4-AT20) -> 0.03571428571 | AV7: =IF(AU7=0,0,(AU7*((LOG(AU7))/LOG(2)))) -> -0.1716912472
A8: 21 | B8: 163 | C8: 21 | D8: 170 | E8: 22 | F8: 179 | G8: 14 | H8: 192 | K8: 0 | L8: 2221 | N8: 1112 | O8: =COUNTIF($L$7:$L$500,N8) -> 10 | P8: =O8/$Q$4 -> 0.05847953216 | Q8: =IF(P8=0,0,(P8*((LOG(P8))/LOG(2)))) -> -0.2395277439 | T8: =N8 -> 1112 | U8: =COUNTIF(L7:L35,T8) -> 1 | V8: =U8/(W4-U20) -> 0.03846153846 | W8: =IF(V8=0,0,(V8*((LOG(V8))/LOG(2)))) -> -0.180786143 | Y8: =N8 -> 1112 | Z8: =COUNTIF(L36:L63,Y8) -> 2 | AA8: =Z8/(AB4-Z20) -> 0.07407407407 | AB8: =IF(AA8=0,0,(AA8*((LOG(AA8))/LOG(2)))) -> -0.278139815 | AD8: =N8 -> 1112 | AE8: =COUNTIF(L64:L92,AD8) -> 2 | AF8: =AE8/(AG4-AE20) -> 0.07142857143 | AG8: =IF(AF8=0,0,(AF8*((LOG(AF8))/LOG(2)))) -> -0.271953923 | AI8: =N8 -> 1112 | AJ8: =COUNTIF(L93:L120,AI8) -> 2 | AK8: =AJ8/(AL4-AJ20) -> 0.07407407407 | AL8: =IF(AK8=0,0,(AK8*((LOG(AK8))/LOG(2)))) -> -0.278139815 | AN8: =N8 -> 1112 | AO8: =COUNTIF(L121:L149,AN8) -> 3 | AP8: =AO8/(AQ4-AO20) -> 0.1111111111 | AQ8: =IF(AP8=0,0,(AP8*((LOG(AP8))/LOG(2)))) -> -0.352213889 | AS8: =N8 -> 1112 | AT8: =COUNTIF(L150:L177,AS8) -> 0 | AU8: =AT8/(AV4-AT20) -> 0 | AV8: =IF(AU8=0,0,(AU8*((LOG(AU8))/LOG(2)))) -> 0
A9: 21 | B9: 298 | C9: 21 | D9: 304 | E9: 11 | F9: 317 | G9: 21 | H9: 328 | K9: 0 | L9: 2212 | N9: 1121 | O9: =COUNTIF($L$7:$L$500,N9) -> 3 | P9: =O9/$Q$4 -> 0.01754385965 | Q9: =IF(P9=0,0,(P9*((LOG(P9))/LOG(2)))) -> -0.1023314038 | T9: =N9 -> 1121 | U9: =COUNTIF(L7:L35,T9) -> 0 | V9: =U9/(W4-U20) -> 0 | W9: =IF(V9=0,0,(V9*((LOG(V9))/LOG(2)))) -> 0 | Y9: =N9 -> 1121 | Z9: =COUNTIF(L36:L63,Y9) -> 1 | AA9: =Z9/(AB4-Z20) -> 0.03703703704 | AB9: =IF(AA9=0,0,(AA9*((LOG(AA9))/LOG(2)))) -> -0.1761069445 | AD9: =N9 -> 1121 | AE9: =COUNTIF(L64:L92,AD9) -> 0 | AF9: =AE9/(AG4-AE20) -> 0 | AG9: =IF(AF9=0,0,(AF9*((LOG(AF9))/LOG(2)))) -> 0 | AI9: =N9 -> 1121 | AJ9: =COUNTIF(L93:L120,AI9) -> 1 | AK9: =AJ9/(AL4-AJ20) -> 0.03703703704 | AL9: =IF(AK9=0,0,(AK9*((LOG(AK9))/LOG(2)))) -> -0.1761069445 | AN9: =N9 -> 1121 | AO9: =COUNTIF(L121:L149,AN9) -> 0 | AP9: =AO9/(AQ4-AO20) -> 0 | AQ9: =IF(AP9=0,0,(AP9*((LOG(AP9))/LOG(2)))) -> 0 | AS9: =N9 -> 1121 | AT9: =COUNTIF(L150:L177,AS9) -> 1 | AU9: =AT9/(AV4-AT20) -> 0.03571428571 | AV9: =IF(AU9=0,0,(AU9*((LOG(AU9))/LOG(2)))) -> -0.1716912472
A10: 21 | B10: 439 | C10: 21 | D10: 444 | E10: 22 | F10: 466 | G10: 23 | H10: 474 | K10: 0 | L10: 2222 | N10: 1122 | O10: =COUNTIF($L$7:$L$500,N10) -> 42 | P10: =O10/$Q$4 -> 0.2456140351 | Q10: =IF(P10=0,0,(P10*((LOG(P10))/LOG(2)))) -> -0.4974998472 | T10: =N10 -> 1122 | U10: =COUNTIF(L7:L35,T10) -> 7 | V10: =U10/(W4-U20) -> 0.2692307692 | W10: =IF(V10=0,0,(V10*((LOG(V10))/LOG(2)))) -> -0.5096766759 | Y10: =N10 -> 1122 | Z10: =COUNTIF(L36:L63,Y10) -> 8 | AA10: =Z10/(AB4-Z20) -> 0.2962962963 | AB10: =IF(AA10=0,0,(AA10*((LOG(AA10))/LOG(2)))) -> -0.5199666673 | AD10: =N10 -> 1122 | AE10: =COUNTIF(L64:L92,AD10) -> 6 | AF10: =AE10/(AG4-AE20) -> 0.2142857143 | AG10: =IF(AF10=0,0,(AF10*((LOG(AF10))/LOG(2)))) -> -0.4762269474 | AI10: =N10 -> 1122 | AJ10: =COUNTIF(L93:L120,AI10) -> 7 | AK10: =AJ10/(AL4-AJ20) -> 0.2592592593 | AL10: =IF(AK10=0,0,(AK10*((LOG(AK10))/LOG(2)))) -> -0.5049158541 | AN10: =N10 -> 1122 | AO10: =COUNTIF(L121:L149,AN10) -> 8 | AP10: =AO10/(AQ4-AO20) -> 0.2962962963 | AQ10: =IF(AP10=0,0,(AP10*((LOG(AP10))/LOG(2)))) -> -0.5199666673 | AS10: =N10 -> 1122 | AT10: =COUNTIF(L150:L177,AS10) -> 6 | AU10: =AT10/(AV4-AT20) -> 0.2142857143 | AV10: =IF(AU10=0,0,(AU10*((LOG(AU10))/LOG(2)))) -> -0.4762269474
A11: 12 | B11: 572 | C11: 14 | D11: 590 | E11: 24 | F11: 600 | G11: 23 | H11: 608 | K11: 0 | L11: 1122 | N11: 1211 | O11: =COUNTIF($L$7:$L$500,N11) -> 4 | P11: =O11/$Q$4 -> 0.02339181287 | Q11: =IF(P11=0,0,(P11*((LOG(P11))/LOG(2)))) -> -0.1267333922 | T11: =N11 -> 1211 | U11: =COUNTIF(L7:L35,T11) -> 0 | V11: =U11/(W4-U20) -> 0 | W11: =IF(V11=0,0,(V11*((LOG(V11))/LOG(2)))) -> 0 | Y11: =N11 -> 1211 | Z11: =COUNTIF(L36:L63,Y11) -> 0 | AA11: =Z11/(AB4-Z20) -> 0 | AB11: =IF(AA11=0,0,(AA11*((LOG(AA11))/LOG(2)))) -> 0 | AD11: =N11 -> 1211 | AE11: =COUNTIF(L64:L92,AD11) -> 0 | AF11: =AE11/(AG4-AE20) -> 0 | AG11: =IF(AF11=0,0,(AF11*((LOG(AF11))/LOG(2)))) -> 0 | AI11: =N11 -> 1211 | AJ11: =COUNTIF(L93:L120,AI11) -> 1 | AK11: =AJ11/(AL4-AJ20) -> 0.03703703704 | AL11: =IF(AK11=0,0,(AK11*((LOG(AK11))/LOG(2)))) -> -0.1761069445 | AN11: =N11 -> 1211 | AO11: =COUNTIF(L121:L149,AN11) -> 0 | AP11: =AO11/(AQ4-AO20) -> 0 | AQ11: =IF(AP11=0,0,(AP11*((LOG(AP11))/LOG(2)))) -> 0 | AS11: =N11 -> 1211 | AT11: =COUNTIF(L150:L177,AS11) -> 3 | AU11: =AT11/(AV4-AT20) -> 0.1071428571 | AV11: =IF(AU11=0,0,(AU11*((LOG(AU11))/LOG(2)))) -> -0.3452563309
A12: 12 | B12: 704 | C12: 14 | D12: 724 | E12: 24 | F12: 733 | G12: 23 | H12: 741 | K12: 0 | L12: 1122 | N12: 1212 | O12: =COUNTIF($L$7:$L$500,N12) -> 7 | P12: =O12/$Q$4 -> 0.04093567251 | Q12: =IF(P12=0,0,(P12*((LOG(P12))/LOG(2)))) -> -0.1887338196 | T12: =N12 -> 1212 | U12: =COUNTIF(L7:L35,T12) -> 2 | V12: =U12/(W4-U20) -> 0.07692307692 | W12: =IF(V12=0,0,(V12*((LOG(V12))/LOG(2)))) -> -0.2846492091 | Y12: =N12 -> 1212 | Z12: =COUNTIF(L36:L63,Y12) -> 0 | AA12: =Z12/(AB4-Z20) -> 0 | AB12: =IF(AA12=0,0,(AA12*((LOG(AA12))/LOG(2)))) -> 0 | AD12: =N12 -> 1212 | AE12: =COUNTIF(L64:L92,AD12) -> 3 | AF12: =AE12/(AG4-AE20) -> 0.1071428571 | AG12: =IF(AF12=0,0,(AF12*((LOG(AF12))/LOG(2)))) -> -0.3452563309 | AI12: =N12 -> 1212 | AJ12: =COUNTIF(L93:L120,AI12) -> 1 | AK12: =AJ12/(AL4-AJ20) -> 0.03703703704 | AL12: =IF(AK12=0,0,(AK12*((LOG(AK12))/LOG(2)))) -> -0.1761069445 | AN12: =N12 -> 1212 | AO12: =COUNTIF(L121:L149,AN12) -> 1 | AP12: =AO12/(AQ4-AO20) -> 0.03703703704 | AQ12: =IF(AP12=0,0,(AP12*((LOG(AP12))/LOG(2)))) -> -0.1761069445 | AS12: =N12 -> 1212 | AT12: =COUNTIF(L150:L177,AS12) -> 0 | AU12: =AT12/(AV4-AT20) -> 0 | AV12: =IF(AU12=0,0,(AU12*((LOG(AU12))/LOG(2)))) -> 0
A13: 21 | B13: 850 | C13: 21 | D13: 857 | E13: 11 | F13: 873 | G13: 12 | H13: 881 | K13: 0 | L13: 2211 | N13: 1221 | O13: =COUNTIF($L$7:$L$500,N13) -> 34 | P13: =O13/$Q$4 -> 0.1988304094 | Q13: =IF(P13=0,0,(P13*((LOG(P13))/LOG(2)))) -> -0.4633523328 | T13: =N13 -> 1221 | U13: =COUNTIF(L7:L35,T13) -> 6 | V13: =U13/(W4-U20) -> 0.2307692308 | W13: =IF(V13=0,0,(V13*((LOG(V13))/LOG(2)))) -> -0.4881870502 | Y13: =N13 -> 1221 | Z13: =COUNTIF(L36:L63,Y13) -> 9 | AA13: =Z13/(AB4-Z20) -> 0.3333333333 | AB13: =IF(AA13=0,0,(AA13*((LOG(AA13))/LOG(2)))) -> -0.5283208336 | AD13: =N13 -> 1221 | AE13: =COUNTIF(L64:L92,AD13) -> 5 | AF13: =AE13/(AG4-AE20) -> 0.1785714286 | AG13: =IF(AF13=0,0,(AF13*((LOG(AF13))/LOG(2)))) -> -0.4438262191 | AI13: =N13 -> 1221 | AJ13: =COUNTIF(L93:L120,AI13) -> 3 | AK13: =AJ13/(AL4-AJ20) -> 0.1111111111 | AL13: =IF(AK13=0,0,(AK13*((LOG(AK13))/LOG(2)))) -> -0.352213889 | AN13: =N13 -> 1221 | AO13: =COUNTIF(L121:L149,AN13) -> 4 | AP13: =AO13/(AQ4-AO20) -> 0.1481481481 | AQ13: =IF(AP13=0,0,(AP13*((LOG(AP13))/LOG(2)))) -> -0.4081314818 | AS13: =N13 -> 1221 | AT13: =COUNTIF(L150:L177,AS13) -> 7 | AU13: =AT13/(AV4-AT20) -> 0.25 | AV13: =IF(AU13=0,0,(AU13*((LOG(AU13))/LOG(2)))) -> -0.5
A14: 12 | B14: 977 | C14: 23 | D14: 999 | E14: 24 | F14: 1006 | G14: 14 | H14: 1022 | K14: 0 | L14: 1221 | N14: 1222 | O14: =COUNTIF($L$7:$L$500,N14) -> 36 | P14: =O14/$Q$4 -> 0.2105263158 | Q14: =IF(P14=0,0,(P14*((LOG(P14))/LOG(2)))) -> -0.4732478976 | T14: =N14 -> 1222 | U14: =COUNTIF(L7:L35,T14) -> 4 | V14: =U14/(W4-U20) -> 0.1538461538 | W14: =IF(V14=0,0,(V14*((LOG(V14))/LOG(2)))) -> -0.4154522643 | Y14: =N14 -> 1222 | Z14: =COUNTIF(L36:L63,Y14) -> 3 | AA14: =Z14/(AB4-Z20) -> 0.1111111111 | AB14: =IF(AA14=0,0,(AA14*((LOG(AA14))/LOG(2)))) -> -0.352213889 | AD14: =N14 -> 1222 | AE14: =COUNTIF(L64:L92,AD14) -> 8 | AF14: =AE14/(AG4-AE20) -> 0.2857142857 | AG14: =IF(AF14=0,0,(AF14*((LOG(AF14))/LOG(2)))) -> -0.5163871206 | AI14: =N14 -> 1222 | AJ14: =COUNTIF(L93:L120,AI14) -> 8 | AK14: =AJ14/(AL4-AJ20) -> 0.2962962963 | AL14: =IF(AK14=0,0,(AK14*((LOG(AK14))/LOG(2)))) -> -0.5199666673 | AN14: =N14 -> 1222 | AO14: =COUNTIF(L121:L149,AN14) -> 6 | AP14: =AO14/(AQ4-AO20) -> 0.2222222222 | AQ14: =IF(AP14=0,0,(AP14*((LOG(AP14))/LOG(2)))) -> -0.4822055559 | AS14: =N14 -> 1222 | AT14: =COUNTIF(L150:L177,AS14) -> 7 | AU14: =AT14/(AV4-AT20) -> 0.25 | AV14: =IF(AU14=0,0,(AU14*((LOG(AU14))/LOG(2)))) -> -0.5
A15: 12 | B15: 1118 | C15: 23 | D15: 1136 | E15: 13 | F15: 1149 | G15: 23 | H15: 1162 | K15: 0 | L15: 1212 | N15: 2111 | O15: =COUNTIF($L$7:$L$500,N15) -> 0 | P15: =O15/$Q$4 -> 0 | Q15: =IF(P15=0,0,(P15*((LOG(P15))/LOG(2)))) -> 0 | T15: =N15 -> 2111 | U15: =COUNTIF(L7:L35,T15) -> 0 | V15: =U15/(W4-U20) -> 0 | W15: =IF(V15=0,0,(V15*((LOG(V15))/LOG(2)))) -> 0 | Y15: =N15 -> 2111 | Z15: =COUNTIF(L36:L63,Y15) -> 0 | AA15: =Z15/(AB4-Z20) -> 0 | AB15: =IF(AA15=0,0,(AA15*((LOG(AA15))/LOG(2)))) -> 0 | AD15: =N15 -> 2111 | AE15: =COUNTIF(L64:L92,AD15) -> 0 | AF15: =AE15/(AG4-AE20) -> 0 | AG15: =IF(AF15=0,0,(AF15*((LOG(AF15))/LOG(2)))) -> 0 | AI15: =N15 -> 2111 | AJ15: =COUNTIF(L93:L120,AI15) -> 0 | AK15: =AJ15/(AL4-AJ20) -> 0 | AL15: =IF(AK15=0,0,(AK15*((LOG(AK15))/LOG(2)))) -> 0 | AN15: =N15 -> 2111 | AO15: =COUNTIF(L121:L149,AN15) -> 0 | AP15: =AO15/(AQ4-AO20) -> 0 | AQ15: =IF(AP15=0,0,(AP15*((LOG(AP15))/LOG(2)))) -> 0 | AS15: =N15 -> 2111 | AT15: =COUNTIF(L150:L177,AS15) -> 0 | AU15: =AT15/(AV4-AT20) -> 0 | AV15: =IF(AU15=0,0,(AU15*((LOG(AU15))/LOG(2)))) -> 0
A16: 12 | B16: 1264 | C16: 23 | D16: 1278 | E16: 24 | F16: 1283 | G16: 23 | H16: 1303 | K16: 0 | L16: 1222 | N16: 2112 | O16: =COUNTIF($L$7:$L$500,N16) -> 2 | P16: =O16/$Q$4 -> 0.01169590643 | Q16: =IF(P16=0,0,(P16*((LOG(P16))/LOG(2)))) -> -0.07506260251 | T16: =N16 -> 2112 | U16: =COUNTIF(L7:L35,T16) -> 1 | V16: =U16/(W4-U20) -> 0.03846153846 | W16: =IF(V16=0,0,(V16*((LOG(V16))/LOG(2)))) -> -0.180786143 | Y16: =N16 -> 2112 | Z16: =COUNTIF(L36:L63,Y16) -> 0 | AA16: =Z16/(AB4-Z20) -> 0 | AB16: =IF(AA16=0,0,(AA16*((LOG(AA16))/LOG(2)))) -> 0 | AD16: =N16 -> 2112 | AE16: =COUNTIF(L64:L92,AD16) -> 1 | AF16: =AE16/(AG4-AE20) -> 0.03571428571 | AG16: =IF(AF16=0,0,(AF16*((LOG(AF16))/LOG(2)))) -> -0.1716912472 | AI16: =N16 -> 2112 | AJ16: =COUNTIF(L93:L120,AI16) -> 0 | AK16: =AJ16/(AL4-AJ20) -> 0 | AL16: =IF(AK16=0,0,(AK16*((LOG(AK16))/LOG(2)))) -> 0 | AN16: =N16 -> 2112 | AO16: =COUNTIF(L121:L149,AN16) -> 0 | AP16: =AO16/(AQ4-AO20) -> 0 | AQ16: =IF(AP16=0,0,(AP16*((LOG(AP16))/LOG(2)))) -> 0 | AS16: =N16 -> 2112 | AT16: =COUNTIF(L150:L177,AS16) -> 0 | AU16: =AT16/(AV4-AT20) -> 0 | AV16: =IF(AU16=0,0,(AU16*((LOG(AU16))/LOG(2)))) -> 0
A17: 12 | B17: 1405 | C17: 23 | D17: 1417 | E17: 24 | F17: 1423 | G17: 23 | H17: 1435 | K17: 0 | L17: 1222 | N17: 2121 | O17: =COUNTIF($L$7:$L$500,N17) -> 0 | P17: =O17/$Q$4 -> 0 | Q17: =IF(P17=0,0,(P17*((LOG(P17))/LOG(2)))) -> 0 | T17: =N17 -> 2121 | U17: =COUNTIF(L7:L35,T17) -> 0 | V17: =U17/(W4-U20) -> 0 | W17: =IF(V17=0,0,(V17*((LOG(V17))/LOG(2)))) -> 0 | Y17: =N17 -> 2121 | Z17: =COUNTIF(L36:L63,Y17) -> 0 | AA17: =Z17/(AB4-Z20) -> 0 | AB17: =IF(AA17=0,0,(AA17*((LOG(AA17))/LOG(2)))) -> 0 | AD17: =N17 -> 2121 | AE17: =COUNTIF(L64:L92,AD17) -> 0 | AF17: =AE17/(AG4-AE20) -> 0 | AG17: =IF(AF17=0,0,(AF17*((LOG(AF17))/LOG(2)))) -> 0 | AI17: =N17 -> 2121 | AJ17: =COUNTIF(L93:L120,AI17) -> 0 | AK17: =AJ17/(AL4-AJ20) -> 0 | AL17: =IF(AK17=0,0,(AK17*((LOG(AK17))/LOG(2)))) -> 0 | AN17: =N17 -> 2121 | AO17: =COUNTIF(L121:L149,AN17) -> 0 | AP17: =AO17/(AQ4-AO20) -> 0 | AQ17: =IF(AP17=0,0,(AP17*((LOG(AP17))/LOG(2)))) -> 0 | AS17: =N17 -> 2121 | AT17: =COUNTIF(L150:L177,AS17) -> 0 | AU17: =AT17/(AV4-AT20) -> 0 | AV17: =IF(AU17=0,0,(AU17*((LOG(AU17))/LOG(2)))) -> 0
A18: 21 | B18: 1538 | C18: 21 | D18: 1543 | E18: 22 | F18: 1572 | G18: 23 | H18: 1579 | K18: 0 | L18: 2222 | N18: 2122 | O18: =COUNTIF($L$7:$L$500,N18) -> 2 | P18: =O18/$Q$4 -> 0.01169590643 | Q18: =IF(P18=0,0,(P18*((LOG(P18))/LOG(2)))) -> -0.07506260251 | T18: =N18 -> 2122 | U18: =COUNTIF(L7:L35,T18) -> 0 | V18: =U18/(W4-U20) -> 0 | W18: =IF(V18=0,0,(V18*((LOG(V18))/LOG(2)))) -> 0 | Y18: =N18 -> 2122 | Z18: =COUNTIF(L36:L63,Y18) -> 1 | AA18: =Z18/(AB4-Z20) -> 0.03703703704 | AB18: =IF(AA18=0,0,(AA18*((LOG(AA18))/LOG(2)))) -> -0.1761069445 | AD18: =N18 -> 2122 | AE18: =COUNTIF(L64:L92,AD18) -> 1 | AF18: =AE18/(AG4-AE20) -> 0.03571428571 | AG18: =IF(AF18=0,0,(AF18*((LOG(AF18))/LOG(2)))) -> -0.1716912472 | AI18: =N18 -> 2122 | AJ18: =COUNTIF(L93:L120,AI18) -> 0 | AK18: =AJ18/(AL4-AJ20) -> 0 | AL18: =IF(AK18=0,0,(AK18*((LOG(AK18))/LOG(2)))) -> 0 | AN18: =N18 -> 2122 | AO18: =COUNTIF(L121:L149,AN18) -> 0 | AP18: =AO18/(AQ4-AO20) -> 0 | AQ18: =IF(AP18=0,0,(AP18*((LOG(AP18))/LOG(2)))) -> 0 | AS18: =N18 -> 2122 | AT18: =COUNTIF(L150:L177,AS18) -> 0 | AU18: =AT18/(AV4-AT20) -> 0 | AV18: =IF(AU18=0,0,(AU18*((LOG(AU18))/LOG(2)))) -> 0
A19: 12 | B19: 1676 | C19: 14 | D19: 1697 | E19: 24 | F19: 1707 | G19: 23 | H19: 1711 | K19: 0 | L19: 1122 | N19: 2211 | O19: =COUNTIF($L$7:$L$500,N19) -> 6 | P19: =O19/$Q$4 -> 0.0350877193 | Q19: =IF(P19=0,0,(P19*((LOG(P19))/LOG(2)))) -> -0.1695750882 | T19: =N19 -> 2211 | U19: =COUNTIF(L7:L35,T19) -> 1 | V19: =U19/(W4-U20) -> 0.03846153846 | W19: =IF(V19=0,0,(V19*((LOG(V19))/LOG(2)))) -> -0.180786143 | Y19: =N19 -> 2211 | Z19: =COUNTIF(L36:L63,Y19) -> 1 | AA19: =Z19/(AB4-Z20) -> 0.03703703704 | AB19: =IF(AA19=0,0,(AA19*((LOG(AA19))/LOG(2)))) -> -0.1761069445 | AD19: =N19 -> 2211 | AE19: =COUNTIF(L64:L92,AD19) -> 1 | AF19: =AE19/(AG4-AE20) -> 0.03571428571 | AG19: =IF(AF19=0,0,(AF19*((LOG(AF19))/LOG(2)))) -> -0.1716912472 | AI19: =N19 -> 2211 | AJ19: =COUNTIF(L93:L120,AI19) -> 0 | AK19: =AJ19/(AL4-AJ20) -> 0 | AL19: =IF(AK19=0,0,(AK19*((LOG(AK19))/LOG(2)))) -> 0 | AN19: =N19 -> 2211 | AO19: =COUNTIF(L121:L149,AN19) -> 2 | AP19: =AO19/(AQ4-AO20) -> 0.07407407407 | AQ19: =IF(AP19=0,0,(AP19*((LOG(AP19))/LOG(2)))) -> -0.278139815 | AS19: =N19 -> 2211 | AT19: =COUNTIF(L150:L177,AS19) -> 1 | AU19: =AT19/(AV4-AT20) -> 0.03571428571 | AV19: =IF(AU19=0,0,(AU19*((LOG(AU19))/LOG(2)))) -> -0.1716912472
A20: 12 | B20: 1808 | C20: 23 | D20: 1818 | E20: 24 | F20: 1827 | G20: 14 | H20: 1840 | K20: 0 | L20: 1221 | N20: 2212 | O20: =COUNTIF($L$7:$L$500,N20) -> 8 | P20: =O20/$Q$4 -> 0.04678362573 | Q20: =IF(P20=0,0,(P20*((LOG(P20))/LOG(2)))) -> -0.2066831586 | T20: =N20 -> 2212 | U20: =COUNTIF(L7:L35,T20) -> 3 | Y20: =N20 -> 2212 | Z20: =COUNTIF(L36:L63,Y20) -> 1 | AD20: =N20 -> 2212 | AE20: =COUNTIF(L64:L92,AD20) -> 1 | AI20: =N20 -> 2212 | AJ20: =COUNTIF(L93:L120,AI20) -> 1 | AN20: =N20 -> 2212 | AO20: =COUNTIF(L121:L149,AN20) -> 2 | AS20: =N20 -> 2212 | AT20: =COUNTIF(L150:L177,AS20) -> 0
A21: 12 | B21: 1955 | C21: 23 | D21: 1964 | E21: 24 | F21: 1968 | G21: 14 | H21: 1981 | K21: 0 | L21: 1221 | N21: 2221 | O21: =COUNTIF($L$7:$L$500,N21) -> 6 | P21: =O21/$Q$4 -> 0.0350877193 | Q21: =IF(P21=0,0,(P21*((LOG(P21))/LOG(2)))) -> -0.1695750882 | T21: =N21 -> 2221 | U21: =COUNTIF(L7:L35,T21) -> 2 | V21: =U21/(W4-U20) -> 0.07692307692 | W21: =IF(V21=0,0,(V21*((LOG(V21))/LOG(2)))) -> -0.2846492091 | Y21: =N21 -> 2221 | Z21: =COUNTIF(L36:L63,Y21) -> 1 | AA21: =Z21/(AB4-Z20) -> 0.03703703704 | AB21: =IF(AA21=0,0,(AA21*((LOG(AA21))/LOG(2)))) -> -0.1761069445 | AD21: =N21 -> 2221 | AE21: =COUNTIF(L64:L92,AD21) -> 1 | AF21: =AE21/(AG4-AE20) -> 0.03571428571 | AG21: =IF(AF21=0,0,(AF21*((LOG(AF21))/LOG(2)))) -> -0.1716912472 | AI21: =N21 -> 2221 | AJ21: =COUNTIF(L93:L120,AI21) -> 2 | AK21: =AJ21/(AL4-AJ20) -> 0.07407407407 | AL21: =IF(AK21=0,0,(AK21*((LOG(AK21))/LOG(2)))) -> -0.278139815 | AN21: =N21 -> 2221 | AO21: =COUNTIF(L121:L149,AN21) -> 0 | AP21: =AO21/(AQ4-AO20) -> 0 | AQ21: =IF(AP21=0,0,(AP21*((LOG(AP21))/LOG(2)))) -> 0 | AS21: =N21 -> 2221 | AT21: =COUNTIF(L150:L177,AS21) -> 0 | AU21: =AT21/(AV4-AT20) -> 0 | AV21: =IF(AU21=0,0,(AU21*((LOG(AU21))/LOG(2)))) -> 0
A22: 12 | B22: 2080 | C22: 23 | D22: 2089 | E22: 24 | F22: 2096 | G22: 23 | H22: 2103 | K22: 0 | L22: 1222 | N22: 2222 | O22: =COUNTIF($L$7:$L$500,N22) -> 7 | P22: =O22/$Q$4 -> 0.04093567251 | Q22: =IF(P22=0,0,(P22*((LOG(P22))/LOG(2)))) -> -0.1887338196 | T22: =N22 -> 2222 | U22: =COUNTIF(L7:L35,T22) -> 2 | V22: =U22/(W4-U20) -> 0.07692307692 | W22: =IF(V22=0,0,(V22*((LOG(V22))/LOG(2)))) -> -0.2846492091 | Y22: =N22 -> 2222 | Z22: =COUNTIF(L36:L63,Y22) -> 0 | AA22: =Z22/(AB4-Z20) -> 0 | AB22: =IF(AA22=0,0,(AA22*((LOG(AA22))/LOG(2)))) -> 0 | AD22: =N22 -> 2222 | AE22: =COUNTIF(L64:L92,AD22) -> 0 | AF22: =AE22/(AG4-AE20) -> 0 | AG22: =IF(AF22=0,0,(AF22*((LOG(AF22))/LOG(2)))) -> 0 | AI22: =N22 -> 2222 | AJ22: =COUNTIF(L93:L120,AI22) -> 1 | AK22: =AJ22/(AL4-AJ20) -> 0.03703703704 | AL22: =IF(AK22=0,0,(AK22*((LOG(AK22))/LOG(2)))) -> -0.1761069445 | AN22: =N22 -> 2222 | AO22: =COUNTIF(L121:L149,AN22) -> 2 | AP22: =AO22/(AQ4-AO20) -> 0.07407407407 | AQ22: =IF(AP22=0,0,(AP22*((LOG(AP22))/LOG(2)))) -> -0.278139815 | AS22: =N22 -> 2222 | AT22: =COUNTIF(L150:L177,AS22) -> 2 | AU22: =AT22/(AV4-AT20) -> 0.07142857143 | AV22: =IF(AU22=0,0,(AU22*((LOG(AU22))/LOG(2)))) -> -0.271953923
A23: 21 | B23: 2217 | C23: 21 | D23: 2223 | E23: 11 | F23: 2236 | G23: 21 | H23: 2257 | K23: 0 | L23: 2212 | P23: =SUM(P7:P22) -> 1 | Q23: =-SUM(Q7:Q22) -> 3.102852189 | V23: =SUM(V7:V22) -> 1 | W23: =-SUM(W7:W22) -> 2.809622047 | AA23: =SUM(AA7:AA22) -> 1 | AB23: =-SUM(AB7:AB22) -> 2.559175928 | AF23: =SUM(AF7:AF22) -> 1 | AG23: =-SUM(AG7:AG22) -> 2.74041553 | AK23: =SUM(AK7:AK22) -> 1 | AL23: =-SUM(AL7:AL22) -> 2.813910763 | AP23: =SUM(AP7:AP22) -> 1 | AQ23: =-SUM(AQ7:AQ22) -> 2.671011113 | AU23: =SUM(AU7:AU22) -> 1 | AV23: =-SUM(AV7:AV22) -> 2.608510943
A24: 12 | B24: 2348 | C24: 23 | D24: 2371 | E24: 13 | F24: 2380 | G24: 23 | H24: 2399 | K24: 0 | L24: 1212 | P24: U= | Q24: =Q23/(LOG(Q4)/LOG(2)) -> 0.4182952118 | V24: U1= | W24: =W23/(LOG(W4)/LOG(2)) -> 0.5783517987 | AA24: U2= | AB24: =AB23/(LOG(AB4)/LOG(2)) -> 0.5323459509 | AF24: U3= | AG24: =AG23/(LOG(AG4)/LOG(2)) -> 0.5641058565 | AK24: U4= | AL24: =AL23/(LOG(AL4)/LOG(2)) -> 0.5853345153 | AP24: U5= | AQ24: =AQ23/(LOG(AQ4)/LOG(2)) -> 0.5498191771 | AU24: U6= | AV24: =AV23/(LOG(AV4)/LOG(2)) -> 0.5426083543
A25: 12 | B25: 2499 | C25: 23 | D25: 2512 | E25: 24 | F25: 2519 | G25: 23 | H25: 2528 | K25: 0 | L25: 1222
A26: 12 | B26: 2624 | C26: 14 | D26: 2640 | E26: 24 | F26: 2651 | G26: 23 | H26: 2655 | K26: 0 | L26: 1122
A27: 21 | B27: 2771 | C27: 21 | D27: 2778 | E27: 11 | F27: 2794 | G27: 21 | H27: 2806 | K27: 0 | L27: 2212 | N27: Total Target Seq
A28: 21 | B28: 2912 | C28: 21 | D28: 2919 | E28: 22 | F28: 2936 | G28: 14 | H28: 2956 | K28: 0 | L28: 2221 | N28: =COUNTIF(L7:L177,G3) -> 8 | P28: 29 | Q28: 28 | R28: 29 | S28: 28 | T28: 29 | U28: 28
A29: 12 | B29: 3053 | C29: 14 | D29: 3074 | E29: 24 | F29: 3085 | G29: 23 | H29: 3093 | K29: 0 | L29: 1122 | P29: % of reinforcement given in 6 equal intervals based on number of trials
A30: 12 | B30: 3189 | C30: 14 | D30: 3197 | E30: 24 | F30: 3209 | G30: 23 | H30: 3217 | K30: 0 | L30: 1122 | P30: %_1 | Q30: %_2 | R30: %_3 | S30: %_4 | T30: %_5 | U30: %_6
A31: 12 | B31: 3315 | C31: 14 | D31: 3330 | E31: 24 | F31: 3342 | G31: 23 | H31: 3350 | K31: 0 | L31: 1122 | O31: target sequence | P31: =$G$3 -> 2212 | Q31: =$G$3 -> 2212 | R31: =$G$3 -> 2212 | S31: =$G$3 -> 2212 | T31: =$G$3 -> 2212 | U31: =$G$3 -> 2212
A32: 21 | B32: 3449 | C32: 12 | D32: 3465 | E32: 13 | F32: 3472 | G32: 23 | H32: 3484 | K32: 0 | L32: 2112 | O32: total reinforcement | P32: =U20 -> 3 | Q32: =Z20 -> 1 | R32: =AE20 -> 1 | S32: =AJ20 -> 1 | T32: =AO20 -> 2 | U32: =AT20 -> 0
A33: 12 | B33: 3582 | C33: 14 | D33: 3587 | E33: 13 | F33: 3591 | G33: 23 | H33: 3603 | K33: 0 | L33: 1112 | O33: % target
A34: 12 | B34: 3703 | C34: 23 | D34: 3713 | E34: 24 | F34: 3720 | G34: 14 | H34: 3733 | K34: 0 | L34: 1221 | O34: CCRF
A35: 12 | B35: 3824 | C35: 23 | D35: 3835 | E35: 24 | F35: 3844 | G35: 14 | H35: 3857 | K35: 0 | L35: 1221 | O35: % CCRf
A36: 12 | B36: 3952 | C36: 14 | D36: 3961 | E36: 24 | F36: 3972 | G36: 23 | H36: 3976 | K36: 0 | L36: 1122 | O36: average response rate | P36: =H35/P28 -> 133 | Q36: =(H63-H35)/Q28 -> 135.4642857 | R36: =(H92-H63)/R28 -> 135.4827586 | S36: =(H120-H92)/S28 -> 140.1785714 | T36: =(H149-H120)/T28 -> 152.4482759 | U36: =(H177-H149)/U28 -> 143.9285714
A37: 12 | B37: 4072 | C37: 23 | D37: 4091 | E37: 24 | F37: 4096 | G37: 14 | H37: 4118 | K37: 0 | L37: 1221
A38: 12 | B38: 4216 | C38: 14 | D38: 4232 | E38: 24 | F38: 4244 | G38: 14 | H38: 4277 | K38: 0 | L38: 1121
A39: 12 | B39: 4368 | C39: 23 | D39: 4379 | E39: 24 | F39: 4384 | G39: 23 | H39: 4413 | K39: 0 | L39: 1222
A40: 12 | B40: 4508 | C40: 14 | D40: 4518 | E40: 13 | F40: 4536 | G40: 23 | H40: 4547 | K40: 0 | L40: 1112
A41: 12 | B41: 4642 | C41: 14 | D41: 4650 | E41: 24 | F41: 4661 | G41: 23 | H41: 4666 | K41: 0 | L41: 1122
A42: 12 | B42: 4757 | C42: 23 | D42: 4769 | E42: 24 | F42: 4774 | G42: 14 | H42: 4789 | K42: 0 | L42: 1221
A43: 12 | B43: 4884 | C43: 14 | D43: 4894 | E43: 24 | F43: 4906 | G43: 23 | H43: 4913 | K43: 0 | L43: 1122
A44: 12 | B44: 5018 | C44: 23 | D44: 5031 | E44: 24 | F44: 5036 | G44: 14 | H44: 5050 | K44: 0 | L44: 1221
A45: 12 | B45: 5162 | C45: 23 | D45: 5173 | E45: 24 | F45: 5178 | G45: 14 | H45: 5193 | K45: 0 | L45: 1221
A46: 21 | B46: 5309 | C46: 21 | D46: 5323 | E46: 22 | F46: 5332 | G46: 14 | H46: 5347 | K46: 0 | L46: 2221
A47: 21 | B47: 5453 | C47: 21 | D47: 5459 | E47: 11 | F47: 5471 | G47: 12 | H47: 5480 | K47: 0 | L47: 2211
A48: 12 | B48: 5579 | C48: 14 | D48: 5596 | E48: 24 | F48: 5608 | G48: 23 | H48: 5616 | K48: 0 | L48: 1122
A49: 12 | B49: 5718 | C49: 14 | D49: 5734 | E49: 24 | F49: 5743 | G49: 23 | H49: 5751 | K49: 0 | L49: 1122
A50: 21 | B50: 5865 | C50: 12 | D50: 5886 | E50: 24 | F50: 5898 | G50: 23 | H50: 5919 | K50: 0 | L50: 2122
A51: 12 | B51: 6016 | C51: 14 | D51: 6032 | E51: 24 | F51: 6043 | G51: 23 | H51: 6048 | K51: 0 | L51: 1122
A52: 12 | B52: 6149 | C52: 14 | D52: 6167 | E52: 24 | F52: 6179 | G52: 23 | H52: 6187 | K52: 0 | L52: 1122
A53: 12 | B53: 6286 | C53: 23 | D53: 6297 | E53: 24 | F53: 6304 | G53: 23 | H53: 6322 | K53: 0 | L53: 1222
A54: 12 | B54: 6419 | C54: 23 | D54: 6431 | E54: 24 | F54: 6436 | G54: 23 | H54: 6457 | K54: 0 | L54: 1222
A55: 12 | B55: 6555 | C55: 14 | D55: 6566 | E55: 13 | F55: 6574 | G55: 23 | H55: 6587 | K55: 0 | L55: 1112
A56: 12 | B56: 6685 | C56: 14 | D56: 6689 | E56: 13 | F56: 6698 | G56: 14 | H56: 6706 | K56: 0 | L56: 1111
A57: 12 | B57: 6803 | C57: 23 | D57: 6822 | E57: 24 | F57: 6829 | G57: 14 | H57: 6842 | K57: 0 | L57: 1221
A58: 12 | B58: 6940 | C58: 23 | D58: 6952 | E58: 24 | F58: 6959 | G58: 14 | H58: 6973 | K58: 0 | L58: 1221
A59: 12 | B59: 7069 | C59: 23 | D59: 7093 | E59: 24 | F59: 7101 | G59: 14 | H59: 7115 | K59: 0 | L59: 1221
A60: 12 | B60: 7212 | C60: 23 | D60: 7222 | E60: 24 | F60: 7228 | G60: 14 | H60: 7241 | K60: 0 | L60: 1221
A61: 12 | B61: 7333 | C61: 14 | D61: 7356 | E61: 24 | F61: 7368 | G61: 23 | H61: 7375 | K61: 0 | L61: 1122
A62: 12 | B62: 7471 | C62: 23 | D62: 7483 | E62: 24 | F62: 7490 | G62: 14 | H62: 7504 | K62: 0 | L62: 1221
A63: 21 | B63: 7618 | C63: 21 | D63: 7626 | E63: 11 | F63: 7638 | G63: 21 | H63: 7650 | K63: 0 | L63: 2212
A64: 12 | B64: 7740 | C64: 23 | D64: 7751 | E64: 24 | F64: 7758 | G64: 23 | H64: 7783 | K64: 0 | L64: 1222
A65: 21 | B65: 7893 | C65: 21 | D65: 7900 | E65: 11 | F65: 7913 | G65: 12 | H65: 7921 | K65: 0 | L65: 2211
A66: 12 | B66: 8015 | C66: 14 | D66: 8019 | E66: 13 | F66: 8037 | G66: 23 | H66: 8048 | K66: 0 | L66: 1112
A67: 12 | B67: 8140 | C67: 23 | D67: 8153 | E67: 24 | F67: 8160 | G67: 14 | H67: 8174 | K67: 0 | L67: 1221
A68: 21 | B68: 8282 | C68: 21 | D68: 8288 | E68: 11 | F68: 8303 | G68: 21 | H68: 8316 | K68: 0 | L68: 2212
A69: 12 | B69: 8408 | C69: 23 | D69: 8420 | E69: 24 | F69: 8425 | G69: 23 | H69: 8444 | K69: 0 | L69: 1222
A70: 12 | B70: 8539 | C70: 14 | D70: 8556 | E70: 24 | F70: 8566 | G70: 23 | H70: 8574 | K70: 0 | L70: 1122
A71: 12 | B71: 8672 | C71: 23 | D71: 8683 | E71: 24 | F71: 8690 | G71: 14 | H71: 8704 | K71: 0 | L71: 1221
A72: 12 | B72: 8810 | C72: 23 | D72: 8823 | E72: 24 | F72: 8831 | G72: 14 | H72: 8847 | K72: 0 | L72: 1221
A73: 12 | B73: 8946 | C73: 23 | D73: 8956 | E73: 24 | F73: 8965 | G73: 23 | H73: 8973 | K73: 0 | L73: 1222
A74: 12 | B74: 9071 | C74: 23 | D74: 9082 | E74: 13 | F74: 9102 | G74: 23 | H74: 9114 | K74: 0 | L74: 1212
A75: 12 | B75: 9215 | C75: 14 | D75: 9224 | E75: 24 | F75: 9236 | G75: 23 | H75: 9244 | K75: 0 | L75: 1122
A76: 12 | B76: 9337 | C76: 23 | D76: 9372 | E76: 24 | F76: 9382 | G76: 23 | H76: 9398 | K76: 0 | L76: 1222
A77: 12 | B77: 9494 | C77: 14 | D77: 9501 | E77: 13 | F77: 9517 | G77: 23 | H77: 9529 | K77: 0 | L77: 1112
A78: 12 | B78: 9626 | C78: 23 | D78: 9639 | E78: 24 | F78: 9647 | G78: 14 | H78: 9660 | K78: 0 | L78: 1221
A79: 12 | B79: 9765 | C79: 23 | D79: 9776 | E79: 24 | F79: 9784 | G79: 23 | H79: 9792 | K79: 0 | L79: 1222
A80: 12 | B80: 9887 | C80: 14 | D80: 9908 | E80: 24 | F80: 9920 | G80: 23 | H80: 9927 | K80: 0 | L80: 1122
A81: 12 | B81: 10026 | C81: 23 | D81: 10040 | E81: 24 | F81: 10048 | G81: 23 | H81: 10064 | K81: 0 | L81: 1222
A82: 12 | B82: 10161 | C82: 23 | D82: 10177 | E82: 24 | F82: 10185 | G82: 14 | H82: 10200 | K82: 0 | L82: 1221
A83: 12 | B83: 10296 | C83: 14 | D83: 10310 | E83: 24 | F83: 10322 | G83: 23 | H83: 10330 | K83: 0 | L83: 1122
A84: 12 | B84: 10422 | C84: 14 | D84: 10430 | E84: 24 | F84: 10439 | G84: 23 | H84: 10447 | K84: 0 | L84: 1122
A85: 12 | B85: 10543 | C85: 14 | D85: 10550 | E85: 24 | F85: 10563 | G85: 23 | H85: 10572 | K85: 0 | L85: 1122
A86: 12 | B86: 10675 | C86: 23 | D86: 10687 | E86: 24 | F86: 10695 | G86: 23 | H86: 10703 | K86: 0 | L86: 1222
A87: 12 | B87: 10801 | C87: 23 | D87: 10814 | E87: 13 | F87: 10829 | G87: 23 | H87: 10840 | K87: 0 | L87: 1212
A88: 12 | B88: 10938 | C88: 23 | D88: 10949 | E88: 24 | F88: 10958 | G88: 23 | H88: 10975 | K88: 0 | L88: 1222
A89: 21 | B89: 11078 | C89: 12 | D89: 11091 | E89: 13 | F89: 11099 | G89: 23 | H89: 11110 | K89: 0 | L89: 2112
A90: 12 | B90: 11202 | C90: 23 | D90: 11219 | E90: 13 | F90: 11230 | G90: 23 | H90: 11241 | K90: 0 | L90: 1212
A91: 21 | B91: 11384 | C91: 21 | D91: 11398 | E91: 22 | F91: 11410 | G91: 14 | H91: 11428 | K91: 0 | L91: 2221
A92: 21 | B92: 11541 | C92: 12 | D92: 11558 | E92: 24 | F92: 11571 | G92: 23 | H92: 11579 | K92: 0 | L92: 2122
A93: 21 | B93: 11691 | C93: 21 | D93: 11697 | E93: 22 | F93: 11707 | G93: 14 | H93: 11720 | K93: 0 | L93: 2221
A94: 21 | B94: 11842 | C94: 21 | D94: 11861 | E94: 22 | F94: 11875 | G94: 23 | H94: 11883 | K94: 0 | L94: 2222
A95: 12 | B95: 11981 | C95: 23 | D95: 11993 | E95: 13 | F95: 12015 | G95: 14 | H95: 12023 | K95: 0 | L95: 1211
A96: 12 | B96: 12122 | C96: 23 | D96: 12134 | E96: 24 | F96: 12142 | G96: 14 | H96: 12156 | K96: 0 | L96: 1221
A97: 12 | B97: 12252 | C97: 14 | D97: 12263 | E97: 24 | F97: 12272 | G97: 23 | H97: 12281 | K97: 0 | L97: 1122
A98: 12 | B98: 12379 | C98: 23 | D98: 12390 | E98: 24 | F98: 12397 | G98: 23 | H98: 12414 | K98: 0 | L98: 1222
A99: 12 | B99: 12504 | C99: 23 | D99: 12518 | E99: 24 | F99: 12526 | G99: 23 | H99: 12544 | K99: 0 | L99: 1222
A100: 12 | B100: 12639 | C100: 14 | D100: 12664 | E100: 13 | F100: 12671 | G100: 23 | H100: 12683 | K100: 0 | L100: 1112
A101: 12 | B101: 12786 | C101: 23 | D101: 12797 | E101: 24 | F101: 12804 | G101: 14 | H101: 12827 | K101: 0 | L101: 1221
A102: 12 | B102: 12925 | C102: 14 | D102: 12946 | E102: 13 | F102: 12955 | G102: 14 | H102: 12962 | K102: 0 | L102: 1111
A103: 12 | B103: 13057 | C103: 23 | D103: 13069 | E103: 13 | F103: 13082 | G103: 23 | H103: 13116 | K103: 0 | L103: 1212
A104: 12 | B104: 13206 | C104: 14 | D104: 13223 | E104: 24 | F104: 13234 | G104: 23 | H104: 13242 | K104: 0 | L104: 1122
A105: 12 | B105: 13345 | C105: 23 | D105: 13361 | E105: 24 | F105: 13371 | G105: 23 | H105: 13379 | K105: 0 | L105: 1222
A106: 12 | B106: 13490 | C106: 23 | D106: 13499 | E106: 24 | F106: 13506 | G106: 14 | H106: 13520 | K106: 0 | L106: 1221
A107: 12 | B107: 13622 | C107: 14 | D107: 13632 | E107: 24 | F107: 13642 | G107: 23 | H107: 13651 | K107: 0 | L107: 1122
A108: 21 | B108: 13774 | C108: 21 | D108: 13782 | E108: 11 | F108: 13795 | G108: 21 | H108: 13806 | K108: 0 | L108: 2212
A109: 12 | B109: 13903 | C109: 23 | D109: 13916 | E109: 24 | F109: 13924 | G109: 23 | H109: 13935 | K109: 0 | L109: 1222
A110: 12 | B110: 14032 | C110: 23 | D110: 14062 | E110: 24 | F110: 14070 | G110: 23 | H110: 14097 | K110: 0 | L110: 1222
A111: 12 | B111: 14197 | C111: 14 | D111: 14207 | E111: 24 | F111: 14218 | G111: 23 | H111: 14226 | K111: 0 | L111: 1122
A112: 12 | B112: 14324 | C112: 14 | D112: 14334 | E112: 24 | F112: 14347 | G112: 23 | H112: 14353 | K112: 0 | L112: 1122
A113: 12 | B113: 14454 | C113: 23 | D113: 14493 | E113: 24 | F113: 14513 | G113: 23 | H113: 14534 | K113: 0 | L113: 1222
A114: 21 | B114: 14636 | C114: 21 | D114: 14643 | E114: 22 | F114: 14650 | G114: 14 | H114: 14664 | K114: 0 | L114: 2221
A115: 12 | B115: 14764 | C115: 23 | D115: 14775 | E115: 24 | F115: 14783 | G115: 23 | H115: 14792 | K115: 0 | L115: 1222
A116: 12 | B116: 14887 | C116: 23 | D116: 14906 | E116: 24 | F116: 14913 | G116: 23 | H116: 14928 | K116: 0 | L116: 1222
A117: 12 | B117: 15025 | C117: 14 | D117: 15041 | E117: 24 | F117: 15064 | G117: 23 | H117: 15095 | K117: 0 | L117: 1122
A118: 12 | B118: 15195 | C118: 14 | D118: 15205 | E118: 24 | F118: 15218 | G118: 23 | H118: 15226 | K118: 0 | L118: 1122
A119: 12 | B119: 15325 | C119: 14 | D119: 15337 | E119: 13 | F119: 15345 | G119: 23 | H119: 15357 | K119: 0 | L119: 1112
A120: 12 | B120: 15453 | C120: 14 | D120: 15470 | E120: 24 | F120: 15491 | G120: 14 | H120: 15504 | K120: 0 | L120: 1121
A121: 12 | B121: 15594 | C121: 23 | D121: 15610 | E121: 24 | F121: 15618 | G121: 14 | H121: 15632 | K121: 0 | L121: 1221
A122: 12 | B122: 15731 | C122: 14 | D122: 15736 | E122: 24 | F122: 15747 | G122: 23 | H122: 15754 | K122: 0 | L122: 1122
A123: 12 | B123: 15858 | C123: 23 | D123: 15870 | E123: 24 | F123: 15878 | G123: 23 | H123: 15914 | K123: 0 | L123: 1222
A124: 12 | B124: 16010 | C124: 14 | D124: 16018 | E124: 24 | F124: 16026 | G124: 23 | H124: 16034 | K124: 0 | L124: 1122
A125: 12 | B125: 16136 | C125: 14 | D125: 16146 | E125: 24 | F125: 16159 | G125: 23 | H125: 16167 | K125: 0 | L125: 1122
A126: 12 | B126: 16263 | C126: 14 | D126: 16276 | E126: 13 | F126: 16285 | G126: 23 | H126: 16311 | K126: 0 | L126: 1112
A127: 12 | B127: 16414 | C127: 23 | D127: 16425 | E127: 24 | F127: 16433 | G127: 14 | H127: 16454 | K127: 0 | L127: 1221
A128: 12 | B128: 16550 | C128: 14 | D128: 16566 | E128: 24 | F128: 16577 | G128: 23 | H128: 16585 | K128: 0 | L128: 1122
A129: 12 | B129: 16681 | C129: 23 | D129: 16692 | E129: 24 | F129: 16700 | G129: 14 | H129: 16713 | K129: 0 | L129: 1221
A130: 12 | B130: 16810 | C130: 14 | D130: 16820 | E130: 24 | F130: 16842 | G130: 23 | H130: 16856 | K130: 0 | L130: 1122
A131: 12 | B131: 16981 | C131: 14 | D131: 16989 | E131: 13 | F131: 16998 | G131: 14 | H131: 17006 | K131: 0 | L131: 1111
A132: 12 | B132: 17111 | C132: 23 | D132: 17123 | E132: 24 | F132: 17131 | G132: 23 | H132: 17159 | K132: 0 | L132: 1222
A133: 12 | B133: 17262 | C133: 14 | D133: 17283 | E133: 13 | F133: 17292 | G133: 23 | H133: 17307 | K133: 0 | L133: 1112
A134: 12 | B134: 17406 | C134: 14 | D134: 17419 | E134: 24 | F134: 17430 | G134: 23 | H134: 17438 | K134: 0 | L134: 1122
A135: 12 | B135: 17537 | C135: 14 | D135: 17557 | E135: 13 | F135: 17625 | G135: 23 | H135: 17752 | K135: 0 | L135: 1112
A136: 21 | B136: 17882 | C136: 21 | D136: 17890 | E136: 11 | F136: 17902 | G136: 21 | H136: 17922 | K136: 0 | L136: 2212
A137: 12 | B137: 18023 | C137: 23 | D137: 18077 | E137: 24 | F137: 18085 | G137: 23 | H137: 18097 | K137: 0 | L137: 1222
A138: 21 | B138: 18224 | C138: 21 | D138: 18231 | E138: 11 | F138: 18249 | G138: 21 | H138: 18264 | K138: 0 | L138: 2212
A139: 12 | B139: 18385 | C139: 23 | D139: 18395 | E139: 24 | F139: 18402 | G139: 23 | H139: 18413 | K139: 0 | L139: 1222
A140: 12 | B140: 18508 | C140: 14 | D140: 18511 | E140: 24 | F140: 18547 | G140: 23 | H140: 18560 | K140: 0 | L140: 1122
A141: 21 | B141: 18686 | C141: 21 | D141: 18693 | E141: 22 | F141: 18710 | G141: 23 | H141: 18765 | K141: 0 | L141: 2222
A142: 12 | B142: 18869 | C142: 23 | D142: 18880 | E142: 13 | F142: 18900 | G142: 23 | H142: 18912 | K142: 0 | L142: 1212
A143: 12 | B143: 19016 | C143: 23 | D143: 19033 | E143: 24 | F143: 19042 | G143: 14 | H143: 19053 | K143: 0 | L143: 1221
A144: 21 | B144: 19184 | C144: 21 | D144: 19198 | E144: 22 | F144: 19222 | G144: 23 | H144: 19235 | K144: 0 | L144: 2222
A145: 21 | B145: 19357 | C145: 21 | D145: 19365 | E145: 11 | F145: 19379 | G145: 12 | H145: 19386 | K145: 0 | L145: 2211
A146: 12 | B146: 19483 | C146: 23 | D146: 19494 | E146: 24 | F146: 19502 | G146: 23 | H146: 19510 | K146: 0 | L146: 1222
A147: 12 | B147: 19615 | C147: 23 | D147: 19627 | E147: 24 | F147: 19634 | G147: 23 | H147: 19647 | K147: 0 | L147: 1222
A148: 12 | B148: 19741 | C148: 14 | D148: 19757 | E148: 24 | F148: 19770 | G148: 23 | H148: 19788 | K148: 0 | L148: 1122
A149: 21 | B149: 19899 | C149: 21 | D149: 19906 | E149: 11 | F149: 19918 | G149: 12 | H149: 19925 | K149: 0 | L149: 2211
A150: 12 | B150: 20021 | C150: 23 | D150: 20031 | E150: 24 | F150: 20039 | G150: 14 | H150: 20052 | K150: 0 | L150: 1221
A151: 12 | B151: 20150 | C151: 23 | D151: 20161 | E151: 24 | F151: 20169 | G151: 23 | H151: 20180 | K151: 0 | L151: 1222
A152: 12 | B152: 20282 | C152: 23 | D152: 20293 | E152: 24 | F152: 20301 | G152: 14 | H152: 20314 | K152: 0 | L152: 1221
A153: 12 | B153: 20413 | C153: 14 | D153: 20421 | E153: 24 | F153: 20436 | G153: 23 | H153: 20444 | K153: 0 | L153: 1122
A154: 12 | B154: 20548 | C154: 23 | D154: 20560 | E154: 13 | F154: 20576 | G154: 14 | H154: 20581 | K154: 0 | L154: 1211
A155: 12 | B155: 20678 | C155: 14 | D155: 20687 | E155: 24 | F155: 20698 | G155: 23 | H155: 20705 | K155: 0 | L155: 1122
A156: 12 | B156: 20799 | C156: 14 | D156: 20813 | E156: 24 | F156: 20823 | G156: 23 | H156: 20833 | K156: 0 | L156: 1122
A157: 12 | B157: 20950 | C157: 23 | D157: 20963 | E157: 24 | F157: 20987 | G157: 23 | H157: 20998 | K157: 0 | L157: 1222
A158: 21 | B158: 21112 | C158: 21 | D158: 21131 | E158: 22 | F158: 21140 | G158: 23 | H158: 21149 | K158: 0 | L158: 2222
A159: 12 | B159: 21253 | C159: 23 | D159: 21264 | E159: 24 | F159: 21273 | G159: 14 | H159: 21286 | K159: 0 | L159: 1221
A160: 12 | B160: 21387 | C160: 23 | D160: 21399 | E160: 24 | F160: 21406 | G160: 14 | H160: 21420 | K160: 0 | L160: 1221
A161: 12 | B161: 21520 | C161: 14 | D161: 21540 | E161: 13 | F161: 21547 | G161: 14 | H161: 21553 | K161: 0 | L161: 1111
A162: 12 | B162: 21661 | C162: 23 | D162: 21673 | E162: 24 | F162: 21683 | G162: 14 | H162: 21696 | K162: 0 | L162: 1221
A163: 12 | B163: 21795 | C163: 23 | D163: 21806 | E163: 24 | F163: 21815 | G163: 14 | H163: 21841 | K163: 0 | L163: 1221
A164: 12 | B164: 21932 | C164: 23 | D164: 21945 | E164: 13 | F164: 21966 | G164: 14 | H164: 21973 | K164: 0 | L164: 1211
A165: 12 | B165: 22069 | C165: 14 | D165: 22083 | E165: 24 | F165: 22103 | G165: 23 | H165: 22111 | K165: 0 | L165: 1122
A166: 12 | B166: 22228 | C166: 23 | D166: 22240 | E166: 24 | F166: 22249 | G166: 23 | H166: 22261 | K166: 0 | L166: 1222
A167: 12 | B167: 22354 | C167: 23 | D167: 22365 | E167: 13 | F167: 22383 | G167: 14 | H167: 22388 | K167: 0 | L167: 1211
A168: 12 | B168: 22487 | C168: 23 | D168: 22500 | E168: 24 | F168: 22518 | G168: 14 | H168: 22533 | K168: 0 | L168: 1221
A169: 12 | B169: 22631 | C169: 14 | D169: 22651 | E169: 24 | F169: 22662 | G169: 23 | H169: 22681 | K169: 0 | L169: 1122
A170: 12 | B170: 22779 | C170: 14 | D170: 22800 | E170: 24 | F170: 22819 | G170: 23 | H170: 22832 | K170: 0 | L170: 1122
A171: 12 | B171: 22926 | C171: 23 | D171: 22937 | E171: 24 | F171: 22945 | G171: 23 | H171: 22954 | K171: 0 | L171: 1222
A172: 21 | B172: 23174 | C172: 21 | D172: 23188 | E172: 11 | F172: 23202 | G172: 12 | H172: 23210 | K172: 0 | L172: 2211
A173: 21 | B173: 23320 | C173: 21 | D173: 23332 | E173: 22 | F173: 23346 | G173: 23 | H173: 23369 | K173: 0 | L173: 2222
A174: 12 | B174: 23505 | C174: 23 | D174: 23521 | E174: 24 | F174: 23531 | G174: 23 | H174: 23547 | K174: 0 | L174: 1222
A175: 12 | B175: 23647 | C175: 23 | D175: 23658 | E175: 24 | F175: 23666 | G175: 23 | H175: 23676 | K175: 0 | L175: 1222
A176: 12 | B176: 23777 | C176: 14 | D176: 23784 | E176: 24 | F176: 23807 | G176: 14 | H176: 23824 | K176: 0 | L176: 1121
A177: 12 | B177: 23928 | C177: 23 | D177: 23939 | E177: 24 | F177: 23947 | G177: 23 | H177: 23955 | L177: 1222

Sheet !M818B10.000
A1: Report for:!M818B10.000
A2: Date: | B2: <date>
A3: Hen: | B3: <hen> | F3: Correct Sequence | G3: =Start!J2 -> 2212 | P3: Total Sequences in Data | Q3: =4994-COUNTBLANK(L7:L5000) -> 185 | V3: Total Sequences in Block Data | W3: =COUNTA(L7:L37) -> 31 | AA3: Total Sequences in Block Data | AB3: =COUNTA(L38:L68) -> 31 | AF3: Total Sequences in Block Data | AG3: =COUNTA(L69:L98) -> 30 | AK3: Total Sequences in Block Data | AL3: =COUNTA(L99:L129) -> 31 | AP3: Total Sequences in Block Data | AQ3: =COUNTA(L130:L160) -> 31 | AU3: Total Sequences in Block Data | AV3: =COUNTA(L161:L191) -> 31
P4: Total Sequences in Summary | Q4: =SUM(O7:O22) -> 184 | V4: Total Sequences in Block Summary | W4: =SUM(U7:U22) -> 31 | AA4: Total Sequences in Block Summary | AB4: =SUM(Z7:Z22) -> 31 | AF4: Total Sequences in Block Summary | AG4: =SUM(AE7:AE22) -> 30 | AK4: Total Sequences in Block Summary | AL4: =SUM(AJ7:AJ22) -> 31 | AP4: Total Sequences in Block Summary | AQ4: =SUM(AO7:AO22) -> 31 | AU4: Total Sequences in Block Summary | AV4: =SUM(AT7:AT22) -> 30
T5: Block 1 | Y5: Block 2 | AD5: Block 3 | AI5: Block 4 | AN5: Block 5 | AS5: Block 6
A6: Sequence Component 1 | B6: Time 1 | C6: Sequence Component 2 | D6: Time 2 | E6: Sequence Component 3 | F6: Time 3 | G6: Sequence Component 4 | H6: Time 4 | I6: Sequence Component 5 | J6: Time 5 | K6: Correct? 0=No 1=Yes | L6: Sequence | N6: Frequency | P6: Relative Frequency | Q6: Variability | T6: Frequency | V6: Relative Frequency | W6: Variability | Y6: Frequency | AA6: Relative Frequency | AB6: Variability | AD6: Frequency | AF6: Relative Frequency | AG6: Variability | AI6: Frequency | AK6: Relative Frequency | AL6: Variability | AN6: Frequency | AP6: Relative Frequency | AQ6: Variability | AS6: Frequency | AU6: Relative Frequency | AV6: Variability
A7: 12 | B7: 12 | C7: 23 | D7: 20 | E7: 13 | F7: 34 | G7: 23 | H7: 43 | K7: 0 | L7: 1212 | N7: 1111 | O7: =COUNTIF($L$7:$L$500,N7) -> 88 | P7: =O7/$Q$4 -> 0.4782608696 | Q7: =IF(P7=0,0,(P7*((LOG(P7))/LOG(2)))) -> -0.5089319005 | T7: =N7 -> 1111 | U7: =COUNTIF(L7:L37,T7) -> 8 | V7: =U7/(W4-U20) -> 0.2666666667 | W7: =IF(V7=0,0,(V7*((LOG(V7))/LOG(2)))) -> -0.5085041588 | Y7: =N7 -> 1111 | Z7: =COUNTIF(L38:L68,Y7) -> 15 | AA7: =Z7/(AB4-Z20) -> 0.4838709677 | AB7: =IF(AA7=0,0,(AA7*((LOG(AA7))/LOG(2)))) -> -0.5067608297 | AD7: =N7 -> 1111 | AE7: =COUNTIF(L69:L98,AD7) -> 11 | AF7: =AE7/(AG4-AE20) -> 0.3666666667 | AG7: =IF(AF7=0,0,(AF7*((LOG(AF7))/LOG(2)))) -> -0.5307349582 | AI7: =N7 -> 1111 | AJ7: =COUNTIF(L99:L129,AI7) -> 18 | AK7: =AJ7/(AL4-AJ20) -> 0.5806451613 | AL7: =IF(AK7=0,0,(AK7*((LOG(AK7))/LOG(2)))) -> -0.4553833407 | AN7: =N7 -> 1111 | AO7: =COUNTIF(L130:L160,AN7) -> 20 | AP7: =AO7/(AQ4-AO20) -> 0.6451612903 | AQ7: =IF(AP7=0,0,(AP7*((LOG(AP7))/LOG(2)))) -> -0.4079149777 | AS7: =N7 -> 1111 | AT7: =COUNTIF(L161:L191,AS7) -> 16 | AU7: =AT7/(AV4-AT20) -> 0.5333333333 | AV7: =IF(AU7=0,0,(AU7*((LOG(AU7))/LOG(2)))) -> -0.4836749843
A8: 12 | B8: 145 | C8: 23 | D8: 154 | E8: 24 | F8: 161 | G8: 14 | H8: 175 | K8: 0 | L8: 1221 | N8: 1112 | O8: =COUNTIF($L$7:$L$500,N8) -> 22 | P8: =O8/$Q$4 -> 0.1195652174 | Q8: =IF(P8=0,0,(P8*((LOG(P8))/LOG(2)))) -> -0.3663634099 | T8: =N8 -> 1112 | U8: =COUNTIF(L7:L37,T8) -> 5 | V8: =U8/(W4-U20) -> 0.1666666667 | W8: =IF(V8=0,0,(V8*((LOG(V8))/LOG(2)))) -> -0.4308270835 | Y8: =N8 -> 1112 | Z8: =COUNTIF(L38:L68,Y8) -> 4 | AA8: =Z8/(AB4-Z20) -> 0.1290322581 | AB8: =IF(AA8=0,0,(AA8*((LOG(AA8))/LOG(2)))) -> -0.3811866207 | AD8: =N8 -> 1112 | AE8: =COUNTIF(L69:L98,AD8) -> 5 | AF8: =AE8/(AG4-AE20) -> 0.1666666667 | AG8: =IF(AF8=0,0,(AF8*((LOG(AF8))/LOG(2)))) -> -0.4308270835 | AI8: =N8 -> 1112 | AJ8: =COUNTIF(L99:L129,AI8) -> 3 | AK8: =AJ8/(AL4-AJ20) -> 0.09677419355 | AL8: =IF(AK8=0,0,(AK8*((LOG(AK8))/LOG(2)))) -> -0.3260548848 | AN8: =N8 -> 1112 | AO8: =COUNTIF(L130:L160,AN8) -> 2 | AP8: =AO8/(AQ4-AO20) -> 0.06451612903 | AQ8: =IF(AP8=0,0,(AP8*((LOG(AP8))/LOG(2)))) -> -0.2551094394 | AS8: =N8 -> 1112 | AT8: =COUNTIF(L161:L191,AS8) -> 3 | AU8: =AT8/(AV4-AT20) -> 0.1 | AV8: =IF(AU8=0,0,(AU8*((LOG(AU8))/LOG(2)))) -> -0.3321928095
A9: 12 | B9: 273 | C9: 14 | D9: 289 | E9: 13 | F9: 306 | G9: 23 | H9: 315 | K9: 0 | L9: 1112 | N9: 1121 | O9: =COUNTIF($L$7:$L$500,N9) -> 2 | P9: =O9/$Q$4 -> 0.01086956522 | Q9: =IF(P9=0,0,(P9*((LOG(P9))/LOG(2)))) -> -0.07090828213 | T9: =N9 -> 1121 | U9: =COUNTIF(L7:L37,T9) -> 0 | V9: =U9/(W4-U20) -> 0 | W9: =IF(V9=0,0,(V9*((LOG(V9))/LOG(2)))) -> 0 | Y9: =N9 -> 1121 | Z9: =COUNTIF(L38:L68,Y9) -> 1 | AA9: =Z9/(AB4-Z20) -> 0.03225806452 | AB9: =IF(AA9=0,0,(AA9*((LOG(AA9))/LOG(2)))) -> -0.1598127842 | AD9: =N9 -> 1121 | AE9: =COUNTIF(L69:L98,AD9) -> 0 | AF9: =AE9/(AG4-AE20) -> 0 | AG9: =IF(AF9=0,0,(AF9*((LOG(AF9))/LOG(2)))) -> 0 | AI9: =N9 -> 1121 | AJ9: =COUNTIF(L99:L129,AI9) -> 1 | AK9: =AJ9/(AL4-AJ20) -> 0.03225806452 | AL9: =IF(AK9=0,0,(AK9*((LOG(AK9))/LOG(2)))) -> -0.1598127842 | AN9: =N9 -> 1121 | AO9: =COUNTIF(L130:L160,AN9) -> 0 | AP9: =AO9/(AQ4-AO20) -> 0 | AQ9: =IF(AP9=0,0,(AP9*((LOG(AP9))/LOG(2)))) -> 0 | AS9: =N9 -> 1121 | AT9: =COUNTIF(L161:L191,AS9) -> 0 | AU9: =AT9/(AV4-AT20) -> 0 | AV9: =IF(AU9=0,0,(AU9*((LOG(AU9))/LOG(2)))) -> 0
A10: 12 | B10: 425 | C10: 14 | D10: 433 | E10: 13 | F10: 453 | G10: 14 | H10: 466 | K10: 0 | L10: 1111 | N10: 1122 | O10: =COUNTIF($L$7:$L$500,N10) -> 34 | P10: =O10/$Q$4 -> 0.1847826087 | Q10: =IF(P10=0,0,(P10*((LOG(P10))/LOG(2)))) -> -0.4501487495 | T10: =N10 -> 1122 | U10: =COUNTIF(L7:L37,T10) -> 7 | V10: =U10/(W4-U20) -> 0.2333333333 | W10: =IF(V10=0,0,(V10*((LOG(V10))/LOG(2)))) -> -0.4898916572 | Y10: =N10 -> 1122 | Z10: =COUNTIF(L38:L68,Y10) -> 6 | AA10: =Z10/(AB4-Z20) -> 0.1935483871 | AB10: =IF(AA10=0,0,(AA10*((LOG(AA10))/LOG(2)))) -> -0.4585613825 | AD10: =N10 -> 1122 | AE10: =COUNTIF(L69:L98,AD10) -> 5 | AF10: =AE10/(AG4-AE20) -> 0.1666666667 | AG10: =IF(AF10=0,0,(AF10*((LOG(AF10))/LOG(2)))) -> -0.4308270835 | AI10: =N10 -> 1122 | AJ10: =COUNTIF(L99:L129,AI10) -> 4 | AK10: =AJ10/(AL4-AJ20) -> 0.1290322581 | AL10: =IF(AK10=0,0,(AK10*((LOG(AK10))/LOG(2)))) -> -0.3811866207 | AN10: =N10 -> 1122 | AO10: =COUNTIF(L130:L160,AN10) -> 4 | AP10: =AO10/(AQ4-AO20) -> 0.1290322581 | AQ10: =IF(AP10=0,0,(AP10*((LOG(AP10))/LOG(2)))) -> -0.3811866207 | AS10: =N10 -> 1122 | AT10: =COUNTIF(L161:L191,AS10) -> 8 | AU10: =AT10/(AV4-AT20) -> 0.2666666667 | AV10: =IF(AU10=0,0,(AU10*((LOG(AU10))/LOG(2)))) -> -0.5085041588
A11: 12 | B11: 567 | C11: 23 | D11: 590 | E11: 24 | F11: 599 | G11: 23 | H11: 612 | K11: 0 | L11: 1222 | N11: 1211 | O11: =COUNTIF($L$7:$L$500,N11) -> 1 | P11: =O11/$Q$4 -> 0.005434782609 | Q11: =IF(P11=0,0,(P11*((LOG(P11))/LOG(2)))) -> -0.04088892367 | T11: =N11 -> 1211 | U11: =COUNTIF(L7:L37,T11) -> 0 | V11: =U11/(W4-U20) -> 0 | W11: =IF(V11=0,0,(V11*((LOG(V11))/LOG(2)))) -> 0 | Y11: =N11 -> 1211 | Z11: =COUNTIF(L38:L68,Y11) -> 0 | AA11: =Z11/(AB4-Z20) -> 0 | AB11: =IF(AA11=0,0,(AA11*((LOG(AA11))/LOG(2)))) -> 0 | AD11: =N11 -> 1211 | AE11: =COUNTIF(L69:L98,AD11) -> 0 | AF11: =AE11/(AG4-AE20) -> 0 | AG11: =IF(AF11=0,0,(AF11*((LOG(AF11))/LOG(2)))) -> 0 | AI11: =N11 -> 1211 | AJ11: =COUNTIF(L99:L129,AI11) -> 1 | AK11: =AJ11/(AL4-AJ20) -> 0.03225806452 | AL11: =IF(AK11=0,0,(AK11*((LOG(AK11))/LOG(2)))) -> -0.1598127842 | AN11: =N11 -> 1211 | AO11: =COUNTIF(L130:L160,AN11) -> 0 | AP11: =AO11/(AQ4-AO20) -> 0 | AQ11: =IF(AP11=0,0,(AP11*((LOG(AP11))/LOG(2)))) -> 0 | AS11: =N11 -> 1211 | AT11: =COUNTIF(L161:L191,AS11) -> 0 | AU11: =AT11/(AV4-AT20) -> 0 | AV11: =IF(AU11=0,0,(AU11*((LOG(AU11))/LOG(2)))) -> 0
A12: 12 | B12: 713 | C12: 23 | D12: 726 | E12: 24 | F12: 733 | G12: 14 | H12: 744 | K12: 0 | L12: 1221 | N12: 1212 | O12: =COUNTIF($L$7:$L$500,N12) -> 3 | P12: =O12/$Q$4 -> 0.01630434783 | Q12: =IF(P12=0,0,(P12*((LOG(P12))/LOG(2)))) -> -0.09682499112 | T12: =N12 -> 1212 | U12: =COUNTIF(L7:L37,T12) -> 1 | V12: =U12/(W4-U20) -> 0.03333333333 | W12: =IF(V12=0,0,(V12*((LOG(V12))/LOG(2)))) -> -0.1635630199 | Y12: =N12 -> 1212 | Z12: =COUNTIF(L38:L68,Y12) -> 1 | AA12: =Z12/(AB4-Z20) -> 0.03225806452 | AB12: =IF(AA12=0,0,(AA12*((LOG(AA12))/LOG(2)))) -> -0.1598127842 | AD12: =N12 -> 1212 | AE12: =COUNTIF(L69:L98,AD12) -> 1 | AF12: =AE12/(AG4-AE20) -> 0.03333333333 | AG12: =IF(AF12=0,0,(AF12*((LOG(AF12))/LOG(2)))) -> -0.1635630199 | AI12: =N12 -> 1212 | AJ12: =COUNTIF(L99:L129,AI12) -> 0 | AK12: =AJ12/(AL4-AJ20) -> 0 | AL12: =IF(AK12=0,0,(AK12*((LOG(AK12))/LOG(2)))) -> 0 | AN12: =N12 -> 1212 | AO12: =COUNTIF(L130:L160,AN12) -> 0 | AP12: =AO12/(AQ4-AO20) -> 0 | AQ12: =IF(AP12=0,0,(AP12*((LOG(AP12))/LOG(2)))) -> 0 | AS12: =N12 -> 1212 | AT12: =COUNTIF(L161:L191,AS12) -> 0 | AU12: =AT12/(AV4-AT20) -> 0 | AV12: =IF(AU12=0,0,(AU12*((LOG(AU12))/LOG(2)))) -> 0
A13: 12 | B13: 847 | C13: 14 | D13: 870 | E13: 24 | F13: 882 | G13: 23 | H13: 889 | K13: 0 | L13: 1122 | N13: 1221 | O13: =COUNTIF($L$7:$L$500,N13) -> 14 | P13: =O13/$Q$4 -> 0.07608695652 | Q13: =IF(P13=0,0,(P13*((LOG(P13))/LOG(2)))) -> -0.282754883 | T13: =N13 -> 1221 | U13: =COUNTIF(L7:L37,T13) -> 4 | V13: =U13/(W4-U20) -> 0.1333333333 | W13: =IF(V13=0,0,(V13*((LOG(V13))/LOG(2)))) -> -0.3875854127 | Y13: =N13 -> 1221 | Z13: =COUNTIF(L38:L68,Y13) -> 3 | AA13: =Z13/(AB4-Z20) -> 0.09677419355 | AB13: =IF(AA13=0,0,(AA13*((LOG(AA13))/LOG(2)))) -> -0.3260548848 | AD13: =N13 -> 1221 | AE13: =COUNTIF(L69:L98,AD13) -> 4 | AF13: =AE13/(AG4-AE20) -> 0.1333333333 | AG13: =IF(AF13=0,0,(AF13*((LOG(AF13))/LOG(2)))) -> -0.3875854127 | AI13: =N13 -> 1221 | AJ13: =COUNTIF(L99:L129,AI13) -> 1 | AK13: =AJ13/(AL4-AJ20) -> 0.03225806452 | AL13: =IF(AK13=0,0,(AK13*((LOG(AK13))/LOG(2)))) -> -0.1598127842 | AN13: =N13 -> 1221 | AO13: =COUNTIF(L130:L160,AN13) -> 1 | AP13: =AO13/(AQ4-AO20) -> 0.03225806452 | AQ13: =IF(AP13=0,0,(AP13*((LOG(AP13))/LOG(2)))) -> -0.1598127842 | AS13: =N13 -> 1221 | AT13: =COUNTIF(L161:L191,AS13) -> 1 | AU13: =AT13/(AV4-AT20) -> 0.03333333333 | AV13: =IF(AU13=0,0,(AU13*((LOG(AU13))/LOG(2)))) -> -0.1635630199
A14: 12 | B14: 1002 | C14: 23 | D14: 1014 | E14: 24 | F14: 1022 | G14: 23 | H14: 1036 | K14: 0 | L14: 1222 | N14: 1222 | O14: =COUNTIF($L$7:$L$500,N14) -> 17 | P14: =O14/$Q$4 -> 0.09239130435 | Q14: =IF(P14=0,0,(P14*((LOG(P14))/LOG(2)))) -> -0.3174656791 | T14: =N14 -> 1222 | U14: =COUNTIF(L7:L37,T14) -> 5 | V14: =U14/(W4-U20) -> 0.1666666667 | W14: =IF(V14=0,0,(V14*((LOG(V14))/LOG(2)))) -> -0.4308270835 | Y14: =N14 -> 1222 | Z14: =COUNTIF(L38:L68,Y14) -> 0 | AA14: =Z14/(AB4-Z20) -> 0 | AB14: =IF(AA14=0,0,(AA14*((LOG(AA14))/LOG(2)))) -> 0 | AD14: =N14 -> 1222 | AE14: =COUNTIF(L69:L98,AD14) -> 4 | AF14: =AE14/(AG4-AE20) -> 0.1333333333 | AG14: =IF(AF14=0,0,(AF14*((LOG(AF14))/LOG(2)))) -> -0.3875854127 | AI14: =N14 -> 1222 | AJ14: =COUNTIF(L99:L129,AI14) -> 3 | AK14: =AJ14/(AL4-AJ20) -> 0.09677419355 | AL14: =IF(AK14=0,0,(AK14*((LOG(AK14))/LOG(2)))) -> -0.3260548848 | AN14: =N14 -> 1222 | AO14: =COUNTIF(L130:L160,AN14) -> 4 | AP14: =AO14/(AQ4-AO20) -> 0.1290322581 | AQ14: =IF(AP14=0,0,(AP14*((LOG(AP14))/LOG(2)))) -> -0.3811866207 | AS14: =N14 -> 1222 | AT14: =COUNTIF(L161:L191,AS14) -> 1 | AU14: =AT14/(AV4-AT20) -> 0.03333333333 | AV14: =IF(AU14=0,0,(AU14*((LOG(AU14))/LOG(2)))) -> -0.1635630199
A15: 12 | B15: 1158 | C15: 23 | D15: 1169 | E15: 24 | F15: 1176 | G15: 23 | H15: 1188 | K15: 0 | L15: 1222 | N15: 2111 | O15: =COUNTIF($L$7:$L$500,N15) -> 0 | P15: =O15/$Q$4 -> 0 | Q15: =IF(P15=0,0,(P15*((LOG(P15))/LOG(2)))) -> 0 | T15: =N15 -> 2111 | U15: =COUNTIF(L7:L37,T15) -> 0 | V15: =U15/(W4-U20) -> 0 | W15: =IF(V15=0,0,(V15*((LOG(V15))/LOG(2)))) -> 0 | Y15: =N15 -> 2111 | Z15: =COUNTIF(L38:L68,Y15) -> 0 | AA15: =Z15/(AB4-Z20) -> 0 | AB15: =IF(AA15=0,0,(AA15*((LOG(AA15))/LOG(2)))) -> 0 | AD15: =N15 -> 2111 | AE15: =COUNTIF(L69:L98,AD15) -> 0 | AF15: =AE15/(AG4-AE20) -> 0 | AG15: =IF(AF15=0,0,(AF15*((LOG(AF15))/LOG(2)))) -> 0 | AI15: =N15 -> 2111 | AJ15: =COUNTIF(L99:L129,AI15) -> 0 | AK15: =AJ15/(AL4-AJ20) -> 0 | AL15: =IF(AK15=0,0,(AK15*((LOG(AK15))/LOG(2)))) -> 0 | AN15: =N15 -> 2111 | AO15: =COUNTIF(L130:L160,AN15) -> 0 | AP15: =AO15/(AQ4-AO20) -> 0 | AQ15: =IF(AP15=0,0,(AP15*((LOG(AP15))/LOG(2)))) -> 0 | AS15: =N15 -> 2111 | AT15: =COUNTIF(L161:L191,AS15) -> 0 | AU15: =AT15/(AV4-AT20) -> 0 | AV15: =IF(AU15=0,0,(AU15*((LOG(AU15))/LOG(2)))) -> 0
A16: 12 | B16: 1296 | C16: 23 | D16: 1306 | E16: 24 | F16: 1314 | G16: 23 | H16: 1334 | K16: 0 | L16: 1222 | N16: 2112 | O16: =COUNTIF($L$7:$L$500,N16) -> 0 | P16: =O16/$Q$4 -> 0 | Q16: =IF(P16=0,0,(P16*((LOG(P16))/LOG(2)))) -> 0 | T16: =N16 -> 2112 | U16: =COUNTIF(L7:L37,T16) -> 0 | V16: =U16/(W4-U20) -> 0 | W16: =IF(V16=0,0,(V16*((LOG(V16))/LOG(2)))) -> 0 | Y16: =N16 -> 2112 | Z16: =COUNTIF(L38:L68,Y16) -> 0 | AA16: =Z16/(AB4-Z20) -> 0 | AB16: =IF(AA16=0,0,(AA16*((LOG(AA16))/LOG(2)))) -> 0 | AD16: =N16 -> 2112 | AE16: =COUNTIF(L69:L98,AD16) -> 0 | AF16: =AE16/(AG4-AE20) -> 0 | AG16: =IF(AF16=0,0,(AF16*((LOG(AF16))/LOG(2)))) -> 0 | AI16: =N16 -> 2112 | AJ16: =COUNTIF(L99:L129,AI16) -> 0 | AK16: =AJ16/(AL4-AJ20) -> 0 | AL16: =IF(AK16=0,0,(AK16*((LOG(AK16))/LOG(2)))) -> 0 | AN16: =N16 -> 2112 | AO16: =COUNTIF(L130:L160,AN16) -> 0 | AP16: =AO16/(AQ4-AO20) -> 0 | AQ16: =IF(AP16=0,0,(AP16*((LOG(AP16))/LOG(2)))) -> 0 | AS16: =N16 -> 2112 | AT16: =COUNTIF(L161:L191,AS16) -> 0 | AU16: =AT16/(AV4-AT20) -> 0 | AV16: =IF(AU16=0,0,(AU16*((LOG(AU16))/LOG(2)))) -> 0
A17: 12 | B17: 1441 | C17: 23 | D17: 1452 | E17: 24 | F17: 1457 | G17: 14 | H17: 1471 | K17: 0 | L17: 1221 | N17: 2121 | O17: =COUNTIF($L$7:$L$500,N17) -> 0 | P17: =O17/$Q$4 -> 0 | Q17: =IF(P17=0,0,(P17*((LOG(P17))/LOG(2)))) -> 0 | T17: =N17 -> 2121 | U17: =COUNTIF(L7:L37,T17) -> 0 | V17: =U17/(W4-U20) -> 0 | W17: =IF(V17=0,0,(V17*((LOG(V17))/LOG(2)))) -> 0 | Y17: =N17 -> 2121 | Z17: =COUNTIF(L38:L68,Y17) -> 0 | AA17: =Z17/(AB4-Z20) -> 0 | AB17: =IF(AA17=0,0,(AA17*((LOG(AA17))/LOG(2)))) -> 0 | AD17: =N17 -> 2121 | AE17: =COUNTIF(L69:L98,AD17) -> 0 | AF17: =AE17/(AG4-AE20) -> 0 | AG17: =IF(AF17=0,0,(AF17*((LOG(AF17))/LOG(2)))) -> 0 | AI17: =N17 -> 2121 | AJ17: =COUNTIF(L99:L129,AI17) -> 0 | AK17: =AJ17/(AL4-AJ20) -> 0 | AL17: =IF(AK17=0,0,(AK17*((LOG(AK17))/LOG(2)))) -> 0 | AN17: =N17 -> 2121 | AO17: =COUNTIF(L130:L160,AN17) -> 0 | AP17: =AO17/(AQ4-AO20) -> 0 | AQ17: =IF(AP17=0,0,(AP17*((LOG(AP17))/LOG(2)))) -> 0 | AS17: =N17 -> 2121 | AT17: =COUNTIF(L161:L191,AS17) -> 0 | AU17: =AT17/(AV4-AT20) -> 0 | AV17: =IF(AU17=0,0,(AU17*((LOG(AU17))/LOG(2)))) -> 0
A18: 12 | B18: 1569 | C18: 14 | D18: 1585 | E18: 24 | F18: 1596 | G18: 23 | H18: 1618 | K18: 0 | L18: 1122 | N18: 2122 | O18: =COUNTIF($L$7:$L$500,N18) -> 0 | P18: =O18/$Q$4 -> 0 | Q18: =IF(P18=0,0,(P18*((LOG(P18))/LOG(2)))) -> 0 | T18: =N18 -> 2122 | U18: =COUNTIF(L7:L37,T18) -> 0 | V18: =U18/(W4-U20) -> 0 | W18: =IF(V18=0,0,(V18*((LOG(V18))/LOG(2)))) -> 0 | Y18: =N18 -> 2122 | Z18: =COUNTIF(L38:L68,Y18) -> 0 | AA18: =Z18/(AB4-Z20) -> 0 | AB18: =IF(AA18=0,0,(AA18*((LOG(AA18))/LOG(2)))) -> 0 | AD18: =N18 -> 2122 | AE18: =COUNTIF(L69:L98,AD18) -> 0 | AF18: =AE18/(AG4-AE20) -> 0 | AG18: =IF(AF18=0,0,(AF18*((LOG(AF18))/LOG(2)))) -> 0 | AI18: =N18 -> 2122 | AJ18: =COUNTIF(L99:L129,AI18) -> 0 | AK18: =AJ18/(AL4-AJ20) -> 0 | AL18: =IF(AK18=0,0,(AK18*((LOG(AK18))/LOG(2)))) -> 0 | AN18: =N18 -> 2122 | AO18: =COUNTIF(L130:L160,AN18) -> 0 | AP18: =AO18/(AQ4-AO20) -> 0 | AQ18: =IF(AP18=0,0,(AP18*((LOG(AP18))/LOG(2)))) -> 0 | AS18: =N18 -> 2122 | AT18: =COUNTIF(L161:L191,AS18) -> 0 | AU18: =AT18/(AV4-AT20) -> 0 | AV18: =IF(AU18=0,0,(AU18*((LOG(AU18))/LOG(2)))) -> 0
A19: 12 | B19: 1720 | C19: 14 | D19: 1730 | E19: 13 | F19: 1738 | G19: 14 | H19: 1746 | K19: 0 | L19: 1111 | N19: 2211 | O19: =COUNTIF($L$7:$L$500,N19) -> 0 | P19: =O19/$Q$4 -> 0 | Q19: =IF(P19=0,0,(P19*((LOG(P19))/LOG(2)))) -> 0 | T19: =N19 -> 2211 | U19: =COUNTIF(L7:L37,T19) -> 0 | V19: =U19/(W4-U20) -> 0 | W19: =IF(V19=0,0,(V19*((LOG(V19))/LOG(2)))) -> 0 | Y19: =N19 -> 2211 | Z19: =COUNTIF(L38:L68,Y19) -> 0 | AA19: =Z19/(AB4-Z20) -> 0 | AB19: =IF(AA19=0,0,(AA19*((LOG(AA19))/LOG(2)))) -> 0 | AD19: =N19 -> 2211 | AE19: =COUNTIF(L69:L98,AD19) -> 0 | AF19: =AE19/(AG4-AE20) -> 0 | AG19: =IF(AF19=0,0,(AF19*((LOG(AF19))/LOG(2)))) -> 0 | AI19: =N19 -> 2211 | AJ19: =COUNTIF(L99:L129,AI19) -> 0 | AK19: =AJ19/(AL4-AJ20) -> 0 | AL19: =IF(AK19=0,0,(AK19*((LOG(AK19))/LOG(2)))) -> 0 | AN19: =N19 -> 2211 | AO19: =COUNTIF(L130:L160,AN19) -> 0 | AP19: =AO19/(AQ4-AO20) -> 0 | AQ19: =IF(AP19=0,0,(AP19*((LOG(AP19))/LOG(2)))) -> 0 | AS19: =N19 -> 2211 | AT19: =COUNTIF(L161:L191,AS19) -> 0 | AU19: =AT19/(AV4-AT20) -> 0 | AV19: =IF(AU19=0,0,(AU19*((LOG(AU19))/LOG(2)))) -> 0
A20: 12 | B20: 1845 | C20: 14 | D20: 1864 | E20: 24 | F20: 1873 | G20: 23 | H20: 1881 | K20: 0 | L20: 1122 | N20: 2212 | O20: =COUNTIF($L$7:$L$500,N20) -> 1 | P20: =O20/$Q$4 -> 0.005434782609 | Q20: =IF(P20=0,0,(P20*((LOG(P20))/LOG(2)))) -> -0.04088892367 | T20: =N20 -> 2212 | U20: =COUNTIF(L7:L37,T20) -> 1 | Y20: =N20 -> 2212 | Z20: =COUNTIF(L38:L68,Y20) -> 0 | AD20: =N20 -> 2212 | AE20: =COUNTIF(L69:L98,AD20) -> 0 | AI20: =N20 -> 2212 | AJ20: =COUNTIF(L99:L129,AI20) -> 0 | AN20: =N20 -> 2212 | AO20: =COUNTIF(L130:L160,AN20) -> 0 | AS20: =N20 -> 2212 | AT20: =COUNTIF(L161:L191,AS20) -> 0
A21: 12 | B21: 1984 | C21: 14 | D21: 1992 | E21: 13 | F21: 2002 | G21: 14 | H21: 2010 | K21: 0 | L21: 1111 | N21: 2221 | O21: =COUNTIF($L$7:$L$500,N21) -> 0 | P21: =O21/$Q$4 -> 0 | Q21: =IF(P21=0,0,(P21*((LOG(P21))/LOG(2)))) -> 0 | T21: =N21 -> 2221 | U21: =COUNTIF(L7:L37,T21) -> 0 | V21: =U21/(W4-U20) -> 0 | W21: =IF(V21=0,0,(V21*((LOG(V21))/LOG(2)))) -> 0 | Y21: =N21 -> 2221 | Z21: =COUNTIF(L38:L68,Y21) -> 0 | AA21: =Z21/(AB4-Z20) -> 0 | AB21: =IF(AA21=0,0,(AA21*((LOG(AA21))/LOG(2)))) -> 0 | AD21: =N21 -> 2221 | AE21: =COUNTIF(L69:L98,AD21) -> 0 | AF21: =AE21/(AG4-AE20) -> 0 | AG21: =IF(AF21=0,0,(AF21*((LOG(AF21))/LOG(2)))) -> 0 | AI21: =N21 -> 2221 | AJ21: =COUNTIF(L99:L129,AI21) -> 0 | AK21: =AJ21/(AL4-AJ20) -> 0 | AL21: =IF(AK21=0,0,(AK21*((LOG(AK21))/LOG(2)))) -> 0 | AN21: =N21 -> 2221 | AO21: =COUNTIF(L130:L160,AN21) -> 0 | AP21: =AO21/(AQ4-AO20) -> 0 | AQ21: =IF(AP21=0,0,(AP21*((LOG(AP21))/LOG(2)))) -> 0 | AS21: =N21 -> 2221 | AT21: =COUNTIF(L161:L191,AS21) -> 0 | AU21: =AT21/(AV4-AT20) -> 0 | AV21: =IF(AU21=0,0,(AU21*((LOG(AU21))/LOG(2)))) -> 0
A22: 12 | B22: 2102 | C22: 14 | D22: 2118 | E22: 24 | F22: 2129 | G22: 23 | H22: 2135 | K22: 0 | L22: 1122 | N22: 2222 | O22: =COUNTIF($L$7:$L$500,N22) -> 2 | P22: =O22/$Q$4 -> 0.01086956522 | Q22: =IF(P22=0,0,(P22*((LOG(P22))/LOG(2)))) -> -0.07090828213 | T22: =N22 -> 2222 | U22: =COUNTIF(L7:L37,T22) -> 0 | V22: =U22/(W4-U20) -> 0 | W22: =IF(V22=0,0,(V22*((LOG(V22))/LOG(2)))) -> 0 | Y22: =N22 -> 2222 | Z22: =COUNTIF(L38:L68,Y22) -> 1 | AA22: =Z22/(AB4-Z20) -> 0.03225806452 | AB22: =IF(AA22=0,0,(AA22*((LOG(AA22))/LOG(2)))) -> -0.1598127842 | AD22: =N22 -> 2222 | AE22: =COUNTIF(L69:L98,AD22) -> 0 | AF22: =AE22/(AG4-AE20) -> 0 | AG22: =IF(AF22=0,0,(AF22*((LOG(AF22))/LOG(2)))) -> 0 | AI22: =N22 -> 2222 | AJ22: =COUNTIF(L99:L129,AI22) -> 0 | AK22: =AJ22/(AL4-AJ20) -> 0 | AL22: =IF(AK22=0,0,(AK22*((LOG(AK22))/LOG(2)))) -> 0 | AN22: =N22 -> 2222 | AO22: =COUNTIF(L130:L160,AN22) -> 0 | AP22: =AO22/(AQ4-AO20) -> 0 | AQ22: =IF(AP22=0,0,(AP22*((LOG(AP22))/LOG(2)))) -> 0 | AS22: =N22 -> 2222 | AT22: =COUNTIF(L161:L191,AS22) -> 1 | AU22: =AT22/(AV4-AT20) -> 0.03333333333 | AV22: =IF(AU22=0,0,(AU22*((LOG(AU22))/LOG(2)))) -> -0.1635630199
A23: 12 | B23: 2238 | C23: 14 | D23: 2256 | E23: 24 | F23: 2267 | G23: 23 | H23: 2276 | K23: 0 | L23: 1122 | P23: =SUM(P7:P22) -> 1 | Q23: =-SUM(Q7:Q22) -> 2.246084025 | V23: =SUM(V7:V22) -> 1 | W23: =-SUM(W7:W22) -> 2.411198415 | AA23: =SUM(AA7:AA22) -> 1 | AB23: =-SUM(AB7:AB22) -> 2.15200207 | AF23: =SUM(AF7:AF22) -> 1 | AG23: =-SUM(AG7:AG22) -> 2.33112297 | AK23: =SUM(AK7:AK22) -> 1 | AL23: =-SUM(AL7:AL22) -> 1.968118084 | AP23: =SUM(AP7:AP22) -> 1 | AQ23: =-SUM(AQ7:AQ22) -> 1.585210443 | AU23: =SUM(AU7:AU22) -> 1 | AV23: =-SUM(AV7:AV22) -> 1.815061012
A24: 12 | B24: 2380 | C24: 23 | D24: 2391 | E24: 24 | F24: 2399 | G24: 23 | H24: 2409 | K24: 0 | L24: 1222 | P24: U= | Q24: =Q23/(LOG(Q4)/LOG(2)) -> 0.2985399785 | V24: U1= | W24: =W23/(LOG(W4)/LOG(2)) -> 0.4866981977 | AA24: U2= | AB24: =AB23/(LOG(AB4)/LOG(2)) -> 0.4343796522 | AF24: U3= | AG24: =AG23/(LOG(AG4)/LOG(2)) -> 0.4750713155 | AK24: U4= | AL24: =AL23/(LOG(AL4)/LOG(2)) -> 0.3972628375 | AP24: U5= | AQ24: =AQ23/(LOG(AQ4)/LOG(2)) -> 0.3199732799 | AU24: U6= | AV24: =AV23/(LOG(AV4)/LOG(2)) -> 0.3699004445
A25: 12 | B25: 2503 | C25: 14 | D25: 2511 | E25: 13 | F25: 2521 | G25: 14 | H25: 2529 | K25: 0 | L25: 1111
A26: 21 | B26: 2638 | C26: 21 | D26: 2646 | E26: 11 | F26: 2659 | G26: 21 | H26: 2672 | K26: 0 | L26: 2212
A27: 12 | B27: 2785 | C27: 23 | D27: 2796 | E27: 24 | F27: 2805 | G27: 14 | H27: 2822 | K27: 0 | L27: 1221 | N27: Total Target Seq
A28: 12 | B28: 2917 | C28: 14 | D28: 2928 | E28: 13 | F28: 2932 | G28: 23 | H28: 2943 | K28: 0 | L28: 1112 | N28: =COUNTIF(L7:L191,G3) -> 1 | P28: 31 | Q28: 31 | R28: 30 | S28: 31 | T28: 31 | U28: 31
A29: 12 | B29: 3042 | C29: 14 | D29: 3046 | E29: 13 | F29: 3054 | G29: 14 | H29: 3062 | K29: 0 | L29: 1111 | P29: % of reinforcement given in 6 equal intervals based on number of trials
A30: 12 | B30: 3158 | C30: 14 | D30: 3181 | E30: 13 | F30: 3186 | G30: 14 | H30: 3193 | K30: 0 | L30: 1111 | P30: %_1 | Q30: %_2 | R30: %_3 | S30: %_4 | T30: %_5 | U30: %_6
A31: 12 | B31: 3293 | C31: 14 | D31: 3297 | E31: 13 | F31: 3304 | G31: 23 | H31: 3319 | K31: 0 | L31: 1112 | O31: target sequence | P31: =$G$3 -> 2212 | Q31: =$G$3 -> 2212 | R31: =$G$3 -> 2212 | S31: =$G$3 -> 2212 | T31: =$G$3 -> 2212 | U31: =$G$3 -> 2212
A32: 12 | B32: 3429 | C32: 14 | D32: 3435 | E32: 13 | F32: 3444 | G32: 23 | H32: 3459 | K32: 0 | L32: 1112 | O32: total reinforcement | P32: =U20 -> 1 | Q32: =Z20 -> 0 | R32: =AE20 -> 0 | S32: =AJ20 -> 0 | T32: =AO20 -> 0 | U32: =AT20 -> 0
A33: 12 | B33: 3559 | C33: 14 | D33: 3572 | E33: 13 | F33: 3577 | G33: 14 | H33: 3585 | K33: 0 | L33: 1111 | O33: % target
A34: 12 | B34: 3681 | C34: 14 | D34: 3693 | E34: 13 | F34: 3697 | G34: 23 | H34: 3709 | K34: 0 | L34: 1112 | O34: CCRF
A35: 12 | B35: 3805 | C35: 14 | D35: 3809 | E35: 13 | F35: 3817 | G35: 14 | H35: 3834 | K35: 0 | L35: 1111 | O35: % CCRf
A36: 12 | B36: 3935 | C36: 14 | D36: 3946 | E36: 24 | F36: 3957 | G36: 23 | H36: 3964 | K36: 0 | L36: 1122 | O36: average response rate | P36: =H37/P28 -> 131.9677419 | Q36: =(H68-H37)/Q28 -> 130 | R36: =(H98-H68)/R28 -> 128.7333333 | S36: =(H129-H98)/S28 -> 128.1290323 | T36: =(H160-H129)/T28 -> 130.4516129 | U36: =(H191-H160)/U28 -> -645.1290323
A37: 12 | B37: 4063 | C37: 14 | D37: 4071 | E37: 24 | F37: 4085 | G37: 23 | H37: 4091 | K37: 0 | L37: 1122
A38: 12 | B38: 4189 | C38: 14 | D38: 4198 | E38: 13 | F38: 4206 | G38: 14 | H38: 4223 | K38: 0 | L38: 1111
A39: 12 | B39: 4316 | C39: 14 | D39: 4339 | E39: 13 | F39: 4352 | G39: 14 | H39: 4363 | K39: 0 | L39: 1111
A40: 12 | B40: 4459 | C40: 14 | D40: 4466 | E40: 24 | F40: 4478 | G40: 23 | H40: 4485 | K40: 0 | L40: 1122
A41: 12 | B41: 4581 | C41: 14 | D41: 4592 | E41: 13 | F41: 4611 | G41: 23 | H41: 4620 | K41: 0 | L41: 1112
A42: 12 | B42: 4716 | C42: 14 | D42: 4729 | E42: 13 | F42: 4751 | G42: 14 | H42: 4756 | K42: 0 | L42: 1111
A43: 12 | B43: 4853 | C43: 14 | D43: 4866 | E43: 13 | F43: 4885 | G43: 14 | H43: 4890 | K43: 0 | L43: 1111
A44: 12 | B44: 4985 | C44: 14 | D44: 4992 | E44: 13 | F44: 5001 | G44: 14 | H44: 5014 | K44: 0 | L44: 1111
A45: 12 | B45: 5108 | C45: 14 | D45: 5118 | E45: 13 | F45: 5126 | G45: 14 | H45: 5133 | K45: 0 | L45: 1111
A46: 12 | B46: 5226 | C46: 14 | D46: 5235 | E46: 13 | F46: 5243 | G46: 14 | H46: 5250 | K46: 0 | L46: 1111
A47: 12 | B47: 5346 | C47: 14 | D47: 5353 | E47: 13 | F47: 5367 | G47: 14 | H47: 5375 | K47: 0 | L47: 1111
A48: 12 | B48: 5467 | C48: 14 | D48: 5484 | E48: 24 | F48: 5495 | G48: 23 | H48: 5502 | K48: 0 | L48: 1122
A49: 12 | B49: 5596 | C49: 14 | D49: 5601 | E49: 13 | F49: 5605 | G49: 23 | H49: 5621 | K49: 0 | L49: 1112
A50: 12 | B50: 5717 | C50: 14 | D50: 5739 | E50: 24 | F50: 5760 | G50: 14 | H50: 5774 | K50: 0 | L50: 1121
A51: 12 | B51: 5865 | C51: 14 | D51: 5884 | E51: 24 | F51: 5895 | G51: 23 | H51: 5902 | K51: 0 | L51: 1122
A52: 12 | B52: 5999 | C52: 14 | D52: 6003 | E52: 13 | F52: 6013 | G52: 14 | H52: 6023 | K52: 0 | L52: 1111
A53: 12 | B53: 6122 | C53: 14 | D53: 6129 | E53: 24 | F53: 6149 | G53: 23 | H53: 6158 | K53: 0 | L53: 1122
A54: 12 | B54: 6261 | C54: 23 | D54: 6295 | E54: 13 | F54: 6312 | G54: 23 | H54: 6323 | K54: 0 | L54: 1212
A55: 12 | B55: 6420 | C55: 14 | D55: 6425 | E55: 13 | F55: 6429 | G55: 14 | H55: 6438 | K55: 0 | L55: 1111
A56: 12 | B56: 6535 | C56: 23 | D56: 6548 | E56: 24 | F56: 6553 | G56: 14 | H56: 6564 | K56: 0 | L56: 1221
A57: 21 | B57: 6692 | C57: 21 | D57: 6699 | E57: 22 | F57: 6713 | G57: 23 | H57: 6721 | K57: 0 | L57: 2222
A58: 12 | B58: 6816 | C58: 14 | D58: 6825 | E58: 13 | F58: 6842 | G58: 14 | H58: 6849 | K58: 0 | L58: 1111
A59: 12 | B59: 6949 | C59: 14 | D59: 6961 | E59: 24 | F59: 6971 | G59: 23 | H59: 6979 | K59: 0 | L59: 1122
A60: 12 | B60: 7076 | C60: 14 | D60: 7086 | E60: 13 | F60: 7093 | G60: 23 | H60: 7105 | K60: 0 | L60: 1112
A61: 12 | B61: 7204 | C61: 23 | D61: 7223 | E61: 24 | F61: 7228 | G61: 14 | H61: 7242 | K61: 0 | L61: 1221
A62: 12 | B62: 7332 | C62: 14 | D62: 7351 | E62: 24 | F62: 7362 | G62: 23 | H62: 7370 | K62: 0 | L62: 1122
A63: 12 | B63: 7469 | C63: 14 | D63: 7477 | E63: 13 | F63: 7482 | G63: 14 | H63: 7490 | K63: 0 | L63: 1111
A64: 12 | B64: 7585 | C64: 14 | D64: 7589 | E64: 13 | F64: 7616 | G64: 14 | H64: 7620 | K64: 0 | L64: 1111
A65: 12 | B65: 7717 | C65: 14 | D65: 7722 | E65: 13 | F65: 7738 | G65: 14 | H65: 7743 | K65: 0 | L65: 1111
A66: 12 | B66: 7842 | C66: 14 | D66: 7850 | E66: 13 | F66: 7858 | G66: 14 | H66: 7867 | K66: 0 | L66: 1111
A67: 12 | B67: 7962 | C67: 14 | D67: 7983 | E67: 13 | F67: 7986 | G67: 23 | H67: 7998 | K67: 0 | L67: 1112
A68: 12 | B68: 8090 | C68: 23 | D68: 8102 | E68: 24 | F68: 8108 | G68: 14 | H68: 8121 | K68: 0 | L68: 1221
A69: 12 | B69: 8218 | C69: 14 | D69: 8236 | E69: 13 | F69: 8245 | G69: 23 | H69: 8266 | K69: 0 | L69: 1112
A70: 12 | B70: 8361 | C70: 14 | D70: 8387 | E70: 24 | F70: 8399 | G70: 23 | H70: 8406 | K70: 0 | L70: 1122
A71: 12 | B71: 8515 | C71: 14 | D71: 8520 | E71: 13 | F71: 8526 | G71: 14 | H71: 8534 | K71: 0 | L71: 1111
A72: 12 | B72: 8632 | C72: 23 | D72: 8642 | E72: 24 | F72: 8646 | G72: 14 | H72: 8660 | K72: 0 | L72: 1221
A73: 12 | B73: 8754 | C73: 14 | D73: 8770 | E73: 13 | F73: 8779 | G73: 23 | H73: 8788 | K73: 0 | L73: 1112
A74: 12 | B74: 8884 | C74: 14 | D74: 8888 | E74: 13 | F74: 8903 | G74: 23 | H74: 8915 | K74: 0 | L74: 1112
A75: 12 | B75: 9016 | C75: 14 | D75: 9036 | E75: 13 | F75: 9041 | G75: 14 | H75: 9046 | K75: 0 | L75: 1111
A76: 12 | B76: 9137 | C76: 23 | D76: 9159 | E76: 24 | F76: 9167 | G76: 23 | H76: 9183 | K76: 0 | L76: 1222
A77: 12 | B77: 9280 | C77: 14 | D77: 9285 | E77: 24 | F77: 9296 | G77: 23 | H77: 9301 | K77: 0 | L77: 1122
A78: 12 | B78: 9398 | C78: 23 | D78: 9416 | E78: 24 | F78: 9423 | G78: 23 | H78: 9436 | K78: 0 | L78: 1222
A79: 12 | B79: 9537 | C79: 14 | D79: 9543 | E79: 13 | F79: 9547 | G79: 14 | H79: 9556 | K79: 0 | L79: 1111
A80: 12 | B80: 9659 | C80: 14 | D80: 9669 | E80: 24 | F80: 9680 | G80: 23 | H80: 9686 | K80: 0 | L80: 1122
A81: 12 | B81: 9784 | C81: 14 | D81: 9788 | E81: 13 | F81: 9801 | G81: 23 | H81: 9813 | K81: 0 | L81: 1112
A82: 12 | B82: 9913 | C82: 14 | D82: 9917 | E82: 13 | F82: 9923 | G82: 14 | H82: 9930 | K82: 0 | L82: 1111
A83: 12 | B83: 10026 | C83: 23 | D83: 10037 | E83: 24 | F83: 10044 | G83: 14 | H83: 10057 | K83: 0 | L83: 1221
A84: 12 | B84: 10151 | C84: 14 | D84: 10167 | E84: 13 | F84: 10171 | G84: 14 | H84: 10177 | K84: 0 | L84: 1111
A85: 12 | B85: 10268 | C85: 23 | D85: 10289 | E85: 24 | F85: 10297 | G85: 23 | H85: 10310 | K85: 0 | L85: 1222
A86: 12 | B86: 10402 | C86: 14 | D86: 10423 | E86: 13 | F86: 10431 | G86: 14 | H86: 10439 | K86: 0 | L86: 1111
A87: 12 | B87: 10547 | C87: 23 | D87: 10561 | E87: 24 | F87: 10571 | G87: 14 | H87: 10588 | K87: 0 | L87: 1221
A88: 12 | B88: 10691 | C88: 14 | D88: 10707 | E88: 13 | F88: 10715 | G88: 14 | H88: 10723 | K88: 0 | L88: 1111
A89: 12 | B89: 10830 | C89: 23 | D89: 10843 | E89: 24 | F89: 10851 | G89: 23 | H89: 10865 | K89: 0 | L89: 1222
A90: 12 | B90: 10960 | C90: 14 | D90: 10965 | E90: 24 | F90: 10984 | G90: 23 | H90: 10989 | K90: 0 | L90: 1122
A91: 12 | B91: 11105 | C91: 14 | D91: 11112 | E91: 13 | F91: 11121 | G91: 14 | H91: 11130 | K91: 0 | L91: 1111
A92: 12 | B92: 11225 | C92: 23 | D92: 11237 | E92: 13 | F92: 11249 | G92: 23 | H92: 11260 | K92: 0 | L92: 1212
A93: 12 | B93: 11360 | C93: 14 | D93: 11366 | E93: 13 | F93: 11370 | G93: 14 | H93: 11374 | K93: 0 | L93: 1111
A94: 12 | B94: 11465 | C94: 14 | D94: 11481 | E94: 24 | F94: 11492 | G94: 23 | H94: 11500 | K94: 0 | L94: 1122
A95: 12 | B95: 11594 | C95: 14 | D95: 11607 | E95: 13 | F95: 11612 | G95: 14 | H95: 11619 | K95: 0 | L95: 1111
A96: 12 | B96: 11715 | C96: 14 | D96: 11720 | E96: 13 | F96: 11728 | G96: 23 | H96: 11740 | K96: 0 | L96: 1112
A97: 12 | B97: 11836 | C97: 23 | D97: 11846 | E97: 24 | F97: 11851 | G97: 14 | H97: 11866 | K97: 0 | L97: 1221
A98: 12 | B98: 11962 | C98: 14 | D98: 11974 | E98: 13 | F98: 11978 | G98: 14 | H98: 11983 | K98: 0 | L98: 1111
A99: 12 | B99: 12078 | C99: 23 | D99: 12088 | E99: 24 | F99: 12095 | G99: 23 | H99: 12107 | K99: 0 | L99: 1222
A100: 12 | B100: 12206 | C100: 14 | D100: 12210 | E100: 13 | F100: 12215 | G100: 14 | H100: 12220 | K100: 0 | L100: 1111
A101: 12 | B101: 12321 | C101: 23 | D101: 12333 | E101: 24 | F101: 12341 | G101: 23 | H101: 12358 | K101: 0 | L101: 1222
A102: 12 | B102: 12454 | C102: 14 | D102: 12478 | E102: 13 | F102: 12483 | G102: 14 | H102: 12490 | K102: 0 | L102: 1111
A103: 12 | B103: 12586 | C103: 14 | D103: 12599 | E103: 13 | F103: 12603 | G103: 14 | H103: 12608 | K103: 0 | L103: 1111
A104: 12 | B104: 12703 | C104: 14 | D104: 12723 | E104: 24 | F104: 12735 | G104: 23 | H104: 12742 | K104: 0 | L104: 1122
A105: 12 | B105: 12843 | C105: 14 | D105: 12864 | E105: 13 | F105: 12869 | G105: 14 | H105: 12873 | K105: 0 | L105: 1111
A106: 12 | B106: 12965 | C106: 14 | D106: 12971 | E106: 13 | F106: 12975 | G106: 23 | H106: 12986 | K106: 0 | L106: 1112
A107: 12 | B107: 13090 | C107: 14 | D107: 13105 | E107: 13 | F107: 13110 | G107: 14 | H107: 13114 | K107: 0 | L107: 1111
A108: 12 | B108: 13211 | C108: 14 | D108: 13228 | E108: 24 | F108: 13255 | G108: 14 | H108: 13273 | K108: 0 | L108: 1121
A109: 12 | B109: 13364 | C109: 23 | D109: 13375 | E109: 24 | F109: 13379 | G109: 14 | H109: 13395 | K109: 0 | L109: 1221
A110: 12 | B110: 13491 | C110: 14 | D110: 13504 | E110: 13 | F110: 13509 | G110: 14 | H110: 13514 | K110: 0 | L110: 1111
A111: 12 | B111: 13613 | C111: 14 | D111: 13629 | E111: 13 | F111: 13635 | G111: 14 | H111: 13641 | K111: 0 | L111: 1111
A112: 12 | B112: 13738 | C112: 14 | D112: 13742 | E112: 24 | F112: 13762 | G112: 23 | H112: 13770 | K112: 0 | L112: 1122
A113: 12 | B113: 13859 | C113: 14 | D113: 13873 | E113: 13 | F113: 13877 | G113: 23 | H113: 13890 | K113: 0 | L113: 1112
A114: 12 | B114: 13979 | C114: 14 | D114: 13995 | E114: 13 | F114: 13999 | G114: 14 | H114: 14016 | K114: 0 | L114: 1111
A115: 12 | B115: 14106 | C115: 23 | D115: 14138 | E115: 24 | F115: 14146 | G115: 23 | H115: 14169 | K115: 0 | L115: 1222
A116: 12 | B116: 14268 | C116: 14 | D116: 14273 | E116: 13 | F116: 14278 | G116: 14 | H116: 14283 | K116: 0 | L116: 1111
A117: 12 | B117: 14374 | C117: 14 | D117: 14378 | E117: 24 | F117: 14389 | G117: 23 | H117: 14399 | K117: 0 | L117: 1122
A118: 12 | B118: 14497 | C118: 14 | D118: 14520 | E118: 13 | F118: 14524 | G118: 14 | H118: 14529 | K118: 0 | L118: 1111
A119: 12 | B119: 14625 | C119: 14 | D119: 14641 | E119: 13 | F119: 14645 | G119: 14 | H119: 14657 | K119: 0 | L119: 1111
A120: 12 | B120: 14747 | C120: 14 | D120: 14771 | E120: 13 | F120: 14777 | G120: 14 | H120: 14785 | K120: 0 | L120: 1111
A121: 12 | B121: 14879 | C121: 14 | D121: 14901 | E121: 13 | F121: 14905 | G121: 14 | H121: 14913 | K121: 0 | L121: 1111
A122: 12 | B122: 15009 | C122: 23 | D122: 15025 | E122: 13 | F122: 15042 | G122: 14 | H122: 15047 | K122: 0 | L122: 1211
A123: 12 | B123: 15141 | C123: 14 | D123: 15153 | E123: 13 | F123: 15159 | G123: 14 | H123: 15172 | K123: 0 | L123: 1111
A124: 12 | B124: 15267 | C124: 14 | D124: 15289 | E124: 24 | F124: 15301 | G124: 23 | H124: 15308 | K124: 0 | L124: 1122
A125: 12 | B125: 15398 | C125: 14 | D125: 15413 | E125: 13 | F125: 15430 | G125: 14 | H125: 15437 | K125: 0 | L125: 1111
A126: 12 | B126: 15534 | C126: 14 | D126: 15541 | E126: 13 | F126: 15556 | G126: 23 | H126: 15567 | K126: 0 | L126: 1112
A127: 12 | B127: 15664 | C127: 14 | D127: 15669 | E127: 13 | F127: 15695 | G127: 14 | H127: 15702 | K127: 0 | L127: 1111
A128: 12 | B128: 15802 | C128: 14 | D128: 15807 | E128: 13 | F128: 15815 | G128: 14 | H128: 15823 | K128: 0 | L128: 1111
A129: 12 | B129: 15921 | C129: 14 | D129: 15926 | E129: 13 | F129: 15935 | G129: 14 | H129: 15955 | K129: 0 | L129: 1111
A130: 12 | B130: 16050 | C130: 23 | D130: 16060 | E130: 24 | F130: 16067 | G130: 23 | H130: 16080 | K130: 0 | L130: 1222
A131: 12 | B131: 16176 | C131: 14 | D131: 16202 | E131: 13 | F131: 16210 | G131: 14 | H131: 16218 | K131: 0 | L131: 1111
A132: 12 | B132: 16313 | C132: 23 | D132: 16339 | E132: 24 | F132: 16348 | G132: 23 | H132: 16375 | K132: 0 | L132: 1222
A133: 12 | B133: 16474 | C133: 14 | D133: 16490 | E133: 13 | F133: 16494 | G133: 14 | H133: 16499 | K133: 0 | L133: 1111
A134: 12 | B134: 16595 | C134: 14 | D134: 16607 | E134: 13 | F134: 16627 | G134: 14 | H134: 16631 | K134: 0 | L134: 1111
A135: 12 | B135: 16730 | C135: 14 | D135: 16735 | E135: 13 | F135: 16741 | G135: 14 | H135: 16746 | K135: 0 | L135: 1111
A136: 12 | B136: 16843 | C136: 14 | D136: 16859 | E136: 24 | F136: 16876 | G136: 23 | H136: 16883 | K136: 0 | L136: 1122
A137: 12 | B137: 16975 | C137: 14 | D137: 16979 | E137: 13 | F137: 16985 | G137: 14 | H137: 16989 | K137: 0 | L137: 1111
A138: 12 | B138: 17085 | C138: 14 | D138: 17088 | E138: 13 | F138: 17104 | G138: 14 | H138: 17109 | K138: 0 | L138: 1111
A139: 12 | B139: 17209 | C139: 14 | D139: 17217 | E139: 13 | F139: 17224 | G139: 14 | H139: 17246 | K139: 0 | L139: 1111
A140: 12 | B140: 17341 | C140: 14 | D140: 17363 | E140: 13 | F140: 17385 | G140: 14 | H140: 17391 | K140: 0 | L140: 1111
A141: 12 | B141: 17486 | C141: 23 | D141: 17496 | E141: 24 | F141: 17503 | G141: 23 | H141: 17527 | K141: 0 | L141: 1222
A142: 12 | B142: 17629 | C142: 14 | D142: 17634 | E142: 13 | F142: 17650 | G142: 14 | H142: 17654 | K142: 0 | L142: 1111
A143: 12 | B143: 17744 | C143: 23 | D143: 17764 | E143: 24 | F143: 17772 | G143: 23 | H143: 17793 | K143: 0 | L143: 1222
A144: 12 | B144: 17889 | C144: 23 | D144: 17902 | E144: 24 | F144: 17907 | G144: 14 | H144: 17921 | K144: 0 | L144: 1221
A145: 12 | B145: 18020 | C145: 14 | D145: 18030 | E145: 24 | F145: 18046 | G145: 23 | H145: 18054 | K145: 0 | L145: 1122
A146: 12 | B146: 18153 | C146: 14 | D146: 18157 | E146: 13 | F146: 18161 | G146: 14 | H146: 18168 | K146: 0 | L146: 1111
A147: 12 | B147: 18272 | C147: 14 | D147: 18288 | E147: 13 | F147: 18299 | G147: 14 | H147: 18307 | K147: 0 | L147: 1111
A148: 12 | B148: 18404 | C148: 14 | D148: 18411 | E148: 13 | F148: 18419 | G148: 14 | H148: 18424 | K148: 0 | L148: 1111
A149: 12 | B149: 18517 | C149: 14 | D149: 18543 | E149: 13 | F149: 18549 | G149: 14 | H149: 18557 | K149: 0 | L149: 1111
A150: 12 | B150: 18658 | C150: 14 | D150: 18662 | E150: 24 | F150: 18674 | G150: 23 | H150: 18682 | K150: 0 | L150: 1122
A151: 12 | B151: 18794 | C151: 14 | D151: 18814 | E151: 13 | F151: 18825 | G151: 14 | H151: 18842 | K151: 0 | L151: 1111
A152: 12 | B152: 18941 | C152: 14 | D152: 18949 | E152: 13 | F152: 18958 | G152: 23 | H152: 18970 | K152: 0 | L152: 1112
A153: 12 | B153: 19067 | C153: 14 | D153: 19073 | E153: 13 | F153: 19078 | G153: 14 | H153: 19087 | K153: 0 | L153: 1111
A154: 12 | B154: 19184 | C154: 14 | D154: 19201 | E154: 13 | F154: 19207 | G154: 23 | H154: 19227 | K154: 0 | L154: 1112
A155: 12 | B155: 19324 | C155: 14 | D155: 19329 | E155: 24 | F155: 19341 | G155: 23 | H155: 19348 | K155: 0 | L155: 1122
A156: 12 | B156: 19445 | C156: 14 | D156: 19456 | E156: 13 | F156: 19460 | G156: 14 | H156: 19467 | K156: 0 | L156: 1111
A157: 12 | B157: 19560 | C157: 14 | D157: 19575 | E157: 13 | F157: 19580 | G157: 14 | H157: 19588 | K157: 0 | L157: 1111
A158: 12 | B158: 19694 | C158: 14 | D158: 19710 | E158: 13 | F158: 19718 | G158: 14 | H158: 19726 | K158: 0 | L158: 1111
A159: 12 | B159: 19823 | C159: 14 | D159: 19827 | E159: 13 | F159: 19844 | G159: 14 | H159: 19857 | K159: 0 | L159: 1111
A160: 12 | B160: 19959 | C160: 14 | D160: 19967 | E160: 13 | F160: 19991 | G160: 14 | H160: 19999 | K160: 0 | L160: 1111
A161: 12 | B161: 20098 | C161: 14 | D161: 20116 | E161: 13 | F161: 20127 | G161: 14 | H161: 20137 | K161: 0 | L161: 1111
A162: 12 | B162: 20234 | C162: 14 | D162: 20248 | E162: 13 | F162: 20264 | G162: 14 | H162: 20270 | K162: 0 | L162: 1111
A163: 12 | B163: 20365 | C163: 14 | D163: 20378 | E163: 24 | F163: 20389 | G163: 23 | H163: 20396 | K163: 0 | L163: 1122
A164: 12 | B164: 20493 | C164: 14 | D164: 20497 | E164: 24 | F164: 20518 | G164: 23 | H164: 20526 | K164: 0 | L164: 1122
A165: 12 | B165: 20623 | C165: 14 | D165: 20628 | E165: 13 | F165: 20643 | G165: 14 | H165: 20649 | K165: 0 | L165: 1111
A166: 12 | B166: 20741 | C166: 14 | D166: 20755 | E166: 13 | F166: 20772 | G166: 14 | H166: 20777 | K166: 0 | L166: 1111
A167: 12 | B167: 20876 | C167: 14 | D167: 20881 | E167: 24 | F167: 20894 | G167: 23 | H167: 20901 | K167: 0 | L167: 1122
A168: 12 | B168: 21003 | C168: 14 | D168: 21014 | E168: 13 | F168: 21022 | G168: 14 | H168: 21029 | K168: 0 | L168: 1111
A169: 12 | B169: 21126 | C169: 14 | D169: 21137 | E169: 13 | F169: 21156 | G169: 14 | H169: 21161 | K169: 0 | L169: 1111
A170: 12 | B170: 21261 | C170: 14 | D170: 21265 | E170: 13 | F170: 21277 | G170: 14 | H170: 21290 | K170: 0 | L170: 1111
A171: 12 | B171: 21383 | C171: 14 | D171: 21413 | E171: 24 | F171: 21424 | G171: 23 | H171: 21432 | K171: 0 | L171: 1122
A172: 12 | B172: 21529 | C172: 23 | D172: 21541 | E172: 24 | F172: 21549 | G172: 14 | H172: 21561 | K172: 0 | L172: 1221
A173: 12 | B173: 21656 | C173: 14 | D173: 21668 | E173: 13 | F173: 21686 | G173: 23 | H173: 21698 | K173: 0 | L173: 1112
A174: 12 | B174: 21800 | C174: 14 | D174: 21836 | E174: 24 | F174: 21847 | G174: 23 | H174: 21855 | K174: 0 | L174: 1122
A175: 12 | B175: 21952 | C175: 14 | D175: 21956 | E175: 13 | F175: 21961 | G175: 23 | H175: 21980 | K175: 0 | L175: 1112
A176: 21 | B176: 22114 | C176: 21 | D176: 22121 | E176: 22 | F176: 22136 | G176: 23 | H176: 22150 | K176: 0 | L176: 2222
A177: 12 | B177: 22243 | C177: 14 | D177: 22249 | E177: 13 | F177: 22253 | G177: 14 | H177: 22258 | K177: 0 | L177: 1111
A178: 12 | B178: 22349 | C178: 14 | D178: 22364 | E178: 13 | F178: 22369 | G178: 14 | H178: 22378 | K178: 0 | L178: 1111
A179: 12 | B179: 22477 | C179: 14 | D179: 22506 | E179: 24 | F179: 22517 | G179: 23 | H179: 22525 | K179: 0 | L179: 1122
A180: 12 | B180: 22629 | C180: 14 | D180: 22633 | E180: 13 | F180: 22638 | G180: 14 | H180: 22648 | K180: 0 | L180: 1111
A181: 12 | B181: 22753 | C181: 14 | D181: 22760 | E181: 24 | F181: 22771 | G181: 23 | H181: 22779 | K181: 0 | L181: 1122
A182: 12 | B182: 22880 | C182: 14 | D182: 22886 | E182: 13 | F182: 22897 | G182: 23 | H182: 22909 | K182: 0 | L182: 1112
A183: 12 | B183: 23011 | C183: 23 | D183: 23025 | E183: 24 | F183: 23034 | G183: 23 | H183: 23046 | K183: 0 | L183: 1222
A184: 12 | B184: 23144 | C184: 14 | D184: 23148 | E184: 13 | F184: 23157 | G184: 14 | H184: 23168 | K184: 0 | L184: 1111
A185: 12 | B185: 23260 | C185: 14 | D185: 23272 | E185: 13 | F185: 23278 | G185: 14 | H185: 23283 | K185: 0 | L185: 1111
A186: 12 | B186: 23381 | C186: 14 | D186: 23385 | E186: 13 | F186: 23390 | G186: 14 | H186: 23394 | K186: 0 | L186: 1111
A187: 12 | B187: 23490 | C187: 14 | D187: 23494 | E187: 13 | F187: 23498 | G187: 14 | H187: 23506 | K187: 0 | L187: 1111
A188: 12 | B188: 23601 | C188: 14 | D188: 23605 | E188: 24 | F188: 23618 | G188: 23 | H188: 23625 | K188: 0 | L188: 1122
A189: 12 | B189: 23727 | C189: 14 | D189: 23742 | E189: 13 | F189: 23746 | G189: 14 | H189: 23750 | K189: 0 | L189: 1111
A190: 12 | B190: 23846 | C190: 14 | D190: 23857 | E190: 13 | F190: 23874 | G190: 14 | H190: 23880 | K190: 0 | L190: 1111
A191: 12 | B191: 23979 | C191: 14 | D191: 23987 | L191: 11

Sheet !M819940.000
A1: Report for:!M819940.000
A2: Date: | B2: <date>
A3: Hen: | B3: <hen> | F3: Correct Sequence | G3: =Start!J2 -> 2212 | P3: Total Sequences in Data | Q3: =4994-COUNTBLANK(L7:L5000) -> 182 | V3: Total Sequences in Block Data | W3: =COUNTA(L7:L36) -> 30 | AA3: Total Sequences in Block Data | AB3: =COUNTA(L37:L67) -> 31 | AF3: Total Sequences in Block Data | AG3: =COUNTA(L68:L97) -> 30 | AK3: Total Sequences in Block Data | AL3: =COUNTA(L98:L127) -> 30 | AP3: Total Sequences in Block Data | AQ3: =COUNTA(L128:L158) -> 31 | AU3: Total Sequences in Block Data | AV3: =COUNTA(L159:L188) -> 30
P4: Total Sequences in Summary | Q4: =SUM(O7:O22) -> 181 | V4: Total Sequences in Block Summary | W4: =SUM(U7:U22) -> 30 | AA4: Total Sequences in Block Summary | AB4: =SUM(Z7:Z22) -> 31 | AF4: Total Sequences in Block Summary | AG4: =SUM(AE7:AE22) -> 30 | AK4: Total Sequences in Block Summary | AL4: =SUM(AJ7:AJ22) -> 30 | AP4: Total Sequences in Block Summary | AQ4: =SUM(AO7:AO22) -> 31 | AU4: Total Sequences in Block Summary | AV4: =SUM(AT7:AT22) -> 29
T5: Block 1 | Y5: Block 2 | AD5: Block 3 | AI5: Block 4 | AN5: Block 5 | AS5: Block 6
A6: Sequence Component 1 | B6: Time 1 | C6: Sequence Component 2 | D6: Time 2 | E6: Sequence Component 3 | F6: Time 3 | G6: Sequence Component 4 | H6: Time 4 | I6: Sequence Component 5 | J6: Time 5 | K6: Correct? 0=No 1=Yes | L6: Sequence | N6: Frequency | P6: Relative Frequency | Q6: Variability | T6: Frequency | V6: Relative Frequency | W6: Variability | Y6: Frequency | AA6: Relative Frequency | AB6: Variability | AD6: Frequency | AF6: Relative Frequency | AG6: Variability | AI6: Frequency | AK6: Relative Frequency | AL6: Variability | AN6: Frequency | AP6: Relative Frequency | AQ6: Variability | AS6: Frequency | AU6: Relative Frequency | AV6: Variability
A7: 12 | B7: 11 | C7: 14 | D7: 20 | E7: 13 | F7: 28 | G7: 14 | H7: 50 | K7: 0 | L7: 1111 | N7: 1111 | O7: =COUNTIF($L$7:$L$500,N7) -> 75 | P7: =O7/$Q$4 -> 0.4143646409 | Q7: =IF(P7=0,0,(P7*((LOG(P7))/LOG(2)))) -> -0.5266687279 | T7: =N7 -> 1111 | U7: =COUNTIF(L7:L36,T7) -> 21 | V7: =U7/(W4-U20) -> 0.7 | W7: =IF(V7=0,0,(V7*((LOG(V7))/LOG(2)))) -> -0.360201221 | Y7: =N7 -> 1111 | Z7: =COUNTIF(L37:L67,Y7) -> 16 | AA7: =Z7/(AB4-Z20) -> 0.5161290323 | AB7: =IF(AA7=0,0,(AA7*((LOG(AA7))/LOG(2)))) -> -0.4924884183 | AD7: =N7 -> 1111 | AE7: =COUNTIF(L68:L97,AD7) -> 13 | AF7: =AE7/(AG4-AE20) -> 0.4333333333 | AG7: =IF(AF7=0,0,(AF7*((LOG(AF7))/LOG(2)))) -> -0.5227953802 | AI7: =N7 -> 1111 | AJ7: =COUNTIF(L98:L127,AI7) -> 11 | AK7: =AJ7/(AL4-AJ20) -> 0.3666666667 | AL7: =IF(AK7=0,0,(AK7*((LOG(AK7))/LOG(2)))) -> -0.5307349582 | AN7: =N7 -> 1111 | AO7: =COUNTIF(L128:L158,AN7) -> 6 | AP7: =AO7/(AQ4-AO20) -> 0.1935483871 | AQ7: =IF(AP7=0,0,(AP7*((LOG(AP7))/LOG(2)))) -> -0.4585613825 | AS7: =N7 -> 1111 | AT7: =COUNTIF(L159:L188,AS7) -> 8 | AU7: =AT7/(AV4-AT20) -> 0.275862069 | AV7: =IF(AU7=0,0,(AU7*((LOG(AU7))/LOG(2)))) -> -0.5125464814
A8: 12 | B8: 187 | C8: 23 | D8: 198 | E8: 13 | F8: 212 | G8: 14 | H8: 219 | K8: 0 | L8: 1211 | N8: 1112 | O8: =COUNTIF($L$7:$L$500,N8) -> 13 | P8: =O8/$Q$4 -> 0.07182320442 | Q8: =IF(P8=0,0,(P8*((LOG(P8))/LOG(2)))) -> -0.2728855259 | T8: =N8 -> 1112 | U8: =COUNTIF(L7:L36,T8) -> 3 | V8: =U8/(W4-U20) -> 0.1 | W8: =IF(V8=0,0,(V8*((LOG(V8))/LOG(2)))) -> -0.3321928095 | Y8: =N8 -> 1112 | Z8: =COUNTIF(L37:L67,Y8) -> 2 | AA8: =Z8/(AB4-Z20) -> 0.06451612903 | AB8: =IF(AA8=0,0,(AA8*((LOG(AA8))/LOG(2)))) -> -0.2551094394 | AD8: =N8 -> 1112 | AE8: =COUNTIF(L68:L97,AD8) -> 3 | AF8: =AE8/(AG4-AE20) -> 0.1 | AG8: =IF(AF8=0,0,(AF8*((LOG(AF8))/LOG(2)))) -> -0.3321928095 | AI8: =N8 -> 1112 | AJ8: =COUNTIF(L98:L127,AI8) -> 3 | AK8: =AJ8/(AL4-AJ20) -> 0.1 | AL8: =IF(AK8=0,0,(AK8*((LOG(AK8))/LOG(2)))) -> -0.3321928095 | AN8: =N8 -> 1112 | AO8: =COUNTIF(L128:L158,AN8) -> 2 | AP8: =AO8/(AQ4-AO20) -> 0.06451612903 | AQ8: =IF(AP8=0,0,(AP8*((LOG(AP8))/LOG(2)))) -> -0.2551094394 | AS8: =N8 -> 1112 | AT8: =COUNTIF(L159:L188,AS8) -> 0 | AU8: =AT8/(AV4-AT20) -> 0 | AV8: =IF(AU8=0,0,(AU8*((LOG(AU8))/LOG(2)))) -> 0
A9: 12 | B9: 324 | C9: 14 | D9: 332 | E9: 13 | F9: 345 | G9: 14 | H9: 352 | K9: 0 | L9: 1111 | N9: 1121 | O9: =COUNTIF($L$7:$L$500,N9) -> 1 | P9: =O9/$Q$4 -> 0.005524861878 | Q9: =IF(P9=0,0,(P9*((LOG(P9))/LOG(2)))) -> -0.04143561264 | T9: =N9 -> 1121 | U9: =COUNTIF(L7:L36,T9) -> 0 | V9: =U9/(W4-U20) -> 0 | W9: =IF(V9=0,0,(V9*((LOG(V9))/LOG(2)))) -> 0 | Y9: =N9 -> 1121 | Z9: =COUNTIF(L37:L67,Y9) -> 0 | AA9: =Z9/(AB4-Z20) -> 0 | AB9: =IF(AA9=0,0,(AA9*((LOG(AA9))/LOG(2)))) -> 0 | AD9: =N9 -> 1121 | AE9: =COUNTIF(L68:L97,AD9) -> 0 | AF9: =AE9/(AG4-AE20) -> 0 | AG9: =IF(AF9=0,0,(AF9*((LOG(AF9))/LOG(2)))) -> 0 | AI9: =N9 -> 1121 | AJ9: =COUNTIF(L98:L127,AI9) -> 0 | AK9: =AJ9/(AL4-AJ20) -> 0 | AL9: =IF(AK9=0,0,(AK9*((LOG(AK9))/LOG(2)))) -> 0 | AN9: =N9 -> 1121 | AO9: =COUNTIF(L128:L158,AN9) -> 0 | AP9: =AO9/(AQ4-AO20) -> 0 | AQ9: =IF(AP9=0,0,(AP9*((LOG(AP9))/LOG(2)))) -> 0 | AS9: =N9 -> 1121 | AT9: =COUNTIF(L159:L188,AS9) -> 1 | AU9: =AT9/(AV4-AT20) -> 0.03448275862 | AV9: =IF(AU9=0,0,(AU9*((LOG(AU9))/LOG(2)))) -> -0.167516586
A10: 12 | B10: 450 | C10: 23 | D10: 474 | E10: 24 | F10: 482 | G10: 23 | H10: 495 | K10: 0 | L10: 1222 | N10: 1122 | O10: =COUNTIF($L$7:$L$500,N10) -> 42 | P10: =O10/$Q$4 -> 0.2320441989 | Q10: =IF(P10=0,0,(P10*((LOG(P10))/LOG(2)))) -> -0.4890397541 | T10: =N10 -> 1122 | U10: =COUNTIF(L7:L36,T10) -> 2 | V10: =U10/(W4-U20) -> 0.06666666667 | W10: =IF(V10=0,0,(V10*((LOG(V10))/LOG(2)))) -> -0.260459373 | Y10: =N10 -> 1122 | Z10: =COUNTIF(L37:L67,Y10) -> 5 | AA10: =Z10/(AB4-Z20) -> 0.1612903226 | AB10: =IF(AA10=0,0,(AA10*((LOG(AA10))/LOG(2)))) -> -0.4245593896 | AD10: =N10 -> 1122 | AE10: =COUNTIF(L68:L97,AD10) -> 3 | AF10: =AE10/(AG4-AE20) -> 0.1 | AG10: =IF(AF10=0,0,(AF10*((LOG(AF10))/LOG(2)))) -> -0.3321928095 | AI10: =N10 -> 1122 | AJ10: =COUNTIF(L98:L127,AI10) -> 10 | AK10: =AJ10/(AL4-AJ20) -> 0.3333333333 | AL10: =IF(AK10=0,0,(AK10*((LOG(AK10))/LOG(2)))) -> -0.5283208336 | AN10: =N10 -> 1122 | AO10: =COUNTIF(L128:L158,AN10) -> 11 | AP10: =AO10/(AQ4-AO20) -> 0.3548387097 | AQ10: =IF(AP10=0,0,(AP10*((LOG(AP10))/LOG(2)))) -> -0.5304003745 | AS10: =N10 -> 1122 | AT10: =COUNTIF(L159:L188,AS10) -> 11 | AU10: =AT10/(AV4-AT20) -> 0.3793103448 | AV10: =IF(AU10=0,0,(AU10*((LOG(AU10))/LOG(2)))) -> -0.5304842463
A11: 12 | B11: 598 | C11: 14 | D11: 618 | E11: 13 | F11: 626 | G11: 14 | H11: 635 | K11: 0 | L11: 1111 | N11: 1211 | O11: =COUNTIF($L$7:$L$500,N11) -> 2 | P11: =O11/$Q$4 -> 0.01104972376 | Q11: =IF(P11=0,0,(P11*((LOG(P11))/LOG(2)))) -> -0.07182150151 | T11: =N11 -> 1211 | U11: =COUNTIF(L7:L36,T11) -> 1 | V11: =U11/(W4-U20) -> 0.03333333333 | W11: =IF(V11=0,0,(V11*((LOG(V11))/LOG(2)))) -> -0.1635630199 | Y11: =N11 -> 1211 | Z11: =COUNTIF(L37:L67,Y11) -> 0 | AA11: =Z11/(AB4-Z20) -> 0 | AB11: =IF(AA11=0,0,(AA11*((LOG(AA11))/LOG(2)))) -> 0 | AD11: =N11 -> 1211 | AE11: =COUNTIF(L68:L97,AD11) -> 0 | AF11: =AE11/(AG4-AE20) -> 0 | AG11: =IF(AF11=0,0,(AF11*((LOG(AF11))/LOG(2)))) -> 0 | AI11: =N11 -> 1211 | AJ11: =COUNTIF(L98:L127,AI11) -> 0 | AK11: =AJ11/(AL4-AJ20) -> 0 | AL11: =IF(AK11=0,0,(AK11*((LOG(AK11))/LOG(2)))) -> 0 | AN11: =N11 -> 1211 | AO11: =COUNTIF(L128:L158,AN11) -> 0 | AP11: =AO11/(AQ4-AO20) -> 0 | AQ11: =IF(AP11=0,0,(AP11*((LOG(AP11))/LOG(2)))) -> 0 | AS11: =N11 -> 1211 | AT11: =COUNTIF(L159:L188,AS11) -> 1 | AU11: =AT11/(AV4-AT20) -> 0.03448275862 | AV11: =IF(AU11=0,0,(AU11*((LOG(AU11))/LOG(2)))) -> -0.167516586
A12: 12 | B12: 735 | C12: 14 | D12: 740 | E12: 13 | F12: 761 | G12: 14 | H12: 767 | K12: 0 | L12: 1111 | N12: 1212 | O12: =COUNTIF($L$7:$L$500,N12) -> 3 | P12: =O12/$Q$4 -> 0.01657458564 | Q12: =IF(P12=0,0,(P12*((LOG(P12))/LOG(2)))) -> -0.09803674121 | T12: =N12 -> 1212 | U12: =COUNTIF(L7:L36,T12) -> 0 | V12: =U12/(W4-U20) -> 0 | W12: =IF(V12=0,0,(V12*((LOG(V12))/LOG(2)))) -> 0 | Y12: =N12 -> 1212 | Z12: =COUNTIF(L37:L67,Y12) -> 0 | AA12: =Z12/(AB4-Z20) -> 0 | AB12: =IF(AA12=0,0,(AA12*((LOG(AA12))/LOG(2)))) -> 0 | AD12: =N12 -> 1212 | AE12: =COUNTIF(L68:L97,AD12) -> 0 | AF12: =AE12/(AG4-AE20) -> 0 | AG12: =IF(AF12=0,0,(AF12*((LOG(AF12))/LOG(2)))) -> 0 | AI12: =N12 -> 1212 | AJ12: =COUNTIF(L98:L127,AI12) -> 0 | AK12: =AJ12/(AL4-AJ20) -> 0 | AL12: =IF(AK12=0,0,(AK12*((LOG(AK12))/LOG(2)))) -> 0 | AN12: =N12 -> 1212 | AO12: =COUNTIF(L128:L158,AN12) -> 0 | AP12: =AO12/(AQ4-AO20) -> 0 | AQ12: =IF(AP12=0,0,(AP12*((LOG(AP12))/LOG(2)))) -> 0 | AS12: =N12 -> 1212 | AT12: =COUNTIF(L159:L188,AS12) -> 3 | AU12: =AT12/(AV4-AT20) -> 0.1034482759 | AV12: =IF(AU12=0,0,(AU12*((LOG(AU12))/LOG(2)))) -> -0.3385881201
A13: 12 | B13: 869 | C13: 23 | D13: 883 | E13: 24 | F13: 891 | G13: 23 | H13: 900 | K13: 0 | L13: 1222 | N13: 1221 | O13: =COUNTIF($L$7:$L$500,N13) -> 13 | P13: =O13/$Q$4 -> 0.07182320442 | Q13: =IF(P13=0,0,(P13*((LOG(P13))/LOG(2)))) -> -0.2728855259 | T13: =N13 -> 1221 | U13: =COUNTIF(L7:L36,T13) -> 1 | V13: =U13/(W4-U20) -> 0.03333333333 | W13: =IF(V13=0,0,(V13*((LOG(V13))/LOG(2)))) -> -0.1635630199 | Y13: =N13 -> 1221 | Z13: =COUNTIF(L37:L67,Y13) -> 4 | AA13: =Z13/(AB4-Z20) -> 0.1290322581 | AB13: =IF(AA13=0,0,(AA13*((LOG(AA13))/LOG(2)))) -> -0.3811866207 | AD13: =N13 -> 1221 | AE13: =COUNTIF(L68:L97,AD13) -> 1 | AF13: =AE13/(AG4-AE20) -> 0.03333333333 | AG13: =IF(AF13=0,0,(AF13*((LOG(AF13))/LOG(2)))) -> -0.1635630199 | AI13: =N13 -> 1221 | AJ13: =COUNTIF(L98:L127,AI13) -> 2 | AK13: =AJ13/(AL4-AJ20) -> 0.06666666667 | AL13: =IF(AK13=0,0,(AK13*((LOG(AK13))/LOG(2)))) -> -0.260459373 | AN13: =N13 -> 1221 | AO13: =COUNTIF(L128:L158,AN13) -> 3 | AP13: =AO13/(AQ4-AO20) -> 0.09677419355 | AQ13: =IF(AP13=0,0,(AP13*((LOG(AP13))/LOG(2)))) -> -0.3260548848 | AS13: =N13 -> 1221 | AT13: =COUNTIF(L159:L188,AS13) -> 2 | AU13: =AT13/(AV4-AT20) -> 0.06896551724 | AV13: =IF(AU13=0,0,(AU13*((LOG(AU13))/LOG(2)))) -> -0.2660676548
A14: 12 | B14: 997 | C14: 14 | D14: 1002 | E14: 13 | F14: 1011 | G14: 23 | H14: 1023 | K14: 0 | L14: 1112 | N14: 1222 | O14: =COUNTIF($L$7:$L$500,N14) -> 31 | P14: =O14/$Q$4 -> 0.1712707182 | Q14: =IF(P14=0,0,(P14*((LOG(P14))/LOG(2)))) -> -0.4359952314 | T14: =N14 -> 1222 | U14: =COUNTIF(L7:L36,T14) -> 2 | V14: =U14/(W4-U20) -> 0.06666666667 | W14: =IF(V14=0,0,(V14*((LOG(V14))/LOG(2)))) -> -0.260459373 | Y14: =N14 -> 1222 | Z14: =COUNTIF(L37:L67,Y14) -> 4 | AA14: =Z14/(AB4-Z20) -> 0.1290322581 | AB14: =IF(AA14=0,0,(AA14*((LOG(AA14))/LOG(2)))) -> -0.3811866207 | AD14: =N14 -> 1222 | AE14: =COUNTIF(L68:L97,AD14) -> 9 | AF14: =AE14/(AG4-AE20) -> 0.3 | AG14: =IF(AF14=0,0,(AF14*((LOG(AF14))/LOG(2)))) -> -0.5210896782 | AI14: =N14 -> 1222 | AJ14: =COUNTIF(L98:L127,AI14) -> 4 | AK14: =AJ14/(AL4-AJ20) -> 0.1333333333 | AL14: =IF(AK14=0,0,(AK14*((LOG(AK14))/LOG(2)))) -> -0.3875854127 | AN14: =N14 -> 1222 | AO14: =COUNTIF(L128:L158,AN14) -> 9 | AP14: =AO14/(AQ4-AO20) -> 0.2903225806 | AQ14: =IF(AP14=0,0,(AP14*((LOG(AP14))/LOG(2)))) -> -0.518014251 | AS14: =N14 -> 1222 | AT14: =COUNTIF(L159:L188,AS14) -> 3 | AU14: =AT14/(AV4-AT20) -> 0.1034482759 | AV14: =IF(AU14=0,0,(AU14*((LOG(AU14))/LOG(2)))) -> -0.3385881201
A15: 12 | B15: 1121 | C15: 14 | D15: 1128 | E15: 13 | F15: 1137 | G15: 14 | H15: 1147 | K15: 0 | L15: 1111 | N15: 2111 | O15: =COUNTIF($L$7:$L$500,N15) -> 0 | P15: =O15/$Q$4 -> 0 | Q15: =IF(P15=0,0,(P15*((LOG(P15))/LOG(2)))) -> 0 | T15: =N15 -> 2111 | U15: =COUNTIF(L7:L36,T15) -> 0 | V15: =U15/(W4-U20) -> 0 | W15: =IF(V15=0,0,(V15*((LOG(V15))/LOG(2)))) -> 0 | Y15: =N15 -> 2111 | Z15: =COUNTIF(L37:L67,Y15) -> 0 | AA15: =Z15/(AB4-Z20) -> 0 | AB15: =IF(AA15=0,0,(AA15*((LOG(AA15))/LOG(2)))) -> 0 | AD15: =N15 -> 2111 | AE15: =COUNTIF(L68:L97,AD15) -> 0 | AF15: =AE15/(AG4-AE20) -> 0 | AG15: =IF(AF15=0,0,(AF15*((LOG(AF15))/LOG(2)))) -> 0 | AI15: =N15 -> 2111 | AJ15: =COUNTIF(L98:L127,AI15) -> 0 | AK15: =AJ15/(AL4-AJ20) -> 0 | AL15: =IF(AK15=0,0,(AK15*((LOG(AK15))/LOG(2)))) -> 0 | AN15: =N15 -> 2111 | AO15: =COUNTIF(L128:L158,AN15) -> 0 | AP15: =AO15/(AQ4-AO20) -> 0 | AQ15: =IF(AP15=0,0,(AP15*((LOG(AP15))/LOG(2)))) -> 0 | AS15: =N15 -> 2111 | AT15: =COUNTIF(L159:L188,AS15) -> 0 | AU15: =AT15/(AV4-AT20) -> 0 | AV15: =IF(AU15=0,0,(AU15*((LOG(AU15))/LOG(2)))) -> 0
A16: 12 | B16: 1241 | C16: 14 | D16: 1251 | E16: 13 | F16: 1255 | G16: 14 | H16: 1264 | K16: 0 | L16: 1111 | N16: 2112 | O16: =COUNTIF($L$7:$L$500,N16) -> 0 | P16: =O16/$Q$4 -> 0 | Q16: =IF(P16=0,0,(P16*((LOG(P16))/LOG(2)))) -> 0 | T16: =N16 -> 2112 | U16: =COUNTIF(L7:L36,T16) -> 0 | V16: =U16/(W4-U20) -> 0 | W16: =IF(V16=0,0,(V16*((LOG(V16))/LOG(2)))) -> 0 | Y16: =N16 -> 2112 | Z16: =COUNTIF(L37:L67,Y16) -> 0 | AA16: =Z16/(AB4-Z20) -> 0 | AB16: =IF(AA16=0,0,(AA16*((LOG(AA16))/LOG(2)))) -> 0 | AD16: =N16 -> 2112 | AE16: =COUNTIF(L68:L97,AD16) -> 0 | AF16: =AE16/(AG4-AE20) -> 0 | AG16: =IF(AF16=0,0,(AF16*((LOG(AF16))/LOG(2)))) -> 0 | AI16: =N16 -> 2112 | AJ16: =COUNTIF(L98:L127,AI16) -> 0 | AK16: =AJ16/(AL4-AJ20) -> 0 | AL16: =IF(AK16=0,0,(AK16*((LOG(AK16))/LOG(2)))) -> 0 | AN16: =N16 -> 2112 | AO16: =COUNTIF(L128:L158,AN16) -> 0 | AP16: =AO16/(AQ4-AO20) -> 0 | AQ16: =IF(AP16=0,0,(AP16*((LOG(AP16))/LOG(2)))) -> 0 | AS16: =N16 -> 2112 | AT16: =COUNTIF(L159:L188,AS16) -> 0 | AU16: =AT16/(AV4-AT20) -> 0 | AV16: =IF(AU16=0,0,(AU16*((LOG(AU16))/LOG(2)))) -> 0
A17: 12 | B17: 1360 | C17: 14 | D17: 1377 | E17: 13 | F17: 1388 | G17: 23 | H17: 1403 | K17: 0 | L17: 1112 | N17: 2121 | O17: =COUNTIF($L$7:$L$500,N17) -> 0 | P17: =O17/$Q$4 -> 0 | Q17: =IF(P17=0,0,(P17*((LOG(P17))/LOG(2)))) -> 0 | T17: =N17 -> 2121 | U17: =COUNTIF(L7:L36,T17) -> 0 | V17: =U17/(W4-U20) -> 0 | W17: =IF(V17=0,0,(V17*((LOG(V17))/LOG(2)))) -> 0 | Y17: =N17 -> 2121 | Z17: =COUNTIF(L37:L67,Y17) -> 0 | AA17: =Z17/(AB4-Z20) -> 0 | AB17: =IF(AA17=0,0,(AA17*((LOG(AA17))/LOG(2)))) -> 0 | AD17: =N17 -> 2121 | AE17: =COUNTIF(L68:L97,AD17) -> 0 | AF17: =AE17/(AG4-AE20) -> 0 | AG17: =IF(AF17=0,0,(AF17*((LOG(AF17))/LOG(2)))) -> 0 | AI17: =N17 -> 2121 | AJ17: =COUNTIF(L98:L127,AI17) -> 0 | AK17: =AJ17/(AL4-AJ20) -> 0 | AL17: =IF(AK17=0,0,(AK17*((LOG(AK17))/LOG(2)))) -> 0 | AN17: =N17 -> 2121 | AO17: =COUNTIF(L128:L158,AN17) -> 0 | AP17: =AO17/(AQ4-AO20) -> 0 | AQ17: =IF(AP17=0,0,(AP17*((LOG(AP17))/LOG(2)))) -> 0 | AS17: =N17 -> 2121 | AT17: =COUNTIF(L159:L188,AS17) -> 0 | AU17: =AT17/(AV4-AT20) -> 0 | AV17: =IF(AU17=0,0,(AU17*((LOG(AU17))/LOG(2)))) -> 0
A18: 12 | B18: 1503 | C18: 14 | D18: 1507 | E18: 13 | F18: 1511 | G18: 14 | H18: 1520 | K18: 0 | L18: 1111 | N18: 2122 | O18: =COUNTIF($L$7:$L$500,N18) -> 0 | P18: =O18/$Q$4 -> 0 | Q18: =IF(P18=0,0,(P18*((LOG(P18))/LOG(2)))) -> 0 | T18: =N18 -> 2122 | U18: =COUNTIF(L7:L36,T18) -> 0 | V18: =U18/(W4-U20) -> 0 | W18: =IF(V18=0,0,(V18*((LOG(V18))/LOG(2)))) -> 0 | Y18: =N18 -> 2122 | Z18: =COUNTIF(L37:L67,Y18) -> 0 | AA18: =Z18/(AB4-Z20) -> 0 | AB18: =IF(AA18=0,0,(AA18*((LOG(AA18))/LOG(2)))) -> 0 | AD18: =N18 -> 2122 | AE18: =COUNTIF(L68:L97,AD18) -> 0 | AF18: =AE18/(AG4-AE20) -> 0 | AG18: =IF(AF18=0,0,(AF18*((LOG(AF18))/LOG(2)))) -> 0 | AI18: =N18 -> 2122 | AJ18: =COUNTIF(L98:L127,AI18) -> 0 | AK18: =AJ18/(AL4-AJ20) -> 0 | AL18: =IF(AK18=0,0,(AK18*((LOG(AK18))/LOG(2)))) -> 0 | AN18: =N18 -> 2122 | AO18: =COUNTIF(L128:L158,AN18) -> 0 | AP18: =AO18/(AQ4-AO20) -> 0 | AQ18: =IF(AP18=0,0,(AP18*((LOG(AP18))/LOG(2)))) -> 0 | AS18: =N18 -> 2122 | AT18: =COUNTIF(L159:L188,AS18) -> 0 | AU18: =AT18/(AV4-AT20) -> 0 | AV18: =IF(AU18=0,0,(AU18*((LOG(AU18))/LOG(2)))) -> 0
A19: 12 | B19: 1629 | C19: 14 | D19: 1645 | E19: 13 | F19: 1656 | G19: 14 | H19: 1666 | K19: 0 | L19: 1111 | N19: 2211 | O19: =COUNTIF($L$7:$L$500,N19) -> 0 | P19: =O19/$Q$4 -> 0 | Q19: =IF(P19=0,0,(P19*((LOG(P19))/LOG(2)))) -> 0 | T19: =N19 -> 2211 | U19: =COUNTIF(L7:L36,T19) -> 0 | V19: =U19/(W4-U20) -> 0 | W19: =IF(V19=0,0,(V19*((LOG(V19))/LOG(2)))) -> 0 | Y19: =N19 -> 2211 | Z19: =COUNTIF(L37:L67,Y19) -> 0 | AA19: =Z19/(AB4-Z20) -> 0 | AB19: =IF(AA19=0,0,(AA19*((LOG(AA19))/LOG(2)))) -> 0 | AD19: =N19 -> 2211 | AE19: =COUNTIF(L68:L97,AD19) -> 0 | AF19: =AE19/(AG4-AE20) -> 0 | AG19: =IF(AF19=0,0,(AF19*((LOG(AF19))/LOG(2)))) -> 0 | AI19: =N19 -> 2211 | AJ19: =COUNTIF(L98:L127,AI19) -> 0 | AK19: =AJ19/(AL4-AJ20) -> 0 | AL19: =IF(AK19=0,0,(AK19*((LOG(AK19))/LOG(2)))) -> 0 | AN19: =N19 -> 2211 | AO19: =COUNTIF(L128:L158,AN19) -> 0 | AP19: =AO19/(AQ4-AO20) -> 0 | AQ19: =IF(AP19=0,0,(AP19*((LOG(AP19))/LOG(2)))) -> 0 | AS19: =N19 -> 2211 | AT19: =COUNTIF(L159:L188,AS19) -> 0 | AU19: =AT19/(AV4-AT20) -> 0 | AV19: =IF(AU19=0,0,(AU19*((LOG(AU19))/LOG(2)))) -> 0
A20: 12 | B20: 1764 | C20: 14 | D20: 1769 | E20: 13 | F20: 1775 | G20: 14 | H20: 1781 | K20: 0 | L20: 1111 | N20: 2212 | O20: =COUNTIF($L$7:$L$500,N20) -> 0 | P20: =O20/$Q$4 -> 0 | Q20: =IF(P20=0,0,(P20*((LOG(P20))/LOG(2)))) -> 0 | T20: =N20 -> 2212 | U20: =COUNTIF(L7:L36,T20) -> 0 | Y20: =N20 -> 2212 | Z20: =COUNTIF(L37:L67,Y20) -> 0 | AD20: =N20 -> 2212 | AE20: =COUNTIF(L68:L97,AD20) -> 0 | AI20: =N20 -> 2212 | AJ20: =COUNTIF(L98:L127,AI20) -> 0 | AN20: =N20 -> 2212 | AO20: =COUNTIF(L128:L158,AN20) -> 0 | AS20: =N20 -> 2212 | AT20: =COUNTIF(L159:L188,AS20) -> 0
A21: 12 | B21: 1884 | C21: 14 | D21: 1888 | E21: 13 | F21: 1897 | G21: 23 | H21: 1910 | K21: 0 | L21: 1112 | N21: 2221 | O21: =COUNTIF($L$7:$L$500,N21) -> 0 | P21: =O21/$Q$4 -> 0 | Q21: =IF(P21=0,0,(P21*((LOG(P21))/LOG(2)))) -> 0 | T21: =N21 -> 2221 | U21: =COUNTIF(L7:L36,T21) -> 0 | V21: =U21/(W4-U20) -> 0 | W21: =IF(V21=0,0,(V21*((LOG(V21))/LOG(2)))) -> 0 | Y21: =N21 -> 2221 | Z21: =COUNTIF(L37:L67,Y21) -> 0 | AA21: =Z21/(AB4-Z20) -> 0 | AB21: =IF(AA21=0,0,(AA21*((LOG(AA21))/LOG(2)))) -> 0 | AD21: =N21 -> 2221 | AE21: =COUNTIF(L68:L97,AD21) -> 0 | AF21: =AE21/(AG4-AE20) -> 0 | AG21: =IF(AF21=0,0,(AF21*((LOG(AF21))/LOG(2)))) -> 0 | AI21: =N21 -> 2221 | AJ21: =COUNTIF(L98:L127,AI21) -> 0 | AK21: =AJ21/(AL4-AJ20) -> 0 | AL21: =IF(AK21=0,0,(AK21*((LOG(AK21))/LOG(2)))) -> 0 | AN21: =N21 -> 2221 | AO21: =COUNTIF(L128:L158,AN21) -> 0 | AP21: =AO21/(AQ4-AO20) -> 0 | AQ21: =IF(AP21=0,0,(AP21*((LOG(AP21))/LOG(2)))) -> 0 | AS21: =N21 -> 2221 | AT21: =COUNTIF(L159:L188,AS21) -> 0 | AU21: =AT21/(AV4-AT20) -> 0 | AV21: =IF(AU21=0,0,(AU21*((LOG(AU21))/LOG(2)))) -> 0
A22: 12 | B22: 2004 | C22: 14 | D22: 2008 | E22: 13 | F22: 2012 | G22: 14 | H22: 2019 | K22: 0 | L22: 1111 | N22: 2222 | O22: =COUNTIF($L$7:$L$500,N22) -> 1 | P22: =O22/$Q$4 -> 0.005524861878 | Q22: =IF(P22=0,0,(P22*((LOG(P22))/LOG(2)))) -> -0.04143561264 | T22: =N22 -> 2222 | U22: =COUNTIF(L7:L36,T22) -> 0 | V22: =U22/(W4-U20) -> 0 | W22: =IF(V22=0,0,(V22*((LOG(V22))/LOG(2)))) -> 0 | Y22: =N22 -> 2222 | Z22: =COUNTIF(L37:L67,Y22) -> 0 | AA22: =Z22/(AB4-Z20) -> 0 | AB22: =IF(AA22=0,0,(AA22*((LOG(AA22))/LOG(2)))) -> 0 | AD22: =N22 -> 2222 | AE22: =COUNTIF(L68:L97,AD22) -> 1 | AF22: =AE22/(AG4-AE20) -> 0.03333333333 | AG22: =IF(AF22=0,0,(AF22*((LOG(AF22))/LOG(2)))) -> -0.1635630199 | AI22: =N22 -> 2222 | AJ22: =COUNTIF(L98:L127,AI22) -> 0 | AK22: =AJ22/(AL4-AJ20) -> 0 | AL22: =IF(AK22=0,0,(AK22*((LOG(AK22))/LOG(2)))) -> 0 | AN22: =N22 -> 2222 | AO22: =COUNTIF(L128:L158,AN22) -> 0 | AP22: =AO22/(AQ4-AO20) -> 0 | AQ22: =IF(AP22=0,0,(AP22*((LOG(AP22))/LOG(2)))) -> 0 | AS22: =N22 -> 2222 | AT22: =COUNTIF(L159:L188,AS22) -> 0 | AU22: =AT22/(AV4-AT20) -> 0 | AV22: =IF(AU22=0,0,(AU22*((LOG(AU22))/LOG(2)))) -> 0
A23: 12 | B23: 2117 | C23: 14 | D23: 2137 | E23: 13 | F23: 2142 | G23: 14 | H23: 2150 | K23: 0 | L23: 1111 | P23: =SUM(P7:P22) -> 1 | Q23: =-SUM(Q7:Q22) -> 2.250204233 | V23: =SUM(V7:V22) -> 1 | W23: =-SUM(W7:W22) -> 1.540438816 | AA23: =SUM(AA7:AA22) -> 1 | AB23: =-SUM(AB7:AB22) -> 1.934530489 | AF23: =SUM(AF7:AF22) -> 1 | AG23: =-SUM(AG7:AG22) -> 2.035396717 | AK23: =SUM(AK7:AK22) -> 1 | AL23: =-SUM(AL7:AL22) -> 2.039293387 | AP23: =SUM(AP7:AP22) -> 1 | AQ23: =-SUM(AQ7:AQ22) -> 2.088140332 | AU23: =SUM(AU7:AU22) -> 1 | AV23: =-SUM(AV7:AV22) -> 2.321307795
A24: 12 | B24: 2261 | C24: 14 | D24: 2267 | E24: 13 | F24: 2286 | G24: 14 | H24: 2298 | K24: 0 | L24: 1111 | P24: U= | Q24: =Q23/(LOG(Q4)/LOG(2)) -> 0.3000333963 | V24: U1= | W24: =W23/(LOG(W4)/LOG(2)) -> 0.3139338011 | AA24: U2= | AB24: =AB23/(LOG(AB4)/LOG(2)) -> 0.3904832121 | AF24: U3= | AG24: =AG23/(LOG(AG4)/LOG(2)) -> 0.4148037698 | AK24: U4= | AL24: =AL23/(LOG(AL4)/LOG(2)) -> 0.4155978919 | AP24: U5= | AQ24: =AQ23/(LOG(AQ4)/LOG(2)) -> 0.4214892187 | AU24: U6= | AV24: =AV23/(LOG(AV4)/LOG(2)) -> 0.4778338567
A25: 12 | B25: 2394 | C25: 14 | D25: 2412 | E25: 13 | F25: 2422 | G25: 14 | H25: 2430 | K25: 0 | L25: 1111
A26: 12 | B26: 2532 | C26: 23 | D26: 2545 | E26: 24 | F26: 2550 | G26: 14 | H26: 2565 | K26: 0 | L26: 1221
A27: 12 | B27: 2661 | C27: 14 | D27: 2683 | E27: 24 | F27: 2699 | G27: 23 | H27: 2707 | K27: 0 | L27: 1122 | N27: Total Target Seq
A28: 12 | B28: 2802 | C28: 14 | D28: 2806 | E28: 13 | F28: 2820 | G28: 14 | H28: 2831 | K28: 0 | L28: 1111 | N28: =COUNTIF(L7:L188,G3) -> 0 | P28: 30 | Q28: 31 | R28: 30 | S28: 30 | T28: 31 | U28: 30
A29: 12 | B29: 2927 | C29: 14 | D29: 2934 | E29: 13 | F29: 2954 | G29: 14 | H29: 2959 | K29: 0 | L29: 1111 | P29: % of reinforcement given in 6 equal intervals based on number of trials
A30: 12 | B30: 3059 | C30: 14 | D30: 3063 | E30: 13 | F30: 3067 | G30: 14 | H30: 3077 | K30: 0 | L30: 1111 | P30: %_1 | Q30: %_2 | R30: %_3 | S30: %_4 | T30: %_5 | U30: %_6
A31: 12 | B31: 3173 | C31: 14 | D31: 3177 | E31: 13 | F31: 3205 | G31: 14 | H31: 3210 | K31: 0 | L31: 1111 | O31: target sequence | P31: =$G$3 -> 2212 | Q31: =$G$3 -> 2212 | R31: =$G$3 -> 2212 | S31: =$G$3 -> 2212 | T31: =$G$3 -> 2212 | U31: =$G$3 -> 2212
A32: 12 | B32: 3310 | C32: 14 | D32: 3318 | E32: 13 | F32: 3331 | G32: 14 | H32: 3336 | K32: 0 | L32: 1111 | O32: total reinforcement | P32: =U20 -> 0 | Q32: =Z20 -> 0 | R32: =AE20 -> 0 | S32: =AJ20 -> 0 | T32: =AO20 -> 0 | U32: =AT20 -> 0
A33: 12 | B33: 3471 | C33: 14 | D33: 3475 | E33: 13 | F33: 3481 | G33: 14 | H33: 3491 | K33: 0 | L33: 1111 | O33: % target
A34: 12 | B34: 3600 | C34: 14 | D34: 3604 | E34: 13 | F34: 3612 | G34: 14 | H34: 3630 | K34: 0 | L34: 1111 | O34: CCRF
A35: 12 | B35: 3740 | C35: 14 | D35: 3745 | E35: 13 | F35: 3749 | G35: 14 | H35: 3757 | K35: 0 | L35: 1111 | O35: % CCRf
A36: 12 | B36: 3857 | C36: 14 | D36: 3864 | E36: 24 | F36: 3876 | G36: 23 | H36: 3884 | K36: 0 | L36: 1122 | O36: average response rate | P36: =H36/P28 -> 129.4666667 | Q36: =(H67-H36)/Q28 -> 129.2258065 | R36: =(H97-H67)/R28 -> 132.6666667 | S36: =(H127-H97)/S28 -> 133.1333333 | T36: =(H158-H127)/T28 -> 134.3870968 | U36: =(H188-H158)/U28 -> -667.6666667
A37: 12 | B37: 3976 | C37: 14 | D37: 3984 | E37: 13 | F37: 4005 | G37: 14 | H37: 4011 | K37: 0 | L37: 1111
A38: 12 | B38: 4112 | C38: 14 | D38: 4121 | E38: 13 | F38: 4132 | G38: 14 | H38: 4141 | K38: 0 | L38: 1111
A39: 12 | B39: 4236 | C39: 14 | D39: 4260 | E39: 13 | F39: 4268 | G39: 14 | H39: 4276 | K39: 0 | L39: 1111
A40: 12 | B40: 4370 | C40: 14 | D40: 4377 | E40: 13 | F40: 4390 | G40: 14 | H40: 4409 | K40: 0 | L40: 1111
A41: 12 | B41: 4510 | C41: 23 | D41: 4536 | E41: 24 | F41: 4544 | G41: 23 | H41: 4557 | K41: 0 | L41: 1222
A42: 12 | B42: 4652 | C42: 14 | D42: 4670 | E42: 24 | F42: 4683 | G42: 23 | H42: 4691 | K42: 0 | L42: 1122
A43: 12 | B43: 4788 | C43: 14 | D43: 4808 | E43: 13 | F43: 4813 | G43: 14 | H43: 4818 | K43: 0 | L43: 1111
A44: 12 | B44: 4913 | C44: 23 | D44: 4925 | E44: 24 | F44: 4934 | G44: 23 | H44: 4947 | K44: 0 | L44: 1222
A45: 12 | B45: 5044 | C45: 14 | D45: 5049 | E45: 13 | F45: 5054 | G45: 14 | H45: 5066 | K45: 0 | L45: 1111
A46: 12 | B46: 5165 | C46: 14 | D46: 5179 | E46: 13 | F46: 5187 | G46: 14 | H46: 5192 | K46: 0 | L46: 1111
A47: 12 | B47: 5284 | C47: 14 | D47: 5291 | E47: 13 | F47: 5297 | G47: 14 | H47: 5302 | K47: 0 | L47: 1111
A48: 12 | B48: 5449 | C48: 23 | D48: 5460 | E48: 24 | F48: 5468 | G48: 23 | H48: 5480 | K48: 0 | L48: 1222
A49: 12 | B49: 5577 | C49: 14 | D49: 5595 | E49: 13 | F49: 5599 | G49: 14 | H49: 5604 | K49: 0 | L49: 1111
A50: 12 | B50: 5699 | C50: 14 | D50: 5715 | E50: 13 | F50: 5720 | G50: 14 | H50: 5725 | K50: 0 | L50: 1111
A51: 12 | B51: 5835 | C51: 14 | D51: 5839 | E51: 24 | F51: 5852 | G51: 23 | H51: 5859 | K51: 0 | L51: 1122
A52: 12 | B52: 5951 | C52: 14 | D52: 5968 | E52: 13 | F52: 5973 | G52: 14 | H52: 5981 | K52: 0 | L52: 1111
A53: 12 | B53: 6076 | C53: 14 | D53: 6100 | E53: 13 | F53: 6110 | G53: 23 | H53: 6123 | K53: 0 | L53: 1112
A54: 12 | B54: 6218 | C54: 14 | D54: 6241 | E54: 13 | F54: 6245 | G54: 14 | H54: 6254 | K54: 0 | L54: 1111
A55: 12 | B55: 6354 | C55: 14 | D55: 6369 | E55: 13 | F55: 6375 | G55: 14 | H55: 6381 | K55: 0 | L55: 1111
A56: 12 | B56: 6478 | C56: 14 | D56: 6482 | E56: 13 | F56: 6487 | G56: 14 | H56: 6495 | K56: 0 | L56: 1111
A57: 12 | B57: 6592 | C57: 14 | D57: 6611 | E57: 24 | F57: 6622 | G57: 23 | H57: 6629 | K57: 0 | L57: 1122
A58: 12 | B58: 6727 | C58: 14 | D58: 6732 | E58: 24 | F58: 6743 | G58: 23 | H58: 6751 | K58: 0 | L58: 1122
A59: 12 | B59: 6843 | C59: 23 | D59: 6863 | E59: 24 | F59: 6870 | G59: 14 | H59: 6888 | K59: 0 | L59: 1221
A60: 12 | B60: 6983 | C60: 23 | D60: 6995 | E60: 24 | F60: 6999 | G60: 23 | H60: 7007 | K60: 0 | L60: 1222
A61: 12 | B61: 7104 | C61: 14 | D61: 7108 | E61: 24 | F61: 7121 | G61: 23 | H61: 7125 | K61: 0 | L61: 1122
A62: 12 | B62: 7223 | C62: 14 | D62: 7238 | E62: 13 | F62: 7242 | G62: 14 | H62: 7247 | K62: 0 | L62: 1111
A63: 12 | B63: 7342 | C63: 23 | D63: 7354 | E63: 24 | F63: 7361 | G63: 14 | H63: 7386 | K63: 0 | L63: 1221
A64: 12 | B64: 7483 | C64: 14 | D64: 7487 | E64: 13 | F64: 7492 | G64: 23 | H64: 7503 | K64: 0 | L64: 1112
A65: 12 | B65: 7593 | C65: 23 | D65: 7605 | E65: 24 | F65: 7618 | G65: 14 | H65: 7636 | K65: 0 | L65: 1221
A66: 12 | B66: 7731 | C66: 23 | D66: 7745 | E66: 24 | F66: 7749 | G66: 14 | H66: 7764 | K66: 0 | L66: 1221
A67: 12 | B67: 7859 | C67: 14 | D67: 7867 | E67: 13 | F67: 7885 | G67: 14 | H67: 7890 | K67: 0 | L67: 1111
A68: 12 | B68: 7987 | C68: 23 | D68: 8006 | E68: 24 | F68: 8015 | G68: 23 | H68: 8026 | K68: 0 | L68: 1222
A69: 12 | B69: 8119 | C69: 23 | D69: 8131 | E69: 24 | F69: 8138 | G69: 23 | H69: 8155 | K69: 0 | L69: 1222
A70: 12 | B70: 8255 | C70: 14 | D70: 8272 | E70: 13 | F70: 8279 | G70: 23 | H70: 8290 | K70: 0 | L70: 1112
A71: 12 | B71: 8390 | C71: 23 | D71: 8402 | E71: 24 | F71: 8409 | G71: 23 | H71: 8421 | K71: 0 | L71: 1222
A72: 12 | B72: 8519 | C72: 23 | D72: 8531 | E72: 24 | F72: 8535 | G72: 23 | H72: 8548 | K72: 0 | L72: 1222
A73: 12 | B73: 8650 | C73: 23 | D73: 8661 | E73: 24 | F73: 8665 | G73: 14 | H73: 8678 | K73: 0 | L73: 1221
A74: 21 | B74: 8799 | C74: 21 | D74: 8807 | E74: 22 | F74: 8820 | G74: 23 | H74: 8833 | K74: 0 | L74: 2222
A75: 12 | B75: 8928 | C75: 14 | D75: 8947 | E75: 13 | F75: 8951 | G75: 14 | H75: 8956 | K75: 0 | L75: 1111
A76: 12 | B76: 9050 | C76: 23 | D76: 9062 | E76: 24 | F76: 9067 | G76: 23 | H76: 9088 | K76: 0 | L76: 1222
A77: 12 | B77: 9191 | C77: 14 | D77: 9212 | E77: 13 | F77: 9218 | G77: 14 | H77: 9227 | K77: 0 | L77: 1111
A78: 12 | B78: 9324 | C78: 14 | D78: 9338 | E78: 24 | F78: 9350 | G78: 23 | H78: 9357 | K78: 0 | L78: 1122
A79: 12 | B79: 9450 | C79: 23 | D79: 9463 | E79: 24 | F79: 9471 | G79: 23 | H79: 9486 | K79: 0 | L79: 1222
A80: 12 | B80: 9586 | C80: 23 | D80: 9598 | E80: 24 | F80: 9603 | G80: 23 | H80: 9616 | K80: 0 | L80: 1222
A81: 12 | B81: 9715 | C81: 14 | D81: 9719 | E81: 13 | F81: 9744 | G81: 14 | H81: 9749 | K81: 0 | L81: 1111
A82: 12 | B82: 9857 | C82: 14 | D82: 9862 | E82: 13 | F82: 9870 | G82: 14 | H82: 9874 | K82: 0 | L82: 1111
A83: 12 | B83: 9988 | C83: 14 | D83: 9993 | E83: 13 | F83: 9998 | G83: 14 | H83: 10005 | K83: 0 | L83: 1111
A84: 12 | B84: 10103 | C84: 14 | D84: 10124 | E84: 13 | F84: 10130 | G84: 23 | H84: 10141 | K84: 0 | L84: 1112
A85: 12 | B85: 10249 | C85: 14 | D85: 10270 | E85: 13 | F85: 10274 | G85: 14 | H85: 10281 | K85: 0 | L85: 1111
A86: 12 | B86: 10378 | C86: 14 | D86: 10397 | E86: 13 | F86: 10404 | G86: 14 | H86: 10415 | K86: 0 | L86: 1111
A87: 12 | B87: 10514 | C87: 14 | D87: 10533 | E87: 13 | F87: 10539 | G87: 14 | H87: 10543 | K87: 0 | L87: 1111
A88: 12 | B88: 10642 | C88: 14 | D88: 10655 | E88: 24 | F88: 10668 | G88: 23 | H88: 10676 | K88: 0 | L88: 1122
A89: 12 | B89: 10771 | C89: 14 | D89: 10783 | E89: 13 | F89: 10788 | G89: 14 | H89: 10793 | K89: 0 | L89: 1111
A90: 12 | B90: 10885 | C90: 14 | D90: 10898 | E90: 13 | F90: 10919 | G90: 14 | H90: 10923 | K90: 0 | L90: 1111
A91: 12 | B91: 11039 | C91: 23 | D91: 11051 | E91: 24 | F91: 11058 | G91: 23 | H91: 11072 | K91: 0 | L91: 1222
A92: 12 | B92: 11171 | C92: 23 | D92: 11182 | E92: 24 | F92: 11189 | G92: 23 | H92: 11205 | K92: 0 | L92: 1222
A93: 12 | B93: 11306 | C93: 14 | D93: 11319 | E93: 13 | F93: 11335 | G93: 14 | H93: 11340 | K93: 0 | L93: 1111
A94: 12 | B94: 11439 | C94: 14 | D94: 11452 | E94: 13 | F94: 11468 | G94: 23 | H94: 11480 | K94: 0 | L94: 1112
A95: 12 | B95: 11577 | C95: 14 | D95: 11585 | E95: 13 | F95: 11601 | G95: 14 | H95: 11606 | K95: 0 | L95: 1111
A96: 12 | B96: 11696 | C96: 14 | D96: 11715 | E96: 24 | F96: 11727 | G96: 23 | H96: 11734 | K96: 0 | L96: 1122
A97: 12 | B97: 11836 | C97: 14 | D97: 11843 | E97: 13 | F97: 11848 | G97: 14 | H97: 11870 | K97: 0 | L97: 1111
A98: 12 | B98: 11972 | C98: 14 | D98: 11977 | E98: 13 | F98: 11982 | G98: 14 | H98: 11987 | K98: 0 | L98: 1111
A99: 12 | B99: 12093 | C99: 14 | D99: 12098 | E99: 13 | F99: 12103 | G99: 14 | H99: 12107 | K99: 0 | L99: 1111
A100: 12 | B100: 12214 | C100: 14 | D100: 12229 | E100: 13 | F100: 12241 | G100: 14 | H100: 12248 | K100: 0 | L100: 1111
A101: 12 | B101: 12345 | C101: 14 | D101: 12357 | E101: 24 | F101: 12381 | G101: 23 | H101: 12388 | K101: 0 | L101: 1122
A102: 12 | B102: 12485 | C102: 14 | D102: 12489 | E102: 24 | F102: 12523 | G102: 23 | H102: 12534 | K102: 0 | L102: 1122
A103: 12 | B103: 12629 | C103: 14 | D103: 12638 | E103: 13 | F103: 12645 | G103: 14 | H103: 12654 | K103: 0 | L103: 1111
A104: 12 | B104: 12751 | C104: 23 | D104: 12772 | E104: 24 | F104: 12779 | G104: 23 | H104: 12792 | K104: 0 | L104: 1222
A105: 12 | B105: 12890 | C105: 14 | D105: 12903 | E105: 13 | F105: 12908 | G105: 14 | H105: 12913 | K105: 0 | L105: 1111
A106: 12 | B106: 13010 | C106: 14 | D106: 13016 | E106: 24 | F106: 13027 | G106: 23 | H106: 13032 | K106: 0 | L106: 1122
A107: 12 | B107: 13127 | C107: 23 | D107: 13141 | E107: 24 | F107: 13147 | G107: 14 | H107: 13164 | K107: 0 | L107: 1221
A108: 12 | B108: 13268 | C108: 23 | D108: 13280 | E108: 24 | F108: 13288 | G108: 23 | H108: 13300 | K108: 0 | L108: 1222
A109: 12 | B109: 13397 | C109: 14 | D109: 13404 | E109: 24 | F109: 13425 | G109: 23 | H109: 13432 | K109: 0 | L109: 1122
A110: 12 | B110: 13532 | C110: 14 | D110: 13546 | E110: 13 | F110: 13551 | G110: 23 | H110: 13565 | K110: 0 | L110: 1112
A111: 12 | B111: 13661 | C111: 23 | D111: 13682 | E111: 24 | F111: 13690 | G111: 23 | H111: 13703 | K111: 0 | L111: 1222
A112: 12 | B112: 13801 | C112: 14 | D112: 13808 | E112: 13 | F112: 13819 | G112: 23 | H112: 13838 | K112: 0 | L112: 1112
A113: 12 | B113: 13935 | C113: 14 | D113: 13943 | E113: 24 | F113: 13959 | G113: 23 | H113: 13967 | K113: 0 | L113: 1122
A114: 12 | B114: 14064 | C114: 14 | D114: 14073 | E114: 13 | F114: 14088 | G114: 14 | H114: 14093 | K114: 0 | L114: 1111
A115: 12 | B115: 14203 | C115: 14 | D115: 14211 | E115: 24 | F115: 14222 | G115: 23 | H115: 14230 | K115: 0 | L115: 1122
A116: 12 | B116: 14327 | C116: 14 | D116: 14351 | E116: 24 | F116: 14364 | G116: 23 | H116: 14372 | K116: 0 | L116: 1122
A117: 12 | B117: 14472 | C117: 14 | D117: 14479 | E117: 13 | F117: 14504 | G117: 14 | H117: 14518 | K117: 0 | L117: 1111
A118: 12 | B118: 14616 | C118: 14 | D118: 14637 | E118: 24 | F118: 14660 | G118: 23 | H118: 14669 | K118: 0 | L118: 1122
A119: 12 | B119: 14769 | C119: 14 | D119: 14783 | E119: 24 | F119: 14796 | G119: 23 | H119: 14804 | K119: 0 | L119: 1122
A120: 12 | B120: 14902 | C120: 23 | D120: 14925 | E120: 24 | F120: 14933 | G120: 23 | H120: 14958 | K120: 0 | L120: 1222
A121: 12 | B121: 15054 | C121: 14 | D121: 15069 | E121: 13 | F121: 15076 | G121: 23 | H121: 15091 | K121: 0 | L121: 1112
A122: 12 | B122: 15183 | C122: 14 | D122: 15206 | E122: 13 | F122: 15211 | G122: 14 | H122: 15216 | K122: 0 | L122: 1111
A123: 12 | B123: 15311 | C123: 14 | D123: 15328 | E123: 13 | F123: 15334 | G123: 14 | H123: 15343 | K123: 0 | L123: 1111
A124: 12 | B124: 15440 | C124: 14 | D124: 15447 | E124: 13 | F124: 15462 | G124: 14 | H124: 15473 | K124: 0 | L124: 1111
A125: 12 | B125: 15570 | C125: 14 | D125: 15584 | E125: 13 | F125: 15603 | G125: 14 | H125: 15610 | K125: 0 | L125: 1111
A126: 12 | B126: 15707 | C126: 14 | D126: 15717 | E126: 24 | F126: 15727 | G126: 23 | H126: 15734 | K126: 0 | L126: 1122
A127: 12 | B127: 15833 | C127: 23 | D127: 15845 | E127: 24 | F127: 15851 | G127: 14 | H127: 15864 | K127: 0 | L127: 1221
A128: 12 | B128: 15959 | C128: 14 | D128: 15975 | E128: 13 | F128: 15983 | G128: 23 | H128: 16015 | K128: 0 | L128: 1112
A129: 12 | B129: 16116 | C129: 23 | D129: 16135 | E129: 24 | F129: 16140 | G129: 23 | H129: 16148 | K129: 0 | L129: 1222
A130: 12 | B130: 16249 | C130: 14 | D130: 16261 | E130: 13 | F130: 16266 | G130: 14 | H130: 16270 | K130: 0 | L130: 1111
A131: 12 | B131: 16370 | C131: 14 | D131: 16385 | E131: 24 | F131: 16398 | G131: 23 | H131: 16406 | K131: 0 | L131: 1122
A132: 12 | B132: 16500 | C132: 23 | D132: 16513 | E132: 24 | F132: 16518 | G132: 23 | H132: 16532 | K132: 0 | L132: 1222
A133: 12 | B133: 16630 | C133: 14 | D133: 16650 | E133: 24 | F133: 16662 | G133: 23 | H133: 16670 | K133: 0 | L133: 1122
A134: 12 | B134: 16767 | C134: 14 | D134: 16774 | E134: 24 | F134: 16787 | G134: 23 | H134: 16795 | K134: 0 | L134: 1122
A135: 12 | B135: 16892 | C135: 14 | D135: 16901 | E135: 13 | F135: 16918 | G135: 14 | H135: 16926 | K135: 0 | L135: 1111
A136: 12 | B136: 17019 | C136: 14 | D136: 17044 | E136: 13 | F136: 17052 | G136: 14 | H136: 17059 | K136: 0 | L136: 1111
A137: 12 | B137: 17157 | C137: 14 | D137: 17166 | E137: 24 | F137: 17180 | G137: 23 | H137: 17189 | K137: 0 | L137: 1122
A138: 12 | B138: 17289 | C138: 14 | D138: 17301 | E138: 24 | F138: 17319 | G138: 23 | H138: 17327 | K138: 0 | L138: 1122
A139: 12 | B139: 17425 | C139: 14 | D139: 17444 | E139: 13 | F139: 17450 | G139: 14 | H139: 17455 | K139: 0 | L139: 1111
A140: 12 | B140: 17555 | C140: 14 | D140: 17563 | E140: 13 | F140: 17579 | G140: 23 | H140: 17593 | K140: 0 | L140: 1112
A141: 12 | B141: 17683 | C141: 23 | D141: 17705 | E141: 24 | F141: 17709 | G141: 23 | H141: 17723 | K141: 0 | L141: 1222
A142: 12 | B142: 17824 | C142: 14 | D142: 17828 | E142: 24 | F142: 17844 | G142: 23 | H142: 17853 | K142: 0 | L142: 1122
A143: 12 | B143: 17949 | C143: 14 | D143: 17955 | E143: 24 | F143: 17968 | G143: 23 | H143: 17976 | K143: 0 | L143: 1122
A144: 12 | B144: 18073 | C144: 14 | D144: 18077 | E144: 24 | F144: 18091 | G144: 23 | H144: 18099 | K144: 0 | L144: 1122
A145: 12 | B145: 18195 | C145: 14 | D145: 18200 | E145: 24 | F145: 18212 | G145: 23 | H145: 18217 | K145: 0 | L145: 1122
A146: 12 | B146: 18313 | C146: 14 | D146: 18321 | E146: 13 | F146: 18345 | G146: 14 | H146: 18349 | K146: 0 | L146: 1111
A147: 12 | B147: 18447 | C147: 23 | D147: 18467 | E147: 24 | F147: 18475 | G147: 23 | H147: 18488 | K147: 0 | L147: 1222
A148: 12 | B148: 18588 | C148: 14 | D148: 18601 | E148: 13 | F148: 18606 | G148: 14 | H148: 18611 | K148: 0 | L148: 1111
A149: 12 | B149: 18706 | C149: 23 | D149: 18727 | E149: 24 | F149: 18736 | G149: 23 | H149: 18752 | K149: 0 | L149: 1222
A150: 12 | B150: 18849 | C150: 23 | D150: 18861 | E150: 24 | F150: 18870 | G150: 23 | H150: 18883 | K150: 0 | L150: 1222
A151: 12 | B151: 18979 | C151: 14 | D151: 18995 | E151: 24 | F151: 19006 | G151: 23 | H151: 19031 | K151: 0 | L151: 1122
A152: 12 | B152: 19123 | C152: 23 | D152: 19147 | E152: 24 | F152: 19155 | G152: 14 | H152: 19173 | K152: 0 | L152: 1221
A153: 12 | B153: 19269 | C153: 23 | D153: 19299 | E153: 24 | F153: 19311 | G153: 23 | H153: 19326 | K153: 0 | L153: 1222
A154: 12 | B154: 19422 | C154: 23 | D154: 19442 | E154: 24 | F154: 19450 | G154: 23 | H154: 19470 | K154: 0 | L154: 1222
A155: 12 | B155: 19567 | C155: 23 | D155: 19579 | E155: 24 | F155: 19587 | G155: 23 | H155: 19600 | K155: 0 | L155: 1222
A156: 12 | B156: 19701 | C156: 14 | D156: 19713 | E156: 24 | F156: 19724 | G156: 23 | H156: 19735 | K156: 0 | L156: 1122
A157: 12 | B157: 19826 | C157: 23 | D157: 19839 | E157: 24 | F157: 19848 | G157: 14 | H157: 19886 | K157: 0 | L157: 1221
A158: 12 | B158: 19991 | C158: 23 | D158: 20003 | E158: 24 | F158: 20010 | G158: 14 | H158: 20030 | K158: 0 | L158: 1221
A159: 12 | B159: 20129 | C159: 14 | D159: 20140 | E159: 24 | F159: 20151 | G159: 23 | H159: 20158 | K159: 0 | L159: 1122
A160: 12 | B160: 20248 | C160: 14 | D160: 20258 | E160: 24 | F160: 20270 | G160: 23 | H160: 20274 | K160: 0 | L160: 1122
A161: 12 | B161: 20371 | C161: 14 | D161: 20379 | E161: 24 | F161: 20391 | G161: 23 | H161: 20412 | K161: 0 | L161: 1122
A162: 12 | B162: 20511 | C162: 14 | D162: 20519 | E162: 24 | F162: 20530 | G162: 23 | H162: 20538 | K162: 0 | L162: 1122
A163: 12 | B163: 20639 | C163: 14 | D163: 20651 | E163: 13 | F163: 20673 | G163: 14 | H163: 20678 | K163: 0 | L163: 1111
A164: 12 | B164: 20775 | C164: 14 | D164: 20801 | E164: 24 | F164: 20811 | G164: 23 | H164: 20819 | K164: 0 | L164: 1122
A165: 12 | B165: 20917 | C165: 14 | D165: 20928 | E165: 13 | F165: 20934 | G165: 14 | H165: 20938 | K165: 0 | L165: 1111
A166: 12 | B166: 21037 | C166: 23 | D166: 21056 | E166: 24 | F166: 21063 | G166: 14 | H166: 21082 | K166: 0 | L166: 1221
A167: 12 | B167: 21174 | C167: 14 | D167: 21192 | E167: 13 | F167: 21198 | G167: 14 | H167: 21206 | K167: 0 | L167: 1111
A168: 12 | B168: 21302 | C168: 23 | D168: 21314 | E168: 24 | F168: 21322 | G168: 23 | H168: 21335 | K168: 0 | L168: 1222
A169: 12 | B169: 21432 | C169: 14 | D169: 21447 | E169: 13 | F169: 21453 | G169: 14 | H169: 21458 | K169: 0 | L169: 1111
A170: 12 | B170: 21553 | C170: 14 | D170: 21559 | E170: 24 | F170: 21579 | G170: 23 | H170: 21587 | K170: 0 | L170: 1122
A171: 12 | B171: 21693 | C171: 14 | D171: 21699 | E171: 13 | F171: 21711 | G171: 14 | H171: 21719 | K171: 0 | L171: 1111
A172: 12 | B172: 21816 | C172: 14 | D172: 21827 | E172: 24 | F172: 21842 | G172: 14 | H172: 21871 | K172: 0 | L172: 1121
A173: 12 | B173: 21966 | C173: 14 | D173: 21976 | E173: 24 | F173: 21987 | G173: 23 | H173: 21994 | K173: 0 | L173: 1122
A174: 12 | B174: 22096 | C174: 23 | D174: 22117 | E174: 24 | F174: 22126 | G174: 23 | H174: 22142 | K174: 0 | L174: 1222
A175: 12 | B175: 22233 | C175: 23 | D175: 22257 | E175: 24 | F175: 22269 | G175: 23 | H175: 22282 | K175: 0 | L175: 1222
A176: 12 | B176: 22376 | C176: 14 | D176: 22387 | E176: 24 | F176: 22399 | G176: 23 | H176: 22405 | K176: 0 | L176: 1122
A177: 12 | B177: 22506 | C177: 14 | D177: 22520 | E177: 13 | F177: 22526 | G177: 14 | H177: 22529 | K177: 0 | L177: 1111
A178: 12 | B178: 22624 | C178: 23 | D178: 22636 | E178: 13 | F178: 22651 | G178: 23 | H178: 22662 | K178: 0 | L178: 1212
A179: 12 | B179: 22754 | C179: 14 | D179: 22773 | E179: 24 | F179: 22787 | G179: 23 | H179: 22800 | K179: 0 | L179: 1122
A180: 12 | B180: 22893 | C180: 23 | D180: 22908 | E180: 13 | F180: 22925 | G180: 14 | H180: 22934 | K180: 0 | L180: 1211
A181: 12 | B181: 23035 | C181: 23 | D181: 23048 | E181: 24 | F181: 23055 | G181: 14 | H181: 23074 | K181: 0 | L181: 1221
A182: 12 | B182: 23174 | C182: 23 | D182: 23196 | E182: 13 | F182: 23216 | G182: 23 | H182: 23246 | K182: 0 | L182: 1212
A183: 12 | B183: 23356 | C183: 14 | D183: 23363 | E183: 13 | F183: 23369 | G183: 14 | H183: 23376 | K183: 0 | L183: 1111
A184: 12 | B184: 23475 | C184: 14 | D184: 23492 | E184: 24 | F184: 23502 | G184: 23 | H184: 23510 | K184: 0 | L184: 1122
A185: 12 | B185: 23608 | C185: 14 | D185: 23621 | E185: 24 | F185: 23632 | G185: 23 | H185: 23640 | K185: 0 | L185: 1122
A186: 12 | B186: 23735 | C186: 14 | D186: 23743 | E186: 13 | F186: 23759 | G186: 14 | H186: 23765 | K186: 0 | L186: 1111
A187: 12 | B187: 23860 | C187: 23 | D187: 23870 | E187: 13 | F187: 23882 | G187: 23 | H187: 23893 | K187: 0 | L187: 1212
A188: 12 | B188: 23988 | C188: 23 | D188: 23997 | L188: 12

Sheet !M820930.000
A1: Report for:!M820930.000
A2: Date: | B2: <date>
A3: Hen: | B3: <hen> | F3: Correct Sequence | G3: =Start!J2 -> 2212 | P3: Total Sequences in Data | Q3: =4994-COUNTBLANK(L7:L5000) -> 178 | V3: Total Sequences in Block Data | W3: =COUNTA(L7:L36) -> 30 | AA3: Total Sequences in Block Data | AB3: =COUNTA(L37:L65) -> 29 | AF3: Total Sequences in Block Data | AG3: =COUNTA(L66:L95) -> 30 | AK3: Total Sequences in Block Data | AL3: =COUNTA(L96:L125) -> 30 | AP3: Total Sequences in Block Data | AQ3: =COUNTA(L126:L154) -> 29 | AU3: Total Sequences in Block Data | AV3: =COUNTA(L155:L184) -> 30
P4: Total Sequences in Summary | Q4: =SUM(O7:O22) -> 177 | V4: Total Sequences in Block Summary | W4: =SUM(U7:U22) -> 30 | AA4: Total Sequences in Block Summary | AB4: =SUM(Z7:Z22) -> 29 | AF4: Total Sequences in Block Summary | AG4: =SUM(AE7:AE22) -> 30 | AK4: Total Sequences in Block Summary | AL4: =SUM(AJ7:AJ22) -> 30 | AP4: Total Sequences in Block Summary | AQ4: =SUM(AO7:AO22) -> 29 | AU4: Total Sequences in Block Summary | AV4: =SUM(AT7:AT22) -> 29
T5: Block 1 | Y5: Block 2 | AD5: Block 3 | AI5: Block 4 | AN5: Block 5 | AS5: Block 6
A6: Sequence Component 1 | B6: Time 1 | C6: Sequence Component 2 | D6: Time 2 | E6: Sequence Component 3 | F6: Time 3 | G6: Sequence Component 4 | H6: Time 4 | I6: Sequence Component 5 | J6: Time 5 | K6: Correct? 0=No 1=Yes | L6: Sequence | N6: Frequency | P6: Relative Frequency | Q6: Variability | T6: Frequency | V6: Relative Frequency | W6: Variability | Y6: Frequency | AA6: Relative Frequency | AB6: Variability | AD6: Frequency | AF6: Relative Frequency | AG6: Variability | AI6: Frequency | AK6: Relative Frequency | AL6: Variability | AN6: Frequency | AP6: Relative Frequency | AQ6: Variability | AS6: Frequency | AU6: Relative Frequency | AV6: Variability
A7: 21 | B7: 61 | C7: 21 | D7: 72 | E7: 11 | F7: 84 | G7: 21 | H7: 97 | K7: 0 | L7: 2212 | N7: 1111 | O7: =COUNTIF($L$7:$L$500,N7) -> 35 | P7: =O7/$Q$4 -> 0.197740113 | Q7: =IF(P7=0,0,(P7*((LOG(P7))/LOG(2)))) -> -0.4623801619 | T7: =N7 -> 1111 | U7: =COUNTIF(L7:L36,T7) -> 6 | V7: =U7/(W4-U20) -> 0.2068965517 | W7: =IF(V7=0,0,(V7*((LOG(V7))/LOG(2)))) -> -0.4702796885 | Y7: =N7 -> 1111 | Z7: =COUNTIF(L37:L65,Y7) -> 5 | AA7: =Z7/(AB4-Z20) -> 0.1724137931 | AB7: =IF(AA7=0,0,(AA7*((LOG(AA7))/LOG(2)))) -> -0.4372505 | AD7: =N7 -> 1111 | AE7: =COUNTIF(L66:L95,AD7) -> 2 | AF7: =AE7/(AG4-AE20) -> 0.06666666667 | AG7: =IF(AF7=0,0,(AF7*((LOG(AF7))/LOG(2)))) -> -0.260459373 | AI7: =N7 -> 1111 | AJ7: =COUNTIF(L96:L125,AI7) -> 2 | AK7: =AJ7/(AL4-AJ20) -> 0.06666666667 | AL7: =IF(AK7=0,0,(AK7*((LOG(AK7))/LOG(2)))) -> -0.260459373 | AN7: =N7 -> 1111 | AO7: =COUNTIF(L126:L154,AN7) -> 10 | AP7: =AO7/(AQ4-AO20) -> 0.3448275862 | AQ7: =IF(AP7=0,0,(AP7*((LOG(AP7))/LOG(2)))) -> -0.5296734139 | AS7: =N7 -> 1111 | AT7: =COUNTIF(L155:L184,AS7) -> 10 | AU7: =AT7/(AV4-AT20) -> 0.3448275862 | AV7: =IF(AU7=0,0,(AU7*((LOG(AU7))/LOG(2)))) -> -0.5296734139
A8: 12 | B8: 208 | C8: 14 | D8: 227 | E8: 24 | F8: 239 | G8: 23 | H8: 246 | K8: 0 | L8: 1122 | N8: 1112 | O8: =COUNTIF($L$7:$L$500,N8) -> 23 | P8: =O8/$Q$4 -> 0.1299435028 | Q8: =IF(P8=0,0,(P8*((LOG(P8))/LOG(2)))) -> -0.3825593371 | T8: =N8 -> 1112 | U8: =COUNTIF(L7:L36,T8) -> 5 | V8: =U8/(W4-U20) -> 0.1724137931 | W8: =IF(V8=0,0,(V8*((LOG(V8))/LOG(2)))) -> -0.4372505 | Y8: =N8 -> 1112 | Z8: =COUNTIF(L37:L65,Y8) -> 2 | AA8: =Z8/(AB4-Z20) -> 0.06896551724 | AB8: =IF(AA8=0,0,(AA8*((LOG(AA8))/LOG(2)))) -> -0.2660676548 | AD8: =N8 -> 1112 | AE8: =COUNTIF(L66:L95,AD8) -> 2 | AF8: =AE8/(AG4-AE20) -> 0.06666666667 | AG8: =IF(AF8=0,0,(AF8*((LOG(AF8))/LOG(2)))) -> -0.260459373 | AI8: =N8 -> 1112 | AJ8: =COUNTIF(L96:L125,AI8) -> 2 | AK8: =AJ8/(AL4-AJ20) -> 0.06666666667 | AL8: =IF(AK8=0,0,(AK8*((LOG(AK8))/LOG(2)))) -> -0.260459373 | AN8: =N8 -> 1112 | AO8: =COUNTIF(L126:L154,AN8) -> 7 | AP8: =AO8/(AQ4-AO20) -> 0.2413793103 | AQ8: =IF(AP8=0,0,(AP8*((LOG(AP8))/LOG(2)))) -> -0.4949787073 | AS8: =N8 -> 1112 | AT8: =COUNTIF(L155:L184,AS8) -> 5 | AU8: =AT8/(AV4-AT20) -> 0.1724137931 | AV8: =IF(AU8=0,0,(AU8*((LOG(AU8))/LOG(2)))) -> -0.4372505
A9: 12 | B9: 353 | C9: 23 | D9: 362 | E9: 24 | F9: 371 | G9: 14 | H9: 388 | K9: 0 | L9: 1221 | N9: 1121 | O9: =COUNTIF($L$7:$L$500,N9) -> 3 | P9: =O9/$Q$4 -> 0.01694915254 | Q9: =IF(P9=0,0,(P9*((LOG(P9))/LOG(2)))) -> -0.0997058144 | T9: =N9 -> 1121 | U9: =COUNTIF(L7:L36,T9) -> 1 | V9: =U9/(W4-U20) -> 0.03448275862 | W9: =IF(V9=0,0,(V9*((LOG(V9))/LOG(2)))) -> -0.167516586 | Y9: =N9 -> 1121 | Z9: =COUNTIF(L37:L65,Y9) -> 0 | AA9: =Z9/(AB4-Z20) -> 0 | AB9: =IF(AA9=0,0,(AA9*((LOG(AA9))/LOG(2)))) -> 0 | AD9: =N9 -> 1121 | AE9: =COUNTIF(L66:L95,AD9) -> 0 | AF9: =AE9/(AG4-AE20) -> 0 | AG9: =IF(AF9=0,0,(AF9*((LOG(AF9))/LOG(2)))) -> 0 | AI9: =N9 -> 1121 | AJ9: =COUNTIF(L96:L125,AI9) -> 0 | AK9: =AJ9/(AL4-AJ20) -> 0 | AL9: =IF(AK9=0,0,(AK9*((LOG(AK9))/LOG(2)))) -> 0 | AN9: =N9 -> 1121 | AO9: =COUNTIF(L126:L154,AN9) -> 0 | AP9: =AO9/(AQ4-AO20) -> 0 | AQ9: =IF(AP9=0,0,(AP9*((LOG(AP9))/LOG(2)))) -> 0 | AS9: =N9 -> 1121 | AT9: =COUNTIF(L155:L184,AS9) -> 2 | AU9: =AT9/(AV4-AT20) -> 0.06896551724 | AV9: =IF(AU9=0,0,(AU9*((LOG(AU9))/LOG(2)))) -> -0.2660676548
A10: 12 | B10: 495 | C10: 14 | D10: 502 | E10: 13 | F10: 509 | G10: 23 | H10: 519 | K10: 0 | L10: 1112 | N10: 1122 | O10: =COUNTIF($L$7:$L$500,N10) -> 64 | P10: =O10/$Q$4 -> 0.3615819209 | Q10: =IF(P10=0,0,(P10*((LOG(P10))/LOG(2)))) -> -0.5306596339 | T10: =N10 -> 1122 | U10: =COUNTIF(L7:L36,T10) -> 8 | V10: =U10/(W4-U20) -> 0.275862069 | W10: =IF(V10=0,0,(V10*((LOG(V10))/LOG(2)))) -> -0.5125464814 | Y10: =N10 -> 1122 | Z10: =COUNTIF(L37:L65,Y10) -> 9 | AA10: =Z10/(AB4-Z20) -> 0.3103448276 | AB10: =IF(AA10=0,0,(AA10*((LOG(AA10))/LOG(2)))) -> -0.5238794463 | AD10: =N10 -> 1122 | AE10: =COUNTIF(L66:L95,AD10) -> 12 | AF10: =AE10/(AG4-AE20) -> 0.4 | AG10: =IF(AF10=0,0,(AF10*((LOG(AF10))/LOG(2)))) -> -0.528771238 | AI10: =N10 -> 1122 | AJ10: =COUNTIF(L96:L125,AI10) -> 18 | AK10: =AJ10/(AL4-AJ20) -> 0.6 | AL10: =IF(AK10=0,0,(AK10*((LOG(AK10))/LOG(2)))) -> -0.4421793565 | AN10: =N10 -> 1122 | AO10: =COUNTIF(L126:L154,AN10) -> 10 | AP10: =AO10/(AQ4-AO20) -> 0.3448275862 | AQ10: =IF(AP10=0,0,(AP10*((LOG(AP10))/LOG(2)))) -> -0.5296734139 | AS10: =N10 -> 1122 | AT10: =COUNTIF(L155:L184,AS10) -> 7 | AU10: =AT10/(AV4-AT20) -> 0.2413793103 | AV10: =IF(AU10=0,0,(AU10*((LOG(AU10))/LOG(2)))) -> -0.4949787073
A11: 12 | B11: 619 | C11: 14 | D11: 627 | E11: 24 | F11: 638 | G11: 23 | H11: 644 | K11: 0 | L11: 1122 | N11: 1211 | O11: =COUNTIF($L$7:$L$500,N11) -> 2 | P11: =O11/$Q$4 -> 0.01129943503 | Q11: =IF(P11=0,0,(P11*((LOG(P11))/LOG(2)))) -> -0.0730802887 | T11: =N11 -> 1211 | U11: =COUNTIF(L7:L36,T11) -> 0 | V11: =U11/(W4-U20) -> 0 | W11: =IF(V11=0,0,(V11*((LOG(V11))/LOG(2)))) -> 0 | Y11: =N11 -> 1211 | Z11: =COUNTIF(L37:L65,Y11) -> 1 | AA11: =Z11/(AB4-Z20) -> 0.03448275862 | AB11: =IF(AA11=0,0,(AA11*((LOG(AA11))/LOG(2)))) -> -0.167516586 | AD11: =N11 -> 1211 | AE11: =COUNTIF(L66:L95,AD11) -> 1 | AF11: =AE11/(AG4-AE20) -> 0.03333333333 | AG11: =IF(AF11=0,0,(AF11*((LOG(AF11))/LOG(2)))) -> -0.1635630199 | AI11: =N11 -> 1211 | AJ11: =COUNTIF(L96:L125,AI11) -> 0 | AK11: =AJ11/(AL4-AJ20) -> 0 | AL11: =IF(AK11=0,0,(AK11*((LOG(AK11))/LOG(2)))) -> 0 | AN11: =N11 -> 1211 | AO11: =COUNTIF(L126:L154,AN11) -> 0 | AP11: =AO11/(AQ4-AO20) -> 0 | AQ11: =IF(AP11=0,0,(AP11*((LOG(AP11))/LOG(2)))) -> 0 | AS11: =N11 -> 1211 | AT11: =COUNTIF(L155:L184,AS11) -> 0 | AU11: =AT11/(AV4-AT20) -> 0 | AV11: =IF(AU11=0,0,(AU11*((LOG(AU11))/LOG(2)))) -> 0
A12: 12 | B12: 743 | C12: 14 | D12: 751 | E12: 13 | F12: 773 | G12: 14 | H12: 782 | K12: 0 | L12: 1111 | N12: 1212 | O12: =COUNTIF($L$7:$L$500,N12) -> 0 | P12: =O12/$Q$4 -> 0 | Q12: =IF(P12=0,0,(P12*((LOG(P12))/LOG(2)))) -> 0 | T12: =N12 -> 1212 | U12: =COUNTIF(L7:L36,T12) -> 0 | V12: =U12/(W4-U20) -> 0 | W12: =IF(V12=0,0,(V12*((LOG(V12))/LOG(2)))) -> 0 | Y12: =N12 -> 1212 | Z12: =COUNTIF(L37:L65,Y12) -> 0 | AA12: =Z12/(AB4-Z20) -> 0 | AB12: =IF(AA12=0,0,(AA12*((LOG(AA12))/LOG(2)))) -> 0 | AD12: =N12 -> 1212 | AE12: =COUNTIF(L66:L95,AD12) -> 0 | AF12: =AE12/(AG4-AE20) -> 0 | AG12: =IF(AF12=0,0,(AF12*((LOG(AF12))/LOG(2)))) -> 0 | AI12: =N12 -> 1212 | AJ12: =COUNTIF(L96:L125,AI12) -> 0 | AK12: =AJ12/(AL4-AJ20) -> 0 | AL12: =IF(AK12=0,0,(AK12*((LOG(AK12))/LOG(2)))) -> 0 | AN12: =N12 -> 1212 | AO12: =COUNTIF(L126:L154,AN12) -> 0 | AP12: =AO12/(AQ4-AO20) -> 0 | AQ12: =IF(AP12=0,0,(AP12*((LOG(AP12))/LOG(2)))) -> 0 | AS12: =N12 -> 1212 | AT12: =COUNTIF(L155:L184,AS12) -> 0 | AU12: =AT12/(AV4-AT20) -> 0 | AV12: =IF(AU12=0,0,(AU12*((LOG(AU12))/LOG(2)))) -> 0
A13: 21 | B13: 898 | C13: 21 | D13: 905 | E13: 11 | F13: 919 | G13: 12 | H13: 927 | K13: 0 | L13: 2211 | N13: 1221 | O13: =COUNTIF($L$7:$L$500,N13) -> 10 | P13: =O13/$Q$4 -> 0.05649717514 | Q13: =IF(P13=0,0,(P13*((LOG(P13))/LOG(2)))) -> -0.2342190653 | T13: =N13 -> 1221 | U13: =COUNTIF(L7:L36,T13) -> 4 | V13: =U13/(W4-U20) -> 0.1379310345 | W13: =IF(V13=0,0,(V13*((LOG(V13))/LOG(2)))) -> -0.3942042752 | Y13: =N13 -> 1221 | Z13: =COUNTIF(L37:L65,Y13) -> 4 | AA13: =Z13/(AB4-Z20) -> 0.1379310345 | AB13: =IF(AA13=0,0,(AA13*((LOG(AA13))/LOG(2)))) -> -0.3942042752 | AD13: =N13 -> 1221 | AE13: =COUNTIF(L66:L95,AD13) -> 1 | AF13: =AE13/(AG4-AE20) -> 0.03333333333 | AG13: =IF(AF13=0,0,(AF13*((LOG(AF13))/LOG(2)))) -> -0.1635630199 | AI13: =N13 -> 1221 | AJ13: =COUNTIF(L96:L125,AI13) -> 1 | AK13: =AJ13/(AL4-AJ20) -> 0.03333333333 | AL13: =IF(AK13=0,0,(AK13*((LOG(AK13))/LOG(2)))) -> -0.1635630199 | AN13: =N13 -> 1221 | AO13: =COUNTIF(L126:L154,AN13) -> 0 | AP13: =AO13/(AQ4-AO20) -> 0 | AQ13: =IF(AP13=0,0,(AP13*((LOG(AP13))/LOG(2)))) -> 0 | AS13: =N13 -> 1221 | AT13: =COUNTIF(L155:L184,AS13) -> 0 | AU13: =AT13/(AV4-AT20) -> 0 | AV13: =IF(AU13=0,0,(AU13*((LOG(AU13))/LOG(2)))) -> 0
A14: 12 | B14: 1026 | C14: 14 | D14: 1034 | E14: 24 | F14: 1045 | G14: 23 | H14: 1053 | K14: 0 | L14: 1122 | N14: 1222 | O14: =COUNTIF($L$7:$L$500,N14) -> 30 | P14: =O14/$Q$4 -> 0.1694915254 | Q14: =IF(P14=0,0,(P14*((LOG(P14))/LOG(2)))) -> -0.4340194838 | T14: =N14 -> 1222 | U14: =COUNTIF(L7:L36,T14) -> 3 | V14: =U14/(W4-U20) -> 0.1034482759 | W14: =IF(V14=0,0,(V14*((LOG(V14))/LOG(2)))) -> -0.3385881201 | Y14: =N14 -> 1222 | Z14: =COUNTIF(L37:L65,Y14) -> 5 | AA14: =Z14/(AB4-Z20) -> 0.1724137931 | AB14: =IF(AA14=0,0,(AA14*((LOG(AA14))/LOG(2)))) -> -0.4372505 | AD14: =N14 -> 1222 | AE14: =COUNTIF(L66:L95,AD14) -> 10 | AF14: =AE14/(AG4-AE20) -> 0.3333333333 | AG14: =IF(AF14=0,0,(AF14*((LOG(AF14))/LOG(2)))) -> -0.5283208336 | AI14: =N14 -> 1222 | AJ14: =COUNTIF(L96:L125,AI14) -> 6 | AK14: =AJ14/(AL4-AJ20) -> 0.2 | AL14: =IF(AK14=0,0,(AK14*((LOG(AK14))/LOG(2)))) -> -0.464385619 | AN14: =N14 -> 1222 | AO14: =COUNTIF(L126:L154,AN14) -> 2 | AP14: =AO14/(AQ4-AO20) -> 0.06896551724 | AQ14: =IF(AP14=0,0,(AP14*((LOG(AP14))/LOG(2)))) -> -0.2660676548 | AS14: =N14 -> 1222 | AT14: =COUNTIF(L155:L184,AS14) -> 4 | AU14: =AT14/(AV4-AT20) -> 0.1379310345 | AV14: =IF(AU14=0,0,(AU14*((LOG(AU14))/LOG(2)))) -> -0.3942042752
A15: 12 | B15: 1152 | C15: 14 | D15: 1159 | E15: 13 | F15: 1178 | G15: 14 | H15: 1183 | K15: 0 | L15: 1111 | N15: 2111 | O15: =COUNTIF($L$7:$L$500,N15) -> 0 | P15: =O15/$Q$4 -> 0 | Q15: =IF(P15=0,0,(P15*((LOG(P15))/LOG(2)))) -> 0 | T15: =N15 -> 2111 | U15: =COUNTIF(L7:L36,T15) -> 0 | V15: =U15/(W4-U20) -> 0 | W15: =IF(V15=0,0,(V15*((LOG(V15))/LOG(2)))) -> 0 | Y15: =N15 -> 2111 | Z15: =COUNTIF(L37:L65,Y15) -> 0 | AA15: =Z15/(AB4-Z20) -> 0 | AB15: =IF(AA15=0,0,(AA15*((LOG(AA15))/LOG(2)))) -> 0 | AD15: =N15 -> 2111 | AE15: =COUNTIF(L66:L95,AD15) -> 0 | AF15: =AE15/(AG4-AE20) -> 0 | AG15: =IF(AF15=0,0,(AF15*((LOG(AF15))/LOG(2)))) -> 0 | AI15: =N15 -> 2111 | AJ15: =COUNTIF(L96:L125,AI15) -> 0 | AK15: =AJ15/(AL4-AJ20) -> 0 | AL15: =IF(AK15=0,0,(AK15*((LOG(AK15))/LOG(2)))) -> 0 | AN15: =N15 -> 2111 | AO15: =COUNTIF(L126:L154,AN15) -> 0 | AP15: =AO15/(AQ4-AO20) -> 0 | AQ15: =IF(AP15=0,0,(AP15*((LOG(AP15))/LOG(2)))) -> 0 | AS15: =N15 -> 2111 | AT15: =COUNTIF(L155:L184,AS15) -> 0 | AU15: =AT15/(AV4-AT20) -> 0 | AV15: =IF(AU15=0,0,(AU15*((LOG(AU15))/LOG(2)))) -> 0
A16: 12 | B16: 1275 | C16: 23 | D16: 1314 | E16: 24 | F16: 1322 | G16: 14 | H16: 1336 | K16: 0 | L16: 1221 | N16: 2112 | O16: =COUNTIF($L$7:$L$500,N16) -> 0 | P16: =O16/$Q$4 -> 0 | Q16: =IF(P16=0,0,(P16*((LOG(P16))/LOG(2)))) -> 0 | T16: =N16 -> 2112 | U16: =COUNTIF(L7:L36,T16) -> 0 | V16: =U16/(W4-U20) -> 0 | W16: =IF(V16=0,0,(V16*((LOG(V16))/LOG(2)))) -> 0 | Y16: =N16 -> 2112 | Z16: =COUNTIF(L37:L65,Y16) -> 0 | AA16: =Z16/(AB4-Z20) -> 0 | AB16: =IF(AA16=0,0,(AA16*((LOG(AA16))/LOG(2)))) -> 0 | AD16: =N16 -> 2112 | AE16: =COUNTIF(L66:L95,AD16) -> 0 | AF16: =AE16/(AG4-AE20) -> 0 | AG16: =IF(AF16=0,0,(AF16*((LOG(AF16))/LOG(2)))) -> 0 | AI16: =N16 -> 2112 | AJ16: =COUNTIF(L96:L125,AI16) -> 0 | AK16: =AJ16/(AL4-AJ20) -> 0 | AL16: =IF(AK16=0,0,(AK16*((LOG(AK16))/LOG(2)))) -> 0 | AN16: =N16 -> 2112 | AO16: =COUNTIF(L126:L154,AN16) -> 0 | AP16: =AO16/(AQ4-AO20) -> 0 | AQ16: =IF(AP16=0,0,(AP16*((LOG(AP16))/LOG(2)))) -> 0 | AS16: =N16 -> 2112 | AT16: =COUNTIF(L155:L184,AS16) -> 0 | AU16: =AT16/(AV4-AT20) -> 0 | AV16: =IF(AU16=0,0,(AU16*((LOG(AU16))/LOG(2)))) -> 0
A17: 12 | B17: 1444 | C17: 14 | D17: 1465 | E17: 24 | F17: 1476 | G17: 23 | H17: 1484 | K17: 0 | L17: 1122 | N17: 2121 | O17: =COUNTIF($L$7:$L$500,N17) -> 0 | P17: =O17/$Q$4 -> 0 | Q17: =IF(P17=0,0,(P17*((LOG(P17))/LOG(2)))) -> 0 | T17: =N17 -> 2121 | U17: =COUNTIF(L7:L36,T17) -> 0 | V17: =U17/(W4-U20) -> 0 | W17: =IF(V17=0,0,(V17*((LOG(V17))/LOG(2)))) -> 0 | Y17: =N17 -> 2121 | Z17: =COUNTIF(L37:L65,Y17) -> 0 | AA17: =Z17/(AB4-Z20) -> 0 | AB17: =IF(AA17=0,0,(AA17*((LOG(AA17))/LOG(2)))) -> 0 | AD17: =N17 -> 2121 | AE17: =COUNTIF(L66:L95,AD17) -> 0 | AF17: =AE17/(AG4-AE20) -> 0 | AG17: =IF(AF17=0,0,(AF17*((LOG(AF17))/LOG(2)))) -> 0 | AI17: =N17 -> 2121 | AJ17: =COUNTIF(L96:L125,AI17) -> 0 | AK17: =AJ17/(AL4-AJ20) -> 0 | AL17: =IF(AK17=0,0,(AK17*((LOG(AK17))/LOG(2)))) -> 0 | AN17: =N17 -> 2121 | AO17: =COUNTIF(L126:L154,AN17) -> 0 | AP17: =AO17/(AQ4-AO20) -> 0 | AQ17: =IF(AP17=0,0,(AP17*((LOG(AP17))/LOG(2)))) -> 0 | AS17: =N17 -> 2121 | AT17: =COUNTIF(L155:L184,AS17) -> 0 | AU17: =AT17/(AV4-AT20) -> 0 | AV17: =IF(AU17=0,0,(AU17*((LOG(AU17))/LOG(2)))) -> 0
A18: 12 | B18: 1587 | C18: 14 | D18: 1609 | E18: 13 | F18: 1615 | G18: 14 | H18: 1619 | K18: 0 | L18: 1111 | N18: 2122 | O18: =COUNTIF($L$7:$L$500,N18) -> 1 | P18: =O18/$Q$4 -> 0.005649717514 | Q18: =IF(P18=0,0,(P18*((LOG(P18))/LOG(2)))) -> -0.04218986186 | T18: =N18 -> 2122 | U18: =COUNTIF(L7:L36,T18) -> 0 | V18: =U18/(W4-U20) -> 0 | W18: =IF(V18=0,0,(V18*((LOG(V18))/LOG(2)))) -> 0 | Y18: =N18 -> 2122 | Z18: =COUNTIF(L37:L65,Y18) -> 1 | AA18: =Z18/(AB4-Z20) -> 0.03448275862 | AB18: =IF(AA18=0,0,(AA18*((LOG(AA18))/LOG(2)))) -> -0.167516586 | AD18: =N18 -> 2122 | AE18: =COUNTIF(L66:L95,AD18) -> 0 | AF18: =AE18/(AG4-AE20) -> 0 | AG18: =IF(AF18=0,0,(AF18*((LOG(AF18))/LOG(2)))) -> 0 | AI18: =N18 -> 2122 | AJ18: =COUNTIF(L96:L125,AI18) -> 0 | AK18: =AJ18/(AL4-AJ20) -> 0 | AL18: =IF(AK18=0,0,(AK18*((LOG(AK18))/LOG(2)))) -> 0 | AN18: =N18 -> 2122 | AO18: =COUNTIF(L126:L154,AN18) -> 0 | AP18: =AO18/(AQ4-AO20) -> 0 | AQ18: =IF(AP18=0,0,(AP18*((LOG(AP18))/LOG(2)))) -> 0 | AS18: =N18 -> 2122 | AT18: =COUNTIF(L155:L184,AS18) -> 0 | AU18: =AT18/(AV4-AT20) -> 0 | AV18: =IF(AU18=0,0,(AU18*((LOG(AU18))/LOG(2)))) -> 0
A19: 12 | B19: 1717 | C19: 14 | D19: 1724 | E19: 24 | F19: 1736 | G19: 14 | H19: 1752 | K19: 0 | L19: 1121 | N19: 2211 | O19: =COUNTIF($L$7:$L$500,N19) -> 1 | P19: =O19/$Q$4 -> 0.005649717514 | Q19: =IF(P19=0,0,(P19*((LOG(P19))/LOG(2)))) -> -0.04218986186 | T19: =N19 -> 2211 | U19: =COUNTIF(L7:L36,T19) -> 1 | V19: =U19/(W4-U20) -> 0.03448275862 | W19: =IF(V19=0,0,(V19*((LOG(V19))/LOG(2)))) -> -0.167516586 | Y19: =N19 -> 2211 | Z19: =COUNTIF(L37:L65,Y19) -> 0 | AA19: =Z19/(AB4-Z20) -> 0 | AB19: =IF(AA19=0,0,(AA19*((LOG(AA19))/LOG(2)))) -> 0 | AD19: =N19 -> 2211 | AE19: =COUNTIF(L66:L95,AD19) -> 0 | AF19: =AE19/(AG4-AE20) -> 0 | AG19: =IF(AF19=0,0,(AF19*((LOG(AF19))/LOG(2)))) -> 0 | AI19: =N19 -> 2211 | AJ19: =COUNTIF(L96:L125,AI19) -> 0 | AK19: =AJ19/(AL4-AJ20) -> 0 | AL19: =IF(AK19=0,0,(AK19*((LOG(AK19))/LOG(2)))) -> 0 | AN19: =N19 -> 2211 | AO19: =COUNTIF(L126:L154,AN19) -> 0 | AP19: =AO19/(AQ4-AO20) -> 0 | AQ19: =IF(AP19=0,0,(AP19*((LOG(AP19))/LOG(2)))) -> 0 | AS19: =N19 -> 2211 | AT19: =COUNTIF(L155:L184,AS19) -> 0 | AU19: =AT19/(AV4-AT20) -> 0 | AV19: =IF(AU19=0,0,(AU19*((LOG(AU19))/LOG(2)))) -> 0
A20: 12 | B20: 1873 | C20: 14 | D20: 1878 | E20: 13 | F20: 1883 | G20: 23 | H20: 1895 | K20: 0 | L20: 1112 | N20: 2212 | O20: =COUNTIF($L$7:$L$500,N20) -> 1 | P20: =O20/$Q$4 -> 0.005649717514 | Q20: =IF(P20=0,0,(P20*((LOG(P20))/LOG(2)))) -> -0.04218986186 | T20: =N20 -> 2212 | U20: =COUNTIF(L7:L36,T20) -> 1 | Y20: =N20 -> 2212 | Z20: =COUNTIF(L37:L65,Y20) -> 0 | AD20: =N20 -> 2212 | AE20: =COUNTIF(L66:L95,AD20) -> 0 | AI20: =N20 -> 2212 | AJ20: =COUNTIF(L96:L125,AI20) -> 0 | AN20: =N20 -> 2212 | AO20: =COUNTIF(L126:L154,AN20) -> 0 | AS20: =N20 -> 2212 | AT20: =COUNTIF(L155:L184,AS20) -> 0
A21: 12 | B21: 2003 | C21: 14 | D21: 2006 | E21: 13 | F21: 2019 | G21: 23 | H21: 2031 | K21: 0 | L21: 1112 | N21: 2221 | O21: =COUNTIF($L$7:$L$500,N21) -> 1 | P21: =O21/$Q$4 -> 0.005649717514 | Q21: =IF(P21=0,0,(P21*((LOG(P21))/LOG(2)))) -> -0.04218986186 | T21: =N21 -> 2221 | U21: =COUNTIF(L7:L36,T21) -> 0 | V21: =U21/(W4-U20) -> 0 | W21: =IF(V21=0,0,(V21*((LOG(V21))/LOG(2)))) -> 0 | Y21: =N21 -> 2221 | Z21: =COUNTIF(L37:L65,Y21) -> 0 | AA21: =Z21/(AB4-Z20) -> 0 | AB21: =IF(AA21=0,0,(AA21*((LOG(AA21))/LOG(2)))) -> 0 | AD21: =N21 -> 2221 | AE21: =COUNTIF(L66:L95,AD21) -> 0 | AF21: =AE21/(AG4-AE20) -> 0 | AG21: =IF(AF21=0,0,(AF21*((LOG(AF21))/LOG(2)))) -> 0 | AI21: =N21 -> 2221 | AJ21: =COUNTIF(L96:L125,AI21) -> 1 | AK21: =AJ21/(AL4-AJ20) -> 0.03333333333 | AL21: =IF(AK21=0,0,(AK21*((LOG(AK21))/LOG(2)))) -> -0.1635630199 | AN21: =N21 -> 2221 | AO21: =COUNTIF(L126:L154,AN21) -> 0 | AP21: =AO21/(AQ4-AO20) -> 0 | AQ21: =IF(AP21=0,0,(AP21*((LOG(AP21))/LOG(2)))) -> 0 | AS21: =N21 -> 2221 | AT21: =COUNTIF(L155:L184,AS21) -> 0 | AU21: =AT21/(AV4-AT20) -> 0 | AV21: =IF(AU21=0,0,(AU21*((LOG(AU21))/LOG(2)))) -> 0
A22: 12 | B22: 2130 | C22: 14 | D22: 2136 | E22: 13 | F22: 2156 | G22: 14 | H22: 2162 | K22: 0 | L22: 1111 | N22: 2222 | O22: =COUNTIF($L$7:$L$500,N22) -> 6 | P22: =O22/$Q$4 -> 0.03389830508 | Q22: =IF(P22=0,0,(P22*((LOG(P22))/LOG(2)))) -> -0.1655133237 | T22: =N22 -> 2222 | U22: =COUNTIF(L7:L36,T22) -> 1 | V22: =U22/(W4-U20) -> 0.03448275862 | W22: =IF(V22=0,0,(V22*((LOG(V22))/LOG(2)))) -> -0.167516586 | Y22: =N22 -> 2222 | Z22: =COUNTIF(L37:L65,Y22) -> 2 | AA22: =Z22/(AB4-Z20) -> 0.06896551724 | AB22: =IF(AA22=0,0,(AA22*((LOG(AA22))/LOG(2)))) -> -0.2660676548 | AD22: =N22 -> 2222 | AE22: =COUNTIF(L66:L95,AD22) -> 2 | AF22: =AE22/(AG4-AE20) -> 0.06666666667 | AG22: =IF(AF22=0,0,(AF22*((LOG(AF22))/LOG(2)))) -> -0.260459373 | AI22: =N22 -> 2222 | AJ22: =COUNTIF(L96:L125,AI22) -> 0 | AK22: =AJ22/(AL4-AJ20) -> 0 | AL22: =IF(AK22=0,0,(AK22*((LOG(AK22))/LOG(2)))) -> 0 | AN22: =N22 -> 2222 | AO22: =COUNTIF(L126:L154,AN22) -> 0 | AP22: =AO22/(AQ4-AO20) -> 0 | AQ22: =IF(AP22=0,0,(AP22*((LOG(AP22))/LOG(2)))) -> 0 | AS22: =N22 -> 2222 | AT22: =COUNTIF(L155:L184,AS22) -> 1 | AU22: =AT22/(AV4-AT20) -> 0.03448275862 | AV22: =IF(AU22=0,0,(AU22*((LOG(AU22))/LOG(2)))) -> -0.167516586
A23: 12 | B23: 2261 | C23: 14 | D23: 2274 | E23: 24 | F23: 2284 | G23: 23 | H23: 2292 | K23: 0 | L23: 1122 | P23: =SUM(P7:P22) -> 1 | Q23: =-SUM(Q7:Q22) -> 2.550896556 | V23: =SUM(V7:V22) -> 1 | W23: =-SUM(W7:W22) -> 2.655418823 | AA23: =SUM(AA7:AA22) -> 1 | AB23: =-SUM(AB7:AB22) -> 2.659753203 | AF23: =SUM(AF7:AF22) -> 1 | AG23: =-SUM(AG7:AG22) -> 2.16559623 | AK23: =SUM(AK7:AK22) -> 1 | AL23: =-SUM(AL7:AL22) -> 1.754609761 | AP23: =SUM(AP7:AP22) -> 1 | AQ23: =-SUM(AQ7:AQ22) -> 1.82039319 | AU23: =SUM(AU7:AU22) -> 1 | AV23: =-SUM(AV7:AV22) -> 2.289691137
A24: 12 | B24: 2386 | C24: 23 | D24: 2407 | E24: 24 | F24: 2412 | G24: 14 | H24: 2426 | K24: 0 | L24: 1221 | P24: U= | Q24: =Q23/(LOG(Q4)/LOG(2)) -> 0.3415949784 | V24: U1= | W24: =W23/(LOG(W4)/LOG(2)) -> 0.5411612042 | AA24: U2= | AB24: =AB23/(LOG(AB4)/LOG(2)) -> 0.547501772 | AF24: U3= | AG24: =AG23/(LOG(AG4)/LOG(2)) -> 0.4413377857 | AK24: U4= | AL24: =AL23/(LOG(AL4)/LOG(2)) -> 0.3575807789 | AP24: U5= | AQ24: =AQ23/(LOG(AQ4)/LOG(2)) -> 0.374722172 | AU24: U6= | AV24: =AV23/(LOG(AV4)/LOG(2)) -> 0.4713256679
A25: 12 | B25: 2535 | C25: 23 | D25: 2547 | E25: 24 | F25: 2554 | G25: 23 | H25: 2568 | K25: 0 | L25: 1222
A26: 12 | B26: 2665 | C26: 14 | D26: 2669 | E26: 13 | F26: 2684 | G26: 23 | H26: 2696 | K26: 0 | L26: 1112
A27: 12 | B27: 2792 | C27: 14 | D27: 2809 | E27: 24 | F27: 2823 | G27: 23 | H27: 2832 | K27: 0 | L27: 1122 | N27: Total Target Seq
A28: 12 | B28: 2942 | C28: 14 | D28: 2949 | E28: 13 | F28: 2958 | G28: 14 | H28: 2968 | K28: 0 | L28: 1111 | N28: =COUNTIF(L7:L184,G3) -> 1 | P28: 30 | Q28: 29 | R28: 30 | S28: 30 | T28: 29 | U28: 30
A29: 12 | B29: 3074 | C29: 23 | D29: 3096 | E29: 24 | F29: 3105 | G29: 23 | H29: 3120 | K29: 0 | L29: 1222 | P29: % of reinforcement given in 6 equal intervals based on number of trials
A30: 12 | B30: 3219 | C30: 14 | D30: 3223 | E30: 13 | F30: 3235 | G30: 14 | H30: 3243 | K30: 0 | L30: 1111 | P30: %_1 | Q30: %_2 | R30: %_3 | S30: %_4 | T30: %_5 | U30: %_6
A31: 21 | B31: 3359 | C31: 21 | D31: 3368 | E31: 22 | F31: 3381 | G31: 23 | H31: 3393 | K31: 0 | L31: 2222 | O31: target sequence | P31: =$G$3 -> 2212 | Q31: =$G$3 -> 2212 | R31: =$G$3 -> 2212 | S31: =$G$3 -> 2212 | T31: =$G$3 -> 2212 | U31: =$G$3 -> 2212
A32: 12 | B32: 3490 | C32: 14 | D32: 3494 | E32: 13 | F32: 3503 | G32: 23 | H32: 3514 | K32: 0 | L32: 1112 | O32: total reinforcement | P32: =U20 -> 1 | Q32: =Z20 -> 0 | R32: =AE20 -> 0 | S32: =AJ20 -> 0 | T32: =AO20 -> 0 | U32: =AT20 -> 0
A33: 12 | B33: 3613 | C33: 14 | D33: 3622 | E33: 24 | F33: 3639 | G33: 23 | H33: 3647 | K33: 0 | L33: 1122 | O33: % target
A34: 12 | B34: 3745 | C34: 23 | D34: 3766 | E34: 24 | F34: 3774 | G34: 14 | H34: 3793 | K34: 0 | L34: 1221 | O34: CCRF
A35: 12 | B35: 3891 | C35: 23 | D35: 3902 | E35: 24 | F35: 3909 | G35: 23 | H35: 3926 | K35: 0 | L35: 1222 | O35: % CCRf
A36: 12 | B36: 4030 | C36: 14 | D36: 4047 | E36: 24 | F36: 4058 | G36: 23 | H36: 4079 | K36: 0 | L36: 1122 | O36: average response rate | P36: =H36/P28 -> 135.9666667 | Q36: =(H65-H36)/Q28 -> 135.5517241 | R36: =(H95-H65)/R28 -> 138.6333333 | S36: =(H125-H95)/S28 -> 135.3 | T36: =(H154-H125)/T28 -> 131.7931034 | U36: =(H184-H154)/U28 -> -668.3333333
A37: 21 | B37: 4200 | C37: 21 | D37: 4208 | E37: 22 | F37: 4220 | G37: 23 | H37: 4233 | K37: 0 | L37: 2222
A38: 12 | B38: 4331 | C38: 23 | D38: 4354 | E38: 24 | F38: 4359 | G38: 14 | H38: 4376 | K38: 0 | L38: 1221
A39: 12 | B39: 4475 | C39: 23 | D39: 4497 | E39: 24 | F39: 4504 | G39: 23 | H39: 4517 | K39: 0 | L39: 1222
A40: 12 | B40: 4624 | C40: 14 | D40: 4628 | E40: 13 | F40: 4634 | G40: 14 | H40: 4640 | K40: 0 | L40: 1111
A41: 12 | B41: 4735 | C41: 14 | D41: 4744 | E41: 24 | F41: 4755 | G41: 23 | H41: 4760 | K41: 0 | L41: 1122
A42: 12 | B42: 4857 | C42: 14 | D42: 4871 | E42: 13 | F42: 4879 | G42: 23 | H42: 4891 | K42: 0 | L42: 1112
A43: 12 | B43: 5004 | C43: 23 | D43: 5015 | E43: 24 | F43: 5024 | G43: 14 | H43: 5039 | K43: 0 | L43: 1221
A44: 12 | B44: 5136 | C44: 14 | D44: 5150 | E44: 24 | F44: 5163 | G44: 23 | H44: 5171 | K44: 0 | L44: 1122
A45: 12 | B45: 5269 | C45: 14 | D45: 5280 | E45: 13 | F45: 5285 | G45: 14 | H45: 5290 | K45: 0 | L45: 1111
A46: 12 | B46: 5398 | C46: 23 | D46: 5411 | E46: 24 | F46: 5418 | G46: 23 | H46: 5428 | K46: 0 | L46: 1222
A47: 21 | B47: 5542 | C47: 21 | D47: 5558 | E47: 22 | F47: 5566 | G47: 23 | H47: 5579 | K47: 0 | L47: 2222
A48: 12 | B48: 5675 | C48: 23 | D48: 5695 | E48: 24 | F48: 5703 | G48: 23 | H48: 5716 | K48: 0 | L48: 1222
A49: 12 | B49: 5817 | C49: 14 | D49: 5821 | E49: 24 | F49: 5833 | G49: 23 | H49: 5838 | K49: 0 | L49: 1122
A50: 12 | B50: 5940 | C50: 14 | D50: 5952 | E50: 13 | F50: 5956 | G50: 14 | H50: 5961 | K50: 0 | L50: 1111
A51: 12 | B51: 6057 | C51: 14 | D51: 6074 | E51: 24 | F51: 6085 | G51: 23 | H51: 6093 | K51: 0 | L51: 1122
A52: 12 | B52: 6196 | C52: 23 | D52: 6208 | E52: 24 | F52: 6217 | G52: 23 | H52: 6230 | K52: 0 | L52: 1222
A53: 12 | B53: 6329 | C53: 23 | D53: 6343 | E53: 24 | F53: 6348 | G53: 23 | H53: 6359 | K53: 0 | L53: 1222
A54: 12 | B54: 6461 | C54: 14 | D54: 6472 | E54: 24 | F54: 6488 | G54: 23 | H54: 6490 | K54: 0 | L54: 1122
A55: 12 | B55: 6592 | C55: 14 | D55: 6598 | E55: 13 | F55: 6610 | G55: 23 | H55: 6624 | K55: 0 | L55: 1112
A56: 12 | B56: 6727 | C56: 23 | D56: 6742 | E56: 24 | F56: 6749 | G56: 14 | H56: 6785 | K56: 0 | L56: 1221
A57: 12 | B57: 6893 | C57: 23 | D57: 6905 | E57: 24 | F57: 6913 | G57: 14 | H57: 6930 | K57: 0 | L57: 1221
A58: 12 | B58: 7029 | C58: 23 | D58: 7041 | E58: 13 | F58: 7062 | G58: 14 | H58: 7075 | K58: 0 | L58: 1211
A59: 12 | B59: 7172 | C59: 14 | D59: 7187 | E59: 24 | F59: 7219 | G59: 23 | H59: 7232 | K59: 0 | L59: 1122
A60: 21 | B60: 7341 | C60: 12 | D60: 7355 | E60: 24 | F60: 7368 | G60: 23 | H60: 7378 | K60: 0 | L60: 2122
A61: 12 | B61: 7478 | C61: 14 | D61: 7486 | E61: 13 | F61: 7504 | G61: 14 | H61: 7512 | K61: 0 | L61: 1111
A62: 12 | B62: 7603 | C62: 14 | D62: 7612 | E62: 24 | F62: 7625 | G62: 23 | H62: 7633 | K62: 0 | L62: 1122
A63: 12 | B63: 7732 | C63: 14 | D63: 7740 | E63: 24 | F63: 7753 | G63: 23 | H63: 7761 | K63: 0 | L63: 1122
A64: 12 | B64: 7858 | C64: 14 | D64: 7863 | E64: 24 | F64: 7887 | G64: 23 | H64: 7895 | K64: 0 | L64: 1122
A65: 12 | B65: 7993 | C65: 14 | D65: 7997 | E65: 13 | F65: 8002 | G65: 14 | H65: 8010 | K65: 0 | L65: 1111
A66: 12 | B66: 8106 | C66: 14 | D66: 8117 | E66: 24 | F66: 8128 | G66: 23 | H66: 8132 | K66: 0 | L66: 1122
A67: 12 | B67: 8224 | C67: 14 | D67: 8242 | E67: 24 | F67: 8263 | G67: 23 | H67: 8271 | K67: 0 | L67: 1122
A68: 12 | B68: 8372 | C68: 14 | D68: 8400 | E68: 13 | F68: 8405 | G68: 23 | H68: 8433 | K68: 0 | L68: 1112
A69: 12 | B69: 8531 | C69: 14 | D69: 8535 | E69: 24 | F69: 8555 | G69: 23 | H69: 8563 | K69: 0 | L69: 1122
A70: 12 | B70: 8659 | C70: 14 | D70: 8679 | E70: 24 | F70: 8691 | G70: 23 | H70: 8698 | K70: 0 | L70: 1122
A71: 12 | B71: 8802 | C71: 14 | D71: 8816 | E71: 24 | F71: 8828 | G71: 23 | H71: 8839 | K71: 0 | L71: 1122
A72: 12 | B72: 8936 | C72: 14 | D72: 8944 | E72: 13 | F72: 8962 | G72: 14 | H72: 8967 | K72: 0 | L72: 1111
A73: 12 | B73: 9069 | C73: 14 | D73: 9076 | E73: 13 | F73: 9097 | G73: 14 | H73: 9106 | K73: 0 | L73: 1111
A74: 21 | B74: 9216 | C74: 21 | D74: 9223 | E74: 22 | F74: 9237 | G74: 23 | H74: 9250 | K74: 0 | L74: 2222
A75: 12 | B75: 9340 | C75: 14 | D75: 9358 | E75: 24 | F75: 9369 | G75: 23 | H75: 9377 | K75: 0 | L75: 1122
A76: 12 | B76: 9489 | C76: 23 | D76: 9498 | E76: 24 | F76: 9505 | G76: 23 | H76: 9528 | K76: 0 | L76: 1222
A77: 12 | B77: 9629 | C77: 23 | D77: 9641 | E77: 13 | F77: 9673 | G77: 14 | H77: 9684 | K77: 0 | L77: 1211
A78: 12 | B78: 9784 | C78: 23 | D78: 9800 | E78: 24 | F78: 9808 | G78: 23 | H78: 9820 | K78: 0 | L78: 1222
A79: 12 | B79: 9922 | C79: 14 | D79: 9945 | E79: 24 | F79: 9955 | G79: 23 | H79: 9963 | K79: 0 | L79: 1122
A80: 12 | B80: 10057 | C80: 23 | D80: 10075 | E80: 24 | F80: 10084 | G80: 14 | H80: 10113 | K80: 0 | L80: 1221
A81: 12 | B81: 10210 | C81: 14 | D81: 10227 | E81: 24 | F81: 10238 | G81: 23 | H81: 10246 | K81: 0 | L81: 1122
A82: 12 | B82: 10349 | C82: 14 | D82: 10354 | E82: 24 | F82: 10366 | G82: 23 | H82: 10374 | K82: 0 | L82: 1122
A83: 12 | B83: 10476 | C83: 14 | D83: 10484 | E83: 24 | F83: 10506 | G83: 23 | H83: 10532 | K83: 0 | L83: 1122
A84: 12 | B84: 10631 | C84: 14 | D84: 10643 | E84: 24 | F84: 10654 | G84: 23 | H84: 10661 | K84: 0 | L84: 1122
A85: 12 | B85: 10753 | C85: 14 | D85: 10773 | E85: 24 | F85: 10785 | G85: 23 | H85: 10792 | K85: 0 | L85: 1122
A86: 12 | B86: 10892 | C86: 23 | D86: 10904 | E86: 24 | F86: 10912 | G86: 23 | H86: 10925 | K86: 0 | L86: 1222
A87: 21 | B87: 11045 | C87: 21 | D87: 11052 | E87: 22 | F87: 11065 | G87: 23 | H87: 11077 | K87: 0 | L87: 2222
A88: 12 | B88: 11175 | C88: 23 | D88: 11195 | E88: 24 | F88: 11202 | G88: 23 | H88: 11216 | K88: 0 | L88: 1222
A89: 12 | B89: 11314 | C89: 23 | D89: 11331 | E89: 24 | F89: 11338 | G89: 23 | H89: 11350 | K89: 0 | L89: 1222
A90: 12 | B90: 11449 | C90: 23 | D90: 11462 | E90: 24 | F90: 11469 | G90: 23 | H90: 11491 | K90: 0 | L90: 1222
A91: 12 | B91: 11587 | C91: 23 | D91: 11599 | E91: 24 | F91: 11603 | G91: 23 | H91: 11614 | K91: 0 | L91: 1222
A92: 12 | B92: 11713 | C92: 14 | D92: 11717 | E92: 13 | F92: 11721 | G92: 23 | H92: 11732 | K92: 0 | L92: 1112
A93: 12 | B93: 11828 | C93: 23 | D93: 11868 | E93: 24 | F93: 11882 | G93: 23 | H93: 11895 | K93: 0 | L93: 1222
A94: 12 | B94: 11992 | C94: 23 | D94: 12016 | E94: 24 | F94: 12021 | G94: 23 | H94: 12034 | K94: 0 | L94: 1222
A95: 12 | B95: 12143 | C95: 23 | D95: 12151 | E95: 24 | F95: 12158 | G95: 23 | H95: 12169 | K95: 0 | L95: 1222
A96: 12 | B96: 12267 | C96: 14 | D96: 12280 | E96: 24 | F96: 12299 | G96: 23 | H96: 12324 | K96: 0 | L96: 1122
A97: 12 | B97: 12421 | C97: 23 | D97: 12440 | E97: 24 | F97: 12447 | G97: 23 | H97: 12461 | K97: 0 | L97: 1222
A98: 12 | B98: 12558 | C98: 14 | D98: 12568 | E98: 24 | F98: 12579 | G98: 23 | H98: 12585 | K98: 0 | L98: 1122
A99: 12 | B99: 12686 | C99: 23 | D99: 12697 | E99: 24 | F99: 12702 | G99: 23 | H99: 12715 | K99: 0 | L99: 1222
A100: 12 | B100: 12813 | C100: 14 | D100: 12832 | E100: 24 | F100: 12843 | G100: 23 | H100: 12850 | K100: 0 | L100: 1122
A101: 12 | B101: 12941 | C101: 14 | D101: 12956 | E101: 24 | F101: 12966 | G101: 23 | H101: 12973 | K101: 0 | L101: 1122
A102: 12 | B102: 13069 | C102: 23 | D102: 13088 | E102: 24 | F102: 13093 | G102: 23 | H102: 13122 | K102: 0 | L102: 1222
A103: 12 | B103: 13218 | C103: 14 | D103: 13232 | E103: 24 | F103: 13243 | G103: 23 | H103: 13251 | K103: 0 | L103: 1122
A104: 12 | B104: 13346 | C104: 14 | D104: 13357 | E104: 24 | F104: 13366 | G104: 23 | H104: 13374 | K104: 0 | L104: 1122
A105: 12 | B105: 13471 | C105: 14 | D105: 13488 | E105: 24 | F105: 13499 | G105: 23 | H105: 13507 | K105: 0 | L105: 1122
A106: 12 | B106: 13602 | C106: 23 | D106: 13613 | E106: 24 | F106: 13619 | G106: 14 | H106: 13646 | K106: 0 | L106: 1221
A107: 12 | B107: 13737 | C107: 23 | D107: 13751 | E107: 24 | F107: 13763 | G107: 23 | H107: 13775 | K107: 0 | L107: 1222
A108: 12 | B108: 13871 | C108: 23 | D108: 13899 | E108: 24 | F108: 13907 | G108: 23 | H108: 13918 | K108: 0 | L108: 1222
A109: 12 | B109: 14015 | C109: 14 | D109: 14020 | E109: 24 | F109: 14030 | G109: 23 | H109: 14037 | K109: 0 | L109: 1122
A110: 12 | B110: 14127 | C110: 14 | D110: 14141 | E110: 24 | F110: 14152 | G110: 23 | H110: 14157 | K110: 0 | L110: 1122
A111: 12 | B111: 14254 | C111: 14 | D111: 14269 | E111: 24 | F111: 14279 | G111: 23 | H111: 14288 | K111: 0 | L111: 1122
A112: 12 | B112: 14388 | C112: 14 | D112: 14392 | E112: 13 | F112: 14408 | G112: 23 | H112: 14452 | K112: 0 | L112: 1112
A113: 12 | B113: 14542 | C113: 14 | D113: 14554 | E113: 24 | F113: 14565 | G113: 23 | H113: 14572 | K113: 0 | L113: 1122
A114: 12 | B114: 14668 | C114: 14 | D114: 14679 | E114: 24 | F114: 14707 | G114: 23 | H114: 14714 | K114: 0 | L114: 1122
A115: 12 | B115: 14810 | C115: 14 | D115: 14824 | E115: 24 | F115: 14839 | G115: 23 | H115: 14854 | K115: 0 | L115: 1122
A116: 12 | B116: 14954 | C116: 14 | D116: 14966 | E116: 24 | F116: 14977 | G116: 23 | H116: 14984 | K116: 0 | L116: 1122
A117: 21 | B117: 15101 | C117: 21 | D117: 15106 | E117: 22 | F117: 15119 | G117: 14 | H117: 15134 | K117: 0 | L117: 2221
A118: 12 | B118: 15231 | C118: 23 | D118: 15243 | E118: 24 | F118: 15250 | G118: 23 | H118: 15261 | K118: 0 | L118: 1222
A119: 12 | B119: 15352 | C119: 14 | D119: 15375 | E119: 24 | F119: 15386 | G119: 23 | H119: 15395 | K119: 0 | L119: 1122
A120: 12 | B120: 15492 | C120: 14 | D120: 15510 | E120: 24 | F120: 15522 | G120: 23 | H120: 15538 | K120: 0 | L120: 1122
A121: 12 | B121: 15634 | C121: 14 | D121: 15639 | E121: 13 | F121: 15658 | G121: 23 | H121: 15670 | K121: 0 | L121: 1112
A122: 12 | B122: 15769 | C122: 14 | D122: 15783 | E122: 24 | F122: 15812 | G122: 23 | H122: 15820 | K122: 0 | L122: 1122
A123: 12 | B123: 15920 | C123: 14 | D123: 15938 | E123: 24 | F123: 15949 | G123: 23 | H123: 15969 | K123: 0 | L123: 1122
A124: 12 | B124: 16067 | C124: 14 | D124: 16079 | E124: 13 | F124: 16087 | G124: 14 | H124: 16095 | K124: 0 | L124: 1111
A125: 12 | B125: 16193 | C125: 14 | D125: 16213 | E125: 13 | F125: 16219 | G125: 14 | H125: 16228 | K125: 0 | L125: 1111
A126: 12 | B126: 16333 | C126: 23 | D126: 16344 | E126: 24 | F126: 16351 | G126: 23 | H126: 16363 | K126: 0 | L126: 1222
A127: 12 | B127: 16460 | C127: 14 | D127: 16467 | E127: 24 | F127: 16494 | G127: 23 | H127: 16502 | K127: 0 | L127: 1122
A128: 12 | B128: 16600 | C128: 14 | D128: 16607 | E128: 13 | F128: 16615 | G128: 23 | H128: 16628 | K128: 0 | L128: 1112
A129: 12 | B129: 16728 | C129: 14 | D129: 16747 | E129: 13 | F129: 16752 | G129: 14 | H129: 16757 | K129: 0 | L129: 1111
A130: 12 | B130: 16858 | C130: 23 | D130: 16877 | E130: 24 | F130: 16883 | G130: 23 | H130: 16894 | K130: 0 | L130: 1222
A131: 12 | B131: 16992 | C131: 14 | D131: 16999 | E131: 13 | F131: 17019 | G131: 23 | H131: 17031 | K131: 0 | L131: 1112
A132: 12 | B132: 17122 | C132: 14 | D132: 17133 | E132: 24 | F132: 17144 | G132: 23 | H132: 17152 | K132: 0 | L132: 1122
A133: 12 | B133: 17247 | C133: 14 | D133: 17255 | E133: 24 | F133: 17273 | G133: 23 | H133: 17281 | K133: 0 | L133: 1122
A134: 12 | B134: 17378 | C134: 14 | D134: 17386 | E134: 13 | F134: 17403 | G134: 14 | H134: 17410 | K134: 0 | L134: 1111
A135: 12 | B135: 17505 | C135: 14 | D135: 17517 | E135: 13 | F135: 17528 | G135: 23 | H135: 17555 | K135: 0 | L135: 1112
A136: 12 | B136: 17651 | C136: 14 | D136: 17658 | E136: 24 | F136: 17670 | G136: 23 | H136: 17677 | K136: 0 | L136: 1122
A137: 12 | B137: 17778 | C137: 14 | D137: 17796 | E137: 24 | F137: 17808 | G137: 23 | H137: 17816 | K137: 0 | L137: 1122
A138: 12 | B138: 17916 | C138: 14 | D138: 17926 | E138: 24 | F138: 17937 | G138: 23 | H138: 17944 | K138: 0 | L138: 1122
A139: 12 | B139: 18042 | C139: 14 | D139: 18062 | E139: 13 | F139: 18068 | G139: 14 | H139: 18078 | K139: 0 | L139: 1111
A140: 12 | B140: 18169 | C140: 14 | D140: 18182 | E140: 13 | F140: 18209 | G140: 14 | H140: 18217 | K140: 0 | L140: 1111
A141: 12 | B141: 18314 | C141: 14 | D141: 18319 | E141: 13 | F141: 18339 | G141: 14 | H141: 18344 | K141: 0 | L141: 1111
A142: 12 | B142: 18440 | C142: 14 | D142: 18447 | E142: 24 | F142: 18458 | G142: 23 | H142: 18465 | K142: 0 | L142: 1122
A143: 12 | B143: 18577 | C143: 14 | D143: 18598 | E143: 13 | F143: 18603 | G143: 14 | H143: 18607 | K143: 0 | L143: 1111
A144: 12 | B144: 18705 | C144: 14 | D144: 18709 | E144: 13 | F144: 18716 | G144: 14 | H144: 18722 | K144: 0 | L144: 1111
A145: 12 | B145: 18821 | C145: 14 | D145: 18832 | E145: 13 | F145: 18843 | G145: 23 | H145: 18869 | K145: 0 | L145: 1112
A146: 12 | B146: 18967 | C146: 14 | D146: 18974 | E146: 13 | F146: 18990 | G146: 23 | H146: 19002 | K146: 0 | L146: 1112
A147: 12 | B147: 19101 | C147: 14 | D147: 19106 | E147: 13 | F147: 19111 | G147: 14 | H147: 19120 | K147: 0 | L147: 1111
A148: 12 | B148: 19216 | C148: 14 | D148: 19224 | E148: 13 | F148: 19238 | G148: 23 | H148: 19252 | K148: 0 | L148: 1112
A149: 12 | B149: 19349 | C149: 14 | D149: 19354 | E149: 24 | F149: 19366 | G149: 23 | H149: 19374 | K149: 0 | L149: 1122
A150: 12 | B150: 19474 | C150: 14 | D150: 19479 | E150: 24 | F150: 19532 | G150: 23 | H150: 19544 | K150: 0 | L150: 1122
A151: 12 | B151: 19644 | C151: 14 | D151: 19649 | E151: 13 | F151: 19661 | G151: 23 | H151: 19674 | K151: 0 | L151: 1112
A152: 12 | B152: 19772 | C152: 14 | D152: 19776 | E152: 13 | F152: 19780 | G152: 14 | H152: 19787 | K152: 0 | L152: 1111
A153: 12 | B153: 19885 | C153: 14 | D153: 19896 | E153: 24 | F153: 19929 | G153: 23 | H153: 19936 | K153: 0 | L153: 1122
A154: 12 | B154: 20037 | C154: 14 | D154: 20041 | E154: 13 | F154: 20046 | G154: 14 | H154: 20050 | K154: 0 | L154: 1111
A155: 12 | B155: 20149 | C155: 14 | D155: 20164 | E155: 24 | F155: 20175 | G155: 14 | H155: 20188 | K155: 0 | L155: 1121
A156: 12 | B156: 20284 | C156: 23 | D156: 20305 | E156: 24 | F156: 20313 | G156: 23 | H156: 20325 | K156: 0 | L156: 1222
A157: 12 | B157: 20422 | C157: 14 | D157: 20430 | E157: 13 | F157: 20442 | G157: 14 | H157: 20449 | K157: 0 | L157: 1111
A158: 12 | B158: 20555 | C158: 14 | D158: 20559 | E158: 13 | F158: 20563 | G158: 14 | H158: 20568 | K158: 0 | L158: 1111
A159: 12 | B159: 20669 | C159: 14 | D159: 20673 | E159: 24 | F159: 20692 | G159: 14 | H159: 20706 | K159: 0 | L159: 1121
A160: 12 | B160: 20797 | C160: 23 | D160: 20836 | E160: 24 | F160: 20844 | G160: 23 | H160: 20855 | K160: 0 | L160: 1222
A161: 12 | B161: 20947 | C161: 14 | D161: 20951 | E161: 13 | F161: 20969 | G161: 23 | H161: 20980 | K161: 0 | L161: 1112
A162: 12 | B162: 21076 | C162: 14 | D162: 21089 | E162: 13 | F162: 21102 | G162: 14 | H162: 21121 | K162: 0 | L162: 1111
A163: 12 | B163: 21217 | C163: 14 | D163: 21221 | E163: 24 | F163: 21238 | G163: 23 | H163: 21245 | K163: 0 | L163: 1122
A164: 12 | B164: 21342 | C164: 14 | D164: 21353 | E164: 24 | F164: 21365 | G164: 23 | H164: 21371 | K164: 0 | L164: 1122
A165: 12 | B165: 21474 | C165: 14 | D165: 21479 | E165: 13 | F165: 21483 | G165: 23 | H165: 21495 | K165: 0 | L165: 1112
A166: 12 | B166: 21595 | C166: 14 | D166: 21603 | E166: 13 | F166: 21616 | G166: 14 | H166: 21622 | K166: 0 | L166: 1111
A167: 12 | B167: 21718 | C167: 14 | D167: 21726 | E167: 13 | F167: 21745 | G167: 14 | H167: 21749 | K167: 0 | L167: 1111
A168: 12 | B168: 21847 | C168: 14 | D168: 21859 | E168: 13 | F168: 21865 | G168: 23 | H168: 21882 | K168: 0 | L168: 1112
A169: 21 | B169: 21996 | C169: 21 | D169: 22004 | E169: 22 | F169: 22014 | G169: 23 | H169: 22027 | K169: 0 | L169: 2222
A170: 12 | B170: 22125 | C170: 14 | D170: 22130 | E170: 13 | F170: 22143 | G170: 23 | H170: 22155 | K170: 0 | L170: 1112
A171: 12 | B171: 22248 | C171: 14 | D171: 22254 | E171: 13 | F171: 22272 | G171: 14 | H171: 22288 | K171: 0 | L171: 1111
A172: 12 | B172: 22387 | C172: 14 | D172: 22403 | E172: 24 | F172: 22415 | G172: 23 | H172: 22427 | K172: 0 | L172: 1122
A173: 12 | B173: 22524 | C173: 14 | D173: 22535 | E173: 24 | F173: 22547 | G173: 23 | H173: 22553 | K173: 0 | L173: 1122
A174: 12 | B174: 22655 | C174: 14 | D174: 22665 | E174: 24 | F174: 22684 | G174: 23 | H174: 22693 | K174: 0 | L174: 1122
A175: 12 | B175: 22784 | C175: 14 | D175: 22795 | E175: 13 | F175: 22812 | G175: 14 | H175: 22820 | K175: 0 | L175: 1111
A176: 12 | B176: 22925 | C176: 14 | D176: 22932 | E176: 13 | F176: 22937 | G176: 23 | H176: 22949 | K176: 0 | L176: 1112
A177: 12 | B177: 23052 | C177: 23 | D177: 23072 | E177: 24 | F177: 23080 | G177: 23 | H177: 23091 | K177: 0 | L177: 1222
A178: 12 | B178: 23189 | C178: 14 | D178: 23193 | E178: 13 | F178: 23205 | G178: 14 | H178: 23211 | K178: 0 | L178: 1111
A179: 12 | B179: 23306 | C179: 14 | D179: 23315 | E179: 13 | F179: 23335 | G179: 14 | H179: 23345 | K179: 0 | L179: 1111
A180: 12 | B180: 23443 | C180: 14 | D180: 23451 | E180: 13 | F180: 23464 | G180: 14 | H180: 23472 | K180: 0 | L180: 1111
A181: 12 | B181: 23575 | C181: 14 | D181: 23586 | E181: 24 | F181: 23600 | G181: 23 | H181: 23612 | K181: 0 | L181: 1122
A182: 12 | B182: 23710 | C182: 14 | D182: 23727 | E182: 24 | F182: 23745 | G182: 23 | H182: 23753 | K182: 0 | L182: 1122
A183: 12 | B183: 23843 | C183: 23 | D183: 23862 | E183: 24 | F183: 23868 | G183: 23 | H183: 23881 | K183: 0 | L183: 1222
A184: 12 | B184: 23975 | C184: 14 | D184: 23998 | L184: 11

Sheet !M821B20.000
A1: Report for:!M821B20.000
A2: Date: | B2: <date>
A3: Hen: | B3: <hen> | F3: Correct Sequence | G3: =Start!J2 -> 2212 | P3: Total Sequences in Data | Q3: =4994-COUNTBLANK(L7:L5000) -> 172 | V3: Total Sequences in Block Data | W3: =COUNTA(L7:L35) -> 29 | AA3: Total Sequences in Block Data | AB3: =COUNTA(L36:L63) -> 28 | AF3: Total Sequences in Block Data | AG3: =COUNTA(L64:L92) -> 29 | AK3: Total Sequences in Block Data | AL3: =COUNTA(L93:L121) -> 29 | AP3: Total Sequences in Block Data | AQ3: =COUNTA(L122:L149) -> 28 | AU3: Total Sequences in Block Data | AV3: =COUNTA(L150:L178) -> 29
P4: Total Sequences in Summary | Q4: =SUM(O7:O22) -> 172 | V4: Total Sequences in Block Summary | W4: =SUM(U7:U22) -> 29 | AA4: Total Sequences in Block Summary | AB4: =SUM(Z7:Z22) -> 28 | AF4: Total Sequences in Block Summary | AG4: =SUM(AE7:AE22) -> 29 | AK4: Total Sequences in Block Summary | AL4: =SUM(AJ7:AJ22) -> 29 | AP4: Total Sequences in Block Summary | AQ4: =SUM(AO7:AO22) -> 28 | AU4: Total Sequences in Block Summary | AV4: =SUM(AT7:AT22) -> 29
T5: Block 1 | Y5: Block 2 | AD5: Block 3 | AI5: Block 4 | AN5: Block 5 | AS5: Block 6
A6: Sequence Component 1 | B6: Time 1 | C6: Sequence Component 2 | D6: Time 2 | E6: Sequence Component 3 | F6: Time 3 | G6: Sequence Component 4 | H6: Time 4 | I6: Sequence Component 5 | J6: Time 5 | K6: Correct? 0=No 1=Yes | L6: Sequence | N6: Frequency | P6: Relative Frequency | Q6: Variability | T6: Frequency | V6: Relative Frequency | W6: Variability | Y6: Frequency | AA6: Relative Frequency | AB6: Variability | AD6: Frequency | AF6: Relative Frequency | AG6: Variability | AI6: Frequency | AK6: Relative Frequency | AL6: Variability | AN6: Frequency | AP6: Relative Frequency | AQ6: Variability | AS6: Frequency | AU6: Relative Frequency | AV6: Variability
A7: 21 | B7: 9 | C7: 21 | D7: 17 | E7: 22 | F7: 29 | G7: 14 | H7: 42 | K7: 0 | L7: 2221 | N7: 1111 | O7: =COUNTIF($L$7:$L$500,N7) -> 35 | P7: =O7/$Q$4 -> 0.2034883721 | Q7: =IF(P7=0,0,(P7*((LOG(P7))/LOG(2)))) -> -0.4674090745 | T7: =N7 -> 1111 | U7: =COUNTIF(L7:L35,T7) -> 3 | V7: =U7/(W4-U20) -> 0.1034482759 | W7: =IF(V7=0,0,(V7*((LOG(V7))/LOG(2)))) -> -0.3385881201 | Y7: =N7 -> 1111 | Z7: =COUNTIF(L36:L63,Y7) -> 1 | AA7: =Z7/(AB4-Z20) -> 0.03571428571 | AB7: =IF(AA7=0,0,(AA7*((LOG(AA7))/LOG(2)))) -> -0.1716912472 | AD7: =N7 -> 1111 | AE7: =COUNTIF(L64:L92,AD7) -> 10 | AF7: =AE7/(AG4-AE20) -> 0.3448275862 | AG7: =IF(AF7=0,0,(AF7*((LOG(AF7))/LOG(2)))) -> -0.5296734139 | AI7: =N7 -> 1111 | AJ7: =COUNTIF(L93:L121,AI7) -> 3 | AK7: =AJ7/(AL4-AJ20) -> 0.1034482759 | AL7: =IF(AK7=0,0,(AK7*((LOG(AK7))/LOG(2)))) -> -0.3385881201 | AN7: =N7 -> 1111 | AO7: =COUNTIF(L122:L149,AN7) -> 12 | AP7: =AO7/(AQ4-AO20) -> 0.4285714286 | AQ7: =IF(AP7=0,0,(AP7*((LOG(AP7))/LOG(2)))) -> -0.5238824663 | AS7: =N7 -> 1111 | AT7: =COUNTIF(L150:L178,AS7) -> 6 | AU7: =AT7/(AV4-AT20) -> 0.2068965517 | AV7: =IF(AU7=0,0,(AU7*((LOG(AU7))/LOG(2)))) -> -0.4702796885
A8: 12 | B8: 153 | C8: 23 | D8: 161 | E8: 24 | F8: 170 | G8: 23 | H8: 183 | K8: 0 | L8: 1222 | N8: 1112 | O8: =COUNTIF($L$7:$L$500,N8) -> 25 | P8: =O8/$Q$4 -> 0.1453488372 | Q8: =IF(P8=0,0,(P8*((LOG(P8))/LOG(2)))) -> -0.4044198496 | T8: =N8 -> 1112 | U8: =COUNTIF(L7:L35,T8) -> 4 | V8: =U8/(W4-U20) -> 0.1379310345 | W8: =IF(V8=0,0,(V8*((LOG(V8))/LOG(2)))) -> -0.3942042752 | Y8: =N8 -> 1112 | Z8: =COUNTIF(L36:L63,Y8) -> 6 | AA8: =Z8/(AB4-Z20) -> 0.2142857143 | AB8: =IF(AA8=0,0,(AA8*((LOG(AA8))/LOG(2)))) -> -0.4762269474 | AD8: =N8 -> 1112 | AE8: =COUNTIF(L64:L92,AD8) -> 1 | AF8: =AE8/(AG4-AE20) -> 0.03448275862 | AG8: =IF(AF8=0,0,(AF8*((LOG(AF8))/LOG(2)))) -> -0.167516586 | AI8: =N8 -> 1112 | AJ8: =COUNTIF(L93:L121,AI8) -> 4 | AK8: =AJ8/(AL4-AJ20) -> 0.1379310345 | AL8: =IF(AK8=0,0,(AK8*((LOG(AK8))/LOG(2)))) -> -0.3942042752 | AN8: =N8 -> 1112 | AO8: =COUNTIF(L122:L149,AN8) -> 4 | AP8: =AO8/(AQ4-AO20) -> 0.1428571429 | AQ8: =IF(AP8=0,0,(AP8*((LOG(AP8))/LOG(2)))) -> -0.4010507032 | AS8: =N8 -> 1112 | AT8: =COUNTIF(L150:L178,AS8) -> 6 | AU8: =AT8/(AV4-AT20) -> 0.2068965517 | AV8: =IF(AU8=0,0,(AU8*((LOG(AU8))/LOG(2)))) -> -0.4702796885
A9: 21 | B9: 277 | C9: 21 | D9: 284 | E9: 22 | F9: 308 | G9: 23 | H9: 317 | K9: 0 | L9: 2222 | N9: 1121 | O9: =COUNTIF($L$7:$L$500,N9) -> 4 | P9: =O9/$Q$4 -> 0.02325581395 | Q9: =IF(P9=0,0,(P9*((LOG(P9))/LOG(2)))) -> -0.1261922036 | T9: =N9 -> 1121 | U9: =COUNTIF(L7:L35,T9) -> 1 | V9: =U9/(W4-U20) -> 0.03448275862 | W9: =IF(V9=0,0,(V9*((LOG(V9))/LOG(2)))) -> -0.167516586 | Y9: =N9 -> 1121 | Z9: =COUNTIF(L36:L63,Y9) -> 0 | AA9: =Z9/(AB4-Z20) -> 0 | AB9: =IF(AA9=0,0,(AA9*((LOG(AA9))/LOG(2)))) -> 0 | AD9: =N9 -> 1121 | AE9: =COUNTIF(L64:L92,AD9) -> 1 | AF9: =AE9/(AG4-AE20) -> 0.03448275862 | AG9: =IF(AF9=0,0,(AF9*((LOG(AF9))/LOG(2)))) -> -0.167516586 | AI9: =N9 -> 1121 | AJ9: =COUNTIF(L93:L121,AI9) -> 1 | AK9: =AJ9/(AL4-AJ20) -> 0.03448275862 | AL9: =IF(AK9=0,0,(AK9*((LOG(AK9))/LOG(2)))) -> -0.167516586 | AN9: =N9 -> 1121 | AO9: =COUNTIF(L122:L149,AN9) -> 1 | AP9: =AO9/(AQ4-AO20) -> 0.03571428571 | AQ9: =IF(AP9=0,0,(AP9*((LOG(AP9))/LOG(2)))) -> -0.1716912472 | AS9: =N9 -> 1121 | AT9: =COUNTIF(L150:L178,AS9) -> 0 | AU9: =AT9/(AV4-AT20) -> 0 | AV9: =IF(AU9=0,0,(AU9*((LOG(AU9))/LOG(2)))) -> 0
A10: 12 | B10: 415 | C10: 14 | D10: 425 | E10: 24 | F10: 434 | G10: 14 | H10: 450 | K10: 0 | L10: 1121 | N10: 1122 | O10: =COUNTIF($L$7:$L$500,N10) -> 58 | P10: =O10/$Q$4 -> 0.3372093023 | Q10: =IF(P10=0,0,(P10*((LOG(P10))/LOG(2)))) -> -0.5288398724 | T10: =N10 -> 1122 | U10: =COUNTIF(L7:L35,T10) -> 12 | V10: =U10/(W4-U20) -> 0.4137931034 | W10: =IF(V10=0,0,(V10*((LOG(V10))/LOG(2)))) -> -0.5267662735 | Y10: =N10 -> 1122 | Z10: =COUNTIF(L36:L63,Y10) -> 9 | AA10: =Z10/(AB4-Z20) -> 0.3214285714 | AB10: =IF(AA10=0,0,(AA10*((LOG(AA10))/LOG(2)))) -> -0.5263167602 | AD10: =N10 -> 1122 | AE10: =COUNTIF(L64:L92,AD10) -> 12 | AF10: =AE10/(AG4-AE20) -> 0.4137931034 | AG10: =IF(AF10=0,0,(AF10*((LOG(AF10))/LOG(2)))) -> -0.5267662735 | AI10: =N10 -> 1122 | AJ10: =COUNTIF(L93:L121,AI10) -> 12 | AK10: =AJ10/(AL4-AJ20) -> 0.4137931034 | AL10: =IF(AK10=0,0,(AK10*((LOG(AK10))/LOG(2)))) -> -0.5267662735 | AN10: =N10 -> 1122 | AO10: =COUNTIF(L122:L149,AN10) -> 5 | AP10: =AO10/(AQ4-AO20) -> 0.1785714286 | AQ10: =IF(AP10=0,0,(AP10*((LOG(AP10))/LOG(2)))) -> -0.4438262191 | AS10: =N10 -> 1122 | AT10: =COUNTIF(L150:L178,AS10) -> 8 | AU10: =AT10/(AV4-AT20) -> 0.275862069 | AV10: =IF(AU10=0,0,(AU10*((LOG(AU10))/LOG(2)))) -> -0.5125464814
A11: 12 | B11: 565 | C11: 14 | D11: 573 | E11: 13 | F11: 585 | G11: 14 | H11: 598 | K11: 0 | L11: 1111 | N11: 1211 | O11: =COUNTIF($L$7:$L$500,N11) -> 4 | P11: =O11/$Q$4 -> 0.02325581395 | Q11: =IF(P11=0,0,(P11*((LOG(P11))/LOG(2)))) -> -0.1261922036 | T11: =N11 -> 1211 | U11: =COUNTIF(L7:L35,T11) -> 1 | V11: =U11/(W4-U20) -> 0.03448275862 | W11: =IF(V11=0,0,(V11*((LOG(V11))/LOG(2)))) -> -0.167516586 | Y11: =N11 -> 1211 | Z11: =COUNTIF(L36:L63,Y11) -> 0 | AA11: =Z11/(AB4-Z20) -> 0 | AB11: =IF(AA11=0,0,(AA11*((LOG(AA11))/LOG(2)))) -> 0 | AD11: =N11 -> 1211 | AE11: =COUNTIF(L64:L92,AD11) -> 1 | AF11: =AE11/(AG4-AE20) -> 0.03448275862 | AG11: =IF(AF11=0,0,(AF11*((LOG(AF11))/LOG(2)))) -> -0.167516586 | AI11: =N11 -> 1211 | AJ11: =COUNTIF(L93:L121,AI11) -> 1 | AK11: =AJ11/(AL4-AJ20) -> 0.03448275862 | AL11: =IF(AK11=0,0,(AK11*((LOG(AK11))/LOG(2)))) -> -0.167516586 | AN11: =N11 -> 1211 | AO11: =COUNTIF(L122:L149,AN11) -> 1 | AP11: =AO11/(AQ4-AO20) -> 0.03571428571 | AQ11: =IF(AP11=0,0,(AP11*((LOG(AP11))/LOG(2)))) -> -0.1716912472 | AS11: =N11 -> 1211 | AT11: =COUNTIF(L150:L178,AS11) -> 0 | AU11: =AT11/(AV4-AT20) -> 0 | AV11: =IF(AU11=0,0,(AU11*((LOG(AU11))/LOG(2)))) -> 0
A12: 12 | B12: 699 | C12: 14 | D12: 713 | E12: 24 | F12: 724 | G12: 23 | H12: 733 | K12: 0 | L12: 1122 | N12: 1212 | O12: =COUNTIF($L$7:$L$500,N12) -> 1 | P12: =O12/$Q$4 -> 0.005813953488 | Q12: =IF(P12=0,0,(P12*((LOG(P12))/LOG(2)))) -> -0.04317595788 | T12: =N12 -> 1212 | U12: =COUNTIF(L7:L35,T12) -> 0 | V12: =U12/(W4-U20) -> 0 | W12: =IF(V12=0,0,(V12*((LOG(V12))/LOG(2)))) -> 0 | Y12: =N12 -> 1212 | Z12: =COUNTIF(L36:L63,Y12) -> 0 | AA12: =Z12/(AB4-Z20) -> 0 | AB12: =IF(AA12=0,0,(AA12*((LOG(AA12))/LOG(2)))) -> 0 | AD12: =N12 -> 1212 | AE12: =COUNTIF(L64:L92,AD12) -> 0 | AF12: =AE12/(AG4-AE20) -> 0 | AG12: =IF(AF12=0,0,(AF12*((LOG(AF12))/LOG(2)))) -> 0 | AI12: =N12 -> 1212 | AJ12: =COUNTIF(L93:L121,AI12) -> 0 | AK12: =AJ12/(AL4-AJ20) -> 0 | AL12: =IF(AK12=0,0,(AK12*((LOG(AK12))/LOG(2)))) -> 0 | AN12: =N12 -> 1212 | AO12: =COUNTIF(L122:L149,AN12) -> 0 | AP12: =AO12/(AQ4-AO20) -> 0 | AQ12: =IF(AP12=0,0,(AP12*((LOG(AP12))/LOG(2)))) -> 0 | AS12: =N12 -> 1212 | AT12: =COUNTIF(L150:L178,AS12) -> 1 | AU12: =AT12/(AV4-AT20) -> 0.03448275862 | AV12: =IF(AU12=0,0,(AU12*((LOG(AU12))/LOG(2)))) -> -0.167516586
A13: 12 | B13: 828 | C13: 14 | D13: 855 | E13: 24 | F13: 874 | G13: 23 | H13: 882 | K13: 0 | L13: 1122 | N13: 1221 | O13: =COUNTIF($L$7:$L$500,N13) -> 8 | P13: =O13/$Q$4 -> 0.04651162791 | Q13: =IF(P13=0,0,(P13*((LOG(P13))/LOG(2)))) -> -0.2058727793 | T13: =N13 -> 1221 | U13: =COUNTIF(L7:L35,T13) -> 0 | V13: =U13/(W4-U20) -> 0 | W13: =IF(V13=0,0,(V13*((LOG(V13))/LOG(2)))) -> 0 | Y13: =N13 -> 1221 | Z13: =COUNTIF(L36:L63,Y13) -> 2 | AA13: =Z13/(AB4-Z20) -> 0.07142857143 | AB13: =IF(AA13=0,0,(AA13*((LOG(AA13))/LOG(2)))) -> -0.271953923 | AD13: =N13 -> 1221 | AE13: =COUNTIF(L64:L92,AD13) -> 0 | AF13: =AE13/(AG4-AE20) -> 0 | AG13: =IF(AF13=0,0,(AF13*((LOG(AF13))/LOG(2)))) -> 0 | AI13: =N13 -> 1221 | AJ13: =COUNTIF(L93:L121,AI13) -> 1 | AK13: =AJ13/(AL4-AJ20) -> 0.03448275862 | AL13: =IF(AK13=0,0,(AK13*((LOG(AK13))/LOG(2)))) -> -0.167516586 | AN13: =N13 -> 1221 | AO13: =COUNTIF(L122:L149,AN13) -> 2 | AP13: =AO13/(AQ4-AO20) -> 0.07142857143 | AQ13: =IF(AP13=0,0,(AP13*((LOG(AP13))/LOG(2)))) -> -0.271953923 | AS13: =N13 -> 1221 | AT13: =COUNTIF(L150:L178,AS13) -> 3 | AU13: =AT13/(AV4-AT20) -> 0.1034482759 | AV13: =IF(AU13=0,0,(AU13*((LOG(AU13))/LOG(2)))) -> -0.3385881201
A14: 12 | B14: 979 | C14: 14 | D14: 999 | E14: 24 | F14: 1010 | G14: 23 | H14: 1018 | K14: 0 | L14: 1122 | N14: 1222 | O14: =COUNTIF($L$7:$L$500,N14) -> 27 | P14: =O14/$Q$4 -> 0.1569767442 | Q14: =IF(P14=0,0,(P14*((LOG(P14))/LOG(2)))) -> -0.4193441036 | T14: =N14 -> 1222 | U14: =COUNTIF(L7:L35,T14) -> 6 | V14: =U14/(W4-U20) -> 0.2068965517 | W14: =IF(V14=0,0,(V14*((LOG(V14))/LOG(2)))) -> -0.4702796885 | Y14: =N14 -> 1222 | Z14: =COUNTIF(L36:L63,Y14) -> 6 | AA14: =Z14/(AB4-Z20) -> 0.2142857143 | AB14: =IF(AA14=0,0,(AA14*((LOG(AA14))/LOG(2)))) -> -0.4762269474 | AD14: =N14 -> 1222 | AE14: =COUNTIF(L64:L92,AD14) -> 2 | AF14: =AE14/(AG4-AE20) -> 0.06896551724 | AG14: =IF(AF14=0,0,(AF14*((LOG(AF14))/LOG(2)))) -> -0.2660676548 | AI14: =N14 -> 1222 | AJ14: =COUNTIF(L93:L121,AI14) -> 7 | AK14: =AJ14/(AL4-AJ20) -> 0.2413793103 | AL14: =IF(AK14=0,0,(AK14*((LOG(AK14))/LOG(2)))) -> -0.4949787073 | AN14: =N14 -> 1222 | AO14: =COUNTIF(L122:L149,AN14) -> 3 | AP14: =AO14/(AQ4-AO20) -> 0.1071428571 | AQ14: =IF(AP14=0,0,(AP14*((LOG(AP14))/LOG(2)))) -> -0.3452563309 | AS14: =N14 -> 1222 | AT14: =COUNTIF(L150:L178,AS14) -> 3 | AU14: =AT14/(AV4-AT20) -> 0.1034482759 | AV14: =IF(AU14=0,0,(AU14*((LOG(AU14))/LOG(2)))) -> -0.3385881201
A15: 12 | B15: 1122 | C15: 14 | D15: 1141 | E15: 24 | F15: 1159 | G15: 23 | H15: 1167 | K15: 0 | L15: 1122 | N15: 2111 | O15: =COUNTIF($L$7:$L$500,N15) -> 2 | P15: =O15/$Q$4 -> 0.01162790698 | Q15: =IF(P15=0,0,(P15*((LOG(P15))/LOG(2)))) -> -0.07472400878 | T15: =N15 -> 2111 | U15: =COUNTIF(L7:L35,T15) -> 0 | V15: =U15/(W4-U20) -> 0 | W15: =IF(V15=0,0,(V15*((LOG(V15))/LOG(2)))) -> 0 | Y15: =N15 -> 2111 | Z15: =COUNTIF(L36:L63,Y15) -> 0 | AA15: =Z15/(AB4-Z20) -> 0 | AB15: =IF(AA15=0,0,(AA15*((LOG(AA15))/LOG(2)))) -> 0 | AD15: =N15 -> 2111 | AE15: =COUNTIF(L64:L92,AD15) -> 1 | AF15: =AE15/(AG4-AE20) -> 0.03448275862 | AG15: =IF(AF15=0,0,(AF15*((LOG(AF15))/LOG(2)))) -> -0.167516586 | AI15: =N15 -> 2111 | AJ15: =COUNTIF(L93:L121,AI15) -> 0 | AK15: =AJ15/(AL4-AJ20) -> 0 | AL15: =IF(AK15=0,0,(AK15*((LOG(AK15))/LOG(2)))) -> 0 | AN15: =N15 -> 2111 | AO15: =COUNTIF(L122:L149,AN15) -> 0 | AP15: =AO15/(AQ4-AO20) -> 0 | AQ15: =IF(AP15=0,0,(AP15*((LOG(AP15))/LOG(2)))) -> 0 | AS15: =N15 -> 2111 | AT15: =COUNTIF(L150:L178,AS15) -> 1 | AU15: =AT15/(AV4-AT20) -> 0.03448275862 | AV15: =IF(AU15=0,0,(AU15*((LOG(AU15))/LOG(2)))) -> -0.167516586
A16: 12 | B16: 1269 | C16: 23 | D16: 1278 | E16: 24 | F16: 1285 | G16: 23 | H16: 1297 | K16: 0 | L16: 1222 | N16: 2112 | O16: =COUNTIF($L$7:$L$500,N16) -> 0 | P16: =O16/$Q$4 -> 0 | Q16: =IF(P16=0,0,(P16*((LOG(P16))/LOG(2)))) -> 0 | T16: =N16 -> 2112 | U16: =COUNTIF(L7:L35,T16) -> 0 | V16: =U16/(W4-U20) -> 0 | W16: =IF(V16=0,0,(V16*((LOG(V16))/LOG(2)))) -> 0 | Y16: =N16 -> 2112 | Z16: =COUNTIF(L36:L63,Y16) -> 0 | AA16: =Z16/(AB4-Z20) -> 0 | AB16: =IF(AA16=0,0,(AA16*((LOG(AA16))/LOG(2)))) -> 0 | AD16: =N16 -> 2112 | AE16: =COUNTIF(L64:L92,AD16) -> 0 | AF16: =AE16/(AG4-AE20) -> 0 | AG16: =IF(AF16=0,0,(AF16*((LOG(AF16))/LOG(2)))) -> 0 | AI16: =N16 -> 2112 | AJ16: =COUNTIF(L93:L121,AI16) -> 0 | AK16: =AJ16/(AL4-AJ20) -> 0 | AL16: =IF(AK16=0,0,(AK16*((LOG(AK16))/LOG(2)))) -> 0 | AN16: =N16 -> 2112 | AO16: =COUNTIF(L122:L149,AN16) -> 0 | AP16: =AO16/(AQ4-AO20) -> 0 | AQ16: =IF(AP16=0,0,(AP16*((LOG(AP16))/LOG(2)))) -> 0 | AS16: =N16 -> 2112 | AT16: =COUNTIF(L150:L178,AS16) -> 0 | AU16: =AT16/(AV4-AT20) -> 0 | AV16: =IF(AU16=0,0,(AU16*((LOG(AU16))/LOG(2)))) -> 0
A17: 12 | B17: 1422 | C17: 14 | D17: 1428 | E17: 24 | F17: 1445 | G17: 23 | H17: 1458 | K17: 0 | L17: 1122 | N17: 2121 | O17: =COUNTIF($L$7:$L$500,N17) -> 0 | P17: =O17/$Q$4 -> 0 | Q17: =IF(P17=0,0,(P17*((LOG(P17))/LOG(2)))) -> 0 | T17: =N17 -> 2121 | U17: =COUNTIF(L7:L35,T17) -> 0 | V17: =U17/(W4-U20) -> 0 | W17: =IF(V17=0,0,(V17*((LOG(V17))/LOG(2)))) -> 0 | Y17: =N17 -> 2121 | Z17: =COUNTIF(L36:L63,Y17) -> 0 | AA17: =Z17/(AB4-Z20) -> 0 | AB17: =IF(AA17=0,0,(AA17*((LOG(AA17))/LOG(2)))) -> 0 | AD17: =N17 -> 2121 | AE17: =COUNTIF(L64:L92,AD17) -> 0 | AF17: =AE17/(AG4-AE20) -> 0 | AG17: =IF(AF17=0,0,(AF17*((LOG(AF17))/LOG(2)))) -> 0 | AI17: =N17 -> 2121 | AJ17: =COUNTIF(L93:L121,AI17) -> 0 | AK17: =AJ17/(AL4-AJ20) -> 0 | AL17: =IF(AK17=0,0,(AK17*((LOG(AK17))/LOG(2)))) -> 0 | AN17: =N17 -> 2121 | AO17: =COUNTIF(L122:L149,AN17) -> 0 | AP17: =AO17/(AQ4-AO20) -> 0 | AQ17: =IF(AP17=0,0,(AP17*((LOG(AP17))/LOG(2)))) -> 0 | AS17: =N17 -> 2121 | AT17: =COUNTIF(L150:L178,AS17) -> 0 | AU17: =AT17/(AV4-AT20) -> 0 | AV17: =IF(AU17=0,0,(AU17*((LOG(AU17))/LOG(2)))) -> 0
A18: 12 | B18: 1559 | C18: 14 | D18: 1568 | E18: 13 | F18: 1573 | G18: 14 | H18: 1580 | K18: 0 | L18: 1111 | N18: 2122 | O18: =COUNTIF($L$7:$L$500,N18) -> 0 | P18: =O18/$Q$4 -> 0 | Q18: =IF(P18=0,0,(P18*((LOG(P18))/LOG(2)))) -> 0 | T18: =N18 -> 2122 | U18: =COUNTIF(L7:L35,T18) -> 0 | V18: =U18/(W4-U20) -> 0 | W18: =IF(V18=0,0,(V18*((LOG(V18))/LOG(2)))) -> 0 | Y18: =N18 -> 2122 | Z18: =COUNTIF(L36:L63,Y18) -> 0 | AA18: =Z18/(AB4-Z20) -> 0 | AB18: =IF(AA18=0,0,(AA18*((LOG(AA18))/LOG(2)))) -> 0 | AD18: =N18 -> 2122 | AE18: =COUNTIF(L64:L92,AD18) -> 0 | AF18: =AE18/(AG4-AE20) -> 0 | AG18: =IF(AF18=0,0,(AF18*((LOG(AF18))/LOG(2)))) -> 0 | AI18: =N18 -> 2122 | AJ18: =COUNTIF(L93:L121,AI18) -> 0 | AK18: =AJ18/(AL4-AJ20) -> 0 | AL18: =IF(AK18=0,0,(AK18*((LOG(AK18))/LOG(2)))) -> 0 | AN18: =N18 -> 2122 | AO18: =COUNTIF(L122:L149,AN18) -> 0 | AP18: =AO18/(AQ4-AO20) -> 0 | AQ18: =IF(AP18=0,0,(AP18*((LOG(AP18))/LOG(2)))) -> 0 | AS18: =N18 -> 2122 | AT18: =COUNTIF(L150:L178,AS18) -> 0 | AU18: =AT18/(AV4-AT20) -> 0 | AV18: =IF(AU18=0,0,(AU18*((LOG(AU18))/LOG(2)))) -> 0
A19: 12 | B19: 1674 | C19: 14 | D19: 1688 | E19: 24 | F19: 1700 | G19: 23 | H19: 1707 | K19: 0 | L19: 1122 | N19: 2211 | O19: =COUNTIF($L$7:$L$500,N19) -> 0 | P19: =O19/$Q$4 -> 0 | Q19: =IF(P19=0,0,(P19*((LOG(P19))/LOG(2)))) -> 0 | T19: =N19 -> 2211 | U19: =COUNTIF(L7:L35,T19) -> 0 | V19: =U19/(W4-U20) -> 0 | W19: =IF(V19=0,0,(V19*((LOG(V19))/LOG(2)))) -> 0 | Y19: =N19 -> 2211 | Z19: =COUNTIF(L36:L63,Y19) -> 0 | AA19: =Z19/(AB4-Z20) -> 0 | AB19: =IF(AA19=0,0,(AA19*((LOG(AA19))/LOG(2)))) -> 0 | AD19: =N19 -> 2211 | AE19: =COUNTIF(L64:L92,AD19) -> 0 | AF19: =AE19/(AG4-AE20) -> 0 | AG19: =IF(AF19=0,0,(AF19*((LOG(AF19))/LOG(2)))) -> 0 | AI19: =N19 -> 2211 | AJ19: =COUNTIF(L93:L121,AI19) -> 0 | AK19: =AJ19/(AL4-AJ20) -> 0 | AL19: =IF(AK19=0,0,(AK19*((LOG(AK19))/LOG(2)))) -> 0 | AN19: =N19 -> 2211 | AO19: =COUNTIF(L122:L149,AN19) -> 0 | AP19: =AO19/(AQ4-AO20) -> 0 | AQ19: =IF(AP19=0,0,(AP19*((LOG(AP19))/LOG(2)))) -> 0 | AS19: =N19 -> 2211 | AT19: =COUNTIF(L150:L178,AS19) -> 0 | AU19: =AT19/(AV4-AT20) -> 0 | AV19: =IF(AU19=0,0,(AU19*((LOG(AU19))/LOG(2)))) -> 0
A20: 12 | B20: 1810 | C20: 14 | D20: 1820 | E20: 13 | F20: 1826 | G20: 23 | H20: 1839 | K20: 0 | L20: 1112 | N20: 2212 | O20: =COUNTIF($L$7:$L$500,N20) -> 0 | P20: =O20/$Q$4 -> 0 | Q20: =IF(P20=0,0,(P20*((LOG(P20))/LOG(2)))) -> 0 | T20: =N20 -> 2212 | U20: =COUNTIF(L7:L35,T20) -> 0 | Y20: =N20 -> 2212 | Z20: =COUNTIF(L36:L63,Y20) -> 0 | AD20: =N20 -> 2212 | AE20: =COUNTIF(L64:L92,AD20) -> 0 | AI20: =N20 -> 2212 | AJ20: =COUNTIF(L93:L121,AI20) -> 0 | AN20: =N20 -> 2212 | AO20: =COUNTIF(L122:L149,AN20) -> 0 | AS20: =N20 -> 2212 | AT20: =COUNTIF(L150:L178,AS20) -> 0
A21: 12 | B21: 1944 | C21: 14 | D21: 1962 | E21: 24 | F21: 1974 | G21: 23 | H21: 1989 | K21: 0 | L21: 1122 | N21: 2221 | O21: =COUNTIF($L$7:$L$500,N21) -> 3 | P21: =O21/$Q$4 -> 0.01744186047 | Q21: =IF(P21=0,0,(P21*((LOG(P21))/LOG(2)))) -> -0.1018831788 | T21: =N21 -> 2221 | U21: =COUNTIF(L7:L35,T21) -> 1 | V21: =U21/(W4-U20) -> 0.03448275862 | W21: =IF(V21=0,0,(V21*((LOG(V21))/LOG(2)))) -> -0.167516586 | Y21: =N21 -> 2221 | Z21: =COUNTIF(L36:L63,Y21) -> 1 | AA21: =Z21/(AB4-Z20) -> 0.03571428571 | AB21: =IF(AA21=0,0,(AA21*((LOG(AA21))/LOG(2)))) -> -0.1716912472 | AD21: =N21 -> 2221 | AE21: =COUNTIF(L64:L92,AD21) -> 0 | AF21: =AE21/(AG4-AE20) -> 0 | AG21: =IF(AF21=0,0,(AF21*((LOG(AF21))/LOG(2)))) -> 0 | AI21: =N21 -> 2221 | AJ21: =COUNTIF(L93:L121,AI21) -> 0 | AK21: =AJ21/(AL4-AJ20) -> 0 | AL21: =IF(AK21=0,0,(AK21*((LOG(AK21))/LOG(2)))) -> 0 | AN21: =N21 -> 2221 | AO21: =COUNTIF(L122:L149,AN21) -> 0 | AP21: =AO21/(AQ4-AO20) -> 0 | AQ21: =IF(AP21=0,0,(AP21*((LOG(AP21))/LOG(2)))) -> 0 | AS21: =N21 -> 2221 | AT21: =COUNTIF(L150:L178,AS21) -> 1 | AU21: =AT21/(AV4-AT20) -> 0.03448275862 | AV21: =IF(AU21=0,0,(AU21*((LOG(AU21))/LOG(2)))) -> -0.167516586
A22: 12 | B22: 2116 | C22: 23 | D22: 2128 | E22: 24 | F22: 2140 | G22: 23 | H22: 2152 | K22: 0 | L22: 1222 | N22: 2222 | O22: =COUNTIF($L$7:$L$500,N22) -> 5 | P22: =O22/$Q$4 -> 0.02906976744 | Q22: =IF(P22=0,0,(P22*((LOG(P22))/LOG(2)))) -> -0.1483818796 | T22: =N22 -> 2222 | U22: =COUNTIF(L7:L35,T22) -> 1 | V22: =U22/(W4-U20) -> 0.03448275862 | W22: =IF(V22=0,0,(V22*((LOG(V22))/LOG(2)))) -> -0.167516586 | Y22: =N22 -> 2222 | Z22: =COUNTIF(L36:L63,Y22) -> 3 | AA22: =Z22/(AB4-Z20) -> 0.1071428571 | AB22: =IF(AA22=0,0,(AA22*((LOG(AA22))/LOG(2)))) -> -0.3452563309 | AD22: =N22 -> 2222 | AE22: =COUNTIF(L64:L92,AD22) -> 1 | AF22: =AE22/(AG4-AE20) -> 0.03448275862 | AG22: =IF(AF22=0,0,(AF22*((LOG(AF22))/LOG(2)))) -> -0.167516586 | AI22: =N22 -> 2222 | AJ22: =COUNTIF(L93:L121,AI22) -> 0 | AK22: =AJ22/(AL4-AJ20) -> 0 | AL22: =IF(AK22=0,0,(AK22*((LOG(AK22))/LOG(2)))) -> 0 | AN22: =N22 -> 2222 | AO22: =COUNTIF(L122:L149,AN22) -> 0 | AP22: =AO22/(AQ4-AO20) -> 0 | AQ22: =IF(AP22=0,0,(AP22*((LOG(AP22))/LOG(2)))) -> 0 | AS22: =N22 -> 2222 | AT22: =COUNTIF(L150:L178,AS22) -> 0 | AU22: =AT22/(AV4-AT20) -> 0 | AV22: =IF(AU22=0,0,(AU22*((LOG(AU22))/LOG(2)))) -> 0
A23: 12 | B23: 2260 | C23: 14 | D23: 2281 | E23: 13 | F23: 2310 | G23: 23 | H23: 2323 | K23: 0 | L23: 1112 | P23: =SUM(P7:P22) -> 1 | Q23: =-SUM(Q7:Q22) -> 2.646435112 | V23: =SUM(V7:V22) -> 1 | W23: =-SUM(W7:W22) -> 2.399904702 | AA23: =SUM(AA7:AA22) -> 1 | AB23: =-SUM(AB7:AB22) -> 2.439363403 | AF23: =SUM(AF7:AF22) -> 1 | AG23: =-SUM(AG7:AG22) -> 2.160090272 | AK23: =SUM(AK7:AK22) -> 1 | AL23: =-SUM(AL7:AL22) -> 2.257087134 | AP23: =SUM(AP7:AP22) -> 1 | AQ23: =-SUM(AQ7:AQ22) -> 2.329352137 | AU23: =SUM(AU7:AU22) -> 1 | AV23: =-SUM(AV7:AV22) -> 2.632831857
A24: 12 | B24: 2446 | C24: 14 | D24: 2458 | E24: 24 | F24: 2498 | G24: 23 | H24: 2510 | K24: 0 | L24: 1122 | P24: U= | Q24: =Q23/(LOG(Q4)/LOG(2)) -> 0.3563615356 | V24: U1= | W24: =W23/(LOG(W4)/LOG(2)) -> 0.494012781 | AA24: U2= | AB24: =AB23/(LOG(AB4)/LOG(2)) -> 0.5074231969 | AF24: U3= | AG24: =AG23/(LOG(AG4)/LOG(2)) -> 0.4446477404 | AK24: U4= | AL24: =AL23/(LOG(AL4)/LOG(2)) -> 0.4646142372 | AP24: U5= | AQ24: =AQ23/(LOG(AQ4)/LOG(2)) -> 0.4845392476 | AU24: U6= | AV24: =AV23/(LOG(AV4)/LOG(2)) -> 0.5419600981
A25: 12 | B25: 2625 | C25: 14 | D25: 2645 | E25: 24 | F25: 2655 | G25: 23 | H25: 2665 | K25: 0 | L25: 1122
A26: 12 | B26: 2770 | C26: 14 | D26: 2785 | E26: 13 | F26: 2793 | G26: 23 | H26: 2805 | K26: 0 | L26: 1112
A27: 12 | B27: 2902 | C27: 14 | D27: 2914 | E27: 24 | F27: 2926 | G27: 23 | H27: 2931 | K27: 0 | L27: 1122 | N27: Total Target Seq
A28: 12 | B28: 3037 | C28: 14 | D28: 3043 | E28: 24 | F28: 3061 | G28: 23 | H28: 3072 | K28: 0 | L28: 1122 | N28: =COUNTIF(L7:L178,G3) -> 0 | P28: 29 | Q28: 28 | R28: 29 | S28: 29 | T28: 28 | U28: 29
A29: 12 | B29: 3184 | C29: 23 | D29: 3195 | E29: 24 | F29: 3201 | G29: 23 | H29: 3213 | K29: 0 | L29: 1222 | P29: % of reinforcement given in 6 equal intervals based on number of trials
A30: 12 | B30: 3318 | C30: 14 | D30: 3326 | E30: 13 | F30: 3344 | G30: 23 | H30: 3357 | K30: 0 | L30: 1112 | P30: %_1 | Q30: %_2 | R30: %_3 | S30: %_4 | T30: %_5 | U30: %_6
A31: 12 | B31: 3466 | C31: 23 | D31: 3487 | E31: 24 | F31: 3496 | G31: 23 | H31: 3508 | K31: 0 | L31: 1222 | O31: target sequence | P31: =$G$3 -> 2212 | Q31: =$G$3 -> 2212 | R31: =$G$3 -> 2212 | S31: =$G$3 -> 2212 | T31: =$G$3 -> 2212 | U31: =$G$3 -> 2212
A32: 12 | B32: 3611 | C32: 23 | D32: 3622 | E32: 13 | F32: 3641 | G32: 14 | H32: 3649 | K32: 0 | L32: 1211 | O32: total reinforcement | P32: =U20 -> 0 | Q32: =Z20 -> 0 | R32: =AE20 -> 0 | S32: =AJ20 -> 0 | T32: =AO20 -> 0 | U32: =AT20 -> 0
A33: 12 | B33: 3747 | C33: 14 | D33: 3759 | E33: 24 | F33: 3775 | G33: 23 | H33: 3783 | K33: 0 | L33: 1122 | O33: % target
A34: 12 | B34: 3875 | C34: 14 | D34: 3895 | E34: 13 | F34: 3900 | G34: 14 | H34: 3905 | K34: 0 | L34: 1111 | O34: CCRF
A35: 12 | B35: 4013 | C35: 23 | D35: 4025 | E35: 24 | F35: 4032 | G35: 23 | H35: 4043 | K35: 0 | L35: 1222 | O35: % CCRf
A36: 12 | B36: 4150 | C36: 14 | D36: 4155 | E36: 13 | F36: 4159 | G36: 14 | H36: 4164 | K36: 0 | L36: 1111 | O36: average response rate | P36: =H35/P28 -> 139.4137931 | Q36: =(H63-H35)/Q28 -> 136.1785714 | R36: =(H92-H63)/R28 -> 140.9310345 | S36: =(H121-H92)/S28 -> 139.5517241 | T36: =(H149-H121)/T28 -> 135.3214286 | U36: =(H178-H149)/U28 -> 141.5862069
A37: 12 | B37: 4259 | C37: 14 | D37: 4273 | E37: 13 | F37: 4277 | G37: 23 | H37: 4288 | K37: 0 | L37: 1112
A38: 21 | B38: 4395 | C38: 21 | D38: 4400 | E38: 22 | F38: 4411 | G38: 23 | H38: 4432 | K38: 0 | L38: 2222
A39: 12 | B39: 4540 | C39: 23 | D39: 4558 | E39: 24 | F39: 4566 | G39: 23 | H39: 4578 | K39: 0 | L39: 1222
A40: 12 | B40: 4675 | C40: 14 | D40: 4679 | E40: 24 | F40: 4691 | G40: 23 | H40: 4698 | K40: 0 | L40: 1122
A41: 12 | B41: 4798 | C41: 23 | D41: 4819 | E41: 24 | F41: 4826 | G41: 23 | H41: 4837 | K41: 0 | L41: 1222
A42: 21 | B42: 4948 | C42: 21 | D42: 4961 | E42: 22 | F42: 4983 | G42: 23 | H42: 4996 | K42: 0 | L42: 2222
A43: 12 | B43: 5101 | C43: 23 | D43: 5113 | E43: 24 | F43: 5117 | G43: 23 | H43: 5128 | K43: 0 | L43: 1222
A44: 12 | B44: 5245 | C44: 14 | D44: 5259 | E44: 24 | F44: 5270 | G44: 23 | H44: 5282 | K44: 0 | L44: 1122
A45: 12 | B45: 5382 | C45: 14 | D45: 5386 | E45: 24 | F45: 5397 | G45: 23 | H45: 5408 | K45: 0 | L45: 1122
A46: 21 | B46: 5525 | C46: 21 | D46: 5531 | E46: 22 | F46: 5542 | G46: 14 | H46: 5563 | K46: 0 | L46: 2221
A47: 12 | B47: 5670 | C47: 14 | D47: 5683 | E47: 24 | F47: 5694 | G47: 23 | H47: 5702 | K47: 0 | L47: 1122
A48: 12 | B48: 5799 | C48: 14 | D48: 5804 | E48: 13 | F48: 5808 | G48: 23 | H48: 5820 | K48: 0 | L48: 1112
A49: 12 | B49: 5911 | C49: 14 | D49: 5915 | E49: 13 | F49: 5931 | G49: 23 | H49: 5942 | K49: 0 | L49: 1112
A50: 12 | B50: 6038 | C50: 14 | D50: 6064 | E50: 13 | F50: 6069 | G50: 23 | H50: 6078 | K50: 0 | L50: 1112
A51: 12 | B51: 6176 | C51: 23 | D51: 6189 | E51: 24 | F51: 6193 | G51: 14 | H51: 6205 | K51: 0 | L51: 1221
A52: 12 | B52: 6305 | C52: 14 | D52: 6317 | E52: 24 | F52: 6329 | G52: 23 | H52: 6337 | K52: 0 | L52: 1122
A53: 12 | B53: 6436 | C53: 14 | D53: 6444 | E53: 24 | F53: 6469 | G53: 23 | H53: 6495 | K53: 0 | L53: 1122
A54: 12 | B54: 6587 | C54: 14 | D54: 6591 | E54: 24 | F54: 6601 | G54: 23 | H54: 6609 | K54: 0 | L54: 1122
A55: 12 | B55: 6704 | C55: 23 | D55: 6715 | E55: 24 | F55: 6723 | G55: 14 | H55: 6742 | K55: 0 | L55: 1221
A56: 12 | B56: 6862 | C56: 14 | D56: 6870 | E56: 13 | F56: 6880 | G56: 23 | H56: 6904 | K56: 0 | L56: 1112
A57: 12 | B57: 7004 | C57: 14 | D57: 7023 | E57: 24 | F57: 7033 | G57: 23 | H57: 7041 | K57: 0 | L57: 1122
A58: 21 | B58: 7160 | C58: 21 | D58: 7167 | E58: 22 | F58: 7179 | G58: 23 | H58: 7190 | K58: 0 | L58: 2222
A59: 12 | B59: 7281 | C59: 23 | D59: 7301 | E59: 24 | F59: 7308 | G59: 23 | H59: 7319 | K59: 0 | L59: 1222
A60: 12 | B60: 7415 | C60: 14 | D60: 7427 | E60: 24 | F60: 7436 | G60: 23 | H60: 7443 | K60: 0 | L60: 1122
A61: 12 | B61: 7540 | C61: 23 | D61: 7562 | E61: 24 | F61: 7570 | G61: 23 | H61: 7582 | K61: 0 | L61: 1222
A62: 12 | B62: 7677 | C62: 14 | D62: 7690 | E62: 13 | F62: 7705 | G62: 23 | H62: 7721 | K62: 0 | L62: 1112
A63: 12 | B63: 7824 | C63: 23 | D63: 7835 | E63: 24 | F63: 7843 | G63: 23 | H63: 7856 | K63: 0 | L63: 1222
A64: 12 | B64: 7953 | C64: 14 | D64: 7960 | E64: 13 | F64: 7969 | G64: 14 | H64: 7986 | K64: 0 | L64: 1111
A65: 12 | B65: 8081 | C65: 23 | D65: 8107 | E65: 24 | F65: 8125 | G65: 23 | H65: 8136 | K65: 0 | L65: 1222
A66: 12 | B66: 8234 | C66: 14 | D66: 8255 | E66: 24 | F66: 8267 | G66: 23 | H66: 8275 | K66: 0 | L66: 1122
A67: 12 | B67: 8366 | C67: 14 | D67: 8386 | E67: 24 | F67: 8395 | G67: 23 | H67: 8403 | K67: 0 | L67: 1122
A68: 12 | B68: 8503 | C68: 14 | D68: 8517 | E68: 24 | F68: 8529 | G68: 23 | H68: 8537 | K68: 0 | L68: 1122
A69: 12 | B69: 8635 | C69: 23 | D69: 8673 | E69: 24 | F69: 8684 | G69: 23 | H69: 8717 | K69: 0 | L69: 1222
A70: 12 | B70: 8823 | C70: 14 | D70: 8838 | E70: 24 | F70: 8850 | G70: 23 | H70: 8869 | K70: 0 | L70: 1122
A71: 12 | B71: 8971 | C71: 23 | D71: 8984 | E71: 13 | F71: 8995 | G71: 14 | H71: 9003 | K71: 0 | L71: 1211
A72: 12 | B72: 9100 | C72: 14 | D72: 9111 | E72: 24 | F72: 9122 | G72: 23 | H72: 9129 | K72: 0 | L72: 1122
A73: 12 | B73: 9228 | C73: 14 | D73: 9249 | E73: 24 | F73: 9268 | G73: 23 | H73: 9279 | K73: 0 | L73: 1122
A74: 12 | B74: 9383 | C74: 14 | D74: 9403 | E74: 24 | F74: 9414 | G74: 23 | H74: 9437 | K74: 0 | L74: 1122
A75: 12 | B75: 9542 | C75: 14 | D75: 9547 | E75: 13 | F75: 9552 | G75: 14 | H75: 9560 | K75: 0 | L75: 1111
A76: 12 | B76: 9656 | C76: 14 | D76: 9664 | E76: 13 | F76: 9683 | G76: 14 | H76: 9689 | K76: 0 | L76: 1111
A77: 12 | B77: 9780 | C77: 14 | D77: 9785 | E77: 24 | F77: 9808 | G77: 23 | H77: 9816 | K77: 0 | L77: 1122
A78: 12 | B78: 9914 | C78: 14 | D78: 9927 | E78: 24 | F78: 9937 | G78: 23 | H78: 9945 | K78: 0 | L78: 1122
A79: 12 | B79: 10044 | C79: 14 | D79: 10057 | E79: 13 | F79: 10074 | G79: 14 | H79: 10079 | K79: 0 | L79: 1111
A80: 12 | B80: 10174 | C80: 14 | D80: 10189 | E80: 24 | F80: 10200 | G80: 14 | H80: 10221 | K80: 0 | L80: 1121
A81: 12 | B81: 10334 | C81: 14 | D81: 10339 | E81: 13 | F81: 10349 | G81: 14 | H81: 10356 | K81: 0 | L81: 1111
A82: 21 | B82: 10492 | C82: 12 | D82: 10504 | E82: 13 | F82: 10509 | G82: 14 | H82: 10517 | K82: 0 | L82: 2111
A83: 12 | B83: 10611 | C83: 14 | D83: 10615 | E83: 13 | F83: 10626 | G83: 14 | H83: 10640 | K83: 0 | L83: 1111
A84: 12 | B84: 10738 | C84: 14 | D84: 10763 | E84: 13 | F84: 10768 | G84: 14 | H84: 10772 | K84: 0 | L84: 1111
A85: 12 | B85: 10872 | C85: 14 | D85: 10884 | E85: 13 | F85: 10899 | G85: 23 | H85: 10918 | K85: 0 | L85: 1112
A86: 12 | B86: 11018 | C86: 14 | D86: 11028 | E86: 13 | F86: 11036 | G86: 14 | H86: 11058 | K86: 0 | L86: 1111
A87: 12 | B87: 11154 | C87: 14 | D87: 11165 | E87: 13 | F87: 11177 | G87: 14 | H87: 11185 | K87: 0 | L87: 1111
A88: 12 | B88: 11274 | C88: 14 | D88: 11304 | E88: 24 | F88: 11332 | G88: 23 | H88: 11365 | K88: 0 | L88: 1122
A89: 12 | B89: 11471 | C89: 14 | D89: 11482 | E89: 24 | F89: 11493 | G89: 23 | H89: 11500 | K89: 0 | L89: 1122
A90: 12 | B90: 11591 | C90: 14 | D90: 11603 | E90: 13 | F90: 11627 | G90: 14 | H90: 11636 | K90: 0 | L90: 1111
A91: 21 | B91: 11764 | C91: 21 | D91: 11771 | E91: 22 | F91: 11782 | G91: 23 | H91: 11802 | K91: 0 | L91: 2222
A92: 12 | B92: 11909 | C92: 14 | D92: 11924 | E92: 24 | F92: 11936 | G92: 23 | H92: 11943 | K92: 0 | L92: 1122
A93: 12 | B93: 12035 | C93: 14 | D93: 12048 | E93: 13 | F93: 12064 | G93: 23 | H93: 12075 | K93: 0 | L93: 1112
A94: 12 | B94: 12166 | C94: 14 | D94: 12179 | E94: 24 | F94: 12195 | G94: 23 | H94: 12216 | K94: 0 | L94: 1122
A95: 12 | B95: 12319 | C95: 14 | D95: 12344 | E95: 24 | F95: 12355 | G95: 23 | H95: 12364 | K95: 0 | L95: 1122
A96: 12 | B96: 12473 | C96: 23 | D96: 12484 | E96: 24 | F96: 12492 | G96: 23 | H96: 12501 | K96: 0 | L96: 1222
A97: 12 | B97: 12592 | C97: 14 | D97: 12603 | E97: 24 | F97: 12614 | G97: 23 | H97: 12621 | K97: 0 | L97: 1122
A98: 12 | B98: 12717 | C98: 14 | D98: 12724 | E98: 13 | F98: 12736 | G98: 23 | H98: 12748 | K98: 0 | L98: 1112
A99: 12 | B99: 12850 | C99: 23 | D99: 12869 | E99: 24 | F99: 12876 | G99: 23 | H99: 12901 | K99: 0 | L99: 1222
A100: 12 | B100: 13001 | C100: 23 | D100: 13027 | E100: 24 | F100: 13034 | G100: 23 | H100: 13069 | K100: 0 | L100: 1222
A101: 12 | B101: 13170 | C101: 23 | D101: 13184 | E101: 13 | F101: 13198 | G101: 14 | H101: 13203 | K101: 0 | L101: 1211
A102: 12 | B102: 13300 | C102: 23 | D102: 13310 | E102: 24 | F102: 13317 | G102: 23 | H102: 13328 | K102: 0 | L102: 1222
A103: 12 | B103: 13424 | C103: 23 | D103: 13449 | E103: 24 | F103: 13456 | G103: 23 | H103: 13477 | K103: 0 | L103: 1222
A104: 12 | B104: 13579 | C104: 14 | D104: 13586 | E104: 13 | F104: 13602 | G104: 14 | H104: 13607 | K104: 0 | L104: 1111
A105: 12 | B105: 13705 | C105: 14 | D105: 13712 | E105: 24 | F105: 13740 | G105: 23 | H105: 13747 | K105: 0 | L105: 1122
A106: 12 | B106: 13839 | C106: 14 | D106: 13859 | E106: 24 | F106: 13871 | G106: 23 | H106: 13878 | K106: 0 | L106: 1122
A107: 12 | B107: 13971 | C107: 14 | D107: 13991 | E107: 24 | F107: 14010 | G107: 23 | H107: 14033 | K107: 0 | L107: 1122
A108: 12 | B108: 14127 | C108: 14 | D108: 14159 | E108: 24 | F108: 14185 | G108: 23 | H108: 14197 | K108: 0 | L108: 1122
A109: 12 | B109: 14295 | C109: 14 | D109: 14310 | E109: 24 | F109: 14328 | G109: 14 | H109: 14346 | K109: 0 | L109: 1121
A110: 12 | B110: 14443 | C110: 14 | D110: 14450 | E110: 13 | F110: 14464 | G110: 23 | H110: 14475 | K110: 0 | L110: 1112
A111: 12 | B111: 14571 | C111: 14 | D111: 14580 | E111: 24 | F111: 14606 | G111: 23 | H111: 14619 | K111: 0 | L111: 1122
A112: 12 | B112: 14707 | C112: 14 | D112: 14726 | E112: 13 | F112: 14730 | G112: 14 | H112: 14734 | K112: 0 | L112: 1111
A113: 12 | B113: 14834 | C113: 14 | D113: 14846 | E113: 13 | F113: 14860 | G113: 23 | H113: 14872 | K113: 0 | L113: 1112
A114: 12 | B114: 14962 | C114: 23 | D114: 14984 | E114: 24 | F114: 14992 | G114: 14 | H114: 15009 | K114: 0 | L114: 1221
A115: 12 | B115: 15104 | C115: 23 | D115: 15137 | E115: 24 | F115: 15145 | G115: 23 | H115: 15155 | K115: 0 | L115: 1222
A116: 12 | B116: 15251 | C116: 14 | D116: 15266 | E116: 24 | F116: 15278 | G116: 23 | H116: 15287 | K116: 0 | L116: 1122
A117: 12 | B117: 15377 | C117: 23 | D117: 15431 | E117: 24 | F117: 15439 | G117: 23 | H117: 15463 | K117: 0 | L117: 1222
A118: 12 | B118: 15559 | C118: 14 | D118: 15574 | E118: 24 | F118: 15587 | G118: 23 | H118: 15595 | K118: 0 | L118: 1122
A119: 12 | B119: 15691 | C119: 14 | D119: 15694 | E119: 24 | F119: 15728 | G119: 23 | H119: 15735 | K119: 0 | L119: 1122
A120: 12 | B120: 15830 | C120: 14 | D120: 15837 | E120: 13 | F120: 15848 | G120: 14 | H120: 15867 | K120: 0 | L120: 1111
A121: 12 | B121: 15962 | C121: 14 | D121: 15970 | E121: 24 | F121: 15982 | G121: 23 | H121: 15990 | K121: 0 | L121: 1122
A122: 12 | B122: 16086 | C122: 14 | D122: 16099 | E122: 13 | F122: 16114 | G122: 23 | H122: 16135 | K122: 0 | L122: 1112
A123: 12 | B123: 16235 | C123: 14 | D123: 16240 | E123: 24 | F123: 16252 | G123: 23 | H123: 16260 | K123: 0 | L123: 1122
A124: 12 | B124: 16369 | C124: 23 | D124: 16391 | E124: 24 | F124: 16399 | G124: 23 | H124: 16410 | K124: 0 | L124: 1222
A125: 12 | B125: 16511 | C125: 23 | D125: 16532 | E125: 24 | F125: 16539 | G125: 14 | H125: 16556 | K125: 0 | L125: 1221
A126: 12 | B126: 16653 | C126: 14 | D126: 16659 | E126: 13 | F126: 16681 | G126: 23 | H126: 16695 | K126: 0 | L126: 1112
A127: 12 | B127: 16796 | C127: 14 | D127: 16810 | E127: 13 | F127: 16815 | G127: 14 | H127: 16822 | K127: 0 | L127: 1111
A128: 12 | B128: 16924 | C128: 14 | D128: 16941 | E128: 13 | F128: 16946 | G128: 14 | H128: 16951 | K128: 0 | L128: 1111
A129: 12 | B129: 17053 | C129: 14 | D129: 17064 | E129: 13 | F129: 17069 | G129: 14 | H129: 17081 | K129: 0 | L129: 1111
A130: 12 | B130: 17176 | C130: 14 | D130: 17186 | E130: 13 | F130: 17192 | G130: 14 | H130: 17204 | K130: 0 | L130: 1111
A131: 12 | B131: 17301 | C131: 14 | D131: 17307 | E131: 13 | F131: 17311 | G131: 14 | H131: 17315 | K131: 0 | L131: 1111
A132: 12 | B132: 17412 | C132: 14 | D132: 17416 | E132: 13 | F132: 17430 | G132: 14 | H132: 17445 | K132: 0 | L132: 1111
A133: 12 | B133: 17543 | C133: 14 | D133: 17548 | E133: 13 | F133: 17566 | G133: 14 | H133: 17571 | K133: 0 | L133: 1111
A134: 12 | B134: 17667 | C134: 23 | D134: 17691 | E134: 24 | F134: 17698 | G134: 23 | H134: 17710 | K134: 0 | L134: 1222
A135: 12 | B135: 17806 | C135: 14 | D135: 17834 | E135: 24 | F135: 17846 | G135: 23 | H135: 17854 | K135: 0 | L135: 1122
A136: 12 | B136: 17943 | C136: 23 | D136: 17963 | E136: 24 | F136: 17970 | G136: 23 | H136: 17982 | K136: 0 | L136: 1222
A137: 12 | B137: 18078 | C137: 14 | D137: 18089 | E137: 13 | F137: 18103 | G137: 14 | H137: 18117 | K137: 0 | L137: 1111
A138: 12 | B138: 18213 | C138: 23 | D138: 18231 | E138: 24 | F138: 18237 | G138: 14 | H138: 18255 | K138: 0 | L138: 1221
A139: 12 | B139: 18352 | C139: 14 | D139: 18356 | E139: 13 | F139: 18366 | G139: 14 | H139: 18375 | K139: 0 | L139: 1111
A140: 12 | B140: 18476 | C140: 14 | D140: 18490 | E140: 13 | F140: 18494 | G140: 23 | H140: 18506 | K140: 0 | L140: 1112
A141: 12 | B141: 18604 | C141: 14 | D141: 18612 | E141: 13 | F141: 18620 | G141: 23 | H141: 18632 | K141: 0 | L141: 1112
A142: 12 | B142: 18735 | C142: 14 | D142: 18739 | E142: 13 | F142: 18744 | G142: 14 | H142: 18776 | K142: 0 | L142: 1111
A143: 12 | B143: 18889 | C143: 23 | D143: 18900 | E143: 13 | F143: 18914 | G143: 14 | H143: 18922 | K143: 0 | L143: 1211
A144: 12 | B144: 19023 | C144: 14 | D144: 19027 | E144: 24 | F144: 19039 | G144: 14 | H144: 19056 | K144: 0 | L144: 1121
A145: 12 | B145: 19146 | C145: 14 | D145: 19175 | E145: 24 | F145: 19186 | G145: 23 | H145: 19194 | K145: 0 | L145: 1122
A146: 12 | B146: 19298 | C146: 14 | D146: 19319 | E146: 24 | F146: 19364 | G146: 23 | H146: 19381 | K146: 0 | L146: 1122
A147: 12 | B147: 19477 | C147: 14 | D147: 19481 | E147: 13 | F147: 19493 | G147: 14 | H147: 19502 | K147: 0 | L147: 1111
A148: 12 | B148: 19600 | C148: 14 | D148: 19624 | E148: 13 | F148: 19629 | G148: 14 | H148: 19642 | K148: 0 | L148: 1111
A149: 12 | B149: 19733 | C149: 14 | D149: 19759 | E149: 24 | F149: 19771 | G149: 23 | H149: 19779 | K149: 0 | L149: 1122
A150: 21 | B150: 19904 | C150: 12 | D150: 19922 | E150: 13 | F150: 19930 | G150: 14 | H150: 19938 | K150: 0 | L150: 2111
A151: 12 | B151: 20035 | C151: 23 | D151: 20071 | E151: 24 | F151: 20078 | G151: 23 | H151: 20088 | K151: 0 | L151: 1222
A152: 12 | B152: 20199 | C152: 14 | D152: 20210 | E152: 13 | F152: 20218 | G152: 14 | H152: 20232 | K152: 0 | L152: 1111
A153: 12 | B153: 20330 | C153: 14 | D153: 20338 | E153: 13 | F153: 20357 | G153: 23 | H153: 20368 | K153: 0 | L153: 1112
A154: 12 | B154: 20466 | C154: 14 | D154: 20473 | E154: 13 | F154: 20482 | G154: 23 | H154: 20494 | K154: 0 | L154: 1112
A155: 12 | B155: 20585 | C155: 14 | D155: 20599 | E155: 24 | F155: 20613 | G155: 23 | H155: 20622 | K155: 0 | L155: 1122
A156: 12 | B156: 20718 | C156: 14 | D156: 20734 | E156: 24 | F156: 20758 | G156: 23 | H156: 20766 | K156: 0 | L156: 1122
A157: 12 | B157: 20869 | C157: 14 | D157: 20875 | E157: 13 | F157: 20887 | G157: 23 | H157: 20900 | K157: 0 | L157: 1112
A158: 12 | B158: 20998 | C158: 14 | D158: 21009 | E158: 13 | F158: 21029 | G158: 14 | H158: 21037 | K158: 0 | L158: 1111
A159: 12 | B159: 21133 | C159: 14 | D159: 21137 | E159: 13 | F159: 21143 | G159: 14 | H159: 21151 | K159: 0 | L159: 1111
A160: 12 | B160: 21286 | C160: 23 | D160: 21297 | E160: 24 | F160: 21314 | G160: 23 | H160: 21323 | K160: 0 | L160: 1222
A161: 12 | B161: 21426 | C161: 23 | D161: 21438 | E161: 24 | F161: 21447 | G161: 23 | H161: 21467 | K161: 0 | L161: 1222
A162: 12 | B162: 21566 | C162: 23 | D162: 21595 | E162: 24 | F162: 21605 | G162: 14 | H162: 21631 | K162: 0 | L162: 1221
A163: 12 | B163: 21731 | C163: 14 | D163: 21738 | E163: 13 | F163: 21745 | G163: 23 | H163: 21762 | K163: 0 | L163: 1112
A164: 12 | B164: 21865 | C164: 14 | D164: 21884 | E164: 24 | F164: 21897 | G164: 23 | H164: 21907 | K164: 0 | L164: 1122
A165: 12 | B165: 21998 | C165: 23 | D165: 22018 | E165: 24 | F165: 22026 | G165: 14 | H165: 22044 | K165: 0 | L165: 1221
A166: 12 | B166: 22145 | C166: 14 | D166: 22151 | E166: 24 | F166: 22166 | G166: 23 | H166: 22178 | K166: 0 | L166: 1122
A167: 12 | B167: 22279 | C167: 14 | D167: 22298 | E167: 24 | F167: 22309 | G167: 23 | H167: 22318 | K167: 0 | L167: 1122
A168: 12 | B168: 22416 | C168: 14 | D168: 22420 | E168: 13 | F168: 22427 | G168: 14 | H168: 22449 | K168: 0 | L168: 1111
A169: 12 | B169: 22547 | C169: 14 | D169: 22557 | E169: 24 | F169: 22579 | G169: 23 | H169: 22588 | K169: 0 | L169: 1122
A170: 12 | B170: 22687 | C170: 23 | D170: 22723 | E170: 13 | F170: 22741 | G170: 23 | H170: 22764 | K170: 0 | L170: 1212
A171: 12 | B171: 22865 | C171: 14 | D171: 22869 | E171: 13 | F171: 22874 | G171: 14 | H171: 22882 | K171: 0 | L171: 1111
A172: 12 | B172: 22978 | C172: 14 | D172: 23001 | E172: 24 | F172: 23015 | G172: 23 | H172: 23025 | K172: 0 | L172: 1122
A173: 21 | B173: 23145 | C173: 21 | D173: 23152 | E173: 22 | F173: 23167 | G173: 14 | H173: 23180 | K173: 0 | L173: 2221
A174: 12 | B174: 23277 | C174: 14 | D174: 23281 | E174: 24 | F174: 23299 | G174: 23 | H174: 23307 | K174: 0 | L174: 1122
A175: 12 | B175: 23408 | C175: 23 | D175: 23441 | E175: 24 | F175: 23452 | G175: 14 | H175: 23484 | K175: 0 | L175: 1221
A176: 12 | B176: 23579 | C176: 14 | D176: 23599 | E176: 13 | F176: 23603 | G176: 23 | H176: 23624 | K176: 0 | L176: 1112
A177: 12 | B177: 23723 | C177: 14 | D177: 23740 | E177: 13 | F177: 23753 | G177: 23 | H177: 23764 | K177: 0 | L177: 1112
A178: 12 | B178: 23867 | C178: 14 | D178: 23871 | E178: 13 | F178: 23878 | G178: 14 | H178: 23885 | K178: 0 | L178: 1111

Sheet !M823B10.000
A1: Report for:!M823B10.000
A2: Date: | B2: <date>
A3: Hen: | B3: <hen> | F3: Correct Sequence | G3: =Start!J2 -> 2212 | P3: Total Sequences in Data | Q3: =4994-COUNTBLANK(L7:L5000) -> 171 | V3: Total Sequences in Block Data | W3: =COUNTA(L7:L35) -> 29 | AA3: Total Sequences in Block Data | AB3: =COUNTA(L36:L63) -> 28 | AF3: Total Sequences in Block Data | AG3: =COUNTA(L64:L92) -> 29 | AK3: Total Sequences in Block Data | AL3: =COUNTA(L93:L120) -> 28 | AP3: Total Sequences in Block Data | AQ3: =COUNTA(L121:L149) -> 29 | AU3: Total Sequences in Block Data | AV3: =COUNTA(L150:L177) -> 28
P4: Total Sequences in Summary | Q4: =SUM(O7:O22) -> 171 | V4: Total Sequences in Block Summary | W4: =SUM(U7:U22) -> 29 | AA4: Total Sequences in Block Summary | AB4: =SUM(Z7:Z22) -> 28 | AF4: Total Sequences in Block Summary | AG4: =SUM(AE7:AE22) -> 29 | AK4: Total Sequences in Block Summary | AL4: =SUM(AJ7:AJ22) -> 28 | AP4: Total Sequences in Block Summary | AQ4: =SUM(AO7:AO22) -> 29 | AU4: Total Sequences in Block Summary | AV4: =SUM(AT7:AT22) -> 28
T5: Block 1 | Y5: Block 2 | AD5: Block 3 | AI5: Block 4 | AN5: Block 5 | AS5: Block 6
A6: Sequence Component 1 | B6: Time 1 | C6: Sequence Component 2 | D6: Time 2 | E6: Sequence Component 3 | F6: Time 3 | G6: Sequence Component 4 | H6: Time 4 | I6: Sequence Component 5 | J6: Time 5 | K6: Correct? 0=No 1=Yes | L6: Sequence | N6: Frequency | P6: Relative Frequency | Q6: Variability | T6: Frequency | V6: Relative Frequency | W6: Variability | Y6: Frequency | AA6: Relative Frequency | AB6: Variability | AD6: Frequency | AF6: Relative Frequency | AG6: Variability | AI6: Frequency | AK6: Relative Frequency | AL6: Variability | AN6: Frequency | AP6: Relative Frequency | AQ6: Variability | AS6: Frequency | AU6: Relative Frequency | AV6: Variability
A7: 21 | B7: 50 | C7: 21 | D7: 61 | E7: 22 | F7: 73 | G7: 14 | H7: 91 | K7: 0 | L7: 2221 | N7: 1111 | O7: =COUNTIF($L$7:$L$500,N7) -> 85 | P7: =O7/$Q$4 -> 0.4970760234 | Q7: =IF(P7=0,0,(P7*((LOG(P7))/LOG(2)))) -> -0.5012820713 | T7: =N7 -> 1111 | U7: =COUNTIF(L7:L35,T7) -> 8 | V7: =U7/(W4-U20) -> 0.275862069 | W7: =IF(V7=0,0,(V7*((LOG(V7))/LOG(2)))) -> -0.5125464814 | Y7: =N7 -> 1111 | Z7: =COUNTIF(L36:L63,Y7) -> 7 | AA7: =Z7/(AB4-Z20) -> 0.25 | AB7: =IF(AA7=0,0,(AA7*((LOG(AA7))/LOG(2)))) -> -0.5 | AD7: =N7 -> 1111 | AE7: =COUNTIF(L64:L92,AD7) -> 11 | AF7: =AE7/(AG4-AE20) -> 0.3793103448 | AG7: =IF(AF7=0,0,(AF7*((LOG(AF7))/LOG(2)))) -> -0.5304842463 | AI7: =N7 -> 1111 | AJ7: =COUNTIF(L93:L120,AI7) -> 15 | AK7: =AJ7/(AL4-AJ20) -> 0.5357142857 | AL7: =IF(AK7=0,0,(AK7*((LOG(AK7))/LOG(2)))) -> -0.4823916035 | AN7: =N7 -> 1111 | AO7: =COUNTIF(L121:L149,AN7) -> 21 | AP7: =AO7/(AQ4-AO20) -> 0.724137931 | AQ7: =IF(AP7=0,0,(AP7*((LOG(AP7))/LOG(2)))) -> -0.3372046558 | AS7: =N7 -> 1111 | AT7: =COUNTIF(L150:L177,AS7) -> 23 | AU7: =AT7/(AV4-AT20) -> 0.8214285714 | AV7: =IF(AU7=0,0,(AU7*((LOG(AU7))/LOG(2)))) -> -0.2331156506
A8: 21 | B8: 195 | C8: 21 | D8: 203 | E8: 11 | F8: 219 | G8: 12 | H8: 233 | K8: 0 | L8: 2211 | N8: 1112 | O8: =COUNTIF($L$7:$L$500,N8) -> 17 | P8: =O8/$Q$4 -> 0.09941520468 | Q8: =IF(P8=0,0,(P8*((LOG(P8))/LOG(2)))) -> -0.3310913711 | T8: =N8 -> 1112 | U8: =COUNTIF(L7:L35,T8) -> 4 | V8: =U8/(W4-U20) -> 0.1379310345 | W8: =IF(V8=0,0,(V8*((LOG(V8))/LOG(2)))) -> -0.3942042752 | Y8: =N8 -> 1112 | Z8: =COUNTIF(L36:L63,Y8) -> 1 | AA8: =Z8/(AB4-Z20) -> 0.03571428571 | AB8: =IF(AA8=0,0,(AA8*((LOG(AA8))/LOG(2)))) -> -0.1716912472 | AD8: =N8 -> 1112 | AE8: =COUNTIF(L64:L92,AD8) -> 1 | AF8: =AE8/(AG4-AE20) -> 0.03448275862 | AG8: =IF(AF8=0,0,(AF8*((LOG(AF8))/LOG(2)))) -> -0.167516586 | AI8: =N8 -> 1112 | AJ8: =COUNTIF(L93:L120,AI8) -> 4 | AK8: =AJ8/(AL4-AJ20) -> 0.1428571429 | AL8: =IF(AK8=0,0,(AK8*((LOG(AK8))/LOG(2)))) -> -0.4010507032 | AN8: =N8 -> 1112 | AO8: =COUNTIF(L121:L149,AN8) -> 4 | AP8: =AO8/(AQ4-AO20) -> 0.1379310345 | AQ8: =IF(AP8=0,0,(AP8*((LOG(AP8))/LOG(2)))) -> -0.3942042752 | AS8: =N8 -> 1112 | AT8: =COUNTIF(L150:L177,AS8) -> 3 | AU8: =AT8/(AV4-AT20) -> 0.1071428571 | AV8: =IF(AU8=0,0,(AU8*((LOG(AU8))/LOG(2)))) -> -0.3452563309
A9: 12 | B9: 356 | C9: 14 | D9: 364 | E9: 13 | F9: 369 | G9: 23 | H9: 381 | K9: 0 | L9: 1112 | N9: 1121 | O9: =COUNTIF($L$7:$L$500,N9) -> 4 | P9: =O9/$Q$4 -> 0.02339181287 | Q9: =IF(P9=0,0,(P9*((LOG(P9))/LOG(2)))) -> -0.1267333922 | T9: =N9 -> 1121 | U9: =COUNTIF(L7:L35,T9) -> 1 | V9: =U9/(W4-U20) -> 0.03448275862 | W9: =IF(V9=0,0,(V9*((LOG(V9))/LOG(2)))) -> -0.167516586 | Y9: =N9 -> 1121 | Z9: =COUNTIF(L36:L63,Y9) -> 0 | AA9: =Z9/(AB4-Z20) -> 0 | AB9: =IF(AA9=0,0,(AA9*((LOG(AA9))/LOG(2)))) -> 0 | AD9: =N9 -> 1121 | AE9: =COUNTIF(L64:L92,AD9) -> 0 | AF9: =AE9/(AG4-AE20) -> 0 | AG9: =IF(AF9=0,0,(AF9*((LOG(AF9))/LOG(2)))) -> 0 | AI9: =N9 -> 1121 | AJ9: =COUNTIF(L93:L120,AI9) -> 1 | AK9: =AJ9/(AL4-AJ20) -> 0.03571428571 | AL9: =IF(AK9=0,0,(AK9*((LOG(AK9))/LOG(2)))) -> -0.1716912472 | AN9: =N9 -> 1121 | AO9: =COUNTIF(L121:L149,AN9) -> 0 | AP9: =AO9/(AQ4-AO20) -> 0 | AQ9: =IF(AP9=0,0,(AP9*((LOG(AP9))/LOG(2)))) -> 0 | AS9: =N9 -> 1121 | AT9: =COUNTIF(L150:L177,AS9) -> 2 | AU9: =AT9/(AV4-AT20) -> 0.07142857143 | AV9: =IF(AU9=0,0,(AU9*((LOG(AU9))/LOG(2)))) -> -0.271953923
A10: 21 | B10: 484 | C10: 12 | D10: 494 | E10: 24 | F10: 507 | G10: 23 | H10: 515 | K10: 0 | L10: 2122 | N10: 1122 | O10: =COUNTIF($L$7:$L$500,N10) -> 23 | P10: =O10/$Q$4 -> 0.134502924 | Q10: =IF(P10=0,0,(P10*((LOG(P10))/LOG(2)))) -> -0.389290543 | T10: =N10 -> 1122 | U10: =COUNTIF(L7:L35,T10) -> 2 | V10: =U10/(W4-U20) -> 0.06896551724 | W10: =IF(V10=0,0,(V10*((LOG(V10))/LOG(2)))) -> -0.2660676548 | Y10: =N10 -> 1122 | Z10: =COUNTIF(L36:L63,Y10) -> 6 | AA10: =Z10/(AB4-Z20) -> 0.2142857143 | AB10: =IF(AA10=0,0,(AA10*((LOG(AA10))/LOG(2)))) -> -0.4762269474 | AD10: =N10 -> 1122 | AE10: =COUNTIF(L64:L92,AD10) -> 11 | AF10: =AE10/(AG4-AE20) -> 0.3793103448 | AG10: =IF(AF10=0,0,(AF10*((LOG(AF10))/LOG(2)))) -> -0.5304842463 | AI10: =N10 -> 1122 | AJ10: =COUNTIF(L93:L120,AI10) -> 4 | AK10: =AJ10/(AL4-AJ20) -> 0.1428571429 | AL10: =IF(AK10=0,0,(AK10*((LOG(AK10))/LOG(2)))) -> -0.4010507032 | AN10: =N10 -> 1122 | AO10: =COUNTIF(L121:L149,AN10) -> 0 | AP10: =AO10/(AQ4-AO20) -> 0 | AQ10: =IF(AP10=0,0,(AP10*((LOG(AP10))/LOG(2)))) -> 0 | AS10: =N10 -> 1122 | AT10: =COUNTIF(L150:L177,AS10) -> 0 | AU10: =AT10/(AV4-AT20) -> 0 | AV10: =IF(AU10=0,0,(AU10*((LOG(AU10))/LOG(2)))) -> 0
A11: 21 | B11: 624 | C11: 12 | D11: 635 | E11: 24 | F11: 646 | G11: 14 | H11: 672 | K11: 0 | L11: 2121 | N11: 1211 | O11: =COUNTIF($L$7:$L$500,N11) -> 6 | P11: =O11/$Q$4 -> 0.0350877193 | Q11: =IF(P11=0,0,(P11*((LOG(P11))/LOG(2)))) -> -0.1695750882 | T11: =N11 -> 1211 | U11: =COUNTIF(L7:L35,T11) -> 2 | V11: =U11/(W4-U20) -> 0.06896551724 | W11: =IF(V11=0,0,(V11*((LOG(V11))/LOG(2)))) -> -0.2660676548 | Y11: =N11 -> 1211 | Z11: =COUNTIF(L36:L63,Y11) -> 1 | AA11: =Z11/(AB4-Z20) -> 0.03571428571 | AB11: =IF(AA11=0,0,(AA11*((LOG(AA11))/LOG(2)))) -> -0.1716912472 | AD11: =N11 -> 1211 | AE11: =COUNTIF(L64:L92,AD11) -> 1 | AF11: =AE11/(AG4-AE20) -> 0.03448275862 | AG11: =IF(AF11=0,0,(AF11*((LOG(AF11))/LOG(2)))) -> -0.167516586 | AI11: =N11 -> 1211 | AJ11: =COUNTIF(L93:L120,AI11) -> 0 | AK11: =AJ11/(AL4-AJ20) -> 0 | AL11: =IF(AK11=0,0,(AK11*((LOG(AK11))/LOG(2)))) -> 0 | AN11: =N11 -> 1211 | AO11: =COUNTIF(L121:L149,AN11) -> 2 | AP11: =AO11/(AQ4-AO20) -> 0.06896551724 | AQ11: =IF(AP11=0,0,(AP11*((LOG(AP11))/LOG(2)))) -> -0.2660676548 | AS11: =N11 -> 1211 | AT11: =COUNTIF(L150:L177,AS11) -> 0 | AU11: =AT11/(AV4-AT20) -> 0 | AV11: =IF(AU11=0,0,(AU11*((LOG(AU11))/LOG(2)))) -> 0
A12: 12 | B12: 795 | C12: 14 | D12: 800 | E12: 13 | F12: 807 | G12: 14 | H12: 815 | K12: 0 | L12: 1111 | N12: 1212 | O12: =COUNTIF($L$7:$L$500,N12) -> 1 | P12: =O12/$Q$4 -> 0.005847953216 | Q12: =IF(P12=0,0,(P12*((LOG(P12))/LOG(2)))) -> -0.04337925447 | T12: =N12 -> 1212 | U12: =COUNTIF(L7:L35,T12) -> 0 | V12: =U12/(W4-U20) -> 0 | W12: =IF(V12=0,0,(V12*((LOG(V12))/LOG(2)))) -> 0 | Y12: =N12 -> 1212 | Z12: =COUNTIF(L36:L63,Y12) -> 0 | AA12: =Z12/(AB4-Z20) -> 0 | AB12: =IF(AA12=0,0,(AA12*((LOG(AA12))/LOG(2)))) -> 0 | AD12: =N12 -> 1212 | AE12: =COUNTIF(L64:L92,AD12) -> 0 | AF12: =AE12/(AG4-AE20) -> 0 | AG12: =IF(AF12=0,0,(AF12*((LOG(AF12))/LOG(2)))) -> 0 | AI12: =N12 -> 1212 | AJ12: =COUNTIF(L93:L120,AI12) -> 1 | AK12: =AJ12/(AL4-AJ20) -> 0.03571428571 | AL12: =IF(AK12=0,0,(AK12*((LOG(AK12))/LOG(2)))) -> -0.1716912472 | AN12: =N12 -> 1212 | AO12: =COUNTIF(L121:L149,AN12) -> 0 | AP12: =AO12/(AQ4-AO20) -> 0 | AQ12: =IF(AP12=0,0,(AP12*((LOG(AP12))/LOG(2)))) -> 0 | AS12: =N12 -> 1212 | AT12: =COUNTIF(L150:L177,AS12) -> 0 | AU12: =AT12/(AV4-AT20) -> 0 | AV12: =IF(AU12=0,0,(AU12*((LOG(AU12))/LOG(2)))) -> 0
A13: 12 | B13: 925 | C13: 14 | D13: 937 | E13: 13 | F13: 941 | G13: 14 | H13: 946 | K13: 0 | L13: 1111 | N13: 1221 | O13: =COUNTIF($L$7:$L$500,N13) -> 17 | P13: =O13/$Q$4 -> 0.09941520468 | Q13: =IF(P13=0,0,(P13*((LOG(P13))/LOG(2)))) -> -0.3310913711 | T13: =N13 -> 1221 | U13: =COUNTIF(L7:L35,T13) -> 5 | V13: =U13/(W4-U20) -> 0.1724137931 | W13: =IF(V13=0,0,(V13*((LOG(V13))/LOG(2)))) -> -0.4372505 | Y13: =N13 -> 1221 | Z13: =COUNTIF(L36:L63,Y13) -> 6 | AA13: =Z13/(AB4-Z20) -> 0.2142857143 | AB13: =IF(AA13=0,0,(AA13*((LOG(AA13))/LOG(2)))) -> -0.4762269474 | AD13: =N13 -> 1221 | AE13: =COUNTIF(L64:L92,AD13) -> 2 | AF13: =AE13/(AG4-AE20) -> 0.06896551724 | AG13: =IF(AF13=0,0,(AF13*((LOG(AF13))/LOG(2)))) -> -0.2660676548 | AI13: =N13 -> 1221 | AJ13: =COUNTIF(L93:L120,AI13) -> 2 | AK13: =AJ13/(AL4-AJ20) -> 0.07142857143 | AL13: =IF(AK13=0,0,(AK13*((LOG(AK13))/LOG(2)))) -> -0.271953923 | AN13: =N13 -> 1221 | AO13: =COUNTIF(L121:L149,AN13) -> 2 | AP13: =AO13/(AQ4-AO20) -> 0.06896551724 | AQ13: =IF(AP13=0,0,(AP13*((LOG(AP13))/LOG(2)))) -> -0.2660676548 | AS13: =N13 -> 1221 | AT13: =COUNTIF(L150:L177,AS13) -> 0 | AU13: =AT13/(AV4-AT20) -> 0 | AV13: =IF(AU13=0,0,(AU13*((LOG(AU13))/LOG(2)))) -> 0
A14: 12 | B14: 1051 | C14: 14 | D14: 1059 | E14: 13 | F14: 1080 | G14: 14 | H14: 1084 | K14: 0 | L14: 1111 | N14: 1222 | O14: =COUNTIF($L$7:$L$500,N14) -> 11 | P14: =O14/$Q$4 -> 0.06432748538 | Q14: =IF(P14=0,0,(P14*((LOG(P14))/LOG(2)))) -> -0.2546352623 | T14: =N14 -> 1222 | U14: =COUNTIF(L7:L35,T14) -> 3 | V14: =U14/(W4-U20) -> 0.1034482759 | W14: =IF(V14=0,0,(V14*((LOG(V14))/LOG(2)))) -> -0.3385881201 | Y14: =N14 -> 1222 | Z14: =COUNTIF(L36:L63,Y14) -> 5 | AA14: =Z14/(AB4-Z20) -> 0.1785714286 | AB14: =IF(AA14=0,0,(AA14*((LOG(AA14))/LOG(2)))) -> -0.4438262191 | AD14: =N14 -> 1222 | AE14: =COUNTIF(L64:L92,AD14) -> 3 | AF14: =AE14/(AG4-AE20) -> 0.1034482759 | AG14: =IF(AF14=0,0,(AF14*((LOG(AF14))/LOG(2)))) -> -0.3385881201 | AI14: =N14 -> 1222 | AJ14: =COUNTIF(L93:L120,AI14) -> 0 | AK14: =AJ14/(AL4-AJ20) -> 0 | AL14: =IF(AK14=0,0,(AK14*((LOG(AK14))/LOG(2)))) -> 0 | AN14: =N14 -> 1222 | AO14: =COUNTIF(L121:L149,AN14) -> 0 | AP14: =AO14/(AQ4-AO20) -> 0 | AQ14: =IF(AP14=0,0,(AP14*((LOG(AP14))/LOG(2)))) -> 0 | AS14: =N14 -> 1222 | AT14: =COUNTIF(L150:L177,AS14) -> 0 | AU14: =AT14/(AV4-AT20) -> 0 | AV14: =IF(AU14=0,0,(AU14*((LOG(AU14))/LOG(2)))) -> 0
A15: 12 | B15: 1225 | C15: 14 | D15: 1242 | E15: 13 | F15: 1247 | G15: 23 | H15: 1257 | K15: 0 | L15: 1112 | N15: 2111 | O15: =COUNTIF($L$7:$L$500,N15) -> 0 | P15: =O15/$Q$4 -> 0 | Q15: =IF(P15=0,0,(P15*((LOG(P15))/LOG(2)))) -> 0 | T15: =N15 -> 2111 | U15: =COUNTIF(L7:L35,T15) -> 0 | V15: =U15/(W4-U20) -> 0 | W15: =IF(V15=0,0,(V15*((LOG(V15))/LOG(2)))) -> 0 | Y15: =N15 -> 2111 | Z15: =COUNTIF(L36:L63,Y15) -> 0 | AA15: =Z15/(AB4-Z20) -> 0 | AB15: =IF(AA15=0,0,(AA15*((LOG(AA15))/LOG(2)))) -> 0 | AD15: =N15 -> 2111 | AE15: =COUNTIF(L64:L92,AD15) -> 0 | AF15: =AE15/(AG4-AE20) -> 0 | AG15: =IF(AF15=0,0,(AF15*((LOG(AF15))/LOG(2)))) -> 0 | AI15: =N15 -> 2111 | AJ15: =COUNTIF(L93:L120,AI15) -> 0 | AK15: =AJ15/(AL4-AJ20) -> 0 | AL15: =IF(AK15=0,0,(AK15*((LOG(AK15))/LOG(2)))) -> 0 | AN15: =N15 -> 2111 | AO15: =COUNTIF(L121:L149,AN15) -> 0 | AP15: =AO15/(AQ4-AO20) -> 0 | AQ15: =IF(AP15=0,0,(AP15*((LOG(AP15))/LOG(2)))) -> 0 | AS15: =N15 -> 2111 | AT15: =COUNTIF(L150:L177,AS15) -> 0 | AU15: =AT15/(AV4-AT20) -> 0 | AV15: =IF(AU15=0,0,(AU15*((LOG(AU15))/LOG(2)))) -> 0
A16: 12 | B16: 1366 | C16: 23 | D16: 1379 | E16: 24 | F16: 1387 | G16: 14 | H16: 1407 | K16: 0 | L16: 1221 | N16: 2112 | O16: =COUNTIF($L$7:$L$500,N16) -> 0 | P16: =O16/$Q$4 -> 0 | Q16: =IF(P16=0,0,(P16*((LOG(P16))/LOG(2)))) -> 0 | T16: =N16 -> 2112 | U16: =COUNTIF(L7:L35,T16) -> 0 | V16: =U16/(W4-U20) -> 0 | W16: =IF(V16=0,0,(V16*((LOG(V16))/LOG(2)))) -> 0 | Y16: =N16 -> 2112 | Z16: =COUNTIF(L36:L63,Y16) -> 0 | AA16: =Z16/(AB4-Z20) -> 0 | AB16: =IF(AA16=0,0,(AA16*((LOG(AA16))/LOG(2)))) -> 0 | AD16: =N16 -> 2112 | AE16: =COUNTIF(L64:L92,AD16) -> 0 | AF16: =AE16/(AG4-AE20) -> 0 | AG16: =IF(AF16=0,0,(AF16*((LOG(AF16))/LOG(2)))) -> 0 | AI16: =N16 -> 2112 | AJ16: =COUNTIF(L93:L120,AI16) -> 0 | AK16: =AJ16/(AL4-AJ20) -> 0 | AL16: =IF(AK16=0,0,(AK16*((LOG(AK16))/LOG(2)))) -> 0 | AN16: =N16 -> 2112 | AO16: =COUNTIF(L121:L149,AN16) -> 0 | AP16: =AO16/(AQ4-AO20) -> 0 | AQ16: =IF(AP16=0,0,(AP16*((LOG(AP16))/LOG(2)))) -> 0 | AS16: =N16 -> 2112 | AT16: =COUNTIF(L150:L177,AS16) -> 0 | AU16: =AT16/(AV4-AT20) -> 0 | AV16: =IF(AU16=0,0,(AU16*((LOG(AU16))/LOG(2)))) -> 0
A17: 12 | B17: 1536 | C17: 14 | D17: 1549 | E17: 13 | F17: 1557 | G17: 14 | H17: 1562 | K17: 0 | L17: 1111 | N17: 2121 | O17: =COUNTIF($L$7:$L$500,N17) -> 1 | P17: =O17/$Q$4 -> 0.005847953216 | Q17: =IF(P17=0,0,(P17*((LOG(P17))/LOG(2)))) -> -0.04337925447 | T17: =N17 -> 2121 | U17: =COUNTIF(L7:L35,T17) -> 1 | V17: =U17/(W4-U20) -> 0.03448275862 | W17: =IF(V17=0,0,(V17*((LOG(V17))/LOG(2)))) -> -0.167516586 | Y17: =N17 -> 2121 | Z17: =COUNTIF(L36:L63,Y17) -> 0 | AA17: =Z17/(AB4-Z20) -> 0 | AB17: =IF(AA17=0,0,(AA17*((LOG(AA17))/LOG(2)))) -> 0 | AD17: =N17 -> 2121 | AE17: =COUNTIF(L64:L92,AD17) -> 0 | AF17: =AE17/(AG4-AE20) -> 0 | AG17: =IF(AF17=0,0,(AF17*((LOG(AF17))/LOG(2)))) -> 0 | AI17: =N17 -> 2121 | AJ17: =COUNTIF(L93:L120,AI17) -> 0 | AK17: =AJ17/(AL4-AJ20) -> 0 | AL17: =IF(AK17=0,0,(AK17*((LOG(AK17))/LOG(2)))) -> 0 | AN17: =N17 -> 2121 | AO17: =COUNTIF(L121:L149,AN17) -> 0 | AP17: =AO17/(AQ4-AO20) -> 0 | AQ17: =IF(AP17=0,0,(AP17*((LOG(AP17))/LOG(2)))) -> 0 | AS17: =N17 -> 2121 | AT17: =COUNTIF(L150:L177,AS17) -> 0 | AU17: =AT17/(AV4-AT20) -> 0 | AV17: =IF(AU17=0,0,(AU17*((LOG(AU17))/LOG(2)))) -> 0
A18: 12 | B18: 1704 | C18: 14 | D18: 1720 | E18: 13 | F18: 1728 | G18: 14 | H18: 1743 | K18: 0 | L18: 1111 | N18: 2122 | O18: =COUNTIF($L$7:$L$500,N18) -> 1 | P18: =O18/$Q$4 -> 0.005847953216 | Q18: =IF(P18=0,0,(P18*((LOG(P18))/LOG(2)))) -> -0.04337925447 | T18: =N18 -> 2122 | U18: =COUNTIF(L7:L35,T18) -> 1 | V18: =U18/(W4-U20) -> 0.03448275862 | W18: =IF(V18=0,0,(V18*((LOG(V18))/LOG(2)))) -> -0.167516586 | Y18: =N18 -> 2122 | Z18: =COUNTIF(L36:L63,Y18) -> 0 | AA18: =Z18/(AB4-Z20) -> 0 | AB18: =IF(AA18=0,0,(AA18*((LOG(AA18))/LOG(2)))) -> 0 | AD18: =N18 -> 2122 | AE18: =COUNTIF(L64:L92,AD18) -> 0 | AF18: =AE18/(AG4-AE20) -> 0 | AG18: =IF(AF18=0,0,(AF18*((LOG(AF18))/LOG(2)))) -> 0 | AI18: =N18 -> 2122 | AJ18: =COUNTIF(L93:L120,AI18) -> 0 | AK18: =AJ18/(AL4-AJ20) -> 0 | AL18: =IF(AK18=0,0,(AK18*((LOG(AK18))/LOG(2)))) -> 0 | AN18: =N18 -> 2122 | AO18: =COUNTIF(L121:L149,AN18) -> 0 | AP18: =AO18/(AQ4-AO20) -> 0 | AQ18: =IF(AP18=0,0,(AP18*((LOG(AP18))/LOG(2)))) -> 0 | AS18: =N18 -> 2122 | AT18: =COUNTIF(L150:L177,AS18) -> 0 | AU18: =AT18/(AV4-AT20) -> 0 | AV18: =IF(AU18=0,0,(AU18*((LOG(AU18))/LOG(2)))) -> 0
A19: 12 | B19: 1881 | C19: 23 | D19: 1894 | E19: 24 | F19: 1908 | G19: 14 | H19: 1926 | K19: 0 | L19: 1221 | N19: 2211 | O19: =COUNTIF($L$7:$L$500,N19) -> 2 | P19: =O19/$Q$4 -> 0.01169590643 | Q19: =IF(P19=0,0,(P19*((LOG(P19))/LOG(2)))) -> -0.07506260251 | T19: =N19 -> 2211 | U19: =COUNTIF(L7:L35,T19) -> 1 | V19: =U19/(W4-U20) -> 0.03448275862 | W19: =IF(V19=0,0,(V19*((LOG(V19))/LOG(2)))) -> -0.167516586 | Y19: =N19 -> 2211 | Z19: =COUNTIF(L36:L63,Y19) -> 1 | AA19: =Z19/(AB4-Z20) -> 0.03571428571 | AB19: =IF(AA19=0,0,(AA19*((LOG(AA19))/LOG(2)))) -> -0.1716912472 | AD19: =N19 -> 2211 | AE19: =COUNTIF(L64:L92,AD19) -> 0 | AF19: =AE19/(AG4-AE20) -> 0 | AG19: =IF(AF19=0,0,(AF19*((LOG(AF19))/LOG(2)))) -> 0 | AI19: =N19 -> 2211 | AJ19: =COUNTIF(L93:L120,AI19) -> 0 | AK19: =AJ19/(AL4-AJ20) -> 0 | AL19: =IF(AK19=0,0,(AK19*((LOG(AK19))/LOG(2)))) -> 0 | AN19: =N19 -> 2211 | AO19: =COUNTIF(L121:L149,AN19) -> 0 | AP19: =AO19/(AQ4-AO20) -> 0 | AQ19: =IF(AP19=0,0,(AP19*((LOG(AP19))/LOG(2)))) -> 0 | AS19: =N19 -> 2211 | AT19: =COUNTIF(L150:L177,AS19) -> 0 | AU19: =AT19/(AV4-AT20) -> 0 | AV19: =IF(AU19=0,0,(AU19*((LOG(AU19))/LOG(2)))) -> 0
A20: 12 | B20: 2054 | C20: 23 | D20: 2065 | E20: 13 | F20: 2100 | G20: 14 | H20: 2115 | K20: 0 | L20: 1211 | N20: 2212 | O20: =COUNTIF($L$7:$L$500,N20) -> 0 | P20: =O20/$Q$4 -> 0 | Q20: =IF(P20=0,0,(P20*((LOG(P20))/LOG(2)))) -> 0 | T20: =N20 -> 2212 | U20: =COUNTIF(L7:L35,T20) -> 0 | Y20: =N20 -> 2212 | Z20: =COUNTIF(L36:L63,Y20) -> 0 | AD20: =N20 -> 2212 | AE20: =COUNTIF(L64:L92,AD20) -> 0 | AI20: =N20 -> 2212 | AJ20: =COUNTIF(L93:L120,AI20) -> 0 | AN20: =N20 -> 2212 | AO20: =COUNTIF(L121:L149,AN20) -> 0 | AS20: =N20 -> 2212 | AT20: =COUNTIF(L150:L177,AS20) -> 0
A21: 12 | B21: 2227 | C21: 14 | D21: 2233 | E21: 13 | F21: 2241 | G21: 14 | H21: 2248 | K21: 0 | L21: 1111 | N21: 2221 | O21: =COUNTIF($L$7:$L$500,N21) -> 1 | P21: =O21/$Q$4 -> 0.005847953216 | Q21: =IF(P21=0,0,(P21*((LOG(P21))/LOG(2)))) -> -0.04337925447 | T21: =N21 -> 2221 | U21: =COUNTIF(L7:L35,T21) -> 1 | V21: =U21/(W4-U20) -> 0.03448275862 | W21: =IF(V21=0,0,(V21*((LOG(V21))/LOG(2)))) -> -0.167516586 | Y21: =N21 -> 2221 | Z21: =COUNTIF(L36:L63,Y21) -> 0 | AA21: =Z21/(AB4-Z20) -> 0 | AB21: =IF(AA21=0,0,(AA21*((LOG(AA21))/LOG(2)))) -> 0 | AD21: =N21 -> 2221 | AE21: =COUNTIF(L64:L92,AD21) -> 0 | AF21: =AE21/(AG4-AE20) -> 0 | AG21: =IF(AF21=0,0,(AF21*((LOG(AF21))/LOG(2)))) -> 0 | AI21: =N21 -> 2221 | AJ21: =COUNTIF(L93:L120,AI21) -> 0 | AK21: =AJ21/(AL4-AJ20) -> 0 | AL21: =IF(AK21=0,0,(AK21*((LOG(AK21))/LOG(2)))) -> 0 | AN21: =N21 -> 2221 | AO21: =COUNTIF(L121:L149,AN21) -> 0 | AP21: =AO21/(AQ4-AO20) -> 0 | AQ21: =IF(AP21=0,0,(AP21*((LOG(AP21))/LOG(2)))) -> 0 | AS21: =N21 -> 2221 | AT21: =COUNTIF(L150:L177,AS21) -> 0 | AU21: =AT21/(AV4-AT20) -> 0 | AV21: =IF(AU21=0,0,(AU21*((LOG(AU21))/LOG(2)))) -> 0
A22: 12 | B22: 2347 | C22: 23 | D22: 2366 | E22: 13 | F22: 2384 | G22: 14 | H22: 2393 | K22: 0 | L22: 1211 | N22: 2222 | O22: =COUNTIF($L$7:$L$500,N22) -> 2 | P22: =O22/$Q$4 -> 0.01169590643 | Q22: =IF(P22=0,0,(P22*((LOG(P22))/LOG(2)))) -> -0.07506260251 | T22: =N22 -> 2222 | U22: =COUNTIF(L7:L35,T22) -> 0 | V22: =U22/(W4-U20) -> 0 | W22: =IF(V22=0,0,(V22*((LOG(V22))/LOG(2)))) -> 0 | Y22: =N22 -> 2222 | Z22: =COUNTIF(L36:L63,Y22) -> 1 | AA22: =Z22/(AB4-Z20) -> 0.03571428571 | AB22: =IF(AA22=0,0,(AA22*((LOG(AA22))/LOG(2)))) -> -0.1716912472 | AD22: =N22 -> 2222 | AE22: =COUNTIF(L64:L92,AD22) -> 0 | AF22: =AE22/(AG4-AE20) -> 0 | AG22: =IF(AF22=0,0,(AF22*((LOG(AF22))/LOG(2)))) -> 0 | AI22: =N22 -> 2222 | AJ22: =COUNTIF(L93:L120,AI22) -> 1 | AK22: =AJ22/(AL4-AJ20) -> 0.03571428571 | AL22: =IF(AK22=0,0,(AK22*((LOG(AK22))/LOG(2)))) -> -0.1716912472 | AN22: =N22 -> 2222 | AO22: =COUNTIF(L121:L149,AN22) -> 0 | AP22: =AO22/(AQ4-AO20) -> 0 | AQ22: =IF(AP22=0,0,(AP22*((LOG(AP22))/LOG(2)))) -> 0 | AS22: =N22 -> 2222 | AT22: =COUNTIF(L150:L177,AS22) -> 0 | AU22: =AT22/(AV4-AT20) -> 0 | AV22: =IF(AU22=0,0,(AU22*((LOG(AU22))/LOG(2)))) -> 0
A23: 12 | B23: 2490 | C23: 23 | D23: 2505 | E23: 24 | F23: 2517 | G23: 23 | H23: 2527 | K23: 0 | L23: 1222 | P23: =SUM(P7:P22) -> 1 | Q23: =-SUM(Q7:Q22) -> 2.427341322 | V23: =SUM(V7:V22) -> 1 | W23: =-SUM(W7:W22) -> 3.052307617 | AA23: =SUM(AA7:AA22) -> 1 | AB23: =-SUM(AB7:AB22) -> 2.583045103 | AF23: =SUM(AF7:AF22) -> 1 | AG23: =-SUM(AG7:AG22) -> 2.00065744 | AK23: =SUM(AK7:AK22) -> 1 | AL23: =-SUM(AL7:AL22) -> 2.071520674 | AP23: =SUM(AP7:AP22) -> 1 | AQ23: =-SUM(AQ7:AQ22) -> 1.263544241 | AU23: =SUM(AU7:AU22) -> 1 | AV23: =-SUM(AV7:AV22) -> 0.8503259045
A24: 12 | B24: 2639 | C24: 23 | D24: 2650 | E24: 24 | F24: 2658 | G24: 14 | H24: 2681 | K24: 0 | L24: 1221 | P24: U= | Q24: =Q23/(LOG(Q4)/LOG(2)) -> 0.3272296554 | V24: U1= | W24: =W23/(LOG(W4)/LOG(2)) -> 0.6283078546 | AA24: U2= | AB24: =AB23/(LOG(AB4)/LOG(2)) -> 0.5373110879 | AF24: U3= | AG24: =AG23/(LOG(AG4)/LOG(2)) -> 0.4118289968 | AK24: U4= | AL24: =AL23/(LOG(AL4)/LOG(2)) -> 0.4309065397 | AP24: U5= | AQ24: =AQ23/(LOG(AQ4)/LOG(2)) -> 0.2600965796 | AU24: U6= | AV24: =AV23/(LOG(AV4)/LOG(2)) -> 0.1768802009
A25: 12 | B25: 2795 | C25: 14 | D25: 2799 | E25: 24 | F25: 2810 | G25: 23 | H25: 2823 | K25: 0 | L25: 1122
A26: 12 | B26: 2937 | C26: 23 | D26: 2949 | E26: 24 | F26: 2969 | G26: 23 | H26: 2990 | K26: 0 | L26: 1222
A27: 12 | B27: 3088 | C27: 14 | D27: 3095 | E27: 13 | F27: 3107 | G27: 23 | H27: 3117 | K27: 0 | L27: 1112 | N27: Total Target Seq
A28: 12 | B28: 3214 | C28: 14 | D28: 3227 | E28: 24 | F28: 3241 | G28: 14 | H28: 3254 | K28: 0 | L28: 1121 | N28: =COUNTIF(L7:L177,G3) -> 0 | P28: 29 | Q28: 28 | R28: 29 | S28: 28 | T28: 29 | U28: 28
A29: 12 | B29: 3370 | C29: 14 | D29: 3374 | E29: 24 | F29: 3394 | G29: 23 | H29: 3402 | K29: 0 | L29: 1122 | P29: % of reinforcement given in 6 equal intervals based on number of trials
A30: 12 | B30: 3512 | C30: 14 | D30: 3517 | E30: 13 | F30: 3526 | G30: 14 | H30: 3534 | K30: 0 | L30: 1111 | P30: %_1 | Q30: %_2 | R30: %_3 | S30: %_4 | T30: %_5 | U30: %_6
A31: 12 | B31: 3636 | C31: 23 | D31: 3647 | E31: 24 | F31: 3655 | G31: 14 | H31: 3672 | K31: 0 | L31: 1221 | O31: target sequence | P31: =$G$3 -> 2212 | Q31: =$G$3 -> 2212 | R31: =$G$3 -> 2212 | S31: =$G$3 -> 2212 | T31: =$G$3 -> 2212 | U31: =$G$3 -> 2212
A32: 12 | B32: 3776 | C32: 23 | D32: 3789 | E32: 24 | F32: 3798 | G32: 14 | H32: 3812 | K32: 0 | L32: 1221 | O32: total reinforcement | P32: =U20 -> 0 | Q32: =Z20 -> 0 | R32: =AE20 -> 0 | S32: =AJ20 -> 0 | T32: =AO20 -> 0 | U32: =AT20 -> 0
A33: 12 | B33: 3918 | C33: 14 | D33: 3937 | E33: 13 | F33: 3941 | G33: 23 | H33: 3958 | K33: 0 | L33: 1112 | O33: % target
A34: 12 | B34: 4078 | C34: 14 | D34: 4086 | E34: 13 | F34: 4094 | G34: 14 | H34: 4114 | K34: 0 | L34: 1111 | O34: CCRF
A35: 12 | B35: 4212 | C35: 23 | D35: 4220 | E35: 24 | F35: 4231 | G35: 23 | H35: 4241 | K35: 0 | L35: 1222 | O35: % CCRf
A36: 12 | B36: 4366 | C36: 23 | D36: 4375 | E36: 13 | F36: 4391 | G36: 14 | H36: 4400 | K36: 0 | L36: 1211 | O36: average response rate | P36: =H35/P28 -> 146.2413793 | Q36: =(H63-H35)/Q28 -> 147.4285714 | R36: =(H92-H63)/R28 -> 139.6896552 | S36: =(H120-H92)/S28 -> 137.5357143 | T36: =(H149-H120)/T28 -> 137 | U36: =(H177-H149)/U28 -> 133.75
A37: 12 | B37: 4514 | C37: 23 | D37: 4525 | E37: 24 | F37: 4538 | G37: 14 | H37: 4552 | K37: 0 | L37: 1221
A38: 12 | B38: 4648 | C38: 23 | D38: 4668 | E38: 24 | F38: 4680 | G38: 14 | H38: 4698 | K38: 0 | L38: 1221
A39: 12 | B39: 4820 | C39: 23 | D39: 4830 | E39: 24 | F39: 4844 | G39: 23 | H39: 4853 | K39: 0 | L39: 1222
A40: 12 | B40: 4953 | C40: 14 | D40: 4962 | E40: 24 | F40: 4983 | G40: 23 | H40: 5000 | K40: 0 | L40: 1122
A41: 12 | B41: 5106 | C41: 23 | D41: 5120 | E41: 24 | F41: 5128 | G41: 14 | H41: 5151 | K41: 0 | L41: 1221
A42: 12 | B42: 5257 | C42: 14 | D42: 5272 | E42: 24 | F42: 5284 | G42: 23 | H42: 5293 | K42: 0 | L42: 1122
A43: 12 | B43: 5392 | C43: 14 | D43: 5414 | E43: 13 | F43: 5420 | G43: 14 | H43: 5431 | K43: 0 | L43: 1111
A44: 12 | B44: 5539 | C44: 23 | D44: 5552 | E44: 24 | F44: 5560 | G44: 23 | H44: 5568 | K44: 0 | L44: 1222
A45: 12 | B45: 5689 | C45: 14 | D45: 5704 | E45: 13 | F45: 5708 | G45: 14 | H45: 5716 | K45: 0 | L45: 1111
A46: 12 | B46: 5826 | C46: 23 | D46: 5838 | E46: 24 | F46: 5846 | G46: 14 | H46: 5865 | K46: 0 | L46: 1221
A47: 12 | B47: 5958 | C47: 14 | D47: 5977 | E47: 13 | F47: 5981 | G47: 14 | H47: 5986 | K47: 0 | L47: 1111
A48: 12 | B48: 6083 | C48: 14 | D48: 6090 | E48: 13 | F48: 6107 | G48: 14 | H48: 6115 | K48: 0 | L48: 1111
A49: 12 | B49: 6223 | C49: 14 | D49: 6227 | E49: 13 | F49: 6232 | G49: 23 | H49: 6249 | K49: 0 | L49: 1112
A50: 12 | B50: 6353 | C50: 14 | D50: 6370 | E50: 24 | F50: 6382 | G50: 23 | H50: 6391 | K50: 0 | L50: 1122
A51: 12 | B51: 6495 | C51: 23 | D51: 6505 | E51: 24 | F51: 6513 | G51: 23 | H51: 6534 | K51: 0 | L51: 1222
A52: 12 | B52: 6632 | C52: 23 | D52: 6646 | E52: 24 | F52: 6657 | G52: 14 | H52: 6674 | K52: 0 | L52: 1221
A53: 21 | B53: 6787 | C53: 21 | D53: 6800 | E53: 22 | F53: 6819 | G53: 23 | H53: 6830 | K53: 0 | L53: 2222
A54: 12 | B54: 6938 | C54: 23 | D54: 6949 | E54: 24 | F54: 6957 | G54: 23 | H54: 6967 | K54: 0 | L54: 1222
A55: 12 | B55: 7069 | C55: 14 | D55: 7088 | E55: 24 | F55: 7099 | G55: 23 | H55: 7111 | K55: 0 | L55: 1122
A56: 12 | B56: 7216 | C56: 23 | D56: 7265 | E56: 24 | F56: 7275 | G56: 23 | H56: 7308 | K56: 0 | L56: 1222
A57: 12 | B57: 7407 | C57: 14 | D57: 7419 | E57: 13 | F57: 7423 | G57: 14 | H57: 7431 | K57: 0 | L57: 1111
A58: 21 | B58: 7573 | C58: 21 | D58: 7581 | E58: 11 | F58: 7600 | G58: 12 | H58: 7608 | K58: 0 | L58: 2211
A59: 12 | B59: 7785 | C59: 14 | D59: 7794 | E59: 13 | F59: 7804 | G59: 14 | H59: 7813 | K59: 0 | L59: 1111
A60: 12 | B60: 7912 | C60: 23 | D60: 7925 | E60: 24 | F60: 7932 | G60: 14 | H60: 7954 | K60: 0 | L60: 1221
A61: 12 | B61: 8051 | C61: 14 | D61: 8071 | E61: 13 | F61: 8076 | G61: 14 | H61: 8089 | K61: 0 | L61: 1111
A62: 12 | B62: 8189 | C62: 14 | D62: 8215 | E62: 24 | F62: 8228 | G62: 23 | H62: 8236 | K62: 0 | L62: 1122
A63: 12 | B63: 8334 | C63: 14 | D63: 8348 | E63: 24 | F63: 8361 | G63: 23 | H63: 8369 | K63: 0 | L63: 1122
A64: 12 | B64: 8467 | C64: 14 | D64: 8480 | E64: 24 | F64: 8494 | G64: 23 | H64: 8503 | K64: 0 | L64: 1122
A65: 12 | B65: 8602 | C65: 14 | D65: 8622 | E65: 24 | F65: 8633 | G65: 23 | H65: 8644 | K65: 0 | L65: 1122
A66: 12 | B66: 8743 | C66: 14 | D66: 8762 | E66: 24 | F66: 8773 | G66: 23 | H66: 8782 | K66: 0 | L66: 1122
A67: 12 | B67: 8878 | C67: 14 | D67: 8897 | E67: 13 | F67: 8902 | G67: 14 | H67: 8910 | K67: 0 | L67: 1111
A68: 12 | B68: 9011 | C68: 14 | D68: 9015 | E68: 24 | F68: 9026 | G68: 23 | H68: 9034 | K68: 0 | L68: 1122
A69: 12 | B69: 9133 | C69: 14 | D69: 9157 | E69: 24 | F69: 9181 | G69: 23 | H69: 9193 | K69: 0 | L69: 1122
A70: 12 | B70: 9301 | C70: 14 | D70: 9314 | E70: 24 | F70: 9334 | G70: 23 | H70: 9342 | K70: 0 | L70: 1122
A71: 12 | B71: 9475 | C71: 14 | D71: 9479 | E71: 13 | F71: 9484 | G71: 14 | H71: 9495 | K71: 0 | L71: 1111
A72: 12 | B72: 9594 | C72: 14 | D72: 9598 | E72: 13 | F72: 9606 | G72: 14 | H72: 9611 | K72: 0 | L72: 1111
A73: 12 | B73: 9713 | C73: 23 | D73: 9739 | E73: 24 | F73: 9752 | G73: 23 | H73: 9761 | K73: 0 | L73: 1222
A74: 12 | B74: 9864 | C74: 14 | D74: 9871 | E74: 13 | F74: 9887 | G74: 14 | H74: 9894 | K74: 0 | L74: 1111
A75: 12 | B75: 10010 | C75: 14 | D75: 10015 | E75: 24 | F75: 10027 | G75: 23 | H75: 10038 | K75: 0 | L75: 1122
A76: 12 | B76: 10169 | C76: 14 | D76: 10174 | E76: 24 | F76: 10187 | G76: 23 | H76: 10196 | K76: 0 | L76: 1122
A77: 12 | B77: 10309 | C77: 14 | D77: 10324 | E77: 13 | F77: 10351 | G77: 14 | H77: 10358 | K77: 0 | L77: 1111
A78: 12 | B78: 10465 | C78: 14 | D78: 10483 | E78: 13 | F78: 10487 | G78: 14 | H78: 10496 | K78: 0 | L78: 1111
A79: 12 | B79: 10599 | C79: 14 | D79: 10612 | E79: 13 | F79: 10635 | G79: 14 | H79: 10639 | K79: 0 | L79: 1111
A80: 12 | B80: 10752 | C80: 14 | D80: 10760 | E80: 13 | F80: 10765 | G80: 14 | H80: 10773 | K80: 0 | L80: 1111
A81: 12 | B81: 10886 | C81: 23 | D81: 10907 | E81: 24 | F81: 10915 | G81: 23 | H81: 10927 | K81: 0 | L81: 1222
A82: 12 | B82: 11028 | C82: 23 | D82: 11055 | E82: 13 | F82: 11067 | G82: 14 | H82: 11074 | K82: 0 | L82: 1211
A83: 12 | B83: 11175 | C83: 14 | D83: 11184 | E83: 13 | F83: 11201 | G83: 14 | H83: 11206 | K83: 0 | L83: 1111
A84: 12 | B84: 11308 | C84: 14 | D84: 11313 | E84: 24 | F84: 11327 | G84: 23 | H84: 11335 | K84: 0 | L84: 1122
A85: 12 | B85: 11431 | C85: 14 | D85: 11448 | E85: 13 | F85: 11452 | G85: 14 | H85: 11461 | K85: 0 | L85: 1111
A86: 12 | B86: 11564 | C86: 23 | D86: 11588 | E86: 24 | F86: 11597 | G86: 14 | H86: 11619 | K86: 0 | L86: 1221
A87: 12 | B87: 11719 | C87: 14 | D87: 11723 | E87: 13 | F87: 11728 | G87: 14 | H87: 11736 | K87: 0 | L87: 1111
A88: 12 | B88: 11849 | C88: 23 | D88: 11860 | E88: 24 | F88: 11870 | G88: 14 | H88: 11890 | K88: 0 | L88: 1221
A89: 12 | B89: 11992 | C89: 14 | D89: 11997 | E89: 24 | F89: 12009 | G89: 23 | H89: 12022 | K89: 0 | L89: 1122
A90: 12 | B90: 12131 | C90: 23 | D90: 12151 | E90: 24 | F90: 12160 | G90: 23 | H90: 12169 | K90: 0 | L90: 1222
A91: 12 | B91: 12269 | C91: 14 | D91: 12275 | E91: 24 | F91: 12285 | G91: 23 | H91: 12294 | K91: 0 | L91: 1122
A92: 12 | B92: 12400 | C92: 14 | D92: 12404 | E92: 13 | F92: 12409 | G92: 23 | H92: 12420 | K92: 0 | L92: 1112
A93: 12 | B93: 12518 | C93: 14 | D93: 12539 | E93: 24 | F93: 12561 | G93: 14 | H93: 12579 | K93: 0 | L93: 1121
A94: 12 | B94: 12683 | C94: 14 | D94: 12694 | E94: 13 | F94: 12699 | G94: 14 | H94: 12703 | K94: 0 | L94: 1111
A95: 12 | B95: 12806 | C95: 14 | D95: 12818 | E95: 13 | F95: 12823 | G95: 14 | H95: 12828 | K95: 0 | L95: 1111
A96: 12 | B96: 12926 | C96: 14 | D96: 12938 | E96: 13 | F96: 12943 | G96: 23 | H96: 12955 | K96: 0 | L96: 1112
A97: 12 | B97: 13065 | C97: 23 | D97: 13077 | E97: 13 | F97: 13095 | G97: 23 | H97: 13116 | K97: 0 | L97: 1212
A98: 12 | B98: 13217 | C98: 14 | D98: 13222 | E98: 13 | F98: 13236 | G98: 14 | H98: 13242 | K98: 0 | L98: 1111
A99: 12 | B99: 13342 | C99: 14 | D99: 13347 | E99: 13 | F99: 13352 | G99: 14 | H99: 13364 | K99: 0 | L99: 1111
A100: 12 | B100: 13472 | C100: 23 | D100: 13486 | E100: 24 | F100: 13494 | G100: 14 | H100: 13517 | K100: 0 | L100: 1221
A101: 12 | B101: 13615 | C101: 14 | D101: 13626 | E101: 24 | F101: 13638 | G101: 23 | H101: 13647 | K101: 0 | L101: 1122
A102: 21 | B102: 13773 | C102: 21 | D102: 13781 | E102: 22 | F102: 13793 | G102: 23 | H102: 13805 | K102: 0 | L102: 2222
A103: 12 | B103: 13905 | C103: 14 | D103: 13924 | E103: 13 | F103: 13941 | G103: 14 | H103: 13952 | K103: 0 | L103: 1111
A104: 12 | B104: 14050 | C104: 14 | D104: 14068 | E104: 13 | F104: 14072 | G104: 14 | H104: 14077 | K104: 0 | L104: 1111
A105: 12 | B105: 14188 | C105: 14 | D105: 14210 | E105: 24 | F105: 14223 | G105: 23 | H105: 14232 | K105: 0 | L105: 1122
A106: 12 | B106: 14337 | C106: 14 | D106: 14342 | E106: 13 | F106: 14361 | G106: 14 | H106: 14370 | K106: 0 | L106: 1111
A107: 12 | B107: 14481 | C107: 14 | D107: 14495 | E107: 24 | F107: 14510 | G107: 23 | H107: 14522 | K107: 0 | L107: 1122
A108: 12 | B108: 14619 | C108: 14 | D108: 14622 | E108: 13 | F108: 14627 | G108: 14 | H108: 14632 | K108: 0 | L108: 1111
A109: 12 | B109: 14734 | C109: 14 | D109: 14753 | E109: 13 | F109: 14774 | G109: 23 | H109: 14792 | K109: 0 | L109: 1112
A110: 12 | B110: 14892 | C110: 14 | D110: 14913 | E110: 13 | F110: 14918 | G110: 14 | H110: 14930 | K110: 0 | L110: 1111
A111: 12 | B111: 15032 | C111: 14 | D111: 15040 | E111: 13 | F111: 15053 | G111: 14 | H111: 15065 | K111: 0 | L111: 1111
A112: 12 | B112: 15184 | C112: 14 | D112: 15195 | E112: 13 | F112: 15200 | G112: 23 | H112: 15214 | K112: 0 | L112: 1112
A113: 12 | B113: 15310 | C113: 14 | D113: 15326 | E113: 13 | F113: 15330 | G113: 23 | H113: 15342 | K113: 0 | L113: 1112
A114: 12 | B114: 15454 | C114: 14 | D114: 15463 | E114: 24 | F114: 15475 | G114: 23 | H114: 15482 | K114: 0 | L114: 1122
A115: 12 | B115: 15584 | C115: 14 | D115: 15593 | E115: 13 | F115: 15602 | G115: 14 | H115: 15606 | K115: 0 | L115: 1111
A116: 12 | B116: 15709 | C116: 14 | D116: 15720 | E116: 13 | F116: 15727 | G116: 14 | H116: 15731 | K116: 0 | L116: 1111
A117: 12 | B117: 15828 | C117: 14 | D117: 15832 | E117: 13 | F117: 15844 | G117: 14 | H117: 15848 | K117: 0 | L117: 1111
A118: 12 | B118: 15952 | C118: 14 | D118: 15957 | E118: 13 | F118: 15971 | G118: 14 | H118: 15976 | K118: 0 | L118: 1111
A119: 12 | B119: 16077 | C119: 14 | D119: 16082 | E119: 13 | F119: 16086 | G119: 14 | H119: 16091 | K119: 0 | L119: 1111
A120: 12 | B120: 16188 | C120: 23 | D120: 16235 | E120: 24 | F120: 16256 | G120: 14 | H120: 16271 | K120: 0 | L120: 1221
A121: 12 | B121: 16374 | C121: 14 | D121: 16379 | E121: 13 | F121: 16397 | G121: 14 | H121: 16409 | K121: 0 | L121: 1111
A122: 12 | B122: 16514 | C122: 14 | D122: 16522 | E122: 13 | F122: 16526 | G122: 14 | H122: 16534 | K122: 0 | L122: 1111
A123: 12 | B123: 16644 | C123: 23 | D123: 16662 | E123: 24 | F123: 16673 | G123: 14 | H123: 16689 | K123: 0 | L123: 1221
A124: 12 | B124: 16809 | C124: 23 | D124: 16829 | E124: 24 | F124: 16843 | G124: 14 | H124: 16856 | K124: 0 | L124: 1221
A125: 12 | B125: 16954 | C125: 14 | D125: 16964 | E125: 13 | F125: 16977 | G125: 14 | H125: 16985 | K125: 0 | L125: 1111
A126: 12 | B126: 17082 | C126: 23 | D126: 17106 | E126: 13 | F126: 17119 | G126: 14 | H126: 17127 | K126: 0 | L126: 1211
A127: 12 | B127: 17225 | C127: 14 | D127: 17229 | E127: 13 | F127: 17233 | G127: 14 | H127: 17238 | K127: 0 | L127: 1111
A128: 12 | B128: 17349 | C128: 14 | D128: 17366 | E128: 13 | F128: 17384 | G128: 23 | H128: 17403 | K128: 0 | L128: 1112
A129: 12 | B129: 17504 | C129: 14 | D129: 17514 | E129: 13 | F129: 17524 | G129: 14 | H129: 17540 | K129: 0 | L129: 1111
A130: 12 | B130: 17653 | C130: 14 | D130: 17657 | E130: 13 | F130: 17665 | G130: 23 | H130: 17684 | K130: 0 | L130: 1112
A131: 12 | B131: 17803 | C131: 14 | D131: 17808 | E131: 13 | F131: 17834 | G131: 14 | H131: 17877 | K131: 0 | L131: 1111
A132: 12 | B132: 17985 | C132: 14 | D132: 17989 | E132: 13 | F132: 18001 | G132: 23 | H132: 18014 | K132: 0 | L132: 1112
A133: 12 | B133: 18114 | C133: 14 | D133: 18118 | E133: 13 | F133: 18125 | G133: 14 | H133: 18129 | K133: 0 | L133: 1111
A134: 12 | B134: 18225 | C134: 14 | D134: 18230 | E134: 13 | F134: 18242 | G134: 14 | H134: 18247 | K134: 0 | L134: 1111
A135: 12 | B135: 18361 | C135: 14 | D135: 18373 | E135: 13 | F135: 18377 | G135: 14 | H135: 18386 | K135: 0 | L135: 1111
A136: 12 | B136: 18520 | C136: 14 | D136: 18527 | E136: 13 | F136: 18539 | G136: 14 | H136: 18547 | K136: 0 | L136: 1111
A137: 12 | B137: 18657 | C137: 14 | D137: 18665 | E137: 13 | F137: 18674 | G137: 14 | H137: 18686 | K137: 0 | L137: 1111
A138: 12 | B138: 18784 | C138: 14 | D138: 18795 | E138: 13 | F138: 18807 | G138: 14 | H138: 18812 | K138: 0 | L138: 1111
A139: 12 | B139: 18918 | C139: 14 | D139: 18922 | E139: 13 | F139: 18940 | G139: 14 | H139: 18945 | K139: 0 | L139: 1111
A140: 12 | B140: 19038 | C140: 14 | D140: 19043 | E140: 13 | F140: 19047 | G140: 14 | H140: 19055 | K140: 0 | L140: 1111
A141: 12 | B141: 19164 | C141: 14 | D141: 19168 | E141: 13 | F141: 19176 | G141: 14 | H141: 19181 | K141: 0 | L141: 1111
A142: 12 | B142: 19302 | C142: 14 | D142: 19306 | E142: 13 | F142: 19310 | G142: 14 | H142: 19319 | K142: 0 | L142: 1111
A143: 12 | B143: 19417 | C143: 14 | D143: 19422 | E143: 13 | F143: 19426 | G143: 14 | H143: 19431 | K143: 0 | L143: 1111
A144: 12 | B144: 19528 | C144: 14 | D144: 19532 | E144: 13 | F144: 19537 | G144: 14 | H144: 19547 | K144: 0 | L144: 1111
A145: 12 | B145: 19658 | C145: 23 | D145: 19671 | E145: 13 | F145: 19694 | G145: 14 | H145: 19699 | K145: 0 | L145: 1211
A146: 12 | B146: 19810 | C146: 14 | D146: 19815 | E146: 13 | F146: 19819 | G146: 23 | H146: 19834 | K146: 0 | L146: 1112
A147: 12 | B147: 19937 | C147: 14 | D147: 19941 | E147: 13 | F147: 19963 | G147: 14 | H147: 19967 | K147: 0 | L147: 1111
A148: 12 | B148: 20064 | C148: 14 | D148: 20068 | E148: 13 | F148: 20097 | G148: 14 | H148: 20106 | K148: 0 | L148: 1111
A149: 12 | B149: 20219 | C149: 14 | D149: 20231 | E149: 13 | F149: 20236 | G149: 14 | H149: 20244 | K149: 0 | L149: 1111
A150: 12 | B150: 20343 | C150: 14 | D150: 20363 | E150: 13 | F150: 20373 | G150: 14 | H150: 20379 | K150: 0 | L150: 1111
A151: 12 | B151: 20485 | C151: 14 | D151: 20489 | E151: 13 | F151: 20494 | G151: 14 | H151: 20505 | K151: 0 | L151: 1111
A152: 12 | B152: 20615 | C152: 14 | D152: 20620 | E152: 13 | F152: 20625 | G152: 23 | H152: 20637 | K152: 0 | L152: 1112
A153: 12 | B153: 20738 | C153: 14 | D153: 20750 | E153: 13 | F153: 20754 | G153: 14 | H153: 20762 | K153: 0 | L153: 1111
A154: 12 | B154: 20855 | C154: 14 | D154: 20867 | E154: 13 | F154: 20878 | G154: 14 | H154: 20890 | K154: 0 | L154: 1111
A155: 12 | B155: 21005 | C155: 14 | D155: 21009 | E155: 13 | F155: 21014 | G155: 14 | H155: 21022 | K155: 0 | L155: 1111
A156: 12 | B156: 21125 | C156: 14 | D156: 21138 | E156: 24 | F156: 21151 | G156: 14 | H156: 21164 | K156: 0 | L156: 1121
A157: 12 | B157: 21267 | C157: 14 | D157: 21278 | E157: 13 | F157: 21314 | G157: 14 | H157: 21335 | K157: 0 | L157: 1111
A158: 12 | B158: 21437 | C158: 14 | D158: 21448 | E158: 13 | F158: 21457 | G158: 14 | H158: 21471 | K158: 0 | L158: 1111
A159: 12 | B159: 21571 | C159: 14 | D159: 21593 | E159: 13 | F159: 21602 | G159: 14 | H159: 21610 | K159: 0 | L159: 1111
A160: 12 | B160: 21710 | C160: 14 | D160: 21714 | E160: 13 | F160: 21736 | G160: 14 | H160: 21740 | K160: 0 | L160: 1111
A161: 12 | B161: 21838 | C161: 14 | D161: 21851 | E161: 13 | F161: 21859 | G161: 14 | H161: 21871 | K161: 0 | L161: 1111
A162: 12 | B162: 21967 | C162: 14 | D162: 21976 | E162: 13 | F162: 21983 | G162: 14 | H162: 22002 | K162: 0 | L162: 1111
A163: 12 | B163: 22099 | C163: 14 | D163: 22119 | E163: 13 | F163: 22131 | G163: 14 | H163: 22139 | K163: 0 | L163: 1111
A164: 12 | B164: 22236 | C164: 14 | D164: 22240 | E164: 13 | F164: 22245 | G164: 14 | H164: 22275 | K164: 0 | L164: 1111
A165: 12 | B165: 22373 | C165: 14 | D165: 22386 | E165: 13 | F165: 22395 | G165: 23 | H165: 22428 | K165: 0 | L165: 1112
A166: 12 | B166: 22527 | C166: 14 | D166: 22532 | E166: 13 | F166: 22536 | G166: 14 | H166: 22544 | K166: 0 | L166: 1111
A167: 12 | B167: 22639 | C167: 14 | D167: 22648 | E167: 13 | F167: 22652 | G167: 14 | H167: 22661 | K167: 0 | L167: 1111
A168: 12 | B168: 22778 | C168: 14 | D168: 22786 | E168: 13 | F168: 22794 | G168: 14 | H168: 22803 | K168: 0 | L168: 1111
A169: 12 | B169: 22903 | C169: 14 | D169: 22916 | E169: 13 | F169: 22920 | G169: 14 | H169: 22931 | K169: 0 | L169: 1111
A170: 12 | B170: 23033 | C170: 14 | D170: 23049 | E170: 13 | F170: 23054 | G170: 14 | H170: 23059 | K170: 0 | L170: 1111
A171: 12 | B171: 23156 | C171: 14 | D171: 23166 | E171: 13 | F171: 23183 | G171: 14 | H171: 23187 | K171: 0 | L171: 1111
A172: 12 | B172: 23292 | C172: 14 | D172: 23311 | E172: 24 | F172: 23326 | G172: 14 | H172: 23339 | K172: 0 | L172: 1121
A173: 12 | B173: 23444 | C173: 14 | D173: 23458 | E173: 13 | F173: 23462 | G173: 14 | H173: 23483 | K173: 0 | L173: 1111
A174: 12 | B174: 23584 | C174: 14 | D174: 23590 | E174: 13 | F174: 23602 | G174: 14 | H174: 23606 | K174: 0 | L174: 1111
A175: 12 | B175: 23704 | C175: 14 | D175: 23716 | E175: 13 | F175: 23725 | G175: 14 | H175: 23746 | K175: 0 | L175: 1111
A176: 12 | B176: 23844 | C176: 14 | D176: 23851 | E176: 13 | F176: 23857 | G176: 23 | H176: 23872 | K176: 0 | L176: 1112
A177: 12 | B177: 23970 | C177: 14 | D177: 23981 | E177: 13 | F177: 23984 | G177: 14 | H177: 23989 | L177: 1111

Sheet !M824B10.104
A1: Report for:!M824B10.104
A2: Date: | B2: <date>
A3: Hen: | B3: <hen> | F3: Correct Sequence | G3: =Start!J2 -> 2212 | P3: Total Sequences in Data | Q3: =4994-COUNTBLANK(L7:L5000) -> 182 | V3: Total Sequences in Block Data | W3: =COUNTA(L7:L36) -> 30 | AA3: Total Sequences in Block Data | AB3: =COUNTA(L37:L67) -> 31 | AF3: Total Sequences in Block Data | AG3: =COUNTA(L68:L97) -> 30 | AK3: Total Sequences in Block Data | AL3: =COUNTA(L98:L127) -> 30 | AP3: Total Sequences in Block Data | AQ3: =COUNTA(L128:L158) -> 31 | AU3: Total Sequences in Block Data | AV3: =COUNTA(L159:L188) -> 30
P4: Total Sequences in Summary | Q4: =SUM(O7:O22) -> 182 | V4: Total Sequences in Block Summary | W4: =SUM(U7:U22) -> 30 | AA4: Total Sequences in Block Summary | AB4: =SUM(Z7:Z22) -> 31 | AF4: Total Sequences in Block Summary | AG4: =SUM(AE7:AE22) -> 30 | AK4: Total Sequences in Block Summary | AL4: =SUM(AJ7:AJ22) -> 30 | AP4: Total Sequences in Block Summary | AQ4: =SUM(AO7:AO22) -> 31 | AU4: Total Sequences in Block Summary | AV4: =SUM(AT7:AT22) -> 30
T5: Block 1 | Y5: Block 2 | AD5: Block 3 | AI5: Block 4 | AN5: Block 5 | AS5: Block 6
A6: Sequence Component 1 | B6: Time 1 | C6: Sequence Component 2 | D6: Time 2 | E6: Sequence Component 3 | F6: Time 3 | G6: Sequence Component 4 | H6: Time 4 | I6: Sequence Component 5 | J6: Time 5 | K6: Correct? 0=No 1=Yes | L6: Sequence | N6: Frequency | P6: Relative Frequency | Q6: Variability | T6: Frequency | V6: Relative Frequency | W6: Variability | Y6: Frequency | AA6: Relative Frequency | AB6: Variability | AD6: Frequency | AF6: Relative Frequency | AG6: Variability | AI6: Frequency | AK6: Relative Frequency | AL6: Variability | AN6: Frequency | AP6: Relative Frequency | AQ6: Variability | AS6: Frequency | AU6: Relative Frequency | AV6: Variability
A7: 12 | B7: 15 | C7: 23 | D7: 24 | E7: 24 | F7: 32 | G7: 14 | H7: 48 | K7: 0 | L7: 1221 | N7: 1111 | O7: =COUNTIF($L$7:$L$500,N7) -> 132 | P7: =O7/$Q$4 -> 0.7252747253 | Q7: =IF(P7=0,0,(P7*((LOG(P7))/LOG(2)))) -> -0.3360926854 | T7: =N7 -> 1111 | U7: =COUNTIF(L7:L36,T7) -> 12 | V7: =U7/(W4-U20) -> 0.4 | W7: =IF(V7=0,0,(V7*((LOG(V7))/LOG(2)))) -> -0.528771238 | Y7: =N7 -> 1111 | Z7: =COUNTIF(L37:L67,Y7) -> 25 | AA7: =Z7/(AB4-Z20) -> 0.8064516129 | AB7: =IF(AA7=0,0,(AA7*((LOG(AA7))/LOG(2)))) -> -0.2502742908 | AD7: =N7 -> 1111 | AE7: =COUNTIF(L68:L97,AD7) -> 20 | AF7: =AE7/(AG4-AE20) -> 0.6666666667 | AG7: =IF(AF7=0,0,(AF7*((LOG(AF7))/LOG(2)))) -> -0.3899750005 | AI7: =N7 -> 1111 | AJ7: =COUNTIF(L98:L127,AI7) -> 24 | AK7: =AJ7/(AL4-AJ20) -> 0.8 | AL7: =IF(AK7=0,0,(AK7*((LOG(AK7))/LOG(2)))) -> -0.2575424759 | AN7: =N7 -> 1111 | AO7: =COUNTIF(L128:L158,AN7) -> 26 | AP7: =AO7/(AQ4-AO20) -> 0.8387096774 | AQ7: =IF(AP7=0,0,(AP7*((LOG(AP7))/LOG(2)))) -> -0.2128281096 | AS7: =N7 -> 1111 | AT7: =COUNTIF(L159:L188,AS7) -> 25 | AU7: =AT7/(AV4-AT20) -> 0.8333333333 | AV7: =IF(AU7=0,0,(AU7*((LOG(AU7))/LOG(2)))) -> -0.2191953382
A8: 12 | B8: 171 | C8: 14 | D8: 178 | E8: 24 | F8: 188 | G8: 14 | H8: 204 | K8: 0 | L8: 1121 | N8: 1112 | O8: =COUNTIF($L$7:$L$500,N8) -> 15 | P8: =O8/$Q$4 -> 0.08241758242 | Q8: =IF(P8=0,0,(P8*((LOG(P8))/LOG(2)))) -> -0.2967778059 | T8: =N8 -> 1112 | U8: =COUNTIF(L7:L36,T8) -> 2 | V8: =U8/(W4-U20) -> 0.06666666667 | W8: =IF(V8=0,0,(V8*((LOG(V8))/LOG(2)))) -> -0.260459373 | Y8: =N8 -> 1112 | Z8: =COUNTIF(L37:L67,Y8) -> 4 | AA8: =Z8/(AB4-Z20) -> 0.1290322581 | AB8: =IF(AA8=0,0,(AA8*((LOG(AA8))/LOG(2)))) -> -0.3811866207 | AD8: =N8 -> 1112 | AE8: =COUNTIF(L68:L97,AD8) -> 3 | AF8: =AE8/(AG4-AE20) -> 0.1 | AG8: =IF(AF8=0,0,(AF8*((LOG(AF8))/LOG(2)))) -> -0.3321928095 | AI8: =N8 -> 1112 | AJ8: =COUNTIF(L98:L127,AI8) -> 1 | AK8: =AJ8/(AL4-AJ20) -> 0.03333333333 | AL8: =IF(AK8=0,0,(AK8*((LOG(AK8))/LOG(2)))) -> -0.1635630199 | AN8: =N8 -> 1112 | AO8: =COUNTIF(L128:L158,AN8) -> 1 | AP8: =AO8/(AQ4-AO20) -> 0.03225806452 | AQ8: =IF(AP8=0,0,(AP8*((LOG(AP8))/LOG(2)))) -> -0.1598127842 | AS8: =N8 -> 1112 | AT8: =COUNTIF(L159:L188,AS8) -> 4 | AU8: =AT8/(AV4-AT20) -> 0.1333333333 | AV8: =IF(AU8=0,0,(AU8*((LOG(AU8))/LOG(2)))) -> -0.3875854127
A9: 12 | B9: 306 | C9: 23 | D9: 322 | E9: 24 | F9: 331 | G9: 14 | H9: 345 | K9: 0 | L9: 1221 | N9: 1121 | O9: =COUNTIF($L$7:$L$500,N9) -> 5 | P9: =O9/$Q$4 -> 0.02747252747 | Q9: =IF(P9=0,0,(P9*((LOG(P9))/LOG(2)))) -> -0.1424688611 | T9: =N9 -> 1121 | U9: =COUNTIF(L7:L36,T9) -> 2 | V9: =U9/(W4-U20) -> 0.06666666667 | W9: =IF(V9=0,0,(V9*((LOG(V9))/LOG(2)))) -> -0.260459373 | Y9: =N9 -> 1121 | Z9: =COUNTIF(L37:L67,Y9) -> 0 | AA9: =Z9/(AB4-Z20) -> 0 | AB9: =IF(AA9=0,0,(AA9*((LOG(AA9))/LOG(2)))) -> 0 | AD9: =N9 -> 1121 | AE9: =COUNTIF(L68:L97,AD9) -> 2 | AF9: =AE9/(AG4-AE20) -> 0.06666666667 | AG9: =IF(AF9=0,0,(AF9*((LOG(AF9))/LOG(2)))) -> -0.260459373 | AI9: =N9 -> 1121 | AJ9: =COUNTIF(L98:L127,AI9) -> 0 | AK9: =AJ9/(AL4-AJ20) -> 0 | AL9: =IF(AK9=0,0,(AK9*((LOG(AK9))/LOG(2)))) -> 0 | AN9: =N9 -> 1121 | AO9: =COUNTIF(L128:L158,AN9) -> 1 | AP9: =AO9/(AQ4-AO20) -> 0.03225806452 | AQ9: =IF(AP9=0,0,(AP9*((LOG(AP9))/LOG(2)))) -> -0.1598127842 | AS9: =N9 -> 1121 | AT9: =COUNTIF(L159:L188,AS9) -> 0 | AU9: =AT9/(AV4-AT20) -> 0 | AV9: =IF(AU9=0,0,(AU9*((LOG(AU9))/LOG(2)))) -> 0
A10: 21 | B10: 450 | C10: 12 | D10: 459 | E10: 13 | F10: 471 | G10: 14 | H10: 475 | K10: 0 | L10: 2111 | N10: 1122 | O10: =COUNTIF($L$7:$L$500,N10) -> 14 | P10: =O10/$Q$4 -> 0.07692307692 | Q10: =IF(P10=0,0,(P10*((LOG(P10))/LOG(2)))) -> -0.2846492091 | T10: =N10 -> 1122 | U10: =COUNTIF(L7:L36,T10) -> 3 | V10: =U10/(W4-U20) -> 0.1 | W10: =IF(V10=0,0,(V10*((LOG(V10))/LOG(2)))) -> -0.3321928095 | Y10: =N10 -> 1122 | Z10: =COUNTIF(L37:L67,Y10) -> 2 | AA10: =Z10/(AB4-Z20) -> 0.06451612903 | AB10: =IF(AA10=0,0,(AA10*((LOG(AA10))/LOG(2)))) -> -0.2551094394 | AD10: =N10 -> 1122 | AE10: =COUNTIF(L68:L97,AD10) -> 4 | AF10: =AE10/(AG4-AE20) -> 0.1333333333 | AG10: =IF(AF10=0,0,(AF10*((LOG(AF10))/LOG(2)))) -> -0.3875854127 | AI10: =N10 -> 1122 | AJ10: =COUNTIF(L98:L127,AI10) -> 2 | AK10: =AJ10/(AL4-AJ20) -> 0.06666666667 | AL10: =IF(AK10=0,0,(AK10*((LOG(AK10))/LOG(2)))) -> -0.260459373 | AN10: =N10 -> 1122 | AO10: =COUNTIF(L128:L158,AN10) -> 2 | AP10: =AO10/(AQ4-AO20) -> 0.06451612903 | AQ10: =IF(AP10=0,0,(AP10*((LOG(AP10))/LOG(2)))) -> -0.2551094394 | AS10: =N10 -> 1122 | AT10: =COUNTIF(L159:L188,AS10) -> 1 | AU10: =AT10/(AV4-AT20) -> 0.03333333333 | AV10: =IF(AU10=0,0,(AU10*((LOG(AU10))/LOG(2)))) -> -0.1635630199
A11: 12 | B11: 570 | C11: 23 | D11: 578 | E11: 24 | F11: 585 | G11: 14 | H11: 598 | K11: 0 | L11: 1221 | N11: 1211 | O11: =COUNTIF($L$7:$L$500,N11) -> 1 | P11: =O11/$Q$4 -> 0.005494505495 | Q11: =IF(P11=0,0,(P11*((LOG(P11))/LOG(2)))) -> -0.0412516189 | T11: =N11 -> 1211 | U11: =COUNTIF(L7:L36,T11) -> 0 | V11: =U11/(W4-U20) -> 0 | W11: =IF(V11=0,0,(V11*((LOG(V11))/LOG(2)))) -> 0 | Y11: =N11 -> 1211 | Z11: =COUNTIF(L37:L67,Y11) -> 0 | AA11: =Z11/(AB4-Z20) -> 0 | AB11: =IF(AA11=0,0,(AA11*((LOG(AA11))/LOG(2)))) -> 0 | AD11: =N11 -> 1211 | AE11: =COUNTIF(L68:L97,AD11) -> 0 | AF11: =AE11/(AG4-AE20) -> 0 | AG11: =IF(AF11=0,0,(AF11*((LOG(AF11))/LOG(2)))) -> 0 | AI11: =N11 -> 1211 | AJ11: =COUNTIF(L98:L127,AI11) -> 1 | AK11: =AJ11/(AL4-AJ20) -> 0.03333333333 | AL11: =IF(AK11=0,0,(AK11*((LOG(AK11))/LOG(2)))) -> -0.1635630199 | AN11: =N11 -> 1211 | AO11: =COUNTIF(L128:L158,AN11) -> 0 | AP11: =AO11/(AQ4-AO20) -> 0 | AQ11: =IF(AP11=0,0,(AP11*((LOG(AP11))/LOG(2)))) -> 0 | AS11: =N11 -> 1211 | AT11: =COUNTIF(L159:L188,AS11) -> 0 | AU11: =AT11/(AV4-AT20) -> 0 | AV11: =IF(AU11=0,0,(AU11*((LOG(AU11))/LOG(2)))) -> 0
A12: 21 | B12: 699 | C12: 21 | D12: 706 | E12: 11 | F12: 722 | G12: 12 | H12: 730 | K12: 0 | L12: 2211 | N12: 1212 | O12: =COUNTIF($L$7:$L$500,N12) -> 1 | P12: =O12/$Q$4 -> 0.005494505495 | Q12: =IF(P12=0,0,(P12*((LOG(P12))/LOG(2)))) -> -0.0412516189 | T12: =N12 -> 1212 | U12: =COUNTIF(L7:L36,T12) -> 1 | V12: =U12/(W4-U20) -> 0.03333333333 | W12: =IF(V12=0,0,(V12*((LOG(V12))/LOG(2)))) -> -0.1635630199 | Y12: =N12 -> 1212 | Z12: =COUNTIF(L37:L67,Y12) -> 0 | AA12: =Z12/(AB4-Z20) -> 0 | AB12: =IF(AA12=0,0,(AA12*((LOG(AA12))/LOG(2)))) -> 0 | AD12: =N12 -> 1212 | AE12: =COUNTIF(L68:L97,AD12) -> 0 | AF12: =AE12/(AG4-AE20) -> 0 | AG12: =IF(AF12=0,0,(AF12*((LOG(AF12))/LOG(2)))) -> 0 | AI12: =N12 -> 1212 | AJ12: =COUNTIF(L98:L127,AI12) -> 0 | AK12: =AJ12/(AL4-AJ20) -> 0 | AL12: =IF(AK12=0,0,(AK12*((LOG(AK12))/LOG(2)))) -> 0 | AN12: =N12 -> 1212 | AO12: =COUNTIF(L128:L158,AN12) -> 0 | AP12: =AO12/(AQ4-AO20) -> 0 | AQ12: =IF(AP12=0,0,(AP12*((LOG(AP12))/LOG(2)))) -> 0 | AS12: =N12 -> 1212 | AT12: =COUNTIF(L159:L188,AS12) -> 0 | AU12: =AT12/(AV4-AT20) -> 0 | AV12: =IF(AU12=0,0,(AU12*((LOG(AU12))/LOG(2)))) -> 0
A13: 12 | B13: 855 | C13: 23 | D13: 865 | E13: 24 | F13: 872 | G13: 23 | H13: 897 | K13: 0 | L13: 1222 | N13: 1221 | O13: =COUNTIF($L$7:$L$500,N13) -> 11 | P13: =O13/$Q$4 -> 0.06043956044 | Q13: =IF(P13=0,0,(P13*((LOG(P13))/LOG(2)))) -> -0.2446812815 | T13: =N13 -> 1221 | U13: =COUNTIF(L7:L36,T13) -> 7 | V13: =U13/(W4-U20) -> 0.2333333333 | W13: =IF(V13=0,0,(V13*((LOG(V13))/LOG(2)))) -> -0.4898916572 | Y13: =N13 -> 1221 | Z13: =COUNTIF(L37:L67,Y13) -> 0 | AA13: =Z13/(AB4-Z20) -> 0 | AB13: =IF(AA13=0,0,(AA13*((LOG(AA13))/LOG(2)))) -> 0 | AD13: =N13 -> 1221 | AE13: =COUNTIF(L68:L97,AD13) -> 1 | AF13: =AE13/(AG4-AE20) -> 0.03333333333 | AG13: =IF(AF13=0,0,(AF13*((LOG(AF13))/LOG(2)))) -> -0.1635630199 | AI13: =N13 -> 1221 | AJ13: =COUNTIF(L98:L127,AI13) -> 2 | AK13: =AJ13/(AL4-AJ20) -> 0.06666666667 | AL13: =IF(AK13=0,0,(AK13*((LOG(AK13))/LOG(2)))) -> -0.260459373 | AN13: =N13 -> 1221 | AO13: =COUNTIF(L128:L158,AN13) -> 1 | AP13: =AO13/(AQ4-AO20) -> 0.03225806452 | AQ13: =IF(AP13=0,0,(AP13*((LOG(AP13))/LOG(2)))) -> -0.1598127842 | AS13: =N13 -> 1221 | AT13: =COUNTIF(L159:L188,AS13) -> 0 | AU13: =AT13/(AV4-AT20) -> 0 | AV13: =IF(AU13=0,0,(AU13*((LOG(AU13))/LOG(2)))) -> 0
A14: 12 | B14: 998 | C14: 14 | D14: 1003 | E14: 13 | F14: 1009 | G14: 14 | H14: 1013 | K14: 0 | L14: 1111 | N14: 1222 | O14: =COUNTIF($L$7:$L$500,N14) -> 1 | P14: =O14/$Q$4 -> 0.005494505495 | Q14: =IF(P14=0,0,(P14*((LOG(P14))/LOG(2)))) -> -0.0412516189 | T14: =N14 -> 1222 | U14: =COUNTIF(L7:L36,T14) -> 1 | V14: =U14/(W4-U20) -> 0.03333333333 | W14: =IF(V14=0,0,(V14*((LOG(V14))/LOG(2)))) -> -0.1635630199 | Y14: =N14 -> 1222 | Z14: =COUNTIF(L37:L67,Y14) -> 0 | AA14: =Z14/(AB4-Z20) -> 0 | AB14: =IF(AA14=0,0,(AA14*((LOG(AA14))/LOG(2)))) -> 0 | AD14: =N14 -> 1222 | AE14: =COUNTIF(L68:L97,AD14) -> 0 | AF14: =AE14/(AG4-AE20) -> 0 | AG14: =IF(AF14=0,0,(AF14*((LOG(AF14))/LOG(2)))) -> 0 | AI14: =N14 -> 1222 | AJ14: =COUNTIF(L98:L127,AI14) -> 0 | AK14: =AJ14/(AL4-AJ20) -> 0 | AL14: =IF(AK14=0,0,(AK14*((LOG(AK14))/LOG(2)))) -> 0 | AN14: =N14 -> 1222 | AO14: =COUNTIF(L128:L158,AN14) -> 0 | AP14: =AO14/(AQ4-AO20) -> 0 | AQ14: =IF(AP14=0,0,(AP14*((LOG(AP14))/LOG(2)))) -> 0 | AS14: =N14 -> 1222 | AT14: =COUNTIF(L159:L188,AS14) -> 0 | AU14: =AT14/(AV4-AT20) -> 0 | AV14: =IF(AU14=0,0,(AU14*((LOG(AU14))/LOG(2)))) -> 0
A15: 12 | B15: 1108 | C15: 14 | D15: 1121 | E15: 24 | F15: 1131 | G15: 23 | H15: 1139 | K15: 0 | L15: 1122 | N15: 2111 | O15: =COUNTIF($L$7:$L$500,N15) -> 1 | P15: =O15/$Q$4 -> 0.005494505495 | Q15: =IF(P15=0,0,(P15*((LOG(P15))/LOG(2)))) -> -0.0412516189 | T15: =N15 -> 2111 | U15: =COUNTIF(L7:L36,T15) -> 1 | V15: =U15/(W4-U20) -> 0.03333333333 | W15: =IF(V15=0,0,(V15*((LOG(V15))/LOG(2)))) -> -0.1635630199 | Y15: =N15 -> 2111 | Z15: =COUNTIF(L37:L67,Y15) -> 0 | AA15: =Z15/(AB4-Z20) -> 0 | AB15: =IF(AA15=0,0,(AA15*((LOG(AA15))/LOG(2)))) -> 0 | AD15: =N15 -> 2111 | AE15: =COUNTIF(L68:L97,AD15) -> 0 | AF15: =AE15/(AG4-AE20) -> 0 | AG15: =IF(AF15=0,0,(AF15*((LOG(AF15))/LOG(2)))) -> 0 | AI15: =N15 -> 2111 | AJ15: =COUNTIF(L98:L127,AI15) -> 0 | AK15: =AJ15/(AL4-AJ20) -> 0 | AL15: =IF(AK15=0,0,(AK15*((LOG(AK15))/LOG(2)))) -> 0 | AN15: =N15 -> 2111 | AO15: =COUNTIF(L128:L158,AN15) -> 0 | AP15: =AO15/(AQ4-AO20) -> 0 | AQ15: =IF(AP15=0,0,(AP15*((LOG(AP15))/LOG(2)))) -> 0 | AS15: =N15 -> 2111 | AT15: =COUNTIF(L159:L188,AS15) -> 0 | AU15: =AT15/(AV4-AT20) -> 0 | AV15: =IF(AU15=0,0,(AU15*((LOG(AU15))/LOG(2)))) -> 0
